Workbook

Sheet 使い方
A1: 年齢調整・厚生労働省様式（様式５－２）ツールの使い方(Version 1.7)
A2: 平成30年度（第３期特定健診）の項目に対応しています。
A3: （１）ＫＤＢの厚生労働省様式（様式５－２）の画面から、ＣＳＶファイルを出力・保存する。
A4: （２）（１）のCSVファイルをエクセルで開く。
A5: （３）（２）で開いたCSVファイルの内容（データのある範囲だけ※）を、このツールの「CSVデータ1」シートにコピー＆ペーストする。
A6: （４）人数が少ない等の理由で複数年を合算して計算したい場合は、同様に「CSVデータ2」～「CSVデータ4」シートに他の年度をコピー＆ペーストする。
A7: （単年度だけで分析する場合には（４）は不要です。）
A8: （５）「出力票」シートの左上にある「計算開始」をクリックすると、計算結果が表示されるので、印刷する。※※
A10: ※A1～AO213
A11: ※※「集計対象年齢」の範囲を指定することも出来ます。（通常は変える必要はありません）
A12: 見本データは全て仮想値です。
A15: このエクセルファイルは、マクロを使っています。 セキュリティの警告でマクロが無効にされた場合は、コンテンツの有効化を行って下さい。
A18: 履歴
A19: Ver.1.7 2025/7/2 最新のKDBのCSVファイルを使用するとエラーが起きることがある点を修正しました。第４期特定健診はVer.2.0をお使いください。
A20: Ver.1.6 2019/12/2 複数年度を合算（プール）して計算できるようにしました。
A21: Ver.1.5 2019/6/19 様式番号（旧様式6-2～7）を変更。集計対象年齢を指定できるようにしました。
A22: Ver.1.3 2016/9/20 ALT(GOT)→ALT(GPT)に修正しました。
A23: Ver.1.2 2014/11/20 公開

Sheet CSVデータ1
A1: レコード種別 | B1: 保険者番号 | C1: 保険者名 | D1: 地区名 | E1: 作成年月 | F1: 県計・国計
A2: 共通部 | B2: 999999 | C2: 見本データ | E2: H30年度 | F2: 国保組合含む
A3: レコード種別 | B3: 集計単位 | C3: 年齢 | D3: 性別 | E3: 受診者 | F3: ＢＭＩ人数 | G3: ＢＭＩ割合 | H3: 腹囲人数 | I3: 腹囲割合 | J3: 中性脂肪人数 | K3: 中性脂肪割合 | L3: ＡＬＴ（ＧＰＴ）人数 | M3: ＡＬＴ（ＧＰＴ）割合 | N3: ＨＤＬコレステロール人数 | O3: ＨＤＬコレステロール割合 | P3: 空腹時血糖人数 | Q3: 空腹時血糖割合 | R3: ＨｂＡ１ｃ人数 | S3: ＨｂＡ１ｃ割合 | T3: 尿酸人数 | U3: 尿酸割合 | V3: 収縮期血圧人数 | W3: 収縮期血圧割合 | X3: 拡張期血圧人数 | Y3: 拡張期血圧割合 | Z3: ＬＤＬコレステロール人数 | AA3: ＬＤＬコレステロール割合 | AB3: 血清クレアチニン人数 | AC3: 血清クレアチニン割合 | AD3: 心電図人数 | AE3: 心電図割合 | AF3: 眼底検査人数 | AG3: 眼底検査割合 | AH3: 随時血糖人数 | AI3: 随時血糖割合 | AJ3: ｎｏｎ－ＨＤＬコレステロール人数 | AK3: ｎｏｎ－ＨＤＬコレステロール割合 | AL3: ｅＧＦＲ人数 | AM3: ｅＧＦＲ割合
A4: 明細部 | B4: 国 | C4: 40 | D4: 男 | E4: 45492 | F4: 15808 | G4: 34.74896685 | H4: 20459 | I4: 44.97274246 | J4: 13469 | K4: 29.6074035 | L4: 16176 | M4: 35.55790029 | N4: 3960 | O4: 8.704827222 | P4: 6530 | Q4: 14.35417216 | R4: 12267 | S4: 26.96518069 | T4: 7110 | U4: 15.6291216 | V4: 10564 | W4: 23.22166535 | X4: 8349 | Y4: 18.35267739 | Z4: 24796 | AA4: 54.50628682 | AB4: 99 | AC4: 0.2176206806 | AD4: 5885 | AE4: 12.93634046 | AF4: 7884 | AG4: 17.33051965 | AH4: 563 | AI4: 1.237580234 | AJ4: 2650 | AK4: 5.825200035 | AL4: 614 | AM4: 1.349687857
A5: 明細部 | B5: 国 | C5: 41 | D5: 男 | E5: 44516 | F5: 16111 | G5: 36.19148171 | H5: 20624 | I5: 46.32940965 | J5: 13538 | K5: 30.41153742 | L5: 15477 | M5: 34.76727469 | N5: 3880 | O5: 8.715967293 | P5: 6231 | Q5: 13.99721448 | R5: 12596 | S5: 28.29544433 | T5: 6672 | U5: 14.98786953 | V5: 10597 | W5: 23.80492407 | X5: 7969 | Y5: 17.9014287 | Z5: 23842 | AA5: 53.55827118 | AB5: 103 | AC5: 0.2313774823 | AD5: 5711 | AE5: 12.82909516 | AF5: 7200 | AG5: 16.17395992 | AH5: 625 | AI5: 1.403989577 | AJ5: 2697 | AK5: 6.058495822 | AL5: 669 | AM5: 1.502830443
A6: 明細部 | B6: 国 | C6: 42 | D6: 男 | E6: 44259 | F6: 16032 | G6: 36.22314106 | H6: 20311 | I6: 45.89123116 | J6: 13473 | K6: 30.44126618 | L6: 16563 | M6: 37.42289704 | N6: 3977 | O6: 8.985743013 | P6: 6980 | Q6: 15.77080368 | R6: 13589 | S6: 30.70335977 | T6: 6995 | U6: 15.80469509 | V6: 11784 | W6: 26.6250932 | X6: 9382 | Y6: 21.19794844 | Z6: 24288 | AA6: 54.87697417 | AB6: 110 | AC6: 0.2485370207 | AD6: 6097 | AE6: 13.77572923 | AF6: 7516 | AG6: 16.9818568 | AH6: 580 | AI6: 1.310467927 | AJ6: 2850 | AK6: 6.439368264 | AL6: 841 | AM6: 1.900178495
A7: 明細部 | B7: 国 | C7: 43 | D7: 男 | E7: 46754 | F7: 17762 | G7: 37.99033238 | H7: 23273 | I7: 49.77755914 | J7: 14956 | K7: 31.98870685 | L7: 17336 | M7: 37.07918039 | N7: 4356 | O7: 9.316849895 | P7: 7843 | Q7: 16.77503529 | R7: 14830 | S7: 31.71921119 | T7: 7647 | U7: 16.35581982 | V7: 13140 | W7: 28.1045472 | X7: 10612 | Y7: 22.69752321 | Z7: 26143 | AA7: 55.91607135 | AB7: 146 | AC7: 0.3122727467 | AD7: 6626 | AE7: 14.17204945 | AF7: 8054 | AG7: 17.22633358 | AH7: 712 | AI7: 1.522864354 | AJ7: 3203 | AK7: 6.850750738 | AL7: 1041 | AM7: 2.226547461
A8: 明細部 | B8: 国 | C8: 44 | D8: 男 | E8: 52391 | F8: 19809 | G8: 37.80992919 | H8: 24822 | I8: 47.37836651 | J8: 16678 | K8: 31.8337119 | L8: 18780 | M8: 35.84585139 | N8: 4524 | O8: 8.635070909 | P8: 9165 | Q8: 17.49346262 | R8: 16509 | S8: 31.51113741 | T8: 8138 | U8: 15.53320227 | V8: 14364 | W8: 27.41692275 | X8: 11886 | Y8: 22.68710275 | Z8: 28204 | AA8: 53.83367372 | AB8: 143 | AC8: 0.2729476437 | AD8: 6994 | AE8: 13.34962112 | AF8: 8772 | AG8: 16.74333378 | AH8: 865 | AI8: 1.651046936 | AJ8: 3310 | AK8: 6.317879025 | AL8: 1099 | AM8: 2.097688534
A9: 明細部 | B9: 国 | C9: 45 | D9: 男 | E9: 56024 | F9: 21055 | G9: 37.58210767 | H9: 26767 | I9: 47.77773811 | J9: 17777 | K9: 31.73104384 | L9: 18878 | M9: 33.69627303 | N9: 5054 | O9: 9.0211338 | P9: 10412 | Q9: 18.58489219 | R9: 18622 | S9: 33.239326 | T9: 8636 | U9: 15.41482222 | V9: 16278 | W9: 29.05540483 | X9: 13518 | Y9: 24.12894474 | Z9: 31564 | AA9: 56.34013994 | AB9: 189 | AC9: 0.3373554191 | AD9: 7906 | AE9: 14.11180922 | AF9: 9942 | AG9: 17.74596601 | AH9: 808 | AI9: 1.44223904 | AJ9: 3633 | AK9: 6.484720834 | AL9: 1453 | AM9: 2.593531344
A10: 明細部 | B10: 国 | C10: 46 | D10: 男 | E10: 55132 | F10: 22384 | G10: 40.60074004 | H10: 26816 | I10: 48.63962853 | J10: 19033 | K10: 34.5226003 | L10: 19563 | M10: 35.48392948 | N10: 5050 | O10: 9.159834579 | P10: 10300 | Q10: 18.68243488 | R10: 19809 | S10: 35.93013132 | T10: 8549 | U10: 15.50642095 | V10: 16514 | W10: 29.95356599 | X10: 14241 | Y10: 25.83073351 | Z10: 31359 | AA10: 56.87985199 | AB10: 246 | AC10: 0.4462018428 | AD10: 7969 | AE10: 14.45440035 | AF10: 9847 | AG10: 17.86077051 | AH10: 980 | AI10: 1.777552057 | AJ10: 3648 | AK10: 6.61684684 | AL10: 1706 | AM10: 3.094391642
A11: 明細部 | B11: 国 | C11: 47 | D11: 男 | E11: 57250 | F11: 22213 | G11: 38.8 | H11: 28356 | I11: 49.530131 | J11: 19300 | K11: 33.71179039 | L11: 19577 | M11: 34.19563319 | N11: 5093 | O11: 8.896069869 | P11: 10799 | Q11: 18.8628821 | R11: 21549 | S11: 37.64017467 | T11: 8498 | U11: 14.84366812 | V11: 17323 | W11: 30.25851528 | X11: 15204 | Y11: 26.55720524 | Z11: 32643 | AA11: 57.01834061 | AB11: 253 | AC11: 0.4419213974 | AD11: 7938 | AE11: 13.86550218 | AF11: 9283 | AG11: 16.21484716 | AH11: 996 | AI11: 1.739737991 | AJ11: 3700 | AK11: 6.462882096 | AL11: 1940 | AM11: 3.388646288
A12: 明細部 | B12: 国 | C12: 48 | D12: 男 | E12: 53634 | F12: 22228 | G12: 41.44386024 | H12: 27182 | I12: 50.68053846 | J12: 18262 | K12: 34.04929709 | L12: 19128 | M12: 35.66394451 | N12: 4872 | O12: 9.083790133 | P12: 11124 | Q12: 20.74057501 | R12: 22024 | S12: 41.06350449 | T12: 8420 | U12: 15.6989969 | V12: 17907 | W12: 33.38740351 | X12: 15285 | Y12: 28.4987135 | Z12: 30124 | AA12: 56.16586494 | AB12: 297 | AC12: 0.5537532162 | AD12: 7989 | AE12: 14.89540217 | AF12: 9865 | AG12: 18.39318343 | AH12: 944 | AI12: 1.760077563 | AJ12: 3573 | AK12: 6.661818995 | AL12: 2332 | AM12: 4.347988216
A13: 明細部 | B13: 国 | C13: 49 | D13: 男 | E13: 56840 | F13: 21851 | G13: 38.44299789 | H13: 27768 | I13: 48.85292048 | J13: 18828 | K13: 33.12456017 | L13: 18571 | M13: 32.67241379 | N13: 4897 | O13: 8.615411682 | P13: 11990 | Q13: 21.09429979 | R13: 21924 | S13: 38.57142857 | T13: 8504 | U13: 14.96129486 | V13: 18432 | W13: 32.4278677 | X13: 15659 | Y13: 27.54926108 | Z13: 32082 | AA13: 56.44264602 | AB13: 320 | AC13: 0.5629838142 | AD13: 8088 | AE13: 14.2294159 | AF13: 9745 | AG13: 17.14461647 | AH13: 1093 | AI13: 1.92294159 | AJ13: 3565 | AK13: 6.271991555 | AL13: 2438 | AM13: 4.289232935
A14: 明細部 | B14: 国 | C14: 50 | D14: 男 | E14: 57165 | F14: 22537 | G14: 39.42447302 | H14: 28757 | I14: 50.30525671 | J14: 18611 | K14: 32.5566343 | L14: 18685 | M14: 32.68608414 | N14: 4742 | O14: 8.295285577 | P14: 12818 | Q14: 22.42281116 | R14: 23496 | S14: 41.10207295 | T14: 8539 | U14: 14.93746173 | V14: 20018 | W14: 35.01793055 | X14: 16661 | Y14: 29.14545614 | Z14: 31104 | AA14: 54.41091577 | AB14: 337 | AC14: 0.5895215604 | AD14: 8504 | AE14: 14.87623546 | AF14: 11146 | AG14: 19.49794455 | AH14: 1113 | AI14: 1.946995539 | AJ14: 3974 | AK14: 6.951806175 | AL14: 2802 | AM14: 4.90160063
A15: 明細部 | B15: 国 | C15: 51 | D15: 男 | E15: 54407 | F15: 20988 | G15: 38.57591854 | H15: 29186 | I15: 53.6438326 | J15: 19162 | K15: 35.21973275 | L15: 18170 | M15: 33.39643796 | N15: 4984 | O15: 9.160585954 | P15: 13137 | Q15: 24.14579006 | R15: 23792 | S15: 43.72966714 | T15: 8556 | U15: 15.72591762 | V15: 20506 | W15: 37.69000312 | X15: 17852 | Y15: 32.81195434 | Z15: 30810 | AA15: 56.62874263 | AB15: 369 | AC15: 0.6782215524 | AD15: 8448 | AE15: 15.52741375 | AF15: 9657 | AG15: 17.74955429 | AH15: 1233 | AI15: 2.266252504 | AJ15: 3686 | AK15: 6.774863529 | AL15: 2888 | AM15: 5.308140497
A16: 明細部 | B16: 国 | C16: 52 | D16: 男 | E16: 47021 | F16: 18268 | G16: 38.85072627 | H16: 25542 | I16: 54.32041003 | J16: 16149 | K16: 34.34422917 | L16: 15278 | M16: 32.49186534 | N16: 4186 | O16: 8.902405308 | P16: 11601 | Q16: 24.67195508 | R16: 21419 | S16: 45.55198741 | T16: 7278 | U16: 15.4781906 | V16: 17692 | W16: 37.62574169 | X16: 14682 | Y16: 31.22434657 | Z16: 25520 | AA16: 54.27362242 | AB16: 372 | AC16: 0.7911358755 | AD16: 7483 | AE16: 15.91416601 | AF16: 8687 | AG16: 18.47472406 | AH16: 1048 | AI16: 2.228791391 | AJ16: 2944 | AK16: 6.261032305 | AL16: 2983 | AM16: 6.343973969
A17: 明細部 | B17: 国 | C17: 53 | D17: 男 | E17: 52653 | F17: 20446 | G17: 38.83159554 | H17: 27884 | I17: 52.95804608 | J17: 16986 | K17: 32.26027007 | L17: 15315 | M17: 29.08666173 | N17: 4131 | O17: 7.845706797 | P17: 13110 | Q17: 24.89886616 | R17: 23782 | S17: 45.16741686 | T17: 8108 | U17: 15.39893263 | V17: 20989 | W17: 39.86287581 | X17: 17203 | Y17: 32.67240233 | Z17: 28395 | AA17: 53.92855108 | AB17: 483 | AC17: 0.9173266481 | AD17: 8312 | AE17: 15.78637495 | AF17: 9775 | AG17: 18.56494407 | AH17: 1285 | AI17: 2.440506714 | AJ17: 3315 | AK17: 6.295937553 | AL17: 3618 | AM17: 6.871403339
A18: 明細部 | B18: 国 | C18: 54 | D18: 男 | E18: 56778 | F18: 21780 | G18: 38.35992814 | H18: 30113 | I18: 53.03638733 | J18: 18188 | K18: 32.03353412 | L18: 15770 | M18: 27.77484237 | N18: 4431 | O18: 7.804079045 | P18: 13864 | Q18: 24.41790834 | R18: 25661 | S18: 45.19532213 | T18: 8092 | U18: 14.25199901 | V18: 22878 | W18: 40.29377576 | X18: 18112 | Y18: 31.89967945 | Z18: 29094 | AA18: 51.24167811 | AB18: 521 | AC18: 0.917608933 | AD18: 9003 | AE18: 15.85649371 | AF18: 9909 | AG18: 17.45218218 | AH18: 1318 | AI18: 2.321321639 | AJ18: 3449 | AK18: 6.074535912 | AL18: 4069 | AM18: 7.166508155
A19: 明細部 | B19: 国 | C19: 55 | D19: 男 | E19: 55615 | F19: 20529 | G19: 36.91270341 | H19: 28442 | I19: 51.14087926 | J19: 18246 | K19: 32.80769577 | L19: 15307 | M19: 27.52315023 | N19: 4488 | O19: 8.069765351 | P19: 14292 | Q19: 25.69810303 | R19: 25396 | S19: 45.66393958 | T19: 8013 | U19: 14.40798346 | V19: 22766 | W19: 40.93499955 | X19: 17231 | Y19: 30.98264857 | Z19: 29093 | AA19: 52.31142677 | AB19: 502 | AC19: 0.9026341814 | AD19: 8805 | AE19: 15.8320597 | AF19: 10867 | AG19: 19.53969253 | AH19: 1449 | AI19: 2.605412209 | AJ19: 3306 | AK19: 5.94443945 | AL19: 4463 | AM19: 8.02481345
A20: 明細部 | B20: 国 | C20: 56 | D20: 男 | E20: 56139 | F20: 20333 | G20: 36.21902777 | H20: 29367 | I20: 52.31122749 | J20: 18857 | K20: 33.58983951 | L20: 15776 | M20: 28.1016762 | N20: 4464 | O20: 7.951691338 | P20: 15138 | Q20: 26.96521135 | R20: 26476 | S20: 47.16150982 | T20: 8168 | U20: 14.5496001 | V20: 22544 | W20: 40.15746629 | X20: 18870 | Y20: 33.61299631 | Z20: 28734 | AA20: 51.18366911 | AB20: 546 | AC20: 0.9725859028 | AD20: 9502 | AE20: 16.92584478 | AF20: 10245 | AG20: 18.24934537 | AH20: 1471 | AI20: 2.620281801 | AJ20: 3432 | AK20: 6.113397104 | AL20: 4695 | AM20: 8.363169989
A21: 明細部 | B21: 国 | C21: 57 | D21: 男 | E21: 57707 | F21: 21081 | G21: 36.53109675 | H21: 29638 | I21: 51.35945379 | J21: 18338 | K21: 31.77777393 | L21: 15403 | M21: 26.69173584 | N21: 4619 | O21: 8.004228257 | P21: 16266 | Q21: 28.18722165 | R21: 28025 | S21: 48.56429896 | T21: 8117 | U21: 14.06588455 | V21: 23907 | W21: 41.42824961 | X21: 19240 | Y21: 33.34084253 | Z21: 30652 | AA21: 53.1166063 | AB21: 593 | AC21: 1.02760497 | AD21: 9524 | AE21: 16.50406363 | AF21: 11276 | AG21: 19.54009046 | AH21: 1583 | AI21: 2.743168073 | AJ21: 3329 | AK21: 5.768797546 | AL21: 5133 | AM21: 8.894934757
A22: 明細部 | B22: 国 | C22: 58 | D22: 男 | E22: 58658 | F22: 21256 | G22: 36.2371714 | H22: 29903 | I22: 50.97855365 | J22: 18721 | K22: 31.91551025 | L22: 16002 | M22: 27.28016639 | N22: 4593 | O22: 7.830133997 | P22: 17307 | Q22: 29.50492686 | R22: 30340 | S22: 51.72355007 | T22: 8089 | U22: 13.79010536 | V22: 25627 | W22: 43.6888404 | X22: 19964 | Y22: 34.03457329 | Z22: 31254 | AA22: 53.2817348 | AB22: 614 | AC22: 1.046745542 | AD22: 10372 | AE22: 17.68215759 | AF22: 11935 | AG22: 20.34675577 | AH22: 1585 | AI22: 2.70210372 | AJ22: 3490 | AK22: 5.949742576 | AL22: 5691 | AM22: 9.702001432
A23: 明細部 | B23: 国 | C23: 59 | D23: 男 | E23: 59626 | F23: 22425 | G23: 37.60943213 | H23: 31827 | I23: 53.37772113 | J23: 19091 | K23: 32.01791165 | L23: 15397 | M23: 25.82262771 | N23: 4988 | O23: 8.365478147 | P23: 18370 | Q23: 30.80870761 | R23: 31602 | S23: 53.00036897 | T23: 8591 | U23: 14.4081441 | V23: 27484 | W23: 46.09398585 | X23: 19842 | Y23: 33.27742931 | Z23: 31605 | AA23: 53.00540033 | AB23: 737 | AC23: 1.23603797 | AD23: 11215 | AE23: 18.80890887 | AF23: 12537 | AG23: 21.02606246 | AH23: 1823 | AI23: 3.057391071 | AJ23: 3461 | AK23: 5.804514809 | AL23: 6736 | AM23: 11.29708516
A24: 明細部 | B24: 国 | C24: 60 | D24: 男 | E24: 67062 | F24: 25346 | G24: 37.79487638 | H24: 37448 | I24: 55.84086368 | J24: 22072 | K24: 32.91282694 | L24: 16991 | M24: 25.336256 | N24: 5224 | O24: 7.789806448 | P24: 20971 | Q24: 31.2710626 | R24: 36404 | S24: 54.28409531 | T24: 9305 | U24: 13.87521995 | V24: 32369 | W24: 48.26727506 | X24: 22108 | Y24: 32.9665086 | Z24: 34095 | AA24: 50.84101279 | AB24: 827 | AC24: 1.2331872 | AD24: 12643 | AE24: 18.85270347 | AF24: 15075 | AG24: 22.47919835 | AH24: 2095 | AI24: 3.123974829 | AJ24: 3858 | AK24: 5.75288539 | AL24: 7552 | AM24: 11.26122096
A25: 明細部 | B25: 国 | C25: 61 | D25: 男 | E25: 70403 | F25: 26814 | G25: 38.08644518 | H25: 38734 | I25: 55.01754187 | J25: 22258 | K25: 31.61513004 | L25: 18102 | M25: 25.7119725 | N25: 5814 | O25: 8.258170817 | P25: 22019 | Q25: 31.27565587 | R25: 39904 | S25: 56.67940287 | T25: 10033 | U25: 14.25081318 | V25: 34988 | W25: 49.69674588 | X25: 23807 | Y25: 33.81532037 | Z25: 36737 | AA25: 52.18101501 | AB25: 1055 | AC25: 1.498515688 | AD25: 14368 | AE25: 20.40822124 | AF25: 15497 | AG25: 22.01184609 | AH25: 2196 | AI25: 3.119185262 | AJ25: 3919 | AK25: 5.566524154 | AL25: 9206 | AM25: 13.07614732
A26: 明細部 | B26: 国 | C26: 62 | D26: 男 | E26: 88129 | F26: 29547 | G26: 33.52698885 | H26: 46341 | I26: 52.58314516 | J26: 26805 | K26: 30.41564071 | L26: 20020 | M26: 22.71669938 | N26: 6668 | O26: 7.566181393 | P26: 27115 | Q26: 30.76739779 | R26: 47790 | S26: 54.22732585 | T26: 11921 | U26: 13.52676191 | V26: 41345 | W26: 46.91418262 | X26: 25386 | Y26: 28.80550103 | Z26: 41971 | AA26: 47.62450499 | AB26: 1340 | AC26: 1.52049836 | AD26: 16183 | AE26: 18.36285445 | AF26: 17287 | AG26: 19.61556355 | AH26: 2528 | AI26: 2.86852228 | AJ26: 4266 | AK26: 4.840631347 | AL26: 11059 | AM26: 12.54865027
A27: 明細部 | B27: 国 | C27: 63 | D27: 男 | E27: 115427 | F27: 40061 | G27: 34.70678437 | H27: 63174 | I27: 54.73069559 | J27: 34913 | K27: 30.24682267 | L27: 25752 | M27: 22.31020472 | N27: 8988 | O27: 7.786739671 | P27: 36009 | Q27: 31.19634054 | R27: 65982 | S27: 57.16340198 | T27: 14812 | U27: 12.83235292 | V27: 55064 | W27: 47.70460984 | X27: 34906 | Y27: 30.24075823 | Z27: 56717 | AA27: 49.13668379 | AB27: 1942 | AC27: 1.682448647 | AD27: 23124 | AE27: 20.03344105 | AF27: 24706 | AG27: 21.40400426 | AH27: 3370 | AI27: 2.919594202 | AJ27: 6093 | AK27: 5.278660972 | AL27: 16799 | AM27: 14.55378724
A28: 明細部 | B28: 国 | C28: 64 | D28: 男 | E28: 139170 | F28: 45156 | G28: 32.44664798 | H28: 75155 | I28: 54.00229935 | J28: 41480 | K28: 29.80527413 | L28: 30967 | M28: 22.25120356 | N28: 10775 | O28: 7.742329525 | P28: 43641 | Q28: 31.3580513 | R28: 81039 | S28: 58.23022203 | T28: 17387 | U28: 12.49335345 | V28: 68130 | W28: 48.95451606 | X28: 40016 | Y28: 28.75332327 | Z28: 68576 | AA28: 49.27498743 | AB28: 2393 | AC28: 1.719479773 | AD28: 28871 | AE28: 20.74513185 | AF28: 29320 | AG28: 21.06775886 | AH28: 3968 | AI28: 2.851189193 | AJ28: 6911 | AK28: 4.965869081 | AL28: 21977 | AM28: 15.79147805
A29: 明細部 | B29: 国 | C29: 65 | D29: 男 | E29: 168728 | F29: 57787 | G29: 34.24861315 | H29: 88465 | I29: 52.43053909 | J29: 48938 | K29: 29.00407757 | L29: 34796 | M29: 20.62254042 | N29: 13307 | O29: 7.886657816 | P29: 54972 | Q29: 32.5802475 | R29: 101819 | S29: 60.34505239 | T29: 21220 | U29: 12.57645441 | V29: 83504 | W29: 49.49030392 | X29: 48981 | Y29: 29.02956237 | Z29: 80627 | AA29: 47.78519274 | AB29: 3007 | AC29: 1.782158267 | AD29: 37515 | AE29: 22.23400977 | AF29: 35216 | AG29: 20.87146176 | AH29: 5101 | AI29: 3.023208952 | AJ29: 8187 | AK29: 4.852188137 | AL29: 28286 | AM29: 16.76425964
A30: 明細部 | B30: 国 | C30: 66 | D30: 男 | E30: 221319 | F30: 72286 | G30: 32.66145247 | H30: 121469 | I30: 54.88412653 | J30: 65122 | K30: 29.42449586 | L30: 44109 | M30: 19.93005571 | N30: 16740 | O30: 7.563742833 | P30: 69555 | Q30: 31.42748702 | R30: 126844 | S30: 57.31274766 | T30: 27372 | U30: 12.36766839 | V30: 111622 | W30: 50.43489262 | X30: 58679 | Y30: 26.51331336 | Z30: 108440 | AA30: 48.99714891 | AB30: 4181 | AC30: 1.889128362 | AD30: 49267 | AE30: 22.26062832 | AF30: 46531 | AG30: 21.02440369 | AH30: 7024 | AI30: 3.173699502 | AJ30: 10392 | AK30: 4.695484798 | AL30: 38811 | AM30: 17.53622599
A31: 明細部 | B31: 国 | C31: 67 | D31: 男 | E31: 253431 | F31: 84535 | G31: 33.35621925 | H31: 137895 | I31: 54.41125987 | J31: 74275 | K31: 29.30778003 | L31: 50830 | M31: 20.05674128 | N31: 19580 | O31: 7.725968804 | P31: 87933 | Q31: 34.69701812 | R31: 151991 | S31: 59.97332607 | T31: 32597 | U31: 12.8622781 | V31: 135519 | W31: 53.47372658 | X31: 65411 | Y31: 25.81018107 | Z31: 126275 | AA31: 49.82618543 | AB31: 5247 | AC31: 2.070386022 | AD31: 58066 | AE31: 22.91195631 | AF31: 50590 | AG31: 19.96204095 | AH31: 8289 | AI31: 3.270712738 | AJ31: 12244 | AK31: 4.831295303 | AL31: 50108 | AM31: 19.77185112
A32: 明細部 | B32: 国 | C32: 68 | D32: 男 | E32: 316266 | F32: 96064 | G32: 30.37443165 | H32: 172760 | I32: 54.62490435 | J32: 89190 | K32: 28.20094477 | L32: 57990 | M32: 18.33583123 | N32: 23691 | O32: 7.490846313 | P32: 105174 | Q32: 33.25491833 | R32: 195439 | S32: 61.79576685 | T32: 40883 | U32: 12.92677683 | V32: 173250 | W32: 54.77983723 | X32: 78401 | Y32: 24.78957586 | Z32: 154437 | AA32: 48.83136347 | AB32: 6960 | AC32: 2.200679175 | AD32: 72904 | AE32: 23.05148198 | AF32: 64615 | AG32: 20.43058691 | AH32: 9972 | AI32: 3.15304206 | AJ32: 14007 | AK32: 4.42886684 | AL32: 66632 | AM32: 21.06834121
A33: 明細部 | B33: 国 | C33: 69 | D33: 男 | E33: 381377 | F33: 112519 | G33: 29.50335233 | H33: 201751 | I33: 52.90067309 | J33: 101899 | K33: 26.71870616 | L33: 65588 | M33: 17.19768103 | N33: 28152 | O33: 7.381672204 | P33: 126357 | Q33: 33.13178299 | R33: 227014 | S33: 59.52482714 | T33: 44416 | U33: 11.64621883 | V33: 195568 | W33: 51.27944265 | X33: 89683 | Y33: 23.51557645 | Z33: 172012 | AA33: 45.10287721 | AB33: 8787 | AC33: 2.304019382 | AD33: 89423 | AE33: 23.44740244 | AF33: 70787 | AG33: 18.56089906 | AH33: 12063 | AI33: 3.163011928 | AJ33: 16752 | AK33: 4.392504005 | AL33: 85223 | AM33: 22.34612994
A34: 明細部 | B34: 国 | C34: 70 | D34: 男 | E34: 397948 | F34: 120675 | G34: 30.32431373 | H34: 216162 | I34: 54.31915728 | J34: 109185 | K34: 27.43700182 | L34: 68792 | M34: 17.28668067 | N34: 32270 | O34: 8.109099681 | P34: 133409 | Q34: 33.5242293 | R34: 252233 | S34: 63.38340688 | T34: 48474 | U34: 12.18098847 | V34: 222641 | W34: 55.94725944 | X34: 93738 | Y34: 23.55533889 | Z34: 182264 | AA34: 45.80095892 | AB34: 10135 | AC34: 2.546815162 | AD34: 102808 | AE34: 25.83453114 | AF34: 76470 | AG34: 19.21607848 | AH34: 13936 | AI34: 3.501965081 | AJ34: 17509 | AK34: 4.399821082 | AL34: 96520 | AM34: 24.2544252
A35: 明細部 | B35: 国 | C35: 71 | D35: 男 | E35: 434892 | F35: 127051 | G35: 29.21437966 | H35: 219979 | I35: 50.58244346 | J35: 105250 | K35: 24.20141093 | L35: 71080 | M35: 16.34428778 | N35: 34369 | O35: 7.902881635 | P35: 142239 | Q35: 32.70674098 | R35: 276837 | S35: 63.65649403 | T35: 48794 | U35: 11.2197971 | V35: 239700 | W35: 55.11713253 | X35: 93218 | Y35: 21.43474702 | Z35: 189487 | AA35: 43.57104752 | AB35: 12259 | AC35: 2.818860775 | AD35: 112777 | AE35: 25.93218546 | AF35: 78634 | AG35: 18.08127075 | AH35: 15278 | AI35: 3.513056115 | AJ35: 17208 | AK35: 3.956844458 | AL35: 112868 | AM35: 25.9531102
A36: 明細部 | B36: 国 | C36: 72 | D36: 男 | E36: 343143 | F36: 96148 | G36: 28.01980515 | H36: 172116 | I36: 50.1586802 | J36: 84219 | K36: 24.54341193 | L36: 51352 | M36: 14.96518944 | N36: 25775 | O36: 7.511445666 | P36: 109263 | Q36: 31.84182688 | R36: 213426 | S36: 62.19739292 | T36: 38795 | U36: 11.30578214 | V36: 183035 | W36: 53.3407355 | X36: 66379 | Y36: 19.34441326 | Z36: 150633 | AA36: 43.89802502 | AB36: 10587 | AC36: 3.085302629 | AD36: 84447 | AE36: 24.60985653 | AF36: 61209 | AG36: 17.83775277 | AH36: 11872 | AI36: 3.459782073 | AJ36: 13686 | AK36: 3.988424651 | AL36: 86575 | AM36: 25.23000615
A37: 明細部 | B37: 国 | C37: 73 | D37: 男 | E37: 233987 | F37: 64157 | G37: 27.41904465 | H37: 123119 | I37: 52.61788048 | J37: 56557 | K37: 24.17100095 | L37: 34558 | M37: 14.76919658 | N37: 18533 | O37: 7.920525499 | P37: 78527 | Q37: 33.56041148 | R37: 157561 | S37: 67.33750166 | T37: 26288 | U37: 11.23481219 | V37: 130521 | W37: 55.78130409 | X37: 44755 | Y37: 19.12713099 | Z37: 101569 | AA37: 43.40796711 | AB37: 7935 | AC37: 3.391214042 | AD37: 64202 | AE37: 27.43827649 | AF37: 39103 | AG37: 16.71161218 | AH37: 9167 | AI37: 3.91773902 | AJ37: 8668 | AK37: 3.704479309 | AL37: 66334 | AM37: 28.34943822
A38: 明細部 | B38: 国 | C38: 74 | D38: 男 | E38: 304524 | F38: 83268 | G38: 27.34365764 | H38: 155363 | I38: 51.01831054 | J38: 69432 | K38: 22.80017339 | L38: 41688 | M38: 13.68956141 | N38: 24390 | O38: 8.009220948 | P38: 94275 | Q38: 30.95815108 | R38: 203727 | S38: 66.9001458 | T38: 33139 | U38: 10.88222932 | V38: 166763 | W38: 54.76185785 | X38: 53013 | Y38: 17.40848012 | Z38: 127100 | AA38: 41.73726866 | AB38: 11123 | AC38: 3.652585675 | AD38: 81087 | AE38: 26.62745793 | AF38: 53394 | AG38: 17.53359341 | AH38: 11576 | AI38: 3.801342423 | AJ38: 10714 | AK38: 3.518277706 | AL38: 89414 | AM38: 29.36188937
A39: 明細部 | B39: 国 | C39: 40 | D39: 女 | E39: 41797 | F39: 6945 | G39: 16.61602507 | H39: 4600 | I39: 11.00557456 | J39: 3463 | K39: 8.285283633 | L39: 2659 | M39: 6.361700601 | N39: 691 | O39: 1.653228701 | P39: 2409 | Q39: 5.763571548 | R39: 7968 | S39: 19.06356916 | T39: 340 | U39: 0.8134555112 | V39: 3810 | W39: 9.115486757 | X39: 2990 | Y39: 7.153623466 | Z39: 13837 | AA39: 33.10524679 | AB39: 17 | AC39: 0.04067277556 | AD39: 4600 | AE39: 11.00557456 | AF39: 6330 | AG39: 15.1446276 | AH39: 333 | AI39: 0.7967078977 | AJ39: 1025 | AK39: 2.452329115 | AL39: 458 | AM39: 1.095772424
A40: 明細部 | B40: 国 | C40: 41 | D40: 女 | E40: 40766 | F40: 6903 | G40: 16.93322867 | H40: 4351 | I40: 10.67310994 | J40: 3179 | K40: 7.798165138 | L40: 2307 | M40: 5.659127704 | N40: 651 | O40: 1.596919001 | P40: 2254 | Q40: 5.529117402 | R40: 8076 | S40: 19.8106265 | T40: 304 | U40: 0.7457194721 | V40: 4166 | W40: 10.2193004 | X40: 3080 | Y40: 7.555315704 | Z40: 13418 | AA40: 32.91468381 | AB40: 11 | AC40: 0.02698327037 | AD40: 4311 | AE40: 10.57498896 | AF40: 5432 | AG40: 13.32482951 | AH40: 354 | AI40: 0.8683707011 | AJ40: 1073 | AK40: 2.632095374 | AL40: 497 | AM40: 1.219153216
A41: 明細部 | B41: 国 | C41: 42 | D41: 女 | E41: 40097 | F41: 7313 | G41: 18.23827219 | H41: 4531 | I41: 11.30009726 | J41: 3361 | K41: 8.38217323 | L41: 2426 | M41: 6.050327955 | N41: 599 | O41: 1.493877347 | P41: 2377 | Q41: 5.928124299 | R41: 8523 | S41: 21.25595431 | T41: 304 | U41: 0.7581614585 | V41: 4394 | W41: 10.95842582 | X41: 3041 | Y41: 7.584108537 | Z41: 14219 | AA41: 35.46150585 | AB41: 19 | AC41: 0.04738509115 | AD41: 4252 | AE41: 10.60428461 | AF41: 5709 | AG41: 14.23797292 | AH41: 338 | AI41: 0.8429558321 | AJ41: 1025 | AK41: 2.55630097 | AL41: 639 | AM41: 1.593635434
A42: 明細部 | B42: 国 | C42: 43 | D42: 女 | E42: 43434 | F42: 7707 | G42: 17.74416356 | H42: 5050 | I42: 11.62683612 | J42: 4038 | K42: 9.296864208 | L42: 2869 | M42: 6.605424322 | N42: 776 | O42: 1.786618778 | P42: 2648 | Q42: 6.096606345 | R42: 9475 | S42: 21.81470737 | T42: 366 | U42: 0.8426578257 | V42: 5121 | W42: 11.79030253 | X42: 3720 | Y42: 8.564718884 | Z42: 16252 | AA42: 37.41769121 | AB42: 26 | AC42: 0.05986093844 | AD42: 4572 | AE42: 10.52631579 | AF42: 6197 | AG42: 14.26762444 | AH42: 377 | AI42: 0.8679836073 | AJ42: 1263 | AK42: 2.907860202 | AL42: 720 | AM42: 1.657687526
A43: 明細部 | B43: 国 | C43: 44 | D43: 女 | E43: 47752 | F43: 9360 | G43: 19.60127325 | H43: 5803 | I43: 12.15237058 | J43: 4179 | K43: 8.751465907 | L43: 3162 | M43: 6.62171218 | N43: 726 | O43: 1.520355168 | P43: 3043 | Q43: 6.372507958 | R43: 11224 | S43: 23.50477467 | T43: 375 | U43: 0.7853074217 | V43: 6580 | W43: 13.77952756 | X43: 4527 | Y43: 9.480231195 | Z43: 17757 | AA43: 37.18587703 | AB43: 42 | AC43: 0.08795443123 | AD43: 5008 | AE43: 10.48751885 | AF43: 6754 | AG43: 14.1439102 | AH43: 409 | AI43: 0.8565086279 | AJ43: 1362 | AK43: 2.852236556 | AL43: 968 | AM43: 2.027140224
A44: 明細部 | B44: 国 | C44: 45 | D44: 女 | E44: 50394 | F44: 9707 | G44: 19.26221376 | H44: 6092 | I44: 12.08874072 | J44: 4776 | K44: 9.477318728 | L44: 3217 | M44: 6.383696472 | N44: 805 | O44: 1.59741239 | P44: 3578 | Q44: 7.100051593 | R44: 12338 | S44: 24.48307338 | T44: 478 | U44: 0.9485256181 | V44: 7006 | W44: 13.9024487 | X44: 4945 | Y44: 9.812676112 | Z44: 19300 | AA44: 38.2982101 | AB44: 34 | AC44: 0.06746834941 | AD44: 5587 | AE44: 11.0866373 | AF44: 8107 | AG44: 16.08723261 | AH44: 427 | AI44: 0.847323094 | AJ44: 1644 | AK44: 3.26229313 | AL44: 1129 | AM44: 2.240346073
A45: 明細部 | B45: 国 | C45: 46 | D45: 女 | E45: 53716 | F45: 10390 | G45: 19.34246779 | H45: 6886 | I45: 12.81927173 | J45: 5073 | K45: 9.444113486 | L45: 3538 | M45: 6.58649192 | N45: 858 | O45: 1.597289448 | P45: 3818 | Q45: 7.10775188 | R45: 12695 | S45: 23.63355425 | T45: 484 | U45: 0.9010350733 | V45: 8399 | W45: 15.63593715 | X45: 5604 | Y45: 10.43264577 | Z45: 21525 | AA45: 40.07185941 | AB45: 55 | AC45: 0.1023903492 | AD45: 6244 | AE45: 11.6240971 | AF45: 7557 | AG45: 14.06843399 | AH45: 499 | AI45: 0.9289597141 | AJ45: 1769 | AK45: 3.29324596 | AL45: 1319 | AM45: 2.455506739
A46: 明細部 | B46: 国 | C46: 47 | D46: 女 | E46: 49720 | F46: 9829 | G46: 19.76870475 | H46: 6849 | I46: 13.77514079 | J46: 5546 | K46: 11.154465 | L46: 3740 | M46: 7.522123894 | N46: 876 | O46: 1.761866452 | P46: 3939 | Q46: 7.922365245 | R46: 14106 | S46: 28.37087691 | T46: 482 | U46: 0.9694288013 | V46: 8812 | W46: 17.7232502 | X46: 5969 | Y46: 12.00522928 | Z46: 21862 | AA46: 43.97023331 | AB46: 49 | AC46: 0.09855189059 | AD46: 5998 | AE46: 12.06355591 | AF46: 7358 | AG46: 14.79887369 | AH46: 498 | AI46: 1.00160901 | AJ46: 1813 | AK46: 3.646419952 | AL46: 1567 | AM46: 3.151649236
A47: 明細部 | B47: 国 | C47: 48 | D47: 女 | E47: 53733 | F47: 10697 | G47: 19.90769174 | H47: 6948 | I47: 12.93060131 | J47: 5498 | K47: 10.2320734 | L47: 4107 | M47: 7.643347663 | N47: 688 | O47: 1.280404965 | P47: 4604 | Q47: 8.568291367 | R47: 14399 | S47: 26.79731264 | T47: 563 | U47: 1.047773249 | V47: 9656 | W47: 17.9703348 | X47: 6294 | Y47: 11.71347217 | Z47: 23405 | AA47: 43.55796252 | AB47: 48 | AC47: 0.08933057897 | AD47: 6194 | AE47: 11.5273668 | AF47: 7972 | AG47: 14.83632032 | AH47: 543 | AI47: 1.010552175 | AJ47: 1898 | AK47: 3.532279977 | AL47: 1726 | AM47: 3.212178736
A48: 明細部 | B48: 国 | C48: 49 | D48: 女 | E48: 52739 | F48: 10560 | G48: 20.02313279 | H48: 7365 | I48: 13.96499744 | J48: 6041 | K48: 11.45452132 | L48: 4109 | M48: 7.791198165 | N48: 781 | O48: 1.480877529 | P48: 4556 | Q48: 8.638768274 | R48: 16142 | S48: 30.60733044 | T48: 624 | U48: 1.183185119 | V48: 10202 | W48: 19.34431825 | X48: 6600 | Y48: 12.51445799 | Z48: 25204 | AA48: 47.79006049 | AB48: 37 | AC48: 0.07015680995 | AD48: 6189 | AE48: 11.73514856 | AF48: 8198 | AG48: 15.54447373 | AH48: 600 | AI48: 1.137677999 | AJ48: 2317 | AK48: 4.393333207 | AL48: 2143 | AM48: 4.063406587
A49: 明細部 | B49: 国 | C49: 50 | D49: 女 | E49: 56219 | F49: 11658 | G49: 20.73676159 | H49: 7755 | I49: 13.79426884 | J49: 7015 | K49: 12.47798787 | L49: 4937 | M49: 8.781728597 | N49: 806 | O49: 1.433679005 | P49: 5477 | Q49: 9.742257955 | R49: 18063 | S49: 32.12970704 | T49: 746 | U49: 1.326953521 | V49: 12019 | W49: 21.37889326 | X49: 7519 | Y49: 13.37448194 | Z49: 28110 | AA49: 50.00088938 | AB49: 60 | AC49: 0.1067254843 | AD49: 7300 | AE49: 12.98493392 | AF49: 9740 | AG49: 17.32510361 | AH49: 622 | AI49: 1.10638752 | AJ49: 2669 | AK49: 4.747505292 | AL49: 2565 | AM49: 4.562514452
A50: 明細部 | B50: 国 | C50: 51 | D50: 女 | E50: 55067 | F50: 11464 | G50: 20.81827592 | H50: 8379 | I50: 15.21600959 | J50: 7161 | K50: 13.00415857 | L50: 5452 | M50: 9.900666461 | N50: 748 | O50: 1.358345288 | P50: 5893 | Q50: 10.70150907 | R50: 20004 | S50: 36.32665662 | T50: 850 | U50: 1.543574191 | V50: 13694 | W50: 24.86788821 | X50: 8122 | Y50: 14.74930539 | Z50: 29768 | AA50: 54.05778415 | AB50: 67 | AC50: 0.1216699657 | AD50: 6973 | AE50: 12.66275628 | AF50: 8560 | AG50: 15.54470009 | AH50: 657 | AI50: 1.193092052 | AJ50: 2759 | AK50: 5.010260228 | AL50: 2704 | AM50: 4.910381898
A51: 明細部 | B51: 国 | C51: 52 | D51: 女 | E51: 48620 | F51: 9931 | G51: 20.42575072 | H51: 7732 | I51: 15.90292061 | J51: 6828 | K51: 14.04360346 | L51: 5511 | M51: 11.33484163 | N51: 617 | O51: 1.269025093 | P51: 5147 | Q51: 10.58617853 | R51: 18475 | S51: 37.99876594 | T51: 785 | U51: 1.614561909 | V51: 11426 | W51: 23.50061703 | X51: 7657 | Y51: 15.7486631 | Z51: 28222 | AA51: 58.04607158 | AB51: 52 | AC51: 0.1069518717 | AD51: 6015 | AE51: 12.37145208 | AF51: 7780 | AG51: 16.00164541 | AH51: 624 | AI51: 1.28342246 | AJ51: 2525 | AK51: 5.193336076 | AL51: 2795 | AM51: 5.748663102
A52: 明細部 | B52: 国 | C52: 53 | D52: 女 | E52: 54317 | F52: 10956 | G52: 20.1704807 | H52: 8797 | I52: 16.19566618 | J52: 7728 | K52: 14.22758989 | L52: 6228 | M52: 11.46602353 | N52: 697 | O52: 1.283207835 | P52: 6261 | Q52: 11.52677799 | R52: 23029 | S52: 42.39740781 | T52: 924 | U52: 1.701124878 | V52: 13680 | W52: 25.18548521 | X52: 8884 | Y52: 16.35583703 | Z52: 34035 | AA52: 62.65994072 | AB52: 73 | AC52: 0.1343962295 | AD52: 6988 | AE52: 12.86521715 | AF52: 8599 | AG52: 15.83113942 | AH52: 697 | AI52: 1.283207835 | AJ52: 3130 | AK52: 5.762468472 | AL52: 3451 | AM52: 6.353443673
A53: 明細部 | B53: 国 | C53: 54 | D53: 女 | E53: 59398 | F53: 12254 | G53: 20.63032425 | H53: 9560 | I53: 16.09481801 | J53: 8693 | K53: 14.6351729 | L53: 7190 | M53: 12.10478467 | N53: 736 | O53: 1.23909896 | P53: 7655 | Q53: 12.88763931 | R53: 25985 | S53: 43.74726422 | T53: 1063 | U53: 1.789622546 | V53: 16543 | W53: 27.8511061 | X53: 9472 | Y53: 15.94666487 | Z53: 36672 | AA53: 61.73945251 | AB53: 78 | AC53: 0.1313175528 | AD53: 7897 | AE53: 13.29506044 | AF53: 9629 | AG53: 16.21098353 | AH53: 831 | AI53: 1.399037005 | AJ53: 3596 | AK53: 6.054075895 | AL53: 4312 | AM53: 7.259503687
A54: 明細部 | B54: 国 | C54: 55 | D54: 女 | E54: 65044 | F54: 12738 | G54: 19.58366644 | H54: 10326 | I54: 15.87540742 | J54: 9081 | K54: 13.96131849 | L54: 7692 | M54: 11.82584097 | N54: 721 | O54: 1.108480413 | P54: 8280 | Q54: 12.72984441 | R54: 28692 | S54: 44.11167825 | T54: 1137 | U54: 1.748047476 | V54: 17157 | W54: 26.37752906 | X54: 10073 | Y54: 15.48643995 | Z54: 38544 | AA54: 59.2583482 | AB54: 75 | AC54: 0.1153065617 | AD54: 8492 | AE54: 13.05577763 | AF54: 11250 | AG54: 17.29598426 | AH54: 850 | AI54: 1.306807699 | AJ54: 4081 | AK54: 6.274214378 | AL54: 4571 | AM54: 7.027550581
A55: 明細部 | B55: 国 | C55: 56 | D55: 女 | E55: 65653 | F55: 13388 | G55: 20.39206129 | H55: 10203 | I55: 15.54079783 | J55: 9913 | K55: 15.09908153 | L55: 8017 | M55: 12.21117085 | N55: 782 | O55: 1.19111084 | P55: 9013 | Q55: 13.72823786 | R55: 30019 | S55: 45.7237293 | T55: 1163 | U55: 1.771434664 | V55: 18663 | W55: 28.42672841 | X55: 10301 | Y55: 15.69006748 | Z55: 41188 | AA55: 62.73589935 | AB55: 84 | AC55: 0.12794541 | AD55: 9398 | AE55: 14.31465432 | AF55: 10768 | AG55: 16.40138303 | AH55: 958 | AI55: 1.459186937 | AJ55: 3934 | AK55: 5.992110033 | AL55: 4953 | AM55: 7.544209709
A56: 明細部 | B56: 国 | C56: 57 | D56: 女 | E56: 69844 | F56: 13720 | G56: 19.64377756 | H56: 11175 | I56: 15.99994273 | J56: 10609 | K56: 15.18956532 | L56: 8492 | M56: 12.15852471 | N56: 807 | O56: 1.155432106 | P56: 10492 | Q56: 15.02204914 | R56: 34939 | S56: 50.02433996 | T56: 1222 | U56: 1.749613424 | V56: 21001 | W56: 30.06843823 | X56: 11058 | Y56: 15.83242655 | Z56: 45702 | AA56: 65.43439666 | AB56: 100 | AC56: 0.1431762213 | AD56: 9563 | AE56: 13.69194204 | AF56: 11332 | AG56: 16.2247294 | AH56: 1092 | AI56: 1.563484337 | AJ56: 4335 | AK56: 6.206689193 | AL56: 5687 | AM56: 8.142431705
A57: 明細部 | B57: 国 | C57: 58 | D57: 女 | E57: 75963 | F57: 15463 | G57: 20.35596277 | H57: 12914 | I57: 17.00038176 | J57: 11613 | K57: 15.28770586 | L57: 8996 | M57: 11.84260759 | N57: 814 | O57: 1.071574319 | P57: 11328 | Q57: 14.9125232 | R57: 39427 | S57: 51.9029001 | T57: 1320 | U57: 1.737688085 | V57: 24798 | W57: 32.64484025 | X57: 13061 | Y57: 17.19389703 | Z57: 51079 | AA57: 67.24194674 | AB57: 135 | AC57: 0.1777180996 | AD57: 10491 | AE57: 13.81067098 | AF57: 13161 | AG57: 17.32554007 | AH57: 1269 | AI57: 1.670550136 | AJ57: 4430 | AK57: 5.831786528 | AL57: 7237 | AM57: 9.527006569
A58: 明細部 | B58: 国 | C58: 59 | D58: 女 | E58: 85191 | F58: 18390 | G58: 21.58678734 | H58: 14709 | I58: 17.26590837 | J58: 13342 | K58: 15.66127877 | L58: 9907 | M58: 11.6291627 | N58: 1032 | O58: 1.21139557 | P58: 13669 | Q58: 16.04512214 | R58: 43448 | S58: 51.00069256 | T58: 1421 | U58: 1.668016575 | V58: 28596 | W58: 33.56692608 | X58: 15001 | Y58: 17.60866758 | Z58: 56716 | AA58: 66.5751077 | AB58: 138 | AC58: 0.1619889425 | AD58: 12617 | AE58: 14.81024991 | AF58: 14849 | AG58: 17.43024498 | AH58: 1512 | AI58: 1.77483537 | AJ58: 5028 | AK58: 5.902031905 | AL58: 7600 | AM58: 8.921130166
A59: 明細部 | B59: 国 | C59: 60 | D59: 女 | E59: 107677 | F59: 21660 | G59: 20.11571645 | H59: 17662 | I59: 16.40276011 | J59: 16569 | K59: 15.38768725 | L59: 11460 | M59: 10.64294139 | N59: 1324 | O59: 1.229603351 | P59: 17926 | Q59: 16.64793781 | R59: 58440 | S59: 54.27342887 | T59: 1787 | U59: 1.659593042 | V59: 35467 | W59: 32.9383248 | X59: 17963 | Y59: 16.68229984 | Z59: 68734 | AA59: 63.83350205 | AB59: 178 | AC59: 0.1653092118 | AD59: 16031 | AE59: 14.8880448 | AF59: 19185 | AG59: 17.81717544 | AH59: 1644 | AI59: 1.526788451 | AJ59: 6391 | AK59: 5.935343667 | AL59: 11343 | AM59: 10.53428309
A60: 明細部 | B60: 国 | C60: 61 | D60: 女 | E60: 123052 | F60: 25427 | G60: 20.66362188 | H60: 20821 | I60: 16.9204889 | J60: 19590 | K60: 15.92009882 | L60: 13274 | M60: 10.78730943 | N60: 1382 | O60: 1.123102428 | P60: 20330 | Q60: 16.5214706 | R60: 67871 | S60: 55.15635666 | T60: 2108 | U60: 1.713096902 | V60: 42735 | W60: 34.72922017 | X60: 19696 | Y60: 16.00624126 | Z60: 75364 | AA60: 61.24565224 | AB60: 197 | AC60: 0.1600949192 | AD60: 18302 | AE60: 14.87338686 | AF60: 21060 | AG60: 17.11471573 | AH60: 1934 | AI60: 1.571693268 | AJ60: 7036 | AK60: 5.717907876 | AL60: 13180 | AM60: 10.71091896
A61: 明細部 | B61: 国 | C61: 62 | D61: 女 | E61: 154605 | F61: 30946 | G61: 20.01617024 | H61: 26285 | I61: 17.00139064 | J61: 24053 | K61: 15.55771159 | L61: 15722 | M61: 10.16914071 | N61: 1866 | O61: 1.206946735 | P61: 25952 | Q61: 16.78600304 | R61: 85529 | S61: 55.32097927 | T61: 2455 | U61: 1.587917596 | V61: 53738 | W61: 34.75825491 | X61: 25311 | Y61: 16.37139808 | Z61: 94447 | AA61: 61.08922739 | AB61: 254 | AC61: 0.1642896413 | AD61: 22835 | AE61: 14.76989748 | AF61: 27511 | AG61: 17.79437922 | AH61: 2696 | AI61: 1.743798713 | AJ61: 8494 | AK61: 5.494000841 | AL61: 17196 | AM61: 11.12253808
A62: 明細部 | B62: 国 | C62: 63 | D62: 女 | E62: 189583 | F62: 38271 | G62: 20.18693659 | H62: 33042 | I62: 17.4287779 | J62: 28656 | K62: 15.11527932 | L62: 19556 | M62: 10.31527088 | N62: 2265 | O62: 1.194727375 | P62: 32394 | Q62: 17.0869751 | R62: 107208 | S62: 56.54937415 | T62: 2848 | U62: 1.5022444 | V62: 71158 | W62: 37.5339561 | X62: 31304 | Y62: 16.51202903 | Z62: 117854 | AA62: 62.16485655 | AB62: 328 | AC62: 0.1730112932 | AD62: 28698 | AE62: 15.13743321 | AF62: 34097 | AG62: 17.98526239 | AH62: 3224 | AI62: 1.700574419 | AJ62: 10879 | AK62: 5.738383716 | AL62: 23620 | AM62: 12.458923
A63: 明細部 | B63: 国 | C63: 64 | D63: 女 | E63: 214791 | F63: 47096 | G63: 21.92643081 | H63: 38154 | I63: 17.76331411 | J63: 36493 | K63: 16.99000424 | L63: 22121 | M63: 10.29884865 | N63: 2876 | O63: 1.338976028 | P63: 40698 | Q63: 18.94772127 | R63: 130551 | S63: 60.78047963 | T63: 3312 | U63: 1.541964049 | V63: 90463 | W63: 42.11675536 | X63: 36790 | Y63: 17.12827819 | Z63: 135667 | AA63: 63.16232989 | AB63: 406 | AC63: 0.1890209553 | AD63: 35915 | AE63: 16.72090544 | AF63: 41386 | AG63: 19.26803265 | AH63: 3797 | AI63: 1.767764944 | AJ63: 12384 | AK63: 5.765604704 | AL63: 28687 | AM63: 13.35577375
A64: 明細部 | B64: 国 | C64: 65 | D64: 女 | E64: 260095 | F64: 57080 | G64: 21.94582749 | H64: 47134 | I64: 18.1218401 | J64: 43424 | K64: 16.69543821 | L64: 26868 | M64: 10.3300717 | N64: 3817 | O64: 1.467540706 | P64: 49954 | Q64: 19.20605932 | R64: 152948 | S64: 58.80466753 | T64: 4291 | U64: 1.64978181 | V64: 113041 | W64: 43.46142756 | X64: 45211 | Y64: 17.38249486 | Z64: 170377 | AA64: 65.50568062 | AB64: 497 | AC64: 0.191084027 | AD64: 44377 | AE64: 17.06184279 | AF64: 48398 | AG64: 18.60781637 | AH64: 5076 | AI64: 1.95159461 | AJ64: 14734 | AK64: 5.664853227 | AL64: 36109 | AM64: 13.88300429
A65: 明細部 | B65: 国 | C65: 66 | D65: 女 | E65: 318720 | F65: 70496 | G65: 22.1184739 | H65: 58211 | I65: 18.26399347 | J65: 54688 | K65: 17.15863454 | L65: 30463 | M65: 9.557919177 | N65: 4620 | O65: 1.449548193 | P65: 63833 | Q65: 20.0279242 | R65: 194159 | S65: 60.91836094 | T65: 5171 | U65: 1.622427209 | V65: 137115 | W65: 43.02051958 | X65: 50123 | Y65: 15.72634287 | Z65: 187189 | AA65: 58.73148845 | AB65: 622 | AC65: 0.1951556225 | AD65: 52194 | AE65: 16.37612952 | AF65: 55053 | AG65: 17.27315512 | AH65: 6440 | AI65: 2.020582329 | AJ65: 17105 | AK65: 5.366779618 | AL65: 50029 | AM65: 15.6968499
A66: 明細部 | B66: 国 | C66: 67 | D66: 女 | E66: 365456 | F66: 75858 | G66: 20.75708156 | H66: 68551 | I66: 18.75766166 | J66: 58674 | K66: 16.05501073 | L66: 32495 | M66: 8.891631277 | N66: 5519 | O66: 1.510168119 | P66: 74137 | Q66: 20.28616304 | R66: 221866 | S66: 60.70936036 | T66: 5696 | U66: 1.558600762 | V66: 159925 | W66: 43.76039797 | X66: 58182 | Y66: 15.9203844 | Z66: 224239 | AA66: 61.35868613 | AB66: 697 | AC66: 0.1907206339 | AD66: 62593 | AE66: 17.12736964 | AF66: 62687 | AG66: 17.15309093 | AH66: 7353 | AI66: 2.012006917 | AJ66: 18122 | AK66: 4.958736483 | AL66: 57191 | AM66: 15.64921632
A67: 明細部 | B67: 国 | C67: 68 | D67: 女 | E67: 403431 | F67: 92211 | G67: 22.85669668 | H67: 80856 | I67: 20.04208898 | J67: 70975 | K67: 17.59284735 | L67: 38637 | M67: 9.577102404 | N67: 6286 | O67: 1.558135096 | P67: 86186 | Q67: 21.36325667 | R67: 254074 | S67: 62.9783036 | T67: 6959 | U67: 1.724954205 | V67: 191694 | W67: 47.51593209 | X67: 67184 | Y67: 16.65315754 | Z67: 244530 | AA67: 60.61259546 | AB67: 945 | AC67: 0.2342407995 | AD67: 71955 | AE67: 17.83576374 | AF67: 71808 | AG67: 17.79932628 | AH67: 9167 | AI67: 2.272259692 | AJ67: 21988 | AK67: 5.450250477 | AL67: 70681 | AM67: 17.51997244
A68: 明細部 | B68: 国 | C68: 69 | D68: 女 | E68: 469628 | F68: 103812 | G68: 22.10515557 | H68: 87450 | I68: 18.6211214 | J68: 79218 | K68: 16.86824465 | L68: 41100 | M68: 8.751607655 | N68: 7744 | O68: 1.648964712 | P68: 100451 | Q68: 21.38948274 | R68: 293898 | S68: 62.58102157 | T68: 8005 | U68: 1.704540615 | V68: 234597 | W68: 49.95379322 | X68: 75083 | Y68: 15.98776053 | Z68: 287409 | AA68: 61.19928965 | AB68: 1160 | AC68: 0.2470040117 | AD68: 83133 | AE68: 17.70188319 | AF68: 77109 | AG68: 16.41916581 | AH68: 10778 | AI68: 2.295007964 | AJ68: 23934 | AK68: 5.096374151 | AL68: 82518 | AM68: 17.57092848
A69: 明細部 | B69: 国 | C69: 70 | D69: 女 | E69: 501982 | F69: 110018 | G69: 21.91672211 | H69: 101654 | I69: 20.25052691 | J69: 91472 | K69: 18.22216733 | L69: 44426 | M69: 8.850118132 | N69: 8373 | O69: 1.667988095 | P69: 108702 | Q69: 21.65456132 | R69: 324344 | S69: 64.61267535 | T69: 9139 | U69: 1.820583208 | V69: 258882 | W69: 51.57196872 | X69: 79924 | Y69: 15.92168643 | Z69: 299998 | AA69: 59.76270065 | AB69: 1456 | AC69: 0.2900502408 | AD69: 93486 | AE69: 18.62337693 | AF69: 78975 | AG69: 15.73263583 | AH69: 12660 | AI69: 2.522002781 | AJ69: 26164 | AK69: 5.212139081 | AL69: 97526 | AM69: 19.42818667
A70: 明細部 | B70: 国 | C70: 71 | D70: 女 | E70: 535880 | F70: 117171 | G70: 21.86515638 | H70: 103208 | I70: 19.25953572 | J70: 90466 | K70: 16.88176457 | L70: 44733 | M70: 8.347577816 | N70: 9459 | O70: 1.765133985 | P70: 109648 | Q70: 20.46129731 | R70: 354798 | S70: 66.20847951 | T70: 9584 | U70: 1.788460103 | V70: 272680 | W70: 50.88452639 | X70: 81445 | Y70: 15.19836531 | Z70: 314319 | AA70: 58.65473613 | AB70: 1600 | AC70: 0.2985743077 | AD70: 101420 | AE70: 18.92587893 | AF70: 83638 | AG70: 15.60759872 | AH70: 13605 | AI70: 2.53881466 | AJ70: 25338 | AK70: 4.72829738 | AL70: 115989 | AM70: 21.64458461
A71: 明細部 | B71: 国 | C71: 72 | D71: 女 | E71: 409801 | F71: 90084 | G71: 21.98237681 | H71: 82045 | I71: 20.02069297 | J71: 74183 | K71: 18.10220082 | L71: 35129 | M71: 8.572209438 | N71: 7924 | O71: 1.933621441 | P71: 91260 | Q71: 22.26934537 | R71: 264353 | S71: 64.50765127 | T71: 7841 | U71: 1.913367708 | V71: 230835 | W71: 56.32855947 | X71: 62381 | Y71: 15.22226642 | Z71: 236429 | AA71: 57.69361227 | AB71: 1400 | AC71: 0.3416292298 | AD71: 81496 | AE71: 19.88672551 | AF71: 61779 | AG71: 15.07536585 | AH71: 11349 | AI71: 2.769392949 | AJ71: 19411 | AK71: 4.736689271 | AL71: 92626 | AM71: 22.60267789
A72: 明細部 | B72: 国 | C72: 73 | D72: 女 | E72: 300459 | F72: 68651 | G72: 22.84870814 | H72: 60566 | I72: 20.15782519 | J72: 50082 | K72: 16.6684972 | L72: 23862 | M72: 7.941848971 | N72: 5417 | O72: 1.802908217 | P72: 64454 | Q72: 21.45184534 | R72: 192508 | S72: 64.07130424 | T72: 5870 | U72: 1.95367754 | V72: 167930 | W72: 55.8911532 | X72: 40379 | Y72: 13.43910484 | Z72: 167508 | AA72: 55.75070143 | AB72: 1092 | AC72: 0.3634439308 | AD72: 62123 | AE72: 20.67603234 | AF72: 42875 | AG72: 14.26983382 | AH72: 8625 | AI72: 2.87060797 | AJ72: 13227 | AK72: 4.402264535 | AL72: 75103 | AM72: 24.99608932
A73: 明細部 | B73: 国 | C73: 74 | D73: 女 | E73: 386305 | F73: 86598 | G73: 22.41700211 | H73: 81526 | I73: 21.10404991 | J73: 65299 | K73: 16.903483 | L73: 28273 | M73: 7.318828387 | N73: 7718 | O73: 1.997903211 | P73: 82577 | Q73: 21.37611473 | R73: 261955 | S73: 67.81040887 | T73: 8069 | U73: 2.088764059 | V73: 206917 | W73: 53.56311723 | X73: 51366 | Y73: 13.29674739 | Z73: 214579 | AA73: 55.54652412 | AB73: 1564 | AC73: 0.4048614437 | AD73: 78815 | AE73: 20.40227282 | AF73: 52912 | AG73: 13.6969493 | AH73: 11821 | AI73: 3.060017344 | AJ73: 16790 | AK73: 4.346306675 | AL73: 101353 | AM73: 26.23652295
A74: 明細部 | B74: 県 | C74: 40 | D74: 男 | E74: 270 | F74: 84 | G74: 31.11111111 | H74: 117 | I74: 43.33333333 | J74: 66 | K74: 24.44444444 | L74: 97 | M74: 35.92592593 | N74: 27 | O74: 10 | P74: 31 | Q74: 11.48148148 | R74: 58 | S74: 21.48148148 | T74: 44 | U74: 16.2962963 | V74: 70 | W74: 25.92592593 | X74: 53 | Y74: 19.62962963 | Z74: 145 | AA74: 53.7037037 | AB74: 1 | AC74: 0.3703703704 | AD74: 121 | AE74: 44.81481481 | AF74: 34 | AG74: 12.59259259 | AH74: 3 | AI74: 1.111111111 | AJ74: 10 | AK74: 3.703703704 | AL74: 5 | AM74: 1.851851852
A75: 明細部 | B75: 県 | C75: 41 | D75: 男 | E75: 255 | F75: 93 | G75: 36.47058824 | H75: 124 | I75: 48.62745098 | J75: 83 | K75: 32.54901961 | L75: 116 | M75: 45.49019608 | N75: 20 | O75: 7.843137255 | P75: 30 | Q75: 11.76470588 | R75: 66 | S75: 25.88235294 | T75: 61 | U75: 23.92156863 | V75: 70 | W75: 27.45098039 | X75: 54 | Y75: 21.17647059 | Z75: 154 | AA75: 60.39215686 | AB75: 1 | AC75: 0.3921568627 | AD75: 144 | AE75: 56.47058824 | AF75: 30 | AG75: 11.76470588 | AH75: 4 | AI75: 1.568627451 | AJ75: 5 | AK75: 1.960784314 | AL75: 2 | AM75: 0.7843137255
A76: 明細部 | B76: 県 | C76: 42 | D76: 男 | E76: 285 | F76: 96 | G76: 33.68421053 | H76: 149 | I76: 52.28070175 | J76: 96 | K76: 33.68421053 | L76: 98 | M76: 34.38596491 | N76: 18 | O76: 6.315789474 | P76: 37 | Q76: 12.98245614 | R76: 70 | S76: 24.56140351 | T76: 70 | U76: 24.56140351 | V76: 76 | W76: 26.66666667 | X76: 58 | Y76: 20.35087719 | Z76: 154 | AA76: 54.03508772 | AB76: 1 | AC76: 0.350877193 | AD76: 121 | AE76: 42.45614035 | AF76: 37 | AG76: 12.98245614 | AH76: 11 | AI76: 3.859649123 | AJ76: 5 | AK76: 1.754385965 | AL76: 6 | AM76: 2.105263158
A77: 明細部 | B77: 県 | C77: 43 | D77: 男 | E77: 320 | F77: 109 | G77: 34.0625 | H77: 144 | I77: 45 | J77: 81 | K77: 25.3125 | L77: 107 | M77: 33.4375 | N77: 32 | O77: 10 | P77: 41 | Q77: 12.8125 | R77: 79 | S77: 24.6875 | T77: 61 | U77: 19.0625 | V77: 88 | W77: 27.5 | X77: 65 | Y77: 20.3125 | Z77: 181 | AA77: 56.5625 | AB77: 0 | AC77: 0 | AD77: 157 | AE77: 49.0625 | AF77: 23 | AG77: 7.1875 | AH77: 4 | AI77: 1.25 | AJ77: 0 | AK77: 0 | AL77: 6 | AM77: 1.875
A78: 明細部 | B78: 県 | C78: 44 | D78: 男 | E78: 311 | F78: 117 | G78: 37.62057878 | H78: 163 | I78: 52.41157556 | J78: 115 | K78: 36.97749196 | L78: 127 | M78: 40.83601286 | N78: 33 | O78: 10.61093248 | P78: 34 | Q78: 10.93247588 | R78: 88 | S78: 28.29581994 | T78: 62 | U78: 19.93569132 | V78: 98 | W78: 31.51125402 | X78: 83 | Y78: 26.68810289 | Z78: 176 | AA78: 56.59163987 | AB78: 2 | AC78: 0.6430868167 | AD78: 143 | AE78: 45.9807074 | AF78: 37 | AG78: 11.89710611 | AH78: 1 | AI78: 0.3215434084 | AJ78: 3 | AK78: 0.9646302251 | AL78: 9 | AM78: 2.893890675
A79: 明細部 | B79: 県 | C79: 45 | D79: 男 | E79: 339 | F79: 127 | G79: 37.46312684 | H79: 159 | I79: 46.90265487 | J79: 102 | K79: 30.08849558 | L79: 99 | M79: 29.20353982 | N79: 29 | O79: 8.554572271 | P79: 50 | Q79: 14.74926254 | R79: 88 | S79: 25.95870206 | T79: 67 | U79: 19.7640118 | V79: 98 | W79: 28.90855457 | X79: 75 | Y79: 22.12389381 | Z79: 189 | AA79: 55.75221239 | AB79: 0 | AC79: 0 | AD79: 187 | AE79: 55.16224189 | AF79: 26 | AG79: 7.669616519 | AH79: 1 | AI79: 0.2949852507 | AJ79: 5 | AK79: 1.474926254 | AL79: 9 | AM79: 2.654867257
A80: 明細部 | B80: 県 | C80: 46 | D80: 男 | E80: 412 | F80: 148 | G80: 35.9223301 | H80: 207 | I80: 50.24271845 | J80: 152 | K80: 36.89320388 | L80: 161 | M80: 39.0776699 | N80: 52 | O80: 12.62135922 | P80: 71 | Q80: 17.23300971 | R80: 133 | S80: 32.2815534 | T80: 98 | U80: 23.78640777 | V80: 133 | W80: 32.2815534 | X80: 107 | Y80: 25.97087379 | Z80: 231 | AA80: 56.06796117 | AB80: 4 | AC80: 0.9708737864 | AD80: 208 | AE80: 50.48543689 | AF80: 36 | AG80: 8.737864078 | AH80: 2 | AI80: 0.4854368932 | AJ80: 9 | AK80: 2.184466019 | AL80: 26 | AM80: 6.310679612
A81: 明細部 | B81: 県 | C81: 47 | D81: 男 | E81: 353 | F81: 138 | G81: 39.09348442 | H81: 199 | I81: 56.37393768 | J81: 125 | K81: 35.41076487 | L81: 126 | M81: 35.69405099 | N81: 24 | O81: 6.798866856 | P81: 55 | Q81: 15.58073654 | R81: 121 | S81: 34.2776204 | T81: 87 | U81: 24.64589235 | V81: 112 | W81: 31.72804533 | X81: 92 | Y81: 26.06232295 | Z81: 223 | AA81: 63.17280453 | AB81: 0 | AC81: 0 | AD81: 189 | AE81: 53.54107649 | AF81: 42 | AG81: 11.898017 | AH81: 0 | AI81: 0 | AJ81: 9 | AK81: 2.549575071 | AL81: 10 | AM81: 2.83286119
A82: 明細部 | B82: 県 | C82: 48 | D82: 男 | E82: 354 | F82: 135 | G82: 38.13559322 | H82: 187 | I82: 52.82485876 | J82: 84 | K82: 23.72881356 | L82: 115 | M82: 32.48587571 | N82: 21 | O82: 5.93220339 | P82: 53 | Q82: 14.97175141 | R82: 102 | S82: 28.81355932 | T82: 68 | U82: 19.20903955 | V82: 111 | W82: 31.3559322 | X82: 92 | Y82: 25.98870056 | Z82: 207 | AA82: 58.47457627 | AB82: 0 | AC82: 0 | AD82: 150 | AE82: 42.37288136 | AF82: 46 | AG82: 12.99435028 | AH82: 9 | AI82: 2.542372881 | AJ82: 9 | AK82: 2.542372881 | AL82: 14 | AM82: 3.95480226
A83: 明細部 | B83: 県 | C83: 49 | D83: 男 | E83: 305 | F83: 114 | G83: 37.37704918 | H83: 165 | I83: 54.09836066 | J83: 97 | K83: 31.80327869 | L83: 107 | M83: 35.08196721 | N83: 24 | O83: 7.868852459 | P83: 47 | Q83: 15.40983607 | R83: 111 | S83: 36.39344262 | T83: 58 | U83: 19.01639344 | V83: 107 | W83: 35.08196721 | X83: 87 | Y83: 28.52459016 | Z83: 162 | AA83: 53.1147541 | AB83: 1 | AC83: 0.3278688525 | AD83: 141 | AE83: 46.2295082 | AF83: 26 | AG83: 8.524590164 | AH83: 11 | AI83: 3.606557377 | AJ83: 5 | AK83: 1.639344262 | AL83: 5 | AM83: 1.639344262
A84: 明細部 | B84: 県 | C84: 50 | D84: 男 | E84: 369 | F84: 153 | G84: 41.46341463 | H84: 198 | I84: 53.65853659 | J84: 121 | K84: 32.79132791 | L84: 129 | M84: 34.95934959 | N84: 27 | O84: 7.317073171 | P84: 67 | Q84: 18.15718157 | R84: 132 | S84: 35.77235772 | T84: 56 | U84: 15.17615176 | V84: 132 | W84: 35.77235772 | X84: 113 | Y84: 30.62330623 | Z84: 190 | AA84: 51.49051491 | AB84: 0 | AC84: 0 | AD84: 153 | AE84: 41.46341463 | AF84: 41 | AG84: 11.11111111 | AH84: 5 | AI84: 1.35501355 | AJ84: 5 | AK84: 1.35501355 | AL84: 16 | AM84: 4.33604336
A85: 明細部 | B85: 県 | C85: 51 | D85: 男 | E85: 362 | F85: 145 | G85: 40.05524862 | H85: 203 | I85: 56.07734807 | J85: 127 | K85: 35.08287293 | L85: 116 | M85: 32.0441989 | N85: 26 | O85: 7.182320442 | P85: 57 | Q85: 15.74585635 | R85: 125 | S85: 34.53038674 | T85: 78 | U85: 21.54696133 | V85: 146 | W85: 40.33149171 | X85: 109 | Y85: 30.11049724 | Z85: 241 | AA85: 66.57458564 | AB85: 0 | AC85: 0 | AD85: 191 | AE85: 52.76243094 | AF85: 39 | AG85: 10.77348066 | AH85: 14 | AI85: 3.867403315 | AJ85: 15 | AK85: 4.143646409 | AL85: 10 | AM85: 2.762430939
A86: 明細部 | B86: 県 | C86: 52 | D86: 男 | E86: 275 | F86: 122 | G86: 44.36363636 | H86: 165 | I86: 60 | J86: 76 | K86: 27.63636364 | L86: 84 | M86: 30.54545455 | N86: 23 | O86: 8.363636364 | P86: 44 | Q86: 16 | R86: 97 | S86: 35.27272727 | T86: 44 | U86: 16 | V86: 108 | W86: 39.27272727 | X86: 77 | Y86: 28 | Z86: 154 | AA86: 56 | AB86: 1 | AC86: 0.3636363636 | AD86: 129 | AE86: 46.90909091 | AF86: 22 | AG86: 8 | AH86: 10 | AI86: 3.636363636 | AJ86: 5 | AK86: 1.818181818 | AL86: 19 | AM86: 6.909090909
A87: 明細部 | B87: 県 | C87: 53 | D87: 男 | E87: 366 | F87: 145 | G87: 39.61748634 | H87: 212 | I87: 57.92349727 | J87: 112 | K87: 30.6010929 | L87: 122 | M87: 33.33333333 | N87: 19 | O87: 5.191256831 | P87: 64 | Q87: 17.4863388 | R87: 147 | S87: 40.16393443 | T87: 59 | U87: 16.12021858 | V87: 141 | W87: 38.52459016 | X87: 115 | Y87: 31.42076503 | Z87: 206 | AA87: 56.28415301 | AB87: 1 | AC87: 0.2732240437 | AD87: 194 | AE87: 53.00546448 | AF87: 37 | AG87: 10.10928962 | AH87: 3 | AI87: 0.8196721311 | AJ87: 4 | AK87: 1.092896175 | AL87: 27 | AM87: 7.37704918
A88: 明細部 | B88: 県 | C88: 54 | D88: 男 | E88: 376 | F88: 135 | G88: 35.90425532 | H88: 216 | I88: 57.44680851 | J88: 131 | K88: 34.84042553 | L88: 111 | M88: 29.5212766 | N88: 30 | O88: 7.978723404 | P88: 69 | Q88: 18.35106383 | R88: 151 | S88: 40.15957447 | T88: 57 | U88: 15.15957447 | V88: 159 | W88: 42.28723404 | X88: 120 | Y88: 31.91489362 | Z88: 208 | AA88: 55.31914894 | AB88: 5 | AC88: 1.329787234 | AD88: 184 | AE88: 48.93617021 | AF88: 39 | AG88: 10.37234043 | AH88: 11 | AI88: 2.925531915 | AJ88: 12 | AK88: 3.191489362 | AL88: 26 | AM88: 6.914893617
A89: 明細部 | B89: 県 | C89: 55 | D89: 男 | E89: 398 | F89: 130 | G89: 32.66331658 | H89: 187 | I89: 46.98492462 | J89: 123 | K89: 30.90452261 | L89: 113 | M89: 28.3919598 | N89: 25 | O89: 6.281407035 | P89: 99 | Q89: 24.87437186 | R89: 140 | S89: 35.1758794 | T89: 84 | U89: 21.10552764 | V89: 152 | W89: 38.19095477 | X89: 125 | Y89: 31.40703518 | Z89: 226 | AA89: 56.7839196 | AB89: 6 | AC89: 1.507537688 | AD89: 187 | AE89: 46.98492462 | AF89: 50 | AG89: 12.56281407 | AH89: 8 | AI89: 2.010050251 | AJ89: 7 | AK89: 1.75879397 | AL89: 27 | AM89: 6.783919598
A90: 明細部 | B90: 県 | C90: 56 | D90: 男 | E90: 353 | F90: 147 | G90: 41.64305949 | H90: 209 | I90: 59.20679887 | J90: 131 | K90: 37.11048159 | L90: 120 | M90: 33.99433428 | N90: 38 | O90: 10.76487252 | P90: 79 | Q90: 22.3796034 | R90: 171 | S90: 48.44192635 | T90: 72 | U90: 20.39660057 | V90: 166 | W90: 47.02549575 | X90: 123 | Y90: 34.84419263 | Z90: 190 | AA90: 53.82436261 | AB90: 2 | AC90: 0.566572238 | AD90: 184 | AE90: 52.12464589 | AF90: 40 | AG90: 11.33144476 | AH90: 14 | AI90: 3.966005666 | AJ90: 5 | AK90: 1.416430595 | AL90: 24 | AM90: 6.798866856
A91: 明細部 | B91: 県 | C91: 57 | D91: 男 | E91: 374 | F91: 147 | G91: 39.30481283 | H91: 213 | I91: 56.95187166 | J91: 123 | K91: 32.88770053 | L91: 105 | M91: 28.07486631 | N91: 20 | O91: 5.347593583 | P91: 76 | Q91: 20.32085561 | R91: 163 | S91: 43.5828877 | T91: 56 | U91: 14.97326203 | V91: 184 | W91: 49.19786096 | X91: 124 | Y91: 33.15508021 | Z91: 209 | AA91: 55.88235294 | AB91: 8 | AC91: 2.139037433 | AD91: 158 | AE91: 42.2459893 | AF91: 43 | AG91: 11.4973262 | AH91: 14 | AI91: 3.743315508 | AJ91: 12 | AK91: 3.20855615 | AL91: 30 | AM91: 8.021390374
A92: 明細部 | B92: 県 | C92: 58 | D92: 男 | E92: 352 | F92: 124 | G92: 35.22727273 | H92: 206 | I92: 58.52272727 | J92: 124 | K92: 35.22727273 | L92: 94 | M92: 26.70454545 | N92: 19 | O92: 5.397727273 | P92: 82 | Q92: 23.29545455 | R92: 138 | S92: 39.20454545 | T92: 64 | U92: 18.18181818 | V92: 132 | W92: 37.5 | X92: 95 | Y92: 26.98863636 | Z92: 205 | AA92: 58.23863636 | AB92: 2 | AC92: 0.5681818182 | AD92: 210 | AE92: 59.65909091 | AF92: 26 | AG92: 7.386363636 | AH92: 8 | AI92: 2.272727273 | AJ92: 8 | AK92: 2.272727273 | AL92: 31 | AM92: 8.806818182
A93: 明細部 | B93: 県 | C93: 59 | D93: 男 | E93: 470 | F93: 156 | G93: 33.19148936 | H93: 254 | I93: 54.04255319 | J93: 144 | K93: 30.63829787 | L93: 104 | M93: 22.12765957 | N93: 26 | O93: 5.531914894 | P93: 124 | Q93: 26.38297872 | R93: 207 | S93: 44.04255319 | T93: 89 | U93: 18.93617021 | V93: 208 | W93: 44.25531915 | X93: 143 | Y93: 30.42553191 | Z93: 228 | AA93: 48.5106383 | AB93: 1 | AC93: 0.2127659574 | AD93: 224 | AE93: 47.65957447 | AF93: 44 | AG93: 9.361702128 | AH93: 14 | AI93: 2.978723404 | AJ93: 6 | AK93: 1.276595745 | AL93: 51 | AM93: 10.85106383
A94: 明細部 | B94: 県 | C94: 60 | D94: 男 | E94: 440 | F94: 147 | G94: 33.40909091 | H94: 255 | I94: 57.95454545 | J94: 154 | K94: 35 | L94: 118 | M94: 26.81818182 | N94: 33 | O94: 7.5 | P94: 118 | Q94: 26.81818182 | R94: 233 | S94: 52.95454545 | T94: 75 | U94: 17.04545455 | V94: 202 | W94: 45.90909091 | X94: 141 | Y94: 32.04545455 | Z94: 257 | AA94: 58.40909091 | AB94: 6 | AC94: 1.363636364 | AD94: 231 | AE94: 52.5 | AF94: 34 | AG94: 7.727272727 | AH94: 25 | AI94: 5.681818182 | AJ94: 8 | AK94: 1.818181818 | AL94: 32 | AM94: 7.272727273
A95: 明細部 | B95: 県 | C95: 61 | D95: 男 | E95: 501 | F95: 189 | G95: 37.7245509 | H95: 273 | I95: 54.49101796 | J95: 166 | K95: 33.13373253 | L95: 130 | M95: 25.94810379 | N95: 45 | O95: 8.982035928 | P95: 148 | Q95: 29.54091816 | R95: 281 | S95: 56.08782435 | T95: 84 | U95: 16.76646707 | V95: 233 | W95: 46.50698603 | X95: 129 | Y95: 25.74850299 | Z95: 236 | AA95: 47.10578842 | AB95: 4 | AC95: 0.7984031936 | AD95: 274 | AE95: 54.69061876 | AF95: 53 | AG95: 10.57884232 | AH95: 17 | AI95: 3.393213573 | AJ95: 11 | AK95: 2.195608782 | AL95: 73 | AM95: 14.57085828
A96: 明細部 | B96: 県 | C96: 62 | D96: 男 | E96: 674 | F96: 235 | G96: 34.86646884 | H96: 360 | I96: 53.41246291 | J96: 212 | K96: 31.45400593 | L96: 149 | M96: 22.10682493 | N96: 54 | O96: 8.011869436 | P96: 187 | Q96: 27.74480712 | R96: 361 | S96: 53.56083086 | T96: 100 | U96: 14.83679525 | V96: 330 | W96: 48.96142433 | X96: 205 | Y96: 30.41543027 | Z96: 361 | AA96: 53.56083086 | AB96: 9 | AC96: 1.335311573 | AD96: 381 | AE96: 56.52818991 | AF96: 80 | AG96: 11.8694362 | AH96: 27 | AI96: 4.005934718 | AJ96: 14 | AK96: 2.077151335 | AL96: 83 | AM96: 12.31454006
A97: 明細部 | B97: 県 | C97: 63 | D97: 男 | E97: 851 | F97: 313 | G97: 36.78025852 | H97: 480 | I97: 56.40423032 | J97: 260 | K97: 30.55229142 | L97: 227 | M97: 26.67450059 | N97: 57 | O97: 6.69800235 | P97: 261 | Q97: 30.66980024 | R97: 445 | S97: 52.29142186 | T97: 143 | U97: 16.80376028 | V97: 426 | W97: 50.05875441 | X97: 237 | Y97: 27.84958872 | Z97: 439 | AA97: 51.58636898 | AB97: 5 | AC97: 0.5875440658 | AD97: 461 | AE97: 54.17156287 | AF97: 82 | AG97: 9.635722679 | AH97: 28 | AI97: 3.290246769 | AJ97: 15 | AK97: 1.762632197 | AL97: 125 | AM97: 14.68860165
A98: 明細部 | B98: 県 | C98: 64 | D98: 男 | E98: 1212 | F98: 402 | G98: 33.16831683 | H98: 663 | I98: 54.7029703 | J98: 344 | K98: 28.38283828 | L98: 252 | M98: 20.79207921 | N98: 81 | O98: 6.683168317 | P98: 364 | Q98: 30.0330033 | R98: 652 | S98: 53.79537954 | T98: 192 | U98: 15.84158416 | V98: 550 | W98: 45.37953795 | X98: 311 | Y98: 25.66006601 | Z98: 615 | AA98: 50.74257426 | AB98: 17 | AC98: 1.402640264 | AD98: 613 | AE98: 50.57755776 | AF98: 125 | AG98: 10.31353135 | AH98: 44 | AI98: 3.630363036 | AJ98: 23 | AK98: 1.897689769 | AL98: 213 | AM98: 17.57425743
A99: 明細部 | B99: 県 | C99: 65 | D99: 男 | E99: 1458 | F99: 471 | G99: 32.30452675 | H99: 828 | I99: 56.79012346 | J99: 447 | K99: 30.65843621 | L99: 344 | M99: 23.59396433 | N99: 112 | O99: 7.68175583 | P99: 437 | Q99: 29.97256516 | R99: 871 | S99: 59.739369 | T99: 236 | U99: 16.18655693 | V99: 768 | W99: 52.67489712 | X99: 423 | Y99: 29.01234568 | Z99: 736 | AA99: 50.48010974 | AB99: 20 | AC99: 1.371742112 | AD99: 847 | AE99: 58.09327846 | AF99: 184 | AG99: 12.62002743 | AH99: 47 | AI99: 3.223593964 | AJ99: 29 | AK99: 1.989026063 | AL99: 287 | AM99: 19.68449931
A100: 明細部 | B100: 県 | C100: 66 | D100: 男 | E100: 1869 | F100: 606 | G100: 32.42375602 | H100: 1011 | I100: 54.09309791 | J100: 510 | K100: 27.28731942 | L100: 412 | M100: 22.04387373 | N100: 136 | O100: 7.276618513 | P100: 578 | Q100: 30.92562868 | R100: 1136 | S100: 60.7811664 | T100: 333 | U100: 17.81701445 | V100: 1042 | W100: 55.7517389 | X100: 544 | Y100: 29.10647405 | Z100: 936 | AA100: 50.08025682 | AB100: 29 | AC100: 1.551631889 | AD100: 1139 | AE100: 60.94168004 | AF100: 227 | AG100: 12.14553237 | AH100: 75 | AI100: 4.012841091 | AJ100: 35 | AK100: 1.872659176 | AL100: 367 | AM100: 19.63616907
A101: 明細部 | B101: 県 | C101: 67 | D101: 男 | E101: 2367 | F101: 730 | G101: 30.84072666 | H101: 1292 | I101: 54.58386143 | J101: 604 | K101: 25.51753274 | L101: 466 | M101: 19.68736798 | N101: 169 | O101: 7.139839459 | P101: 742 | Q101: 31.34769751 | R101: 1379 | S101: 58.25940008 | T101: 370 | U101: 15.63160118 | V101: 1198 | W101: 50.61258978 | X101: 564 | Y101: 23.82762991 | Z101: 1161 | AA101: 49.04942966 | AB101: 50 | AC101: 2.112378538 | AD101: 1402 | AE101: 59.23109421 | AF101: 256 | AG101: 10.81537812 | AH101: 69 | AI101: 2.915082383 | AJ101: 56 | AK101: 2.365863963 | AL101: 461 | AM101: 19.47613012
A102: 明細部 | B102: 県 | C102: 68 | D102: 男 | E102: 2980 | F102: 888 | G102: 29.79865772 | H102: 1637 | I102: 54.93288591 | J102: 818 | K102: 27.44966443 | L102: 572 | M102: 19.19463087 | N102: 220 | O102: 7.382550336 | P102: 1031 | Q102: 34.59731544 | R102: 1842 | S102: 61.81208054 | T102: 453 | U102: 15.20134228 | V102: 1632 | W102: 54.76510067 | X102: 706 | Y102: 23.69127517 | Z102: 1547 | AA102: 51.91275168 | AB102: 70 | AC102: 2.348993289 | AD102: 1820 | AE102: 61.0738255 | AF102: 301 | AG102: 10.10067114 | AH102: 102 | AI102: 3.422818792 | AJ102: 57 | AK102: 1.912751678 | AL102: 672 | AM102: 22.55033557
A103: 明細部 | B103: 県 | C103: 69 | D103: 男 | E103: 3649 | F103: 1038 | G103: 28.44614963 | H103: 2007 | I103: 55.00137024 | J103: 888 | K103: 24.33543437 | L103: 602 | M103: 16.49767059 | N103: 210 | O103: 5.75500137 | P103: 1103 | Q103: 30.22745958 | R103: 2157 | S103: 59.1120855 | T103: 585 | U103: 16.03178953 | V103: 1877 | W103: 51.43875034 | X103: 820 | Y103: 22.47191011 | Z103: 1786 | AA103: 48.94491642 | AB103: 72 | AC103: 1.973143327 | AD103: 2037 | AE103: 55.82351329 | AF103: 296 | AG103: 8.111811455 | AH103: 129 | AI103: 3.535215127 | AJ103: 60 | AK103: 1.644286106 | AL103: 813 | AM103: 22.28007673
A104: 明細部 | B104: 県 | C104: 70 | D104: 男 | E104: 4057 | F104: 1173 | G104: 28.91298989 | H104: 2191 | I104: 54.00542273 | J104: 1040 | K104: 25.63470545 | L104: 685 | M104: 16.88439734 | N104: 283 | O104: 6.975597732 | P104: 1418 | Q104: 34.95193493 | R104: 2518 | S104: 62.06556569 | T104: 602 | U104: 14.83855065 | V104: 2289 | W104: 56.42100074 | X104: 855 | Y104: 21.07468573 | Z104: 2080 | AA104: 51.26941089 | AB104: 99 | AC104: 2.440226769 | AD104: 2578 | AE104: 63.544491 | AF104: 380 | AG104: 9.36652699 | AH104: 177 | AI104: 4.362829677 | AJ104: 54 | AK104: 1.331032783 | AL104: 1017 | AM104: 25.06778408
A105: 明細部 | B105: 県 | C105: 71 | D105: 男 | E105: 4211 | F105: 1140 | G105: 27.07195441 | H105: 2224 | I105: 52.81405842 | J105: 1092 | K105: 25.93208264 | L105: 694 | M105: 16.48064593 | N105: 265 | O105: 6.293042033 | P105: 1366 | Q105: 32.43885063 | R105: 2623 | S105: 62.28924246 | T105: 631 | U105: 14.98456424 | V105: 2267 | W105: 53.83519354 | X105: 885 | Y105: 21.01638566 | Z105: 1939 | AA105: 46.04606982 | AB105: 106 | AC105: 2.517216813 | AD105: 2484 | AE105: 58.98836381 | AF105: 395 | AG105: 9.380194728 | AH105: 159 | AI105: 3.77582522 | AJ105: 72 | AK105: 1.709807647 | AL105: 1052 | AM105: 24.9821895
A106: 明細部 | B106: 県 | C106: 72 | D106: 男 | E106: 3223 | F106: 857 | G106: 26.59013342 | H106: 1704 | I106: 52.8699969 | J106: 772 | K106: 23.95283897 | L106: 514 | M106: 15.94787465 | N106: 216 | O106: 6.701830593 | P106: 1081 | Q106: 33.54017996 | R106: 2079 | S106: 64.50511945 | T106: 496 | U106: 15.38938877 | V106: 1749 | W106: 54.2662116 | X106: 598 | Y106: 18.5541421 | Z106: 1447 | AA106: 44.89605957 | AB106: 90 | AC106: 2.792429414 | AD106: 1972 | AE106: 61.18523115 | AF106: 281 | AG106: 8.718585169 | AH106: 122 | AI106: 3.785293205 | AJ106: 46 | AK106: 1.4272417 | AL106: 803 | AM106: 24.91467577
A107: 明細部 | B107: 県 | C107: 73 | D107: 男 | E107: 2336 | F107: 565 | G107: 24.18664384 | H107: 1133 | I107: 48.50171233 | J107: 482 | K107: 20.63356164 | L107: 354 | M107: 15.15410959 | N107: 157 | O107: 6.720890411 | P107: 735 | Q107: 31.4640411 | R107: 1438 | S107: 61.55821918 | T107: 336 | U107: 14.38356164 | V107: 1245 | W107: 53.29623288 | X107: 379 | Y107: 16.22431507 | Z107: 1012 | AA107: 43.32191781 | AB107: 64 | AC107: 2.739726027 | AD107: 1386 | AE107: 59.33219178 | AF107: 179 | AG107: 7.662671233 | AH107: 88 | AI107: 3.767123288 | AJ107: 33 | AK107: 1.412671233 | AL107: 646 | AM107: 27.65410959
A108: 明細部 | B108: 県 | C108: 74 | D108: 男 | E108: 3064 | F108: 727 | G108: 23.72715405 | H108: 1531 | I108: 49.96736292 | J108: 676 | K108: 22.06266319 | L108: 395 | M108: 12.89164491 | N108: 169 | O108: 5.515665796 | P108: 1029 | Q108: 33.58355091 | R108: 1953 | S108: 63.74020888 | T108: 422 | U108: 13.77284595 | V108: 1660 | W108: 54.17754569 | X108: 499 | Y108: 16.28590078 | Z108: 1331 | AA108: 43.43994778 | AB108: 83 | AC108: 2.708877285 | AD108: 1855 | AE108: 60.54177546 | AF108: 210 | AG108: 6.853785901 | AH108: 112 | AI108: 3.65535248 | AJ108: 46 | AK108: 1.501305483 | AL108: 798 | AM108: 26.04438642
A109: 明細部 | B109: 県 | C109: 40 | D109: 女 | E109: 336 | F109: 60 | G109: 17.85714286 | H109: 38 | I109: 11.30952381 | J109: 22 | K109: 6.547619048 | L109: 15 | M109: 4.464285714 | N109: 9 | O109: 2.678571429 | P109: 8 | Q109: 2.380952381 | R109: 61 | S109: 18.1547619 | T109: 3 | U109: 0.8928571429 | V109: 34 | W109: 10.11904762 | X109: 21 | Y109: 6.25 | Z109: 142 | AA109: 42.26190476 | AB109: 1 | AC109: 0.2976190476 | AD109: 147 | AE109: 43.75 | AF109: 19 | AG109: 5.654761905 | AH109: 0 | AI109: 0 | AJ109: 1 | AK109: 0.2976190476 | AL109: 6 | AM109: 1.785714286
A110: 明細部 | B110: 県 | C110: 41 | D110: 女 | E110: 308 | F110: 50 | G110: 16.23376623 | H110: 27 | I110: 8.766233766 | J110: 26 | K110: 8.441558442 | L110: 7 | M110: 2.272727273 | N110: 3 | O110: 0.974025974 | P110: 8 | Q110: 2.597402597 | R110: 42 | S110: 13.63636364 | T110: 4 | U110: 1.298701299 | V110: 29 | W110: 9.415584416 | X110: 13 | Y110: 4.220779221 | Z110: 85 | AA110: 27.5974026 | AB110: 0 | AC110: 0 | AD110: 132 | AE110: 42.85714286 | AF110: 22 | AG110: 7.142857143 | AH110: 1 | AI110: 0.3246753247 | AJ110: 2 | AK110: 0.6493506494 | AL110: 4 | AM110: 1.298701299
A111: 明細部 | B111: 県 | C111: 42 | D111: 女 | E111: 313 | F111: 47 | G111: 15.01597444 | H111: 38 | I111: 12.14057508 | J111: 24 | K111: 7.667731629 | L111: 13 | M111: 4.153354633 | N111: 2 | O111: 0.6389776358 | P111: 15 | Q111: 4.792332268 | R111: 69 | S111: 22.04472843 | T111: 0 | U111: 0 | V111: 41 | W111: 13.09904153 | X111: 32 | Y111: 10.22364217 | Z111: 97 | AA111: 30.99041534 | AB111: 0 | AC111: 0 | AD111: 138 | AE111: 44.08945687 | AF111: 20 | AG111: 6.389776358 | AH111: 1 | AI111: 0.3194888179 | AJ111: 0 | AK111: 0 | AL111: 5 | AM111: 1.597444089
A112: 明細部 | B112: 県 | C112: 43 | D112: 女 | E112: 345 | F112: 56 | G112: 16.23188406 | H112: 30 | I112: 8.695652174 | J112: 19 | K112: 5.507246377 | L112: 16 | M112: 4.637681159 | N112: 5 | O112: 1.449275362 | P112: 20 | Q112: 5.797101449 | R112: 67 | S112: 19.42028986 | T112: 2 | U112: 0.5797101449 | V112: 33 | W112: 9.565217391 | X112: 26 | Y112: 7.536231884 | Z112: 123 | AA112: 35.65217391 | AB112: 0 | AC112: 0 | AD112: 148 | AE112: 42.89855072 | AF112: 18 | AG112: 5.217391304 | AH112: 2 | AI112: 0.5797101449 | AJ112: 4 | AK112: 1.15942029 | AL112: 5 | AM112: 1.449275362
A113: 明細部 | B113: 県 | C113: 44 | D113: 女 | E113: 340 | F113: 48 | G113: 14.11764706 | H113: 35 | I113: 10.29411765 | J113: 15 | K113: 4.411764706 | L113: 23 | M113: 6.764705882 | N113: 1 | O113: 0.2941176471 | P113: 13 | Q113: 3.823529412 | R113: 66 | S113: 19.41176471 | T113: 2 | U113: 0.5882352941 | V113: 40 | W113: 11.76470588 | X113: 25 | Y113: 7.352941176 | Z113: 136 | AA113: 40 | AB113: 0 | AC113: 0 | AD113: 154 | AE113: 45.29411765 | AF113: 13 | AG113: 3.823529412 | AH113: 5 | AI113: 1.470588235 | AJ113: 1 | AK113: 0.2941176471 | AL113: 6 | AM113: 1.764705882
A114: 明細部 | B114: 県 | C114: 45 | D114: 女 | E114: 423 | F114: 54 | G114: 12.76595745 | H114: 41 | I114: 9.692671395 | J114: 28 | K114: 6.619385343 | L114: 25 | M114: 5.910165485 | N114: 6 | O114: 1.418439716 | P114: 20 | Q114: 4.728132388 | R114: 81 | S114: 19.14893617 | T114: 5 | U114: 1.182033097 | V114: 61 | W114: 14.42080378 | X114: 33 | Y114: 7.80141844 | Z114: 193 | AA114: 45.62647754 | AB114: 1 | AC114: 0.2364066194 | AD114: 196 | AE114: 46.3356974 | AF114: 23 | AG114: 5.437352246 | AH114: 0 | AI114: 0 | AJ114: 1 | AK114: 0.2364066194 | AL114: 11 | AM114: 2.600472813
A115: 明細部 | B115: 県 | C115: 46 | D115: 女 | E115: 428 | F115: 82 | G115: 19.1588785 | H115: 55 | I115: 12.85046729 | J115: 47 | K115: 10.98130841 | L115: 32 | M115: 7.476635514 | N115: 10 | O115: 2.336448598 | P115: 29 | Q115: 6.775700935 | R115: 102 | S115: 23.8317757 | T115: 4 | U115: 0.9345794393 | V115: 75 | W115: 17.52336449 | X115: 55 | Y115: 12.85046729 | Z115: 189 | AA115: 44.1588785 | AB115: 0 | AC115: 0 | AD115: 208 | AE115: 48.59813084 | AF115: 27 | AG115: 6.308411215 | AH115: 6 | AI115: 1.401869159 | AJ115: 4 | AK115: 0.9345794393 | AL115: 6 | AM115: 1.401869159
A116: 明細部 | B116: 県 | C116: 47 | D116: 女 | E116: 408 | F116: 65 | G116: 15.93137255 | H116: 44 | I116: 10.78431373 | J116: 41 | K116: 10.04901961 | L116: 42 | M116: 10.29411765 | N116: 2 | O116: 0.4901960784 | P116: 24 | Q116: 5.882352941 | R116: 106 | S116: 25.98039216 | T116: 1 | U116: 0.2450980392 | V116: 66 | W116: 16.17647059 | X116: 47 | Y116: 11.51960784 | Z116: 181 | AA116: 44.3627451 | AB116: 0 | AC116: 0 | AD116: 210 | AE116: 51.47058824 | AF116: 30 | AG116: 7.352941176 | AH116: 1 | AI116: 0.2450980392 | AJ116: 6 | AK116: 1.470588235 | AL116: 10 | AM116: 2.450980392
A117: 明細部 | B117: 県 | C117: 48 | D117: 女 | E117: 418 | F117: 72 | G117: 17.22488038 | H117: 49 | I117: 11.72248804 | J117: 25 | K117: 5.980861244 | L117: 25 | M117: 5.980861244 | N117: 1 | O117: 0.2392344498 | P117: 25 | Q117: 5.980861244 | R117: 100 | S117: 23.92344498 | T117: 1 | U117: 0.2392344498 | V117: 63 | W117: 15.07177033 | X117: 31 | Y117: 7.416267943 | Z117: 195 | AA117: 46.6507177 | AB117: 0 | AC117: 0 | AD117: 206 | AE117: 49.28229665 | AF117: 25 | AG117: 5.980861244 | AH117: 6 | AI117: 1.435406699 | AJ117: 6 | AK117: 1.435406699 | AL117: 17 | AM117: 4.066985646
A118: 明細部 | B118: 県 | C118: 49 | D118: 女 | E118: 368 | F118: 67 | G118: 18.20652174 | H118: 46 | I118: 12.5 | J118: 24 | K118: 6.52173913 | L118: 20 | M118: 5.434782609 | N118: 4 | O118: 1.086956522 | P118: 20 | Q118: 5.434782609 | R118: 102 | S118: 27.7173913 | T118: 2 | U118: 0.5434782609 | V118: 74 | W118: 20.10869565 | X118: 43 | Y118: 11.68478261 | Z118: 198 | AA118: 53.80434783 | AB118: 1 | AC118: 0.2717391304 | AD118: 185 | AE118: 50.27173913 | AF118: 23 | AG118: 6.25 | AH118: 2 | AI118: 0.5434782609 | AJ118: 5 | AK118: 1.358695652 | AL118: 16 | AM118: 4.347826087
A119: 明細部 | B119: 県 | C119: 50 | D119: 女 | E119: 474 | F119: 69 | G119: 14.55696203 | H119: 61 | I119: 12.86919831 | J119: 40 | K119: 8.438818565 | L119: 37 | M119: 7.805907173 | N119: 8 | O119: 1.687763713 | P119: 37 | Q119: 7.805907173 | R119: 120 | S119: 25.3164557 | T119: 7 | U119: 1.476793249 | V119: 93 | W119: 19.62025316 | X119: 55 | Y119: 11.60337553 | Z119: 249 | AA119: 52.53164557 | AB119: 2 | AC119: 0.4219409283 | AD119: 246 | AE119: 51.89873418 | AF119: 32 | AG119: 6.751054852 | AH119: 2 | AI119: 0.4219409283 | AJ119: 4 | AK119: 0.8438818565 | AL119: 16 | AM119: 3.375527426
A120: 明細部 | B120: 県 | C120: 51 | D120: 女 | E120: 451 | F120: 71 | G120: 15.74279379 | H120: 45 | I120: 9.977827051 | J120: 42 | K120: 9.312638581 | L120: 39 | M120: 8.647450111 | N120: 4 | O120: 0.8869179601 | P120: 41 | Q120: 9.090909091 | R120: 134 | S120: 29.71175166 | T120: 3 | U120: 0.6651884701 | V120: 99 | W120: 21.95121951 | X120: 50 | Y120: 11.0864745 | Z120: 241 | AA120: 53.4368071 | AB120: 1 | AC120: 0.22172949 | AD120: 230 | AE120: 50.99778271 | AF120: 23 | AG120: 5.099778271 | AH120: 5 | AI120: 1.10864745 | AJ120: 7 | AK120: 1.55210643 | AL120: 10 | AM120: 2.2172949
A121: 明細部 | B121: 県 | C121: 52 | D121: 女 | E121: 392 | F121: 61 | G121: 15.56122449 | H121: 42 | I121: 10.71428571 | J121: 35 | K121: 8.928571429 | L121: 50 | M121: 12.75510204 | N121: 4 | O121: 1.020408163 | P121: 41 | Q121: 10.45918367 | R121: 111 | S121: 28.31632653 | T121: 8 | U121: 2.040816327 | V121: 92 | W121: 23.46938776 | X121: 51 | Y121: 13.01020408 | Z121: 237 | AA121: 60.45918367 | AB121: 0 | AC121: 0 | AD121: 193 | AE121: 49.23469388 | AF121: 20 | AG121: 5.102040816 | AH121: 4 | AI121: 1.020408163 | AJ121: 8 | AK121: 2.040816327 | AL121: 6 | AM121: 1.530612245
A122: 明細部 | B122: 県 | C122: 53 | D122: 女 | E122: 474 | F122: 83 | G122: 17.51054852 | H122: 64 | I122: 13.5021097 | J122: 56 | K122: 11.81434599 | L122: 56 | M122: 11.81434599 | N122: 6 | O122: 1.265822785 | P122: 47 | Q122: 9.915611814 | R122: 181 | S122: 38.18565401 | T122: 10 | U122: 2.109704641 | V122: 129 | W122: 27.21518987 | X122: 61 | Y122: 12.86919831 | Z122: 302 | AA122: 63.71308017 | AB122: 0 | AC122: 0 | AD122: 254 | AE122: 53.58649789 | AF122: 42 | AG122: 8.860759494 | AH122: 1 | AI122: 0.2109704641 | AJ122: 12 | AK122: 2.53164557 | AL122: 20 | AM122: 4.219409283
A123: 明細部 | B123: 県 | C123: 54 | D123: 女 | E123: 508 | F123: 78 | G123: 15.35433071 | H123: 70 | I123: 13.77952756 | J123: 75 | K123: 14.76377953 | L123: 53 | M123: 10.43307087 | N123: 3 | O123: 0.5905511811 | P123: 41 | Q123: 8.070866142 | R123: 181 | S123: 35.62992126 | T123: 8 | U123: 1.57480315 | V123: 129 | W123: 25.39370079 | X123: 68 | Y123: 13.38582677 | Z123: 313 | AA123: 61.61417323 | AB123: 0 | AC123: 0 | AD123: 258 | AE123: 50.78740157 | AF123: 26 | AG123: 5.118110236 | AH123: 6 | AI123: 1.181102362 | AJ123: 11 | AK123: 2.165354331 | AL123: 29 | AM123: 5.708661417
A124: 明細部 | B124: 県 | C124: 55 | D124: 女 | E124: 597 | F124: 94 | G124: 15.74539363 | H124: 70 | I124: 11.72529313 | J124: 99 | K124: 16.58291457 | L124: 69 | M124: 11.55778894 | N124: 6 | O124: 1.005025126 | P124: 51 | Q124: 8.542713568 | R124: 219 | S124: 36.68341709 | T124: 11 | U124: 1.842546064 | V124: 164 | W124: 27.47068677 | X124: 84 | Y124: 14.07035176 | Z124: 387 | AA124: 64.8241206 | AB124: 1 | AC124: 0.1675041876 | AD124: 280 | AE124: 46.90117253 | AF124: 38 | AG124: 6.365159129 | AH124: 13 | AI124: 2.177554439 | AJ124: 17 | AK124: 2.847571189 | AL124: 36 | AM124: 6.030150754
A125: 明細部 | B125: 県 | C125: 56 | D125: 女 | E125: 582 | F125: 92 | G125: 15.80756014 | H125: 68 | I125: 11.6838488 | J125: 86 | K125: 14.7766323 | L125: 68 | M125: 11.6838488 | N125: 1 | O125: 0.1718213058 | P125: 55 | Q125: 9.450171821 | R125: 221 | S125: 37.97250859 | T125: 5 | U125: 0.8591065292 | V125: 174 | W125: 29.89690722 | X125: 69 | Y125: 11.8556701 | Z125: 360 | AA125: 61.8556701 | AB125: 0 | AC125: 0 | AD125: 307 | AE125: 52.74914089 | AF125: 30 | AG125: 5.154639175 | AH125: 9 | AI125: 1.546391753 | AJ125: 13 | AK125: 2.233676976 | AL125: 20 | AM125: 3.436426117
A126: 明細部 | B126: 県 | C126: 57 | D126: 女 | E126: 657 | F126: 99 | G126: 15.06849315 | H126: 79 | I126: 12.02435312 | J126: 81 | K126: 12.32876712 | L126: 59 | M126: 8.98021309 | N126: 4 | O126: 0.6088280061 | P126: 71 | Q126: 10.80669711 | R126: 268 | S126: 40.79147641 | T126: 16 | U126: 2.435312024 | V126: 194 | W126: 29.5281583 | X126: 93 | Y126: 14.15525114 | Z126: 403 | AA126: 61.33942161 | AB126: 2 | AC126: 0.304414003 | AD126: 332 | AE126: 50.53272451 | AF126: 49 | AG126: 7.458143075 | AH126: 6 | AI126: 0.9132420091 | AJ126: 18 | AK126: 2.739726027 | AL126: 39 | AM126: 5.936073059
A127: 明細部 | B127: 県 | C127: 58 | D127: 女 | E127: 690 | F127: 116 | G127: 16.8115942 | H127: 93 | I127: 13.47826087 | J127: 92 | K127: 13.33333333 | L127: 68 | M127: 9.855072464 | N127: 9 | O127: 1.304347826 | P127: 69 | Q127: 10 | R127: 303 | S127: 43.91304348 | T127: 13 | U127: 1.884057971 | V127: 206 | W127: 29.85507246 | X127: 117 | Y127: 16.95652174 | Z127: 447 | AA127: 64.7826087 | AB127: 1 | AC127: 0.1449275362 | AD127: 376 | AE127: 54.49275362 | AF127: 46 | AG127: 6.666666667 | AH127: 16 | AI127: 2.31884058 | AJ127: 20 | AK127: 2.898550725 | AL127: 46 | AM127: 6.666666667
A128: 明細部 | B128: 県 | C128: 59 | D128: 女 | E128: 855 | F128: 149 | G128: 17.42690058 | H128: 144 | I128: 16.84210526 | J128: 107 | K128: 12.51461988 | L128: 89 | M128: 10.40935673 | N128: 1 | O128: 0.1169590643 | P128: 118 | Q128: 13.80116959 | R128: 372 | S128: 43.50877193 | T128: 6 | U128: 0.701754386 | V128: 281 | W128: 32.86549708 | X128: 135 | Y128: 15.78947368 | Z128: 544 | AA128: 63.62573099 | AB128: 1 | AC128: 0.1169590643 | AD128: 405 | AE128: 47.36842105 | AF128: 69 | AG128: 8.070175439 | AH128: 15 | AI128: 1.754385965 | AJ128: 15 | AK128: 1.754385965 | AL128: 56 | AM128: 6.549707602
A129: 明細部 | B129: 県 | C129: 60 | D129: 女 | E129: 1035 | F129: 171 | G129: 16.52173913 | H129: 153 | I129: 14.7826087 | J129: 123 | K129: 11.88405797 | L129: 99 | M129: 9.565217391 | N129: 16 | O129: 1.54589372 | P129: 141 | Q129: 13.62318841 | R129: 503 | S129: 48.59903382 | T129: 12 | U129: 1.15942029 | V129: 351 | W129: 33.91304348 | X129: 146 | Y129: 14.10628019 | Z129: 692 | AA129: 66.85990338 | AB129: 0 | AC129: 0 | AD129: 584 | AE129: 56.42512077 | AF129: 71 | AG129: 6.859903382 | AH129: 8 | AI129: 0.7729468599 | AJ129: 30 | AK129: 2.898550725 | AL129: 102 | AM129: 9.855072464
A130: 明細部 | B130: 県 | C130: 61 | D130: 女 | E130: 1116 | F130: 201 | G130: 18.01075269 | H130: 189 | I130: 16.93548387 | J130: 182 | K130: 16.30824373 | L130: 140 | M130: 12.54480287 | N130: 11 | O130: 0.9856630824 | P130: 143 | Q130: 12.81362007 | R130: 533 | S130: 47.75985663 | T130: 16 | U130: 1.433691756 | V130: 377 | W130: 33.78136201 | X130: 172 | Y130: 15.41218638 | Z130: 799 | AA130: 71.59498208 | AB130: 1 | AC130: 0.08960573477 | AD130: 598 | AE130: 53.58422939 | AF130: 84 | AG130: 7.52688172 | AH130: 27 | AI130: 2.419354839 | AJ130: 26 | AK130: 2.329749104 | AL130: 103 | AM130: 9.229390681
A131: 明細部 | B131: 県 | C131: 62 | D131: 女 | E131: 1454 | F131: 298 | G131: 20.49518569 | H131: 249 | I131: 17.12517194 | J131: 248 | K131: 17.05639615 | L131: 168 | M131: 11.55433287 | N131: 12 | O131: 0.8253094911 | P131: 218 | Q131: 14.99312242 | R131: 724 | S131: 49.79367263 | T131: 27 | U131: 1.856946355 | V131: 533 | W131: 36.65749656 | X131: 218 | Y131: 14.99312242 | Z131: 992 | AA131: 68.22558459 | AB131: 2 | AC131: 0.1375515818 | AD131: 809 | AE131: 55.63961486 | AF131: 99 | AG131: 6.808803301 | AH131: 27 | AI131: 1.856946355 | AJ131: 28 | AK131: 1.925722146 | AL131: 138 | AM131: 9.491059147
A132: 明細部 | B132: 県 | C132: 63 | D132: 女 | E132: 1755 | F132: 305 | G132: 17.37891738 | H132: 286 | I132: 16.2962963 | J132: 282 | K132: 16.06837607 | L132: 157 | M132: 8.945868946 | N132: 17 | O132: 0.9686609687 | P132: 290 | Q132: 16.52421652 | R132: 852 | S132: 48.54700855 | T132: 37 | U132: 2.108262108 | V132: 658 | W132: 37.49287749 | X132: 267 | Y132: 15.21367521 | Z132: 1096 | AA132: 62.45014245 | AB132: 2 | AC132: 0.113960114 | AD132: 898 | AE132: 51.16809117 | AF132: 143 | AG132: 8.148148148 | AH132: 33 | AI132: 1.88034188 | AJ132: 32 | AK132: 1.823361823 | AL132: 174 | AM132: 9.914529915
A133: 明細部 | B133: 県 | C133: 64 | D133: 女 | E133: 2265 | F133: 445 | G133: 19.64679912 | H133: 374 | I133: 16.51214128 | J133: 360 | K133: 15.89403974 | L133: 222 | M133: 9.801324503 | N133: 22 | O133: 0.9713024283 | P133: 365 | Q133: 16.11479029 | R133: 1120 | S133: 49.44812362 | T133: 29 | U133: 1.280353201 | V133: 888 | W133: 39.20529801 | X133: 326 | Y133: 14.39293598 | Z133: 1574 | AA133: 69.49227373 | AB133: 3 | AC133: 0.1324503311 | AD133: 1257 | AE133: 55.49668874 | AF133: 190 | AG133: 8.388520971 | AH133: 38 | AI133: 1.677704194 | AJ133: 49 | AK133: 2.163355408 | AL133: 274 | AM133: 12.09713024
A134: 明細部 | B134: 県 | C134: 65 | D134: 女 | E134: 2780 | F134: 544 | G134: 19.56834532 | H134: 472 | I134: 16.97841727 | J134: 436 | K134: 15.68345324 | L134: 283 | M134: 10.17985612 | N134: 18 | O134: 0.6474820144 | P134: 463 | Q134: 16.65467626 | R134: 1462 | S134: 52.58992806 | T134: 38 | U134: 1.366906475 | V134: 1197 | W134: 43.05755396 | X134: 457 | Y134: 16.43884892 | Z134: 1717 | AA134: 61.76258993 | AB134: 2 | AC134: 0.07194244604 | AD134: 1450 | AE134: 52.15827338 | AF134: 183 | AG134: 6.582733813 | AH134: 50 | AI134: 1.798561151 | AJ134: 58 | AK134: 2.086330935 | AL134: 330 | AM134: 11.8705036
A135: 明細部 | B135: 県 | C135: 66 | D135: 女 | E135: 3299 | F135: 634 | G135: 19.21794483 | H135: 568 | I135: 17.21733859 | J135: 576 | K135: 17.45983631 | L135: 315 | M135: 9.548347984 | N135: 43 | O135: 1.30342528 | P135: 561 | Q135: 17.00515308 | R135: 1697 | S135: 51.43983025 | T135: 47 | U135: 1.424674144 | V135: 1427 | W135: 43.25553198 | X135: 490 | Y135: 14.85298575 | Z135: 2111 | AA135: 63.9890876 | AB135: 3 | AC135: 0.09093664747 | AD135: 1825 | AE135: 55.31979388 | AF135: 262 | AG135: 7.941800546 | AH135: 49 | AI135: 1.485298575 | AJ135: 58 | AK135: 1.758108518 | AL135: 427 | AM135: 12.94331616
A136: 明細部 | B136: 県 | C136: 67 | D136: 女 | E136: 3753 | F136: 702 | G136: 18.70503597 | H136: 645 | I136: 17.186251 | J136: 619 | K136: 16.49347189 | L136: 362 | M136: 9.64561684 | N136: 38 | O136: 1.012523315 | P136: 626 | Q136: 16.67998934 | R136: 2039 | S136: 54.32986944 | T136: 62 | U136: 1.652011724 | V136: 1571 | W136: 41.85984546 | X136: 502 | Y136: 13.37596589 | Z136: 2242 | AA136: 59.73887557 | AB136: 2 | AC136: 0.05329070077 | AD136: 2071 | AE136: 55.18252065 | AF136: 247 | AG136: 6.581401545 | AH136: 65 | AI136: 1.731947775 | AJ136: 51 | AK136: 1.35891287 | AL136: 503 | AM136: 13.40261124
A137: 明細部 | B137: 県 | C137: 68 | D137: 女 | E137: 4325 | F137: 766 | G137: 17.71098266 | H137: 725 | I137: 16.76300578 | J137: 705 | K137: 16.30057803 | L137: 361 | M137: 8.346820809 | N137: 48 | O137: 1.10982659 | P137: 774 | Q137: 17.89595376 | R137: 2408 | S137: 55.67630058 | T137: 73 | U137: 1.687861272 | V137: 2079 | W137: 48.06936416 | X137: 668 | Y137: 15.44508671 | Z137: 2619 | AA137: 60.55491329 | AB137: 8 | AC137: 0.1849710983 | AD137: 2422 | AE137: 56 | AF137: 318 | AG137: 7.352601156 | AH137: 88 | AI137: 2.034682081 | AJ137: 76 | AK137: 1.757225434 | AL137: 615 | AM137: 14.21965318
A138: 明細部 | B138: 県 | C138: 69 | D138: 女 | E138: 4727 | F138: 905 | G138: 19.14533531 | H138: 761 | I138: 16.09900571 | J138: 775 | K138: 16.39517664 | L138: 418 | M138: 8.842817855 | N138: 76 | O138: 1.607785065 | P138: 879 | Q138: 18.59530358 | R138: 2788 | S138: 58.98032579 | T138: 77 | U138: 1.628940131 | V138: 2272 | W138: 48.0643114 | X138: 694 | Y138: 14.68161625 | Z138: 2998 | AA138: 63.42288978 | AB138: 16 | AC138: 0.3384810662 | AD138: 2723 | AE138: 57.60524646 | AF138: 273 | AG138: 5.775333192 | AH138: 114 | AI138: 2.411677597 | AJ138: 80 | AK138: 1.692405331 | AL138: 764 | AM138: 16.16247091
A139: 明細部 | B139: 県 | C139: 70 | D139: 女 | E139: 5872 | F139: 1079 | G139: 18.3753406 | H139: 1047 | I139: 17.83038147 | J139: 948 | K139: 16.14441417 | L139: 424 | M139: 7.220708447 | N139: 76 | O139: 1.294277929 | P139: 1050 | Q139: 17.88147139 | R139: 3159 | S139: 53.79768392 | T139: 110 | U139: 1.873297003 | V139: 2862 | W139: 48.73978202 | X139: 868 | Y139: 14.78201635 | Z139: 3631 | AA139: 61.83583106 | AB139: 14 | AC139: 0.2384196185 | AD139: 3185 | AE139: 54.24046322 | AF139: 332 | AG139: 5.653950954 | AH139: 129 | AI139: 2.196866485 | AJ139: 88 | AK139: 1.498637602 | AL139: 834 | AM139: 14.20299728
A140: 明細部 | B140: 県 | C140: 71 | D140: 女 | E140: 5901 | F140: 1097 | G140: 18.59006948 | H140: 1102 | I140: 18.67480088 | J140: 964 | K140: 16.3362142 | L140: 452 | M140: 7.659718692 | N140: 73 | O140: 1.237078461 | P140: 1147 | Q140: 19.43738349 | R140: 3474 | S140: 58.87137773 | T140: 116 | U140: 1.965768514 | V140: 2925 | W140: 49.56786985 | X140: 784 | Y140: 13.28588375 | Z140: 3380 | AA140: 57.27842739 | AB140: 12 | AC140: 0.2033553635 | AD140: 3203 | AE140: 54.27893577 | AF140: 311 | AG140: 5.270293171 | AH140: 134 | AI140: 2.270801559 | AJ140: 77 | AK140: 1.304863582 | AL140: 1063 | AM140: 18.01389595
A141: 明細部 | B141: 県 | C141: 72 | D141: 女 | E141: 4411 | F141: 799 | G141: 18.11380639 | H141: 821 | I141: 18.61255951 | J141: 687 | K141: 15.57469961 | L141: 373 | M141: 8.456132396 | N141: 60 | O141: 1.360235774 | P141: 970 | Q141: 21.99047835 | R141: 2655 | S141: 60.19043301 | T141: 97 | U141: 2.199047835 | V141: 2287 | W141: 51.84765359 | X141: 635 | Y141: 14.39582861 | Z141: 2645 | AA141: 59.96372705 | AB141: 10 | AC141: 0.2267059624 | AD141: 2607 | AE141: 59.10224439 | AF141: 250 | AG141: 5.667649059 | AH141: 102 | AI141: 2.312400816 | AJ141: 62 | AK141: 1.405576967 | AL141: 835 | AM141: 18.92994786
A142: 明細部 | B142: 県 | C142: 73 | D142: 女 | E142: 3291 | F142: 636 | G142: 19.325433 | H142: 634 | I142: 19.2646612 | J142: 519 | K142: 15.77028259 | L142: 285 | M142: 8.659981768 | N142: 50 | O142: 1.519295047 | P142: 702 | Q142: 21.33090246 | R142: 1906 | S142: 57.9155272 | T142: 71 | U142: 2.157398967 | V142: 1731 | W142: 52.59799453 | X142: 400 | Y142: 12.15436038 | Z142: 1826 | AA142: 55.48465512 | AB142: 3 | AC142: 0.09115770283 | AD142: 1813 | AE142: 55.08963841 | AF142: 149 | AG142: 4.52749924 | AH142: 90 | AI142: 2.734731085 | AJ142: 57 | AK142: 1.731996354 | AL142: 660 | AM142: 20.05469462
A143: 明細部 | B143: 県 | C143: 74 | D143: 女 | E143: 3976 | F143: 782 | G143: 19.66800805 | H143: 761 | I143: 19.13983903 | J143: 608 | K143: 15.2917505 | L143: 278 | M143: 6.99195171 | N143: 54 | O143: 1.358148893 | P143: 830 | Q143: 20.87525151 | R143: 2350 | S143: 59.10462777 | T143: 85 | U143: 2.137826962 | V143: 2129 | W143: 53.54627767 | X143: 458 | Y143: 11.51911469 | Z143: 2189 | AA143: 55.05533199 | AB143: 9 | AC143: 0.2263581489 | AD143: 2184 | AE143: 54.92957746 | AF143: 175 | AG143: 4.401408451 | AH143: 92 | AI143: 2.3138833 | AJ143: 43 | AK143: 1.081488934 | AL143: 864 | AM143: 21.73038229
A144: 明細部 | B144: 保険者（地区） | C144: 40 | D144: 男 | E144: 51.6 | F144: 15.8 | G144: 30.62015504 | H144: 23 | I144: 44.57364341 | J144: 13 | K144: 25.19379845 | L144: 17.8 | M144: 34.49612403 | N144: 5.2 | O144: 10.07751938 | P144: 6 | Q144: 11.62790698 | R144: 11.4 | S144: 22.09302326 | T144: 8.6 | U144: 16.66666667 | V144: 13 | W144: 25.19379845 | X144: 9.8 | Y144: 18.99224806 | Z144: 27.8 | AA144: 53.87596899 | AB144: 0.2 | AC144: 0.3875968992 | AD144: 23.8 | AE144: 46.12403101 | AF144: 6.2 | AG144: 12.01550388 | AH144: 0.6 | AI144: 1.162790698 | AJ144: 2.2 | AK144: 4.263565891 | AL144: 1 | AM144: 1.937984496
A145: 明細部 | B145: 保険者（地区） | C145: 41 | D145: 男 | E145: 48 | F145: 17.2 | G145: 35.83333333 | H145: 24.4 | I145: 50.83333333 | J145: 16.2 | K145: 33.75 | L145: 22.2 | M145: 46.25 | N145: 3.8 | O145: 7.916666667 | P145: 5.4 | Q145: 11.25 | R145: 12.2 | S145: 25.41666667 | T145: 11.2 | U145: 23.33333333 | V145: 12.8 | W145: 26.66666667 | X145: 10.2 | Y145: 21.25 | Z145: 28.4 | AA145: 59.16666667 | AB145: 0.2 | AC145: 0.4166666667 | AD145: 26.8 | AE145: 55.83333333 | AF145: 5.8 | AG145: 12.08333333 | AH145: 0.8 | AI145: 1.666666667 | AJ145: 0.8 | AK145: 1.666666667 | AL145: 0.4 | AM145: 0.8333333333
A146: 明細部 | B146: 保険者（地区） | C146: 42 | D146: 男 | E146: 56.2 | F146: 17.4 | G146: 30.96085409 | H146: 27.6 | I146: 49.11032028 | J146: 18.4 | K146: 32.74021352 | L146: 18.8 | M146: 33.4519573 | N146: 3.8 | O146: 6.761565836 | P146: 7.2 | Q146: 12.8113879 | R146: 14.2 | S146: 25.26690391 | T146: 12.2 | U146: 21.70818505 | V146: 14.2 | W146: 25.26690391 | X146: 10.2 | Y146: 18.14946619 | Z146: 29.4 | AA146: 52.31316726 | AB146: 0.2 | AC146: 0.3558718861 | AD146: 25 | AE146: 44.48398577 | AF146: 7 | AG146: 12.45551601 | AH146: 2 | AI146: 3.558718861 | AJ146: 1 | AK146: 1.779359431 | AL146: 1 | AM146: 1.779359431
A147: 明細部 | B147: 保険者（地区） | C147: 43 | D147: 男 | E147: 58.6 | F147: 19.6 | G147: 33.44709898 | H147: 28.4 | I147: 48.46416382 | J147: 17 | K147: 29.01023891 | L147: 20.8 | M147: 35.49488055 | N147: 6.6 | O147: 11.26279863 | P147: 7.6 | Q147: 12.96928328 | R147: 14.6 | S147: 24.91467577 | T147: 12 | U147: 20.4778157 | V147: 17.6 | W147: 30.03412969 | X147: 12.2 | Y147: 20.81911263 | Z147: 34.6 | AA147: 59.0443686 | AB147: 0 | AC147: 0 | AD147: 30.2 | AE147: 51.53583618 | AF147: 4.4 | AG147: 7.508532423 | AH147: 0.4 | AI147: 0.6825938567 | AJ147: 0 | AK147: 0 | AL147: 1.2 | AM147: 2.04778157
A148: 明細部 | B148: 保険者（地区） | C148: 44 | D148: 男 | E148: 59.6 | F148: 24 | G148: 40.26845638 | H148: 30.6 | I148: 51.34228188 | J148: 23.4 | K148: 39.26174497 | L148: 24.4 | M148: 40.93959732 | N148: 6.6 | O148: 11.0738255 | P148: 6.8 | Q148: 11.40939597 | R148: 16.8 | S148: 28.18791946 | T148: 12.2 | U148: 20.46979866 | V148: 19.2 | W148: 32.2147651 | X148: 15 | Y148: 25.16778523 | Z148: 35.2 | AA148: 59.06040268 | AB148: 0.4 | AC148: 0.6711409396 | AD148: 27.6 | AE148: 46.30872483 | AF148: 7 | AG148: 11.74496644 | AH148: 0.2 | AI148: 0.3355704698 | AJ148: 0.6 | AK148: 1.006711409 | AL148: 1.8 | AM148: 3.020134228
A149: 明細部 | B149: 保険者（地区） | C149: 45 | D149: 男 | E149: 67.6 | F149: 22.8 | G149: 33.72781065 | H149: 30.6 | I149: 45.26627219 | J149: 18.8 | K149: 27.81065089 | L149: 19.4 | M149: 28.69822485 | N149: 5.8 | O149: 8.579881657 | P149: 9 | Q149: 13.31360947 | R149: 18 | S149: 26.62721893 | T149: 12.8 | U149: 18.93491124 | V149: 18.2 | W149: 26.92307692 | X149: 13.8 | Y149: 20.41420118 | Z149: 37.2 | AA149: 55.0295858 | AB149: 0 | AC149: 0 | AD149: 38.4 | AE149: 56.80473373 | AF149: 5.2 | AG149: 7.692307692 | AH149: 0.2 | AI149: 0.2958579882 | AJ149: 1 | AK149: 1.479289941 | AL149: 1.8 | AM149: 2.662721893
A150: 明細部 | B150: 保険者（地区） | C150: 46 | D150: 男 | E150: 73.8 | F150: 28.4 | G150: 38.48238482 | H150: 36 | I150: 48.7804878 | J150: 29 | K150: 39.29539295 | L150: 30 | M150: 40.6504065 | N150: 9.6 | O150: 13.00813008 | P150: 13.4 | Q150: 18.15718157 | R150: 24.6 | S150: 33.33333333 | T150: 18.4 | U150: 24.93224932 | V150: 24.4 | W150: 33.06233062 | X150: 19.2 | Y150: 26.01626016 | Z150: 43 | AA150: 58.26558266 | AB150: 0.6 | AC150: 0.8130081301 | AD150: 39 | AE150: 52.84552846 | AF150: 6.8 | AG150: 9.214092141 | AH150: 0.4 | AI150: 0.5420054201 | AJ150: 1.8 | AK150: 2.43902439 | AL150: 5 | AM150: 6.775067751
A151: 明細部 | B151: 保険者（地区） | C151: 47 | D151: 男 | E151: 68.2 | F151: 27.8 | G151: 40.76246334 | H151: 36.6 | I151: 53.66568915 | J151: 23.2 | K151: 34.01759531 | L151: 23.4 | M151: 34.31085044 | N151: 4.8 | O151: 7.038123167 | P151: 10.4 | Q151: 15.24926686 | R151: 23.4 | S151: 34.31085044 | T151: 16.2 | U151: 23.75366569 | V151: 22.2 | W151: 32.55131965 | X151: 17.8 | Y151: 26.09970674 | Z151: 40.4 | AA151: 59.23753666 | AB151: 0 | AC151: 0 | AD151: 36.4 | AE151: 53.37243402 | AF151: 8 | AG151: 11.73020528 | AH151: 0 | AI151: 0 | AJ151: 1.8 | AK151: 2.639296188 | AL151: 1.8 | AM151: 2.639296188
A152: 明細部 | B152: 保険者（地区） | C152: 48 | D152: 男 | E152: 65.6 | F152: 24.4 | G152: 37.19512195 | H152: 36.4 | I152: 55.48780488 | J152: 16.8 | K152: 25.6097561 | L152: 21.8 | M152: 33.23170732 | N152: 4.4 | O152: 6.707317073 | P152: 9.8 | Q152: 14.93902439 | R152: 19.6 | S152: 29.87804878 | T152: 12.8 | U152: 19.51219512 | V152: 20.4 | W152: 31.09756098 | X152: 16.4 | Y152: 25 | Z152: 40.6 | AA152: 61.8902439 | AB152: 0 | AC152: 0 | AD152: 30.2 | AE152: 46.03658537 | AF152: 9.2 | AG152: 14.02439024 | AH152: 1.8 | AI152: 2.743902439 | AJ152: 1.8 | AK152: 2.743902439 | AL152: 2.4 | AM152: 3.658536585
A153: 明細部 | B153: 保険者（地区） | C153: 49 | D153: 男 | E153: 56.4 | F153: 22.2 | G153: 39.36170213 | H153: 30.4 | I153: 53.90070922 | J153: 18.4 | K153: 32.62411348 | L153: 20.6 | M153: 36.5248227 | N153: 4.6 | O153: 8.156028369 | P153: 8.8 | Q153: 15.60283688 | R153: 19.8 | S153: 35.10638298 | T153: 10.8 | U153: 19.14893617 | V153: 20 | W153: 35.46099291 | X153: 15.2 | Y153: 26.95035461 | Z153: 31.6 | AA153: 56.02836879 | AB153: 0.2 | AC153: 0.3546099291 | AD153: 26.6 | AE153: 47.16312057 | AF153: 5.2 | AG153: 9.219858156 | AH153: 2.2 | AI153: 3.90070922 | AJ153: 1 | AK153: 1.773049645 | AL153: 1 | AM153: 1.773049645
A154: 明細部 | B154: 保険者（地区） | C154: 50 | D154: 男 | E154: 69 | F154: 29 | G154: 42.02898551 | H154: 40.8 | I154: 59.13043478 | J154: 22.2 | K154: 32.17391304 | L154: 25.8 | M154: 37.39130435 | N154: 5.2 | O154: 7.536231884 | P154: 13.2 | Q154: 19.13043478 | R154: 24.8 | S154: 35.94202899 | T154: 10.4 | U154: 15.07246377 | V154: 25.8 | W154: 37.39130435 | X154: 22 | Y154: 31.88405797 | Z154: 34.6 | AA154: 50.14492754 | AB154: 0 | AC154: 0 | AD154: 28.6 | AE154: 41.44927536 | AF154: 8.2 | AG154: 11.88405797 | AH154: 1 | AI154: 1.449275362 | AJ154: 1 | AK154: 1.449275362 | AL154: 2.8 | AM154: 4.057971014
A155: 明細部 | B155: 保険者（地区） | C155: 51 | D155: 男 | E155: 67.2 | F155: 28.2 | G155: 41.96428571 | H155: 39 | I155: 58.03571429 | J155: 23.2 | K155: 34.52380952 | L155: 20.4 | M155: 30.35714286 | N155: 5 | O155: 7.44047619 | P155: 10.8 | Q155: 16.07142857 | R155: 23.6 | S155: 35.11904762 | T155: 15 | U155: 22.32142857 | V155: 27.2 | W155: 40.47619048 | X155: 19.6 | Y155: 29.16666667 | Z155: 44 | AA155: 65.47619048 | AB155: 0 | AC155: 0 | AD155: 36.2 | AE155: 53.86904762 | AF155: 8 | AG155: 11.9047619 | AH155: 3 | AI155: 4.464285714 | AJ155: 2.8 | AK155: 4.166666667 | AL155: 2 | AM155: 2.976190476
A156: 明細部 | B156: 保険者（地区） | C156: 52 | D156: 男 | E156: 51.6 | F156: 23 | G156: 44.57364341 | H156: 29 | I156: 56.20155039 | J156: 15 | K156: 29.06976744 | L156: 16.6 | M156: 32.17054264 | N156: 3.8 | O156: 7.364341085 | P156: 8.2 | Q156: 15.89147287 | R156: 18.6 | S156: 36.04651163 | T156: 8.8 | U156: 17.05426357 | V156: 20.2 | W156: 39.14728682 | X156: 14.6 | Y156: 28.29457364 | Z156: 31 | AA156: 60.07751938 | AB156: 0.2 | AC156: 0.3875968992 | AD156: 23.8 | AE156: 46.12403101 | AF156: 4.6 | AG156: 8.914728682 | AH156: 2 | AI156: 3.875968992 | AJ156: 1 | AK156: 1.937984496 | AL156: 3 | AM156: 5.813953488
A157: 明細部 | B157: 保険者（地区） | C157: 53 | D157: 男 | E157: 68 | F157: 26.2 | G157: 38.52941176 | H157: 39.8 | I157: 58.52941176 | J157: 22 | K157: 32.35294118 | L157: 21.6 | M157: 31.76470588 | N157: 3.8 | O157: 5.588235294 | P157: 11.2 | Q157: 16.47058824 | R157: 28.4 | S157: 41.76470588 | T157: 10.8 | U157: 15.88235294 | V157: 26.4 | W157: 38.82352941 | X157: 19.6 | Y157: 28.82352941 | Z157: 37.6 | AA157: 55.29411765 | AB157: 0.2 | AC157: 0.2941176471 | AD157: 37.8 | AE157: 55.58823529 | AF157: 7.8 | AG157: 11.47058824 | AH157: 0.8 | AI157: 1.176470588 | AJ157: 0.4 | AK157: 0.5882352941 | AL157: 4.2 | AM157: 6.176470588
A158: 明細部 | B158: 保険者（地区） | C158: 54 | D158: 男 | E158: 69.6 | F158: 26.6 | G158: 38.2183908 | H158: 40.4 | I158: 58.04597701 | J158: 25.8 | K158: 37.06896552 | L158: 20.8 | M158: 29.88505747 | N158: 5.4 | O158: 7.75862069 | P158: 12.4 | Q158: 17.81609195 | R158: 29.2 | S158: 41.95402299 | T158: 10.4 | U158: 14.94252874 | V158: 30 | W158: 43.10344828 | X158: 21.6 | Y158: 31.03448276 | Z158: 40 | AA158: 57.47126437 | AB158: 0.8 | AC158: 1.149425287 | AD158: 34.6 | AE158: 49.71264368 | AF158: 7.6 | AG158: 10.91954023 | AH158: 2.2 | AI158: 3.16091954 | AJ158: 2.2 | AK158: 3.16091954 | AL158: 4.4 | AM158: 6.32183908
A159: 明細部 | B159: 保険者（地区） | C159: 55 | D159: 男 | E159: 72.4 | F159: 24.4 | G159: 33.70165746 | H159: 36.4 | I159: 50.27624309 | J159: 22.6 | K159: 31.21546961 | L159: 19.2 | M159: 26.51933702 | N159: 4.6 | O159: 6.35359116 | P159: 17.6 | Q159: 24.30939227 | R159: 25.2 | S159: 34.80662983 | T159: 15.2 | U159: 20.99447514 | V159: 27.4 | W159: 37.84530387 | X159: 20.6 | Y159: 28.45303867 | Z159: 38.8 | AA159: 53.59116022 | AB159: 1 | AC159: 1.38121547 | AD159: 37.8 | AE159: 52.20994475 | AF159: 9.4 | AG159: 12.98342541 | AH159: 1.6 | AI159: 2.209944751 | AJ159: 1.4 | AK159: 1.933701657 | AL159: 4.8 | AM159: 6.629834254
A160: 明細部 | B160: 保険者（地区） | C160: 56 | D160: 男 | E160: 70.2 | F160: 26.4 | G160: 37.60683761 | H160: 38.4 | I160: 54.7008547 | J160: 24.8 | K160: 35.32763533 | L160: 22.2 | M160: 31.62393162 | N160: 7.4 | O160: 10.54131054 | P160: 15.2 | Q160: 21.65242165 | R160: 32.8 | S160: 46.72364672 | T160: 14.2 | U160: 20.22792023 | V160: 32.4 | W160: 46.15384615 | X160: 22 | Y160: 31.33903134 | Z160: 36.2 | AA160: 51.56695157 | AB160: 0.4 | AC160: 0.5698005698 | AD160: 34.6 | AE160: 49.28774929 | AF160: 7.8 | AG160: 11.11111111 | AH160: 2.4 | AI160: 3.418803419 | AJ160: 1 | AK160: 1.424501425 | AL160: 4.4 | AM160: 6.267806268
A161: 明細部 | B161: 保険者（地区） | C161: 57 | D161: 男 | E161: 67 | F161: 27.2 | G161: 40.59701493 | H161: 38.8 | I161: 57.91044776 | J161: 23 | K161: 34.32835821 | L161: 20 | M161: 29.85074627 | N161: 3.6 | O161: 5.373134328 | P161: 12.8 | Q161: 19.10447761 | R161: 29.2 | S161: 43.58208955 | T161: 10.2 | U161: 15.2238806 | V161: 33.8 | W161: 50.44776119 | X161: 20.8 | Y161: 31.04477612 | Z161: 39.4 | AA161: 58.80597015 | AB161: 1.2 | AC161: 1.791044776 | AD161: 30.4 | AE161: 45.37313433 | AF161: 8.4 | AG161: 12.53731343 | AH161: 2.8 | AI161: 4.179104478 | AJ161: 2.2 | AK161: 3.28358209 | AL161: 5 | AM161: 7.462686567
A162: 明細部 | B162: 保険者（地区） | C162: 58 | D162: 男 | E162: 64.6 | F162: 23 | G162: 35.60371517 | H162: 38.6 | I162: 59.75232198 | J162: 21.8 | K162: 33.74613003 | L162: 18.8 | M162: 29.10216718 | N162: 4 | O162: 6.191950464 | P162: 15.4 | Q162: 23.83900929 | R162: 26 | S162: 40.24767802 | T162: 12.4 | U162: 19.19504644 | V162: 24.4 | W162: 37.77089783 | X162: 17.6 | Y162: 27.24458204 | Z162: 39 | AA162: 60.37151703 | AB162: 0.4 | AC162: 0.6191950464 | AD162: 38.6 | AE162: 59.75232198 | AF162: 5.2 | AG162: 8.049535604 | AH162: 1.6 | AI162: 2.476780186 | AJ162: 1.6 | AK162: 2.476780186 | AL162: 5.6 | AM162: 8.66873065
A163: 明細部 | B163: 保険者（地区） | C163: 59 | D163: 男 | E163: 80.8 | F163: 27.6 | G163: 34.15841584 | H163: 48 | I163: 59.40594059 | J163: 28 | K163: 34.65346535 | L163: 20 | M163: 24.75247525 | N163: 5.4 | O163: 6.683168317 | P163: 22 | Q163: 27.22772277 | R163: 38.6 | S163: 47.77227723 | T163: 16.2 | U163: 20.04950495 | V163: 37.6 | W163: 46.53465347 | X163: 25.4 | Y163: 31.43564356 | Z163: 40.8 | AA163: 50.4950495 | AB163: 0.2 | AC163: 0.2475247525 | AD163: 41.6 | AE163: 51.48514851 | AF163: 8.2 | AG163: 10.14851485 | AH163: 2.4 | AI163: 2.97029703 | AJ163: 1.2 | AK163: 1.485148515 | AL163: 8.2 | AM163: 10.14851485
A164: 明細部 | B164: 保険者（地区） | C164: 60 | D164: 男 | E164: 81 | F164: 27.6 | G164: 34.07407407 | H164: 48 | I164: 59.25925926 | J164: 27.4 | K164: 33.82716049 | L164: 21.4 | M164: 26.41975309 | N164: 7 | O164: 8.641975309 | P164: 21.4 | Q164: 26.41975309 | R164: 43 | S164: 53.08641975 | T164: 14.6 | U164: 18.02469136 | V164: 37.6 | W164: 46.41975309 | X164: 26.4 | Y164: 32.59259259 | Z164: 43.6 | AA164: 53.82716049 | AB164: 1.2 | AC164: 1.481481481 | AD164: 44.8 | AE164: 55.30864198 | AF164: 6.6 | AG164: 8.148148148 | AH164: 4.2 | AI164: 5.185185185 | AJ164: 1.6 | AK164: 1.975308642 | AL164: 6 | AM164: 7.407407407
A165: 明細部 | B165: 保険者（地区） | C165: 61 | D165: 男 | E165: 96.2 | F165: 35.8 | G165: 37.21413721 | H165: 53.8 | I165: 55.92515593 | J165: 31.6 | K165: 32.84823285 | L165: 24 | M165: 24.94802495 | N165: 8.4 | O165: 8.731808732 | P165: 28.2 | Q165: 29.31392931 | R165: 52.8 | S165: 54.88565489 | T165: 16.6 | U165: 17.25571726 | V165: 43.4 | W165: 45.11434511 | X165: 24.6 | Y165: 25.57172557 | Z165: 45.8 | AA165: 47.60914761 | AB165: 0.8 | AC165: 0.8316008316 | AD165: 51.2 | AE165: 53.22245322 | AF165: 10.4 | AG165: 10.81081081 | AH165: 3 | AI165: 3.118503119 | AJ165: 2.2 | AK165: 2.286902287 | AL165: 13 | AM165: 13.51351351
A166: 明細部 | B166: 保険者（地区） | C166: 62 | D166: 男 | E166: 127.2 | F166: 46.8 | G166: 36.79245283 | H166: 69.6 | I166: 54.71698113 | J166: 40 | K166: 31.44654088 | L166: 30.8 | M166: 24.21383648 | N166: 11 | O166: 8.647798742 | P166: 35.8 | Q166: 28.14465409 | R166: 69.6 | S166: 54.71698113 | T166: 19.8 | U166: 15.56603774 | V166: 61.6 | W166: 48.42767296 | X166: 37.4 | Y166: 29.40251572 | Z166: 64.6 | AA166: 50.78616352 | AB166: 1.8 | AC166: 1.41509434 | AD166: 73.8 | AE166: 58.01886792 | AF166: 14.8 | AG166: 11.63522013 | AH166: 5.2 | AI166: 4.088050314 | AJ166: 2.8 | AK166: 2.201257862 | AL166: 15 | AM166: 11.79245283
A167: 明細部 | B167: 保険者（地区） | C167: 63 | D167: 男 | E167: 163.6 | F167: 59.8 | G167: 36.55256724 | H167: 94.8 | I167: 57.94621027 | J167: 49 | K167: 29.95110024 | L167: 42.6 | M167: 26.0391198 | N167: 11.6 | O167: 7.090464548 | P167: 50.2 | Q167: 30.68459658 | R167: 87.6 | S167: 53.54523227 | T167: 27.2 | U167: 16.62591687 | V167: 81.2 | W167: 49.63325183 | X167: 44.2 | Y167: 27.01711491 | Z167: 79.4 | AA167: 48.53300733 | AB167: 1 | AC167: 0.6112469438 | AD167: 86.2 | AE167: 52.68948655 | AF167: 16.6 | AG167: 10.14669927 | AH167: 5.4 | AI167: 3.300733496 | AJ167: 3.2 | AK167: 1.95599022 | AL167: 24.8 | AM167: 15.15892421
A168: 明細部 | B168: 保険者（地区） | C168: 64 | D168: 男 | E168: 242.4 | F168: 77.8 | G168: 32.09570957 | H168: 131.4 | I168: 54.20792079 | J168: 67.8 | K168: 27.97029703 | L168: 48.2 | M168: 19.88448845 | N168: 16.8 | O168: 6.930693069 | P168: 71.4 | Q168: 29.45544554 | R168: 129.2 | S168: 53.30033003 | T168: 39.2 | U168: 16.17161716 | V168: 109.2 | W168: 45.04950495 | X168: 62.6 | Y168: 25.82508251 | Z168: 127.8 | AA168: 52.72277228 | AB168: 3.6 | AC168: 1.485148515 | AD168: 122.6 | AE168: 50.57755776 | AF168: 26.2 | AG168: 10.80858086 | AH168: 8.8 | AI168: 3.630363036 | AJ168: 4.6 | AK168: 1.897689769 | AL168: 41.4 | AM168: 17.07920792
A169: 明細部 | B169: 保険者（地区） | C169: 65 | D169: 男 | E169: 284.4 | F169: 93.4 | G169: 32.84106892 | H169: 169.8 | I169: 59.70464135 | J169: 86.2 | K169: 30.30942335 | L169: 66 | M169: 23.20675105 | N169: 21.4 | O169: 7.524613221 | P169: 82.2 | Q169: 28.90295359 | R169: 170.4 | S169: 59.91561181 | T169: 47.6 | U169: 16.73699015 | V169: 153 | W169: 53.79746835 | X169: 83.6 | Y169: 29.395218 | Z169: 143.8 | AA169: 50.5625879 | AB169: 4 | AC169: 1.406469761 | AD169: 165.4 | AE169: 58.15752461 | AF169: 36.8 | AG169: 12.9395218 | AH169: 9 | AI169: 3.164556962 | AJ169: 5.8 | AK169: 2.039381153 | AL169: 58.8 | AM169: 20.67510549
A170: 明細部 | B170: 保険者（地区） | C170: 66 | D170: 男 | E170: 385.6 | F170: 116.8 | G170: 30.29045643 | H170: 206.4 | I170: 53.52697095 | J170: 108.2 | K170: 28.06016598 | L170: 81.4 | M170: 21.10995851 | N170: 27.4 | O170: 7.105809129 | P170: 116.6 | Q170: 30.23858921 | R170: 219.4 | S170: 56.89834025 | T170: 68.4 | U170: 17.73858921 | V170: 194 | W170: 50.31120332 | X170: 101.2 | Y170: 26.24481328 | Z170: 181.4 | AA170: 47.04356846 | AB170: 5.8 | AC170: 1.504149378 | AD170: 232.2 | AE170: 60.21784232 | AF170: 44.2 | AG170: 11.4626556 | AH170: 14.6 | AI170: 3.786307054 | AJ170: 6.8 | AK170: 1.763485477 | AL170: 69.8 | AM170: 18.10165975
A171: 明細部 | B171: 保険者（地区） | C171: 67 | D171: 男 | E171: 456.8 | F171: 145.2 | G171: 31.78633975 | H171: 243 | I171: 53.19614711 | J171: 121.4 | K171: 26.57618214 | L171: 94.6 | M171: 20.70928196 | N171: 34.2 | O171: 7.486865149 | P171: 146 | Q171: 31.9614711 | R171: 259.6 | S171: 56.83012259 | T171: 71.8 | U171: 15.71803853 | V171: 228.8 | W171: 50.08756567 | X171: 111 | Y171: 24.29947461 | Z171: 223 | AA171: 48.8178634 | AB171: 9.6 | AC171: 2.101576182 | AD171: 292.4 | AE171: 64.01050788 | AF171: 49.4 | AG171: 10.81436077 | AH171: 13.8 | AI171: 3.021015762 | AJ171: 11.6 | AK171: 2.539404553 | AL171: 87 | AM171: 19.04553415
A172: 明細部 | B172: 保険者（地区） | C172: 68 | D172: 男 | E172: 603 | F172: 178.2 | G172: 29.55223881 | H172: 344.2 | I172: 57.08126036 | J172: 161.2 | K172: 26.73300166 | L172: 108.4 | M172: 17.97678275 | N172: 45.8 | O172: 7.595356551 | P172: 207.6 | Q172: 34.4278607 | R172: 361.8 | S172: 60 | T172: 94 | U172: 15.58872305 | V172: 308.2 | W172: 51.11111111 | X172: 145.4 | Y172: 24.11276949 | Z172: 311.4 | AA172: 51.64179104 | AB172: 14.2 | AC172: 2.354892206 | AD172: 342.2 | AE172: 56.74958541 | AF172: 60.2 | AG172: 9.983416252 | AH172: 20.2 | AI172: 3.349917081 | AJ172: 11.4 | AK172: 1.890547264 | AL172: 131.8 | AM172: 21.85737977
A173: 明細部 | B173: 保険者（地区） | C173: 69 | D173: 男 | E173: 712 | F173: 209.2 | G173: 29.38202247 | H173: 376 | I173: 52.80898876 | J173: 173.8 | K173: 24.41011236 | L173: 121.4 | M173: 17.0505618 | N173: 42 | O173: 5.898876404 | P173: 226.6 | Q173: 31.8258427 | R173: 407.8 | S173: 57.2752809 | T173: 116.8 | U173: 16.40449438 | V173: 373.2 | W173: 52.41573034 | X173: 153.4 | Y173: 21.54494382 | Z173: 354.4 | AA173: 49.7752809 | AB173: 14.6 | AC173: 2.050561798 | AD173: 433 | AE173: 60.81460674 | AF173: 61 | AG173: 8.56741573 | AH173: 25.8 | AI173: 3.623595506 | AJ173: 12.2 | AK173: 1.713483146 | AL173: 164.4 | AM173: 23.08988764
A174: 明細部 | B174: 保険者（地区） | C174: 70 | D174: 男 | E174: 815.4 | F174: 222.6 | G174: 27.29948492 | H174: 426.8 | I174: 52.34240863 | J174: 217.2 | K174: 26.63723326 | L174: 128.6 | M174: 15.77140054 | N174: 55 | O174: 6.745155752 | P174: 268.8 | Q174: 32.96541575 | R174: 484.8 | S174: 59.45548197 | T174: 126.2 | U174: 15.47706647 | V174: 437.6 | W174: 53.66691195 | X174: 167.4 | Y174: 20.52980132 | Z174: 391.4 | AA174: 48.00098111 | AB174: 19.6 | AC174: 2.403728232 | AD174: 517.2 | AE174: 63.42899191 | AF174: 74.8 | AG174: 9.173411822 | AH174: 35.2 | AI174: 4.316899681 | AJ174: 10.4 | AK174: 1.275447633 | AL174: 193.4 | AM174: 23.71842041
A175: 明細部 | B175: 保険者（地区） | C175: 71 | D175: 男 | E175: 841.8 | F175: 240.4 | G175: 28.55785222 | H175: 446.8 | I175: 53.07674032 | J175: 218.4 | K175: 25.94440485 | L175: 139.6 | M175: 16.58351152 | N175: 52.4 | O175: 6.224756474 | P175: 270.6 | Q175: 32.14540271 | R175: 493.6 | S175: 58.63625564 | T175: 124.6 | U175: 14.80161559 | V175: 466.4 | W175: 55.40508434 | X175: 176.6 | Y175: 20.97885483 | Z175: 384.8 | AA175: 45.71157044 | AB175: 20.8 | AC175: 2.4708957 | AD175: 507.2 | AE175: 60.25184129 | AF175: 75 | AG175: 8.909479686 | AH175: 30.6 | AI175: 3.635067712 | AJ175: 14.4 | AK175: 1.7106201 | AL175: 208.4 | AM175: 24.75647422
A176: 明細部 | B176: 保険者（地区） | C176: 72 | D176: 男 | E176: 629.8 | F176: 171.6 | G176: 27.246745 | H176: 347 | I176: 55.09685614 | J176: 156.6 | K176: 24.86503652 | L176: 98.2 | M176: 15.59225151 | N176: 41.6 | O176: 6.605271515 | P176: 216 | Q176: 34.2966021 | R176: 410.8 | S176: 65.22705621 | T176: 99.6 | U176: 15.8145443 | V176: 355.8 | W176: 56.49412512 | X176: 120.6 | Y176: 19.14893617 | Z176: 295.8 | AA176: 46.9672912 | AB176: 18.2 | AC176: 2.889806288 | AD176: 401.4 | AE176: 63.73451889 | AF176: 56 | AG176: 8.891711654 | AH176: 25.8 | AI176: 4.096538584 | AJ176: 9 | AK176: 1.429025087 | AL176: 169.8 | AM176: 26.96093998
A177: 明細部 | B177: 保険者（地区） | C177: 73 | D177: 男 | E177: 445.2 | F177: 120.6 | G177: 27.08894879 | H177: 227 | I177: 50.98831986 | J177: 92.6 | K177: 20.79964061 | L177: 68.2 | M177: 15.31895777 | N177: 30.4 | O177: 6.828391734 | P177: 147.6 | Q177: 33.15363881 | R177: 294 | S177: 66.03773585 | T177: 66.8 | U177: 15.00449236 | V177: 249.8 | W177: 56.10961366 | X177: 77.6 | Y177: 17.43036837 | Z177: 207.2 | AA177: 46.5408805 | AB177: 12.4 | AC177: 2.785265049 | AD177: 291.8 | AE177: 65.54357592 | AF177: 34.8 | AG177: 7.81671159 | AH177: 18 | AI177: 4.043126685 | AJ177: 6.2 | AK177: 1.392632525 | AL177: 130.4 | AM177: 29.29020665
A178: 明細部 | B178: 保険者（地区） | C178: 74 | D178: 男 | E178: 613.2 | F178: 140.4 | G178: 22.8962818 | H178: 306.8 | I178: 50.03261579 | J178: 130.4 | K178: 21.2654925 | L178: 82.4 | M178: 13.43770385 | N178: 32.8 | O178: 5.348988911 | P178: 203 | Q178: 33.10502283 | R178: 379.2 | S178: 61.83953033 | T178: 84.8 | U178: 13.82909328 | V178: 335.4 | W178: 54.69667319 | X178: 91.8 | Y178: 14.97064579 | Z178: 264 | AA178: 43.05283757 | AB178: 16 | AC178: 2.609262883 | AD178: 362.2 | AE178: 59.06718852 | AF178: 40.4 | AG178: 6.58838878 | AH178: 21.8 | AI178: 3.555120678 | AJ178: 8.8 | AK178: 1.435094586 | AL178: 162.6 | AM178: 26.51663405
A179: 明細部 | B179: 保険者（地区） | C179: 40 | D179: 女 | E179: 56.2 | F179: 10.4 | G179: 18.50533808 | H179: 6.8 | I179: 12.09964413 | J179: 3.6 | K179: 6.40569395 | L179: 2.2 | M179: 3.914590747 | N179: 1.6 | O179: 2.846975089 | P179: 1 | Q179: 1.779359431 | R179: 10.4 | S179: 18.50533808 | T179: 0.6 | U179: 1.067615658 | V179: 5.6 | W179: 9.964412811 | X179: 3 | Y179: 5.338078292 | Z179: 23.8 | AA179: 42.34875445 | AB179: 0.2 | AC179: 0.3558718861 | AD179: 28.8 | AE179: 51.2455516 | AF179: 3.4 | AG179: 6.049822064 | AH179: 0 | AI179: 0 | AJ179: 0.2 | AK179: 0.3558718861 | AL179: 1.2 | AM179: 2.135231317
A180: 明細部 | B180: 保険者（地区） | C180: 41 | D180: 女 | E180: 51.6 | F180: 9.2 | G180: 17.82945736 | H180: 5 | I180: 9.689922481 | J180: 4.8 | K180: 9.302325581 | L180: 1.6 | M180: 3.100775194 | N180: 0.4 | O180: 0.7751937984 | P180: 1.6 | Q180: 3.100775194 | R180: 6 | S180: 11.62790698 | T180: 0.6 | U180: 1.162790698 | V180: 4.4 | W180: 8.527131783 | X180: 1.8 | Y180: 3.488372093 | Z180: 13.6 | AA180: 26.35658915 | AB180: 0 | AC180: 0 | AD180: 24.6 | AE180: 47.6744186 | AF180: 4.6 | AG180: 8.914728682 | AH180: 0.2 | AI180: 0.3875968992 | AJ180: 0.4 | AK180: 0.7751937984 | AL180: 0.8 | AM180: 1.550387597
A181: 明細部 | B181: 保険者（地区） | C181: 42 | D181: 女 | E181: 53 | F181: 8.6 | G181: 16.22641509 | H181: 7 | I181: 13.20754717 | J181: 4.4 | K181: 8.301886792 | L181: 2.4 | M181: 4.528301887 | N181: 0.2 | O181: 0.3773584906 | P181: 3 | Q181: 5.660377358 | R181: 11.8 | S181: 22.26415094 | T181: 0 | U181: 0 | V181: 7.6 | W181: 14.33962264 | X181: 5.4 | Y181: 10.18867925 | Z181: 15.8 | AA181: 29.81132075 | AB181: 0 | AC181: 0 | AD181: 26.6 | AE181: 50.18867925 | AF181: 4 | AG181: 7.547169811 | AH181: 0.2 | AI181: 0.3773584906 | AJ181: 0 | AK181: 0 | AL181: 1 | AM181: 1.886792453
A182: 明細部 | B182: 保険者（地区） | C182: 43 | D182: 女 | E182: 56 | F182: 10.2 | G182: 18.21428571 | H182: 5.6 | I182: 10 | J182: 3.4 | K182: 6.071428571 | L182: 1.8 | M182: 3.214285714 | N182: 1 | O182: 1.785714286 | P182: 4 | Q182: 7.142857143 | R182: 10.2 | S182: 18.21428571 | T182: 0.4 | U182: 0.7142857143 | V182: 6.2 | W182: 11.07142857 | X182: 4.4 | Y182: 7.857142857 | Z182: 20 | AA182: 35.71428571 | AB182: 0 | AC182: 0 | AD182: 27.2 | AE182: 48.57142857 | AF182: 3.6 | AG182: 6.428571429 | AH182: 0.4 | AI182: 0.7142857143 | AJ182: 0.6 | AK182: 1.071428571 | AL182: 1 | AM182: 1.785714286
A183: 明細部 | B183: 保険者（地区） | C183: 44 | D183: 女 | E183: 58.6 | F183: 8.8 | G183: 15.01706485 | H183: 6.4 | I183: 10.92150171 | J183: 3.2 | K183: 5.460750853 | L183: 4.4 | M183: 7.508532423 | N183: 0.2 | O183: 0.3412969283 | P183: 1.8 | Q183: 3.071672355 | R183: 10 | S183: 17.06484642 | T183: 0.2 | U183: 0.3412969283 | V183: 7 | W183: 11.94539249 | X183: 4.4 | Y183: 7.508532423 | Z183: 21 | AA183: 35.83617747 | AB183: 0 | AC183: 0 | AD183: 29 | AE183: 49.48805461 | AF183: 2.6 | AG183: 4.436860068 | AH183: 1 | AI183: 1.706484642 | AJ183: 0.2 | AK183: 0.3412969283 | AL183: 1 | AM183: 1.706484642
A184: 明細部 | B184: 保険者（地区） | C184: 45 | D184: 女 | E184: 72.4 | F184: 8.8 | G184: 12.15469613 | H184: 6.8 | I184: 9.392265193 | J184: 4.8 | K184: 6.629834254 | L184: 4.6 | M184: 6.35359116 | N184: 1 | O184: 1.38121547 | P184: 3.4 | Q184: 4.696132597 | R184: 12.2 | S184: 16.85082873 | T184: 1 | U184: 1.38121547 | V184: 10 | W184: 13.8121547 | X184: 5.4 | Y184: 7.458563536 | Z184: 31.4 | AA184: 43.37016575 | AB184: 0.2 | AC184: 0.2762430939 | AD184: 38.8 | AE184: 53.59116022 | AF184: 4.8 | AG184: 6.629834254 | AH184: 0 | AI184: 0 | AJ184: 0.2 | AK184: 0.2762430939 | AL184: 1.8 | AM184: 2.486187845
A185: 明細部 | B185: 保険者（地区） | C185: 46 | D185: 女 | E185: 71.8 | F185: 14 | G185: 19.49860724 | H185: 10 | I185: 13.9275766 | J185: 8.2 | K185: 11.42061281 | L185: 6 | M185: 8.356545961 | N185: 1.8 | O185: 2.506963788 | P185: 5 | Q185: 6.963788301 | R185: 17.2 | S185: 23.95543175 | T185: 0.4 | U185: 0.5571030641 | V185: 12.2 | W185: 16.99164345 | X185: 9.2 | Y185: 12.81337047 | Z185: 31.8 | AA185: 44.28969359 | AB185: 0 | AC185: 0 | AD185: 39.2 | AE185: 54.59610028 | AF185: 4.8 | AG185: 6.685236769 | AH185: 1.2 | AI185: 1.671309192 | AJ185: 0.8 | AK185: 1.114206128 | AL185: 1.2 | AM185: 1.671309192
A186: 明細部 | B186: 保険者（地区） | C186: 47 | D186: 女 | E186: 73 | F186: 12.4 | G186: 16.98630137 | H186: 8.2 | I186: 11.23287671 | J186: 7.4 | K186: 10.1369863 | L186: 7.6 | M186: 10.4109589 | N186: 0.4 | O186: 0.5479452055 | P186: 4.6 | Q186: 6.301369863 | R186: 19 | S186: 26.02739726 | T186: 0.2 | U186: 0.2739726027 | V186: 11.2 | W186: 15.34246575 | X186: 7.6 | Y186: 10.4109589 | Z186: 31.4 | AA186: 43.01369863 | AB186: 0 | AC186: 0 | AD186: 35.8 | AE186: 49.04109589 | AF186: 5.8 | AG186: 7.945205479 | AH186: 0.2 | AI186: 0.2739726027 | AJ186: 1.2 | AK186: 1.643835616 | AL186: 2 | AM186: 2.739726027
A187: 明細部 | B187: 保険者（地区） | C187: 48 | D187: 女 | E187: 71.2 | F187: 13.6 | G187: 19.1011236 | H187: 10 | I187: 14.04494382 | J187: 4.2 | K187: 5.898876404 | L187: 4.6 | M187: 6.460674157 | N187: 0.2 | O187: 0.2808988764 | P187: 4.6 | Q187: 6.460674157 | R187: 17.2 | S187: 24.15730337 | T187: 0.2 | U187: 0.2808988764 | V187: 10.8 | W187: 15.16853933 | X187: 4.8 | Y187: 6.741573034 | Z187: 33.8 | AA187: 47.47191011 | AB187: 0 | AC187: 0 | AD187: 41 | AE187: 57.58426966 | AF187: 4.6 | AG187: 6.460674157 | AH187: 1 | AI187: 1.404494382 | AJ187: 1.2 | AK187: 1.685393258 | AL187: 3 | AM187: 4.213483146
A188: 明細部 | B188: 保険者（地区） | C188: 49 | D188: 女 | E188: 60 | F188: 11.8 | G188: 19.66666667 | H188: 9 | I188: 15 | J188: 4.6 | K188: 7.666666667 | L188: 3.8 | M188: 6.333333333 | N188: 0.8 | O188: 1.333333333 | P188: 3.6 | Q188: 6 | R188: 18 | S188: 30 | T188: 0.4 | U188: 0.6666666667 | V188: 11.6 | W188: 19.33333333 | X188: 7 | Y188: 11.66666667 | Z188: 33.4 | AA188: 55.66666667 | AB188: 0.2 | AC188: 0.3333333333 | AD188: 31.8 | AE188: 53 | AF188: 4.4 | AG188: 7.333333333 | AH188: 0.4 | AI188: 0.6666666667 | AJ188: 1 | AK188: 1.666666667 | AL188: 2.6 | AM188: 4.333333333
A189: 明細部 | B189: 保険者（地区） | C189: 50 | D189: 女 | E189: 79.8 | F189: 13.4 | G189: 16.79197995 | H189: 11.6 | I189: 14.53634085 | J189: 6.2 | K189: 7.769423559 | L189: 6.8 | M189: 8.521303258 | N189: 1.6 | O189: 2.005012531 | P189: 7 | Q189: 8.771929825 | R189: 21 | S189: 26.31578947 | T189: 1.4 | U189: 1.754385965 | V189: 16.6 | W189: 20.80200501 | X189: 10 | Y189: 12.53132832 | Z189: 42.8 | AA189: 53.63408521 | AB189: 0.4 | AC189: 0.5012531328 | AD189: 43.8 | AE189: 54.88721805 | AF189: 6.6 | AG189: 8.270676692 | AH189: 0.4 | AI189: 0.5012531328 | AJ189: 0.8 | AK189: 1.002506266 | AL189: 2.8 | AM189: 3.50877193
A190: 明細部 | B190: 保険者（地区） | C190: 51 | D190: 女 | E190: 75.8 | F190: 13.2 | G190: 17.41424802 | H190: 8.2 | I190: 10.81794195 | J190: 8.2 | K190: 10.81794195 | L190: 7.4 | M190: 9.762532982 | N190: 0.6 | O190: 0.7915567282 | P190: 7.2 | Q190: 9.498680739 | R190: 24 | S190: 31.66226913 | T190: 0.8 | U190: 1.055408971 | V190: 15.6 | W190: 20.58047493 | X190: 8.8 | Y190: 11.60949868 | Z190: 40.2 | AA190: 53.03430079 | AB190: 0.2 | AC190: 0.2638522427 | AD190: 44 | AE190: 58.0474934 | AF190: 4.6 | AG190: 6.068601583 | AH190: 1 | AI190: 1.319261214 | AJ190: 1.2 | AK190: 1.583113456 | AL190: 2.2 | AM190: 2.90237467
A191: 明細部 | B191: 保険者（地区） | C191: 52 | D191: 女 | E191: 66 | F191: 11.6 | G191: 17.57575758 | H191: 7.4 | I191: 11.21212121 | J191: 7.2 | K191: 10.90909091 | L191: 8.4 | M191: 12.72727273 | N191: 0.8 | O191: 1.212121212 | P191: 7.8 | Q191: 11.81818182 | R191: 19.2 | S191: 29.09090909 | T191: 1.4 | U191: 2.121212121 | V191: 15.8 | W191: 23.93939394 | X191: 9.2 | Y191: 13.93939394 | Z191: 39.2 | AA191: 59.39393939 | AB191: 0 | AC191: 0 | AD191: 36 | AE191: 54.54545455 | AF191: 4 | AG191: 6.060606061 | AH191: 0.8 | AI191: 1.212121212 | AJ191: 1.4 | AK191: 2.121212121 | AL191: 1.2 | AM191: 1.818181818
A192: 明細部 | B192: 保険者（地区） | C192: 53 | D192: 女 | E192: 82.6 | F192: 14.4 | G192: 17.43341404 | H192: 11.2 | I192: 13.55932203 | J192: 10.8 | K192: 13.07506053 | L192: 10 | M192: 12.10653753 | N192: 1.2 | O192: 1.452784504 | P192: 8.6 | Q192: 10.41162228 | R192: 32.4 | S192: 39.2251816 | T192: 2 | U192: 2.421307506 | V192: 20.8 | W192: 25.18159806 | X192: 9.6 | Y192: 11.62227603 | Z192: 51.2 | AA192: 61.98547215 | AB192: 0 | AC192: 0 | AD192: 43.8 | AE192: 53.02663438 | AF192: 7.4 | AG192: 8.958837772 | AH192: 0.2 | AI192: 0.2421307506 | AJ192: 2 | AK192: 2.421307506 | AL192: 3 | AM192: 3.631961259
A193: 明細部 | B193: 保険者（地区） | C193: 54 | D193: 女 | E193: 92 | F193: 14.6 | G193: 15.86956522 | H193: 13.2 | I193: 14.34782609 | J193: 13.8 | K193: 15 | L193: 10 | M193: 10.86956522 | N193: 0.4 | O193: 0.4347826087 | P193: 7.2 | Q193: 7.826086957 | R193: 32.6 | S193: 35.43478261 | T193: 1.6 | U193: 1.739130435 | V193: 24 | W193: 26.08695652 | X193: 12.2 | Y193: 13.26086957 | Z193: 56 | AA193: 60.86956522 | AB193: 0 | AC193: 0 | AD193: 49.2 | AE193: 53.47826087 | AF193: 5 | AG193: 5.434782609 | AH193: 1.2 | AI193: 1.304347826 | AJ193: 2 | AK193: 2.173913043 | AL193: 4.4 | AM193: 4.782608696
A194: 明細部 | B194: 保険者（地区） | C194: 55 | D194: 女 | E194: 101.4 | F194: 17 | G194: 16.765286 | H194: 12.8 | I194: 12.62327416 | J194: 20 | K194: 19.72386588 | L194: 11.8 | M194: 11.63708087 | N194: 1.2 | O194: 1.183431953 | P194: 8.8 | Q194: 8.678500986 | R194: 38.8 | S194: 38.2642998 | T194: 2.2 | U194: 2.169625247 | V194: 30.4 | W194: 29.98027613 | X194: 14 | Y194: 13.80670611 | Z194: 71 | AA194: 70.01972387 | AB194: 0.2 | AC194: 0.1972386588 | AD194: 51.2 | AE194: 50.49309665 | AF194: 7.2 | AG194: 7.100591716 | AH194: 2.4 | AI194: 2.366863905 | AJ194: 3.4 | AK194: 3.353057199 | AL194: 6.6 | AM194: 6.50887574
A195: 明細部 | B195: 保険者（地区） | C195: 56 | D195: 女 | E195: 102.2 | F195: 16.8 | G195: 16.43835616 | H195: 12.8 | I195: 12.52446184 | J195: 17.8 | K195: 17.41682975 | L195: 12.8 | M195: 12.52446184 | N195: 0.2 | O195: 0.1956947162 | P195: 10.8 | Q195: 10.56751468 | R195: 40.4 | S195: 39.53033268 | T195: 1 | U195: 0.9784735812 | V195: 30.8 | W195: 30.1369863 | X195: 12.8 | Y195: 12.52446184 | Z195: 64.6 | AA195: 63.20939335 | AB195: 0 | AC195: 0 | AD195: 55.2 | AE195: 54.01174168 | AF195: 6 | AG195: 5.870841487 | AH195: 1.6 | AI195: 1.56555773 | AJ195: 2.6 | AK195: 2.544031311 | AL195: 3.4 | AM195: 3.326810176
A196: 明細部 | B196: 保険者（地区） | C196: 57 | D196: 女 | E196: 121 | F196: 18.2 | G196: 15.04132231 | H196: 13.8 | I196: 11.40495868 | J196: 15.4 | K196: 12.72727273 | L196: 11 | M196: 9.090909091 | N196: 0.8 | O196: 0.6611570248 | P196: 13 | Q196: 10.74380165 | R196: 47 | S196: 38.84297521 | T196: 2.4 | U196: 1.983471074 | V196: 32.6 | W196: 26.94214876 | X196: 17.4 | Y196: 14.38016529 | Z196: 73.6 | AA196: 60.82644628 | AB196: 0.2 | AC196: 0.1652892562 | AD196: 59.4 | AE196: 49.09090909 | AF196: 10 | AG196: 8.26446281 | AH196: 1.2 | AI196: 0.9917355372 | AJ196: 3.6 | AK196: 2.975206612 | AL196: 6.6 | AM196: 5.454545455
A197: 明細部 | B197: 保険者（地区） | C197: 58 | D197: 女 | E197: 125.8 | F197: 20.8 | G197: 16.53418124 | H197: 16.8 | I197: 13.354531 | J197: 16.2 | K197: 12.87758347 | L197: 12.8 | M197: 10.17488076 | N197: 1.6 | O197: 1.271860095 | P197: 13.4 | Q197: 10.6518283 | R197: 59.4 | S197: 47.21780604 | T197: 2.2 | U197: 1.748807631 | V197: 38.8 | W197: 30.84260731 | X197: 21.8 | Y197: 17.3290938 | Z197: 84.4 | AA197: 67.09062003 | AB197: 0.2 | AC197: 0.1589825119 | AD197: 72.4 | AE197: 57.55166932 | AF197: 9.2 | AG197: 7.313195548 | AH197: 2.8 | AI197: 2.225755167 | AJ197: 4 | AK197: 3.179650238 | AL197: 8.8 | AM197: 6.995230525
A198: 明細部 | B198: 保険者（地区） | C198: 59 | D198: 女 | E198: 151.2 | F198: 29.2 | G198: 19.31216931 | H198: 28.6 | I198: 18.91534392 | J198: 20.4 | K198: 13.49206349 | L198: 16.8 | M198: 11.11111111 | N198: 0.2 | O198: 0.1322751323 | P198: 23 | Q198: 15.21164021 | R198: 68.8 | S198: 45.5026455 | T198: 1.2 | U198: 0.7936507937 | V198: 57.2 | W198: 37.83068783 | X198: 26.6 | Y198: 17.59259259 | Z198: 101.8 | AA198: 67.32804233 | AB198: 0 | AC198: 0 | AD198: 77.8 | AE198: 51.45502646 | AF198: 14.4 | AG198: 9.523809524 | AH198: 3.2 | AI198: 2.116402116 | AJ198: 2.8 | AK198: 1.851851852 | AL198: 9.4 | AM198: 6.216931217
A199: 明細部 | B199: 保険者（地区） | C199: 60 | D199: 女 | E199: 197.8 | F199: 33.6 | G199: 16.98685541 | H199: 30.4 | I199: 15.36905966 | J199: 23 | K199: 11.62790698 | L199: 17.4 | M199: 8.796764408 | N199: 3.2 | O199: 1.617795753 | P199: 27.4 | Q199: 13.85237614 | R199: 93.4 | S199: 47.21941355 | T199: 2 | U199: 1.011122346 | V199: 64.8 | W199: 32.760364 | X199: 29.2 | Y199: 14.76238625 | Z199: 137.4 | AA199: 69.46410516 | AB199: 0 | AC199: 0 | AD199: 108.6 | AE199: 54.90394338 | AF199: 14.4 | AG199: 7.28008089 | AH199: 1.6 | AI199: 0.8088978766 | AJ199: 6.2 | AK199: 3.134479272 | AL199: 19.4 | AM199: 9.807886754
A200: 明細部 | B200: 保険者（地区） | C200: 61 | D200: 女 | E200: 215.8 | F200: 41.2 | G200: 19.09175162 | H200: 37.2 | I200: 17.2381835 | J200: 34.8 | K200: 16.12604263 | L200: 27.2 | M200: 12.60426321 | N200: 2.4 | O200: 1.112140871 | P200: 29.8 | Q200: 13.80908248 | R200: 109 | S200: 50.50973123 | T200: 3 | U200: 1.390176089 | V200: 75 | W200: 34.75440222 | X200: 32.6 | Y200: 15.10658017 | Z200: 151 | AA200: 69.97219648 | AB200: 0.2 | AC200: 0.09267840593 | AD200: 121.6 | AE200: 56.34847081 | AF200: 16.4 | AG200: 7.599629286 | AH200: 5.2 | AI200: 2.409638554 | AJ200: 5 | AK200: 2.316960148 | AL200: 19.8 | AM200: 9.175162187
... 13 more rows

Sheet CSVデータ2
A1: レコード種別 | B1: 保険者番号 | C1: 保険者名 | D1: 地区名 | E1: 作成年月 | F1: 県計・国計
A2: 共通部
A3: レコード種別 | B3: 集計単位 | C3: 年齢 | D3: 性別 | E3: 受診者 | F3: ＢＭＩ人数 | G3: ＢＭＩ割合 | H3: 腹囲人数 | I3: 腹囲割合 | J3: 中性脂肪人数 | K3: 中性脂肪割合 | L3: ＡＬＴ（ＧＰＴ）人数 | M3: ＡＬＴ（ＧＰＴ）割合 | N3: ＨＤＬコレステロール人数 | O3: ＨＤＬコレステロール割合 | P3: 空腹時血糖人数 | Q3: 空腹時血糖割合 | R3: ＨｂＡ１ｃ人数 | S3: ＨｂＡ１ｃ割合 | T3: 尿酸人数 | U3: 尿酸割合 | V3: 収縮期血圧人数 | W3: 収縮期血圧割合 | X3: 拡張期血圧人数 | Y3: 拡張期血圧割合 | Z3: ＬＤＬコレステロール人数 | AA3: ＬＤＬコレステロール割合 | AB3: 血清クレアチニン人数 | AC3: 血清クレアチニン割合 | AD3: 心電図人数 | AE3: 心電図割合 | AF3: 眼底検査人数 | AG3: 眼底検査割合 | AH3: 随時血糖人数 | AI3: 随時血糖割合 | AJ3: ｎｏｎ－ＨＤＬコレステロール人数 | AK3: ｎｏｎ－ＨＤＬコレステロール割合 | AL3: ｅＧＦＲ人数 | AM3: ｅＧＦＲ割合
A4: 明細部 | B4: 国 | C4: 40 | D4: 男
A5: 明細部 | B5: 国 | C5: 41 | D5: 男
A6: 明細部 | B6: 国 | C6: 42 | D6: 男
A7: 明細部 | B7: 国 | C7: 43 | D7: 男
A8: 明細部 | B8: 国 | C8: 44 | D8: 男
A9: 明細部 | B9: 国 | C9: 45 | D9: 男
A10: 明細部 | B10: 国 | C10: 46 | D10: 男
A11: 明細部 | B11: 国 | C11: 47 | D11: 男
A12: 明細部 | B12: 国 | C12: 48 | D12: 男
A13: 明細部 | B13: 国 | C13: 49 | D13: 男
A14: 明細部 | B14: 国 | C14: 50 | D14: 男
A15: 明細部 | B15: 国 | C15: 51 | D15: 男
A16: 明細部 | B16: 国 | C16: 52 | D16: 男
A17: 明細部 | B17: 国 | C17: 53 | D17: 男
A18: 明細部 | B18: 国 | C18: 54 | D18: 男
A19: 明細部 | B19: 国 | C19: 55 | D19: 男
A20: 明細部 | B20: 国 | C20: 56 | D20: 男
A21: 明細部 | B21: 国 | C21: 57 | D21: 男
A22: 明細部 | B22: 国 | C22: 58 | D22: 男
A23: 明細部 | B23: 国 | C23: 59 | D23: 男
A24: 明細部 | B24: 国 | C24: 60 | D24: 男
A25: 明細部 | B25: 国 | C25: 61 | D25: 男
A26: 明細部 | B26: 国 | C26: 62 | D26: 男
A27: 明細部 | B27: 国 | C27: 63 | D27: 男
A28: 明細部 | B28: 国 | C28: 64 | D28: 男
A29: 明細部 | B29: 国 | C29: 65 | D29: 男
A30: 明細部 | B30: 国 | C30: 66 | D30: 男
A31: 明細部 | B31: 国 | C31: 67 | D31: 男
A32: 明細部 | B32: 国 | C32: 68 | D32: 男
A33: 明細部 | B33: 国 | C33: 69 | D33: 男
A34: 明細部 | B34: 国 | C34: 70 | D34: 男
A35: 明細部 | B35: 国 | C35: 71 | D35: 男
A36: 明細部 | B36: 国 | C36: 72 | D36: 男
A37: 明細部 | B37: 国 | C37: 73 | D37: 男
A38: 明細部 | B38: 国 | C38: 74 | D38: 男
A39: 明細部 | B39: 国 | C39: 40 | D39: 女
A40: 明細部 | B40: 国 | C40: 41 | D40: 女
A41: 明細部 | B41: 国 | C41: 42 | D41: 女
A42: 明細部 | B42: 国 | C42: 43 | D42: 女
A43: 明細部 | B43: 国 | C43: 44 | D43: 女
A44: 明細部 | B44: 国 | C44: 45 | D44: 女
A45: 明細部 | B45: 国 | C45: 46 | D45: 女
A46: 明細部 | B46: 国 | C46: 47 | D46: 女
A47: 明細部 | B47: 国 | C47: 48 | D47: 女
A48: 明細部 | B48: 国 | C48: 49 | D48: 女
A49: 明細部 | B49: 国 | C49: 50 | D49: 女
A50: 明細部 | B50: 国 | C50: 51 | D50: 女
A51: 明細部 | B51: 国 | C51: 52 | D51: 女
A52: 明細部 | B52: 国 | C52: 53 | D52: 女
A53: 明細部 | B53: 国 | C53: 54 | D53: 女
A54: 明細部 | B54: 国 | C54: 55 | D54: 女
A55: 明細部 | B55: 国 | C55: 56 | D55: 女
A56: 明細部 | B56: 国 | C56: 57 | D56: 女
A57: 明細部 | B57: 国 | C57: 58 | D57: 女
A58: 明細部 | B58: 国 | C58: 59 | D58: 女
A59: 明細部 | B59: 国 | C59: 60 | D59: 女
A60: 明細部 | B60: 国 | C60: 61 | D60: 女
A61: 明細部 | B61: 国 | C61: 62 | D61: 女
A62: 明細部 | B62: 国 | C62: 63 | D62: 女
A63: 明細部 | B63: 国 | C63: 64 | D63: 女
A64: 明細部 | B64: 国 | C64: 65 | D64: 女
A65: 明細部 | B65: 国 | C65: 66 | D65: 女
A66: 明細部 | B66: 国 | C66: 67 | D66: 女
A67: 明細部 | B67: 国 | C67: 68 | D67: 女
A68: 明細部 | B68: 国 | C68: 69 | D68: 女
A69: 明細部 | B69: 国 | C69: 70 | D69: 女
A70: 明細部 | B70: 国 | C70: 71 | D70: 女
A71: 明細部 | B71: 国 | C71: 72 | D71: 女
A72: 明細部 | B72: 国 | C72: 73 | D72: 女
A73: 明細部 | B73: 国 | C73: 74 | D73: 女
A74: 明細部 | B74: 県 | C74: 40 | D74: 男
A75: 明細部 | B75: 県 | C75: 41 | D75: 男
A76: 明細部 | B76: 県 | C76: 42 | D76: 男
A77: 明細部 | B77: 県 | C77: 43 | D77: 男
A78: 明細部 | B78: 県 | C78: 44 | D78: 男
A79: 明細部 | B79: 県 | C79: 45 | D79: 男
A80: 明細部 | B80: 県 | C80: 46 | D80: 男
A81: 明細部 | B81: 県 | C81: 47 | D81: 男
A82: 明細部 | B82: 県 | C82: 48 | D82: 男
A83: 明細部 | B83: 県 | C83: 49 | D83: 男
A84: 明細部 | B84: 県 | C84: 50 | D84: 男
A85: 明細部 | B85: 県 | C85: 51 | D85: 男
A86: 明細部 | B86: 県 | C86: 52 | D86: 男
A87: 明細部 | B87: 県 | C87: 53 | D87: 男
A88: 明細部 | B88: 県 | C88: 54 | D88: 男
A89: 明細部 | B89: 県 | C89: 55 | D89: 男
A90: 明細部 | B90: 県 | C90: 56 | D90: 男
A91: 明細部 | B91: 県 | C91: 57 | D91: 男
A92: 明細部 | B92: 県 | C92: 58 | D92: 男
A93: 明細部 | B93: 県 | C93: 59 | D93: 男
A94: 明細部 | B94: 県 | C94: 60 | D94: 男
A95: 明細部 | B95: 県 | C95: 61 | D95: 男
A96: 明細部 | B96: 県 | C96: 62 | D96: 男
A97: 明細部 | B97: 県 | C97: 63 | D97: 男
A98: 明細部 | B98: 県 | C98: 64 | D98: 男
A99: 明細部 | B99: 県 | C99: 65 | D99: 男
A100: 明細部 | B100: 県 | C100: 66 | D100: 男
A101: 明細部 | B101: 県 | C101: 67 | D101: 男
A102: 明細部 | B102: 県 | C102: 68 | D102: 男
A103: 明細部 | B103: 県 | C103: 69 | D103: 男
A104: 明細部 | B104: 県 | C104: 70 | D104: 男
A105: 明細部 | B105: 県 | C105: 71 | D105: 男
A106: 明細部 | B106: 県 | C106: 72 | D106: 男
A107: 明細部 | B107: 県 | C107: 73 | D107: 男
A108: 明細部 | B108: 県 | C108: 74 | D108: 男
A109: 明細部 | B109: 県 | C109: 40 | D109: 女
A110: 明細部 | B110: 県 | C110: 41 | D110: 女
A111: 明細部 | B111: 県 | C111: 42 | D111: 女
A112: 明細部 | B112: 県 | C112: 43 | D112: 女
A113: 明細部 | B113: 県 | C113: 44 | D113: 女
A114: 明細部 | B114: 県 | C114: 45 | D114: 女
A115: 明細部 | B115: 県 | C115: 46 | D115: 女
A116: 明細部 | B116: 県 | C116: 47 | D116: 女
A117: 明細部 | B117: 県 | C117: 48 | D117: 女
A118: 明細部 | B118: 県 | C118: 49 | D118: 女
A119: 明細部 | B119: 県 | C119: 50 | D119: 女
A120: 明細部 | B120: 県 | C120: 51 | D120: 女
A121: 明細部 | B121: 県 | C121: 52 | D121: 女
A122: 明細部 | B122: 県 | C122: 53 | D122: 女
A123: 明細部 | B123: 県 | C123: 54 | D123: 女
A124: 明細部 | B124: 県 | C124: 55 | D124: 女
A125: 明細部 | B125: 県 | C125: 56 | D125: 女
A126: 明細部 | B126: 県 | C126: 57 | D126: 女
A127: 明細部 | B127: 県 | C127: 58 | D127: 女
A128: 明細部 | B128: 県 | C128: 59 | D128: 女
A129: 明細部 | B129: 県 | C129: 60 | D129: 女
A130: 明細部 | B130: 県 | C130: 61 | D130: 女
A131: 明細部 | B131: 県 | C131: 62 | D131: 女
A132: 明細部 | B132: 県 | C132: 63 | D132: 女
A133: 明細部 | B133: 県 | C133: 64 | D133: 女
A134: 明細部 | B134: 県 | C134: 65 | D134: 女
A135: 明細部 | B135: 県 | C135: 66 | D135: 女
A136: 明細部 | B136: 県 | C136: 67 | D136: 女
A137: 明細部 | B137: 県 | C137: 68 | D137: 女
A138: 明細部 | B138: 県 | C138: 69 | D138: 女
A139: 明細部 | B139: 県 | C139: 70 | D139: 女
A140: 明細部 | B140: 県 | C140: 71 | D140: 女
A141: 明細部 | B141: 県 | C141: 72 | D141: 女
A142: 明細部 | B142: 県 | C142: 73 | D142: 女
A143: 明細部 | B143: 県 | C143: 74 | D143: 女
A144: 明細部 | B144: 保険者（地区） | C144: 40 | D144: 男
A145: 明細部 | B145: 保険者（地区） | C145: 41 | D145: 男
A146: 明細部 | B146: 保険者（地区） | C146: 42 | D146: 男
A147: 明細部 | B147: 保険者（地区） | C147: 43 | D147: 男
A148: 明細部 | B148: 保険者（地区） | C148: 44 | D148: 男
A149: 明細部 | B149: 保険者（地区） | C149: 45 | D149: 男
A150: 明細部 | B150: 保険者（地区） | C150: 46 | D150: 男
A151: 明細部 | B151: 保険者（地区） | C151: 47 | D151: 男
A152: 明細部 | B152: 保険者（地区） | C152: 48 | D152: 男
A153: 明細部 | B153: 保険者（地区） | C153: 49 | D153: 男
A154: 明細部 | B154: 保険者（地区） | C154: 50 | D154: 男
A155: 明細部 | B155: 保険者（地区） | C155: 51 | D155: 男
A156: 明細部 | B156: 保険者（地区） | C156: 52 | D156: 男
A157: 明細部 | B157: 保険者（地区） | C157: 53 | D157: 男
A158: 明細部 | B158: 保険者（地区） | C158: 54 | D158: 男
A159: 明細部 | B159: 保険者（地区） | C159: 55 | D159: 男
A160: 明細部 | B160: 保険者（地区） | C160: 56 | D160: 男
A161: 明細部 | B161: 保険者（地区） | C161: 57 | D161: 男
A162: 明細部 | B162: 保険者（地区） | C162: 58 | D162: 男
A163: 明細部 | B163: 保険者（地区） | C163: 59 | D163: 男
A164: 明細部 | B164: 保険者（地区） | C164: 60 | D164: 男
A165: 明細部 | B165: 保険者（地区） | C165: 61 | D165: 男
A166: 明細部 | B166: 保険者（地区） | C166: 62 | D166: 男
A167: 明細部 | B167: 保険者（地区） | C167: 63 | D167: 男
A168: 明細部 | B168: 保険者（地区） | C168: 64 | D168: 男
A169: 明細部 | B169: 保険者（地区） | C169: 65 | D169: 男
A170: 明細部 | B170: 保険者（地区） | C170: 66 | D170: 男
A171: 明細部 | B171: 保険者（地区） | C171: 67 | D171: 男
A172: 明細部 | B172: 保険者（地区） | C172: 68 | D172: 男
A173: 明細部 | B173: 保険者（地区） | C173: 69 | D173: 男
A174: 明細部 | B174: 保険者（地区） | C174: 70 | D174: 男
A175: 明細部 | B175: 保険者（地区） | C175: 71 | D175: 男
A176: 明細部 | B176: 保険者（地区） | C176: 72 | D176: 男
A177: 明細部 | B177: 保険者（地区） | C177: 73 | D177: 男
A178: 明細部 | B178: 保険者（地区） | C178: 74 | D178: 男
A179: 明細部 | B179: 保険者（地区） | C179: 40 | D179: 女
A180: 明細部 | B180: 保険者（地区） | C180: 41 | D180: 女
A181: 明細部 | B181: 保険者（地区） | C181: 42 | D181: 女
A182: 明細部 | B182: 保険者（地区） | C182: 43 | D182: 女
A183: 明細部 | B183: 保険者（地区） | C183: 44 | D183: 女
A184: 明細部 | B184: 保険者（地区） | C184: 45 | D184: 女
A185: 明細部 | B185: 保険者（地区） | C185: 46 | D185: 女
A186: 明細部 | B186: 保険者（地区） | C186: 47 | D186: 女
A187: 明細部 | B187: 保険者（地区） | C187: 48 | D187: 女
A188: 明細部 | B188: 保険者（地区） | C188: 49 | D188: 女
A189: 明細部 | B189: 保険者（地区） | C189: 50 | D189: 女
A190: 明細部 | B190: 保険者（地区） | C190: 51 | D190: 女
A191: 明細部 | B191: 保険者（地区） | C191: 52 | D191: 女
A192: 明細部 | B192: 保険者（地区） | C192: 53 | D192: 女
A193: 明細部 | B193: 保険者（地区） | C193: 54 | D193: 女
A194: 明細部 | B194: 保険者（地区） | C194: 55 | D194: 女
A195: 明細部 | B195: 保険者（地区） | C195: 56 | D195: 女
A196: 明細部 | B196: 保険者（地区） | C196: 57 | D196: 女
A197: 明細部 | B197: 保険者（地区） | C197: 58 | D197: 女
A198: 明細部 | B198: 保険者（地区） | C198: 59 | D198: 女
A199: 明細部 | B199: 保険者（地区） | C199: 60 | D199: 女
A200: 明細部 | B200: 保険者（地区） | C200: 61 | D200: 女
... 13 more rows

Sheet CSVデータ3
A1: レコード種別 | B1: 保険者番号 | C1: 保険者名 | D1: 地区名 | E1: 作成年月 | F1: 県計・国計
A2: 共通部
A3: レコード種別 | B3: 集計単位 | C3: 年齢 | D3: 性別 | E3: 受診者 | F3: ＢＭＩ人数 | G3: ＢＭＩ割合 | H3: 腹囲人数 | I3: 腹囲割合 | J3: 中性脂肪人数 | K3: 中性脂肪割合 | L3: ＡＬＴ（ＧＰＴ）人数 | M3: ＡＬＴ（ＧＰＴ）割合 | N3: ＨＤＬコレステロール人数 | O3: ＨＤＬコレステロール割合 | P3: 空腹時血糖人数 | Q3: 空腹時血糖割合 | R3: ＨｂＡ１ｃ人数 | S3: ＨｂＡ１ｃ割合 | T3: 尿酸人数 | U3: 尿酸割合 | V3: 収縮期血圧人数 | W3: 収縮期血圧割合 | X3: 拡張期血圧人数 | Y3: 拡張期血圧割合 | Z3: ＬＤＬコレステロール人数 | AA3: ＬＤＬコレステロール割合 | AB3: 血清クレアチニン人数 | AC3: 血清クレアチニン割合 | AD3: 心電図人数 | AE3: 心電図割合 | AF3: 眼底検査人数 | AG3: 眼底検査割合 | AH3: 随時血糖人数 | AI3: 随時血糖割合 | AJ3: ｎｏｎ－ＨＤＬコレステロール人数 | AK3: ｎｏｎ－ＨＤＬコレステロール割合 | AL3: ｅＧＦＲ人数 | AM3: ｅＧＦＲ割合
A4: 明細部 | B4: 国 | C4: 40 | D4: 男
A5: 明細部 | B5: 国 | C5: 41 | D5: 男
A6: 明細部 | B6: 国 | C6: 42 | D6: 男
A7: 明細部 | B7: 国 | C7: 43 | D7: 男
A8: 明細部 | B8: 国 | C8: 44 | D8: 男
A9: 明細部 | B9: 国 | C9: 45 | D9: 男
A10: 明細部 | B10: 国 | C10: 46 | D10: 男
A11: 明細部 | B11: 国 | C11: 47 | D11: 男
A12: 明細部 | B12: 国 | C12: 48 | D12: 男
A13: 明細部 | B13: 国 | C13: 49 | D13: 男
A14: 明細部 | B14: 国 | C14: 50 | D14: 男
A15: 明細部 | B15: 国 | C15: 51 | D15: 男
A16: 明細部 | B16: 国 | C16: 52 | D16: 男
A17: 明細部 | B17: 国 | C17: 53 | D17: 男
A18: 明細部 | B18: 国 | C18: 54 | D18: 男
A19: 明細部 | B19: 国 | C19: 55 | D19: 男
A20: 明細部 | B20: 国 | C20: 56 | D20: 男
A21: 明細部 | B21: 国 | C21: 57 | D21: 男
A22: 明細部 | B22: 国 | C22: 58 | D22: 男
A23: 明細部 | B23: 国 | C23: 59 | D23: 男
A24: 明細部 | B24: 国 | C24: 60 | D24: 男
A25: 明細部 | B25: 国 | C25: 61 | D25: 男
A26: 明細部 | B26: 国 | C26: 62 | D26: 男
A27: 明細部 | B27: 国 | C27: 63 | D27: 男
A28: 明細部 | B28: 国 | C28: 64 | D28: 男
A29: 明細部 | B29: 国 | C29: 65 | D29: 男
A30: 明細部 | B30: 国 | C30: 66 | D30: 男
A31: 明細部 | B31: 国 | C31: 67 | D31: 男
A32: 明細部 | B32: 国 | C32: 68 | D32: 男
A33: 明細部 | B33: 国 | C33: 69 | D33: 男
A34: 明細部 | B34: 国 | C34: 70 | D34: 男
A35: 明細部 | B35: 国 | C35: 71 | D35: 男
A36: 明細部 | B36: 国 | C36: 72 | D36: 男
A37: 明細部 | B37: 国 | C37: 73 | D37: 男
A38: 明細部 | B38: 国 | C38: 74 | D38: 男
A39: 明細部 | B39: 国 | C39: 40 | D39: 女
A40: 明細部 | B40: 国 | C40: 41 | D40: 女
A41: 明細部 | B41: 国 | C41: 42 | D41: 女
A42: 明細部 | B42: 国 | C42: 43 | D42: 女
A43: 明細部 | B43: 国 | C43: 44 | D43: 女
A44: 明細部 | B44: 国 | C44: 45 | D44: 女
A45: 明細部 | B45: 国 | C45: 46 | D45: 女
A46: 明細部 | B46: 国 | C46: 47 | D46: 女
A47: 明細部 | B47: 国 | C47: 48 | D47: 女
A48: 明細部 | B48: 国 | C48: 49 | D48: 女
A49: 明細部 | B49: 国 | C49: 50 | D49: 女
A50: 明細部 | B50: 国 | C50: 51 | D50: 女
A51: 明細部 | B51: 国 | C51: 52 | D51: 女
A52: 明細部 | B52: 国 | C52: 53 | D52: 女
A53: 明細部 | B53: 国 | C53: 54 | D53: 女
A54: 明細部 | B54: 国 | C54: 55 | D54: 女
A55: 明細部 | B55: 国 | C55: 56 | D55: 女
A56: 明細部 | B56: 国 | C56: 57 | D56: 女
A57: 明細部 | B57: 国 | C57: 58 | D57: 女
A58: 明細部 | B58: 国 | C58: 59 | D58: 女
A59: 明細部 | B59: 国 | C59: 60 | D59: 女
A60: 明細部 | B60: 国 | C60: 61 | D60: 女
A61: 明細部 | B61: 国 | C61: 62 | D61: 女
A62: 明細部 | B62: 国 | C62: 63 | D62: 女
A63: 明細部 | B63: 国 | C63: 64 | D63: 女
A64: 明細部 | B64: 国 | C64: 65 | D64: 女
A65: 明細部 | B65: 国 | C65: 66 | D65: 女
A66: 明細部 | B66: 国 | C66: 67 | D66: 女
A67: 明細部 | B67: 国 | C67: 68 | D67: 女
A68: 明細部 | B68: 国 | C68: 69 | D68: 女
A69: 明細部 | B69: 国 | C69: 70 | D69: 女
A70: 明細部 | B70: 国 | C70: 71 | D70: 女
A71: 明細部 | B71: 国 | C71: 72 | D71: 女
A72: 明細部 | B72: 国 | C72: 73 | D72: 女
A73: 明細部 | B73: 国 | C73: 74 | D73: 女
A74: 明細部 | B74: 県 | C74: 40 | D74: 男
A75: 明細部 | B75: 県 | C75: 41 | D75: 男
A76: 明細部 | B76: 県 | C76: 42 | D76: 男
A77: 明細部 | B77: 県 | C77: 43 | D77: 男
A78: 明細部 | B78: 県 | C78: 44 | D78: 男
A79: 明細部 | B79: 県 | C79: 45 | D79: 男
A80: 明細部 | B80: 県 | C80: 46 | D80: 男
A81: 明細部 | B81: 県 | C81: 47 | D81: 男
A82: 明細部 | B82: 県 | C82: 48 | D82: 男
A83: 明細部 | B83: 県 | C83: 49 | D83: 男
A84: 明細部 | B84: 県 | C84: 50 | D84: 男
A85: 明細部 | B85: 県 | C85: 51 | D85: 男
A86: 明細部 | B86: 県 | C86: 52 | D86: 男
A87: 明細部 | B87: 県 | C87: 53 | D87: 男
A88: 明細部 | B88: 県 | C88: 54 | D88: 男
A89: 明細部 | B89: 県 | C89: 55 | D89: 男
A90: 明細部 | B90: 県 | C90: 56 | D90: 男
A91: 明細部 | B91: 県 | C91: 57 | D91: 男
A92: 明細部 | B92: 県 | C92: 58 | D92: 男
A93: 明細部 | B93: 県 | C93: 59 | D93: 男
A94: 明細部 | B94: 県 | C94: 60 | D94: 男
A95: 明細部 | B95: 県 | C95: 61 | D95: 男
A96: 明細部 | B96: 県 | C96: 62 | D96: 男
A97: 明細部 | B97: 県 | C97: 63 | D97: 男
A98: 明細部 | B98: 県 | C98: 64 | D98: 男
A99: 明細部 | B99: 県 | C99: 65 | D99: 男
A100: 明細部 | B100: 県 | C100: 66 | D100: 男
A101: 明細部 | B101: 県 | C101: 67 | D101: 男
A102: 明細部 | B102: 県 | C102: 68 | D102: 男
A103: 明細部 | B103: 県 | C103: 69 | D103: 男
A104: 明細部 | B104: 県 | C104: 70 | D104: 男
A105: 明細部 | B105: 県 | C105: 71 | D105: 男
A106: 明細部 | B106: 県 | C106: 72 | D106: 男
A107: 明細部 | B107: 県 | C107: 73 | D107: 男
A108: 明細部 | B108: 県 | C108: 74 | D108: 男
A109: 明細部 | B109: 県 | C109: 40 | D109: 女
A110: 明細部 | B110: 県 | C110: 41 | D110: 女
A111: 明細部 | B111: 県 | C111: 42 | D111: 女
A112: 明細部 | B112: 県 | C112: 43 | D112: 女
A113: 明細部 | B113: 県 | C113: 44 | D113: 女
A114: 明細部 | B114: 県 | C114: 45 | D114: 女
A115: 明細部 | B115: 県 | C115: 46 | D115: 女
A116: 明細部 | B116: 県 | C116: 47 | D116: 女
A117: 明細部 | B117: 県 | C117: 48 | D117: 女
A118: 明細部 | B118: 県 | C118: 49 | D118: 女
A119: 明細部 | B119: 県 | C119: 50 | D119: 女
A120: 明細部 | B120: 県 | C120: 51 | D120: 女
A121: 明細部 | B121: 県 | C121: 52 | D121: 女
A122: 明細部 | B122: 県 | C122: 53 | D122: 女
A123: 明細部 | B123: 県 | C123: 54 | D123: 女
A124: 明細部 | B124: 県 | C124: 55 | D124: 女
A125: 明細部 | B125: 県 | C125: 56 | D125: 女
A126: 明細部 | B126: 県 | C126: 57 | D126: 女
A127: 明細部 | B127: 県 | C127: 58 | D127: 女
A128: 明細部 | B128: 県 | C128: 59 | D128: 女
A129: 明細部 | B129: 県 | C129: 60 | D129: 女
A130: 明細部 | B130: 県 | C130: 61 | D130: 女
A131: 明細部 | B131: 県 | C131: 62 | D131: 女
A132: 明細部 | B132: 県 | C132: 63 | D132: 女
A133: 明細部 | B133: 県 | C133: 64 | D133: 女
A134: 明細部 | B134: 県 | C134: 65 | D134: 女
A135: 明細部 | B135: 県 | C135: 66 | D135: 女
A136: 明細部 | B136: 県 | C136: 67 | D136: 女
A137: 明細部 | B137: 県 | C137: 68 | D137: 女
A138: 明細部 | B138: 県 | C138: 69 | D138: 女
A139: 明細部 | B139: 県 | C139: 70 | D139: 女
A140: 明細部 | B140: 県 | C140: 71 | D140: 女
A141: 明細部 | B141: 県 | C141: 72 | D141: 女
A142: 明細部 | B142: 県 | C142: 73 | D142: 女
A143: 明細部 | B143: 県 | C143: 74 | D143: 女
A144: 明細部 | B144: 保険者（地区） | C144: 40 | D144: 男
A145: 明細部 | B145: 保険者（地区） | C145: 41 | D145: 男
A146: 明細部 | B146: 保険者（地区） | C146: 42 | D146: 男
A147: 明細部 | B147: 保険者（地区） | C147: 43 | D147: 男
A148: 明細部 | B148: 保険者（地区） | C148: 44 | D148: 男
A149: 明細部 | B149: 保険者（地区） | C149: 45 | D149: 男
A150: 明細部 | B150: 保険者（地区） | C150: 46 | D150: 男
A151: 明細部 | B151: 保険者（地区） | C151: 47 | D151: 男
A152: 明細部 | B152: 保険者（地区） | C152: 48 | D152: 男
A153: 明細部 | B153: 保険者（地区） | C153: 49 | D153: 男
A154: 明細部 | B154: 保険者（地区） | C154: 50 | D154: 男
A155: 明細部 | B155: 保険者（地区） | C155: 51 | D155: 男
A156: 明細部 | B156: 保険者（地区） | C156: 52 | D156: 男
A157: 明細部 | B157: 保険者（地区） | C157: 53 | D157: 男
A158: 明細部 | B158: 保険者（地区） | C158: 54 | D158: 男
A159: 明細部 | B159: 保険者（地区） | C159: 55 | D159: 男
A160: 明細部 | B160: 保険者（地区） | C160: 56 | D160: 男
A161: 明細部 | B161: 保険者（地区） | C161: 57 | D161: 男
A162: 明細部 | B162: 保険者（地区） | C162: 58 | D162: 男
A163: 明細部 | B163: 保険者（地区） | C163: 59 | D163: 男
A164: 明細部 | B164: 保険者（地区） | C164: 60 | D164: 男
A165: 明細部 | B165: 保険者（地区） | C165: 61 | D165: 男
A166: 明細部 | B166: 保険者（地区） | C166: 62 | D166: 男
A167: 明細部 | B167: 保険者（地区） | C167: 63 | D167: 男
A168: 明細部 | B168: 保険者（地区） | C168: 64 | D168: 男
A169: 明細部 | B169: 保険者（地区） | C169: 65 | D169: 男
A170: 明細部 | B170: 保険者（地区） | C170: 66 | D170: 男
A171: 明細部 | B171: 保険者（地区） | C171: 67 | D171: 男
A172: 明細部 | B172: 保険者（地区） | C172: 68 | D172: 男
A173: 明細部 | B173: 保険者（地区） | C173: 69 | D173: 男
A174: 明細部 | B174: 保険者（地区） | C174: 70 | D174: 男
A175: 明細部 | B175: 保険者（地区） | C175: 71 | D175: 男
A176: 明細部 | B176: 保険者（地区） | C176: 72 | D176: 男
A177: 明細部 | B177: 保険者（地区） | C177: 73 | D177: 男
A178: 明細部 | B178: 保険者（地区） | C178: 74 | D178: 男
A179: 明細部 | B179: 保険者（地区） | C179: 40 | D179: 女
A180: 明細部 | B180: 保険者（地区） | C180: 41 | D180: 女
A181: 明細部 | B181: 保険者（地区） | C181: 42 | D181: 女
A182: 明細部 | B182: 保険者（地区） | C182: 43 | D182: 女
A183: 明細部 | B183: 保険者（地区） | C183: 44 | D183: 女
A184: 明細部 | B184: 保険者（地区） | C184: 45 | D184: 女
A185: 明細部 | B185: 保険者（地区） | C185: 46 | D185: 女
A186: 明細部 | B186: 保険者（地区） | C186: 47 | D186: 女
A187: 明細部 | B187: 保険者（地区） | C187: 48 | D187: 女
A188: 明細部 | B188: 保険者（地区） | C188: 49 | D188: 女
A189: 明細部 | B189: 保険者（地区） | C189: 50 | D189: 女
A190: 明細部 | B190: 保険者（地区） | C190: 51 | D190: 女
A191: 明細部 | B191: 保険者（地区） | C191: 52 | D191: 女
A192: 明細部 | B192: 保険者（地区） | C192: 53 | D192: 女
A193: 明細部 | B193: 保険者（地区） | C193: 54 | D193: 女
A194: 明細部 | B194: 保険者（地区） | C194: 55 | D194: 女
A195: 明細部 | B195: 保険者（地区） | C195: 56 | D195: 女
A196: 明細部 | B196: 保険者（地区） | C196: 57 | D196: 女
A197: 明細部 | B197: 保険者（地区） | C197: 58 | D197: 女
A198: 明細部 | B198: 保険者（地区） | C198: 59 | D198: 女
A199: 明細部 | B199: 保険者（地区） | C199: 60 | D199: 女
A200: 明細部 | B200: 保険者（地区） | C200: 61 | D200: 女
... 13 more rows

Sheet CSVデータ4
A1: レコード種別 | B1: 保険者番号 | C1: 保険者名 | D1: 地区名 | E1: 作成年月 | F1: 県計・国計
A2: 共通部
A3: レコード種別 | B3: 集計単位 | C3: 年齢 | D3: 性別 | E3: 受診者 | F3: ＢＭＩ人数 | G3: ＢＭＩ割合 | H3: 腹囲人数 | I3: 腹囲割合 | J3: 中性脂肪人数 | K3: 中性脂肪割合 | L3: ＡＬＴ（ＧＰＴ）人数 | M3: ＡＬＴ（ＧＰＴ）割合 | N3: ＨＤＬコレステロール人数 | O3: ＨＤＬコレステロール割合 | P3: 空腹時血糖人数 | Q3: 空腹時血糖割合 | R3: ＨｂＡ１ｃ人数 | S3: ＨｂＡ１ｃ割合 | T3: 尿酸人数 | U3: 尿酸割合 | V3: 収縮期血圧人数 | W3: 収縮期血圧割合 | X3: 拡張期血圧人数 | Y3: 拡張期血圧割合 | Z3: ＬＤＬコレステロール人数 | AA3: ＬＤＬコレステロール割合 | AB3: 血清クレアチニン人数 | AC3: 血清クレアチニン割合 | AD3: 心電図人数 | AE3: 心電図割合 | AF3: 眼底検査人数 | AG3: 眼底検査割合 | AH3: 随時血糖人数 | AI3: 随時血糖割合 | AJ3: ｎｏｎ－ＨＤＬコレステロール人数 | AK3: ｎｏｎ－ＨＤＬコレステロール割合 | AL3: ｅＧＦＲ人数 | AM3: ｅＧＦＲ割合
A4: 明細部 | B4: 国 | C4: 40 | D4: 男
A5: 明細部 | B5: 国 | C5: 41 | D5: 男
A6: 明細部 | B6: 国 | C6: 42 | D6: 男
A7: 明細部 | B7: 国 | C7: 43 | D7: 男
A8: 明細部 | B8: 国 | C8: 44 | D8: 男
A9: 明細部 | B9: 国 | C9: 45 | D9: 男
A10: 明細部 | B10: 国 | C10: 46 | D10: 男
A11: 明細部 | B11: 国 | C11: 47 | D11: 男
A12: 明細部 | B12: 国 | C12: 48 | D12: 男
A13: 明細部 | B13: 国 | C13: 49 | D13: 男
A14: 明細部 | B14: 国 | C14: 50 | D14: 男
A15: 明細部 | B15: 国 | C15: 51 | D15: 男
A16: 明細部 | B16: 国 | C16: 52 | D16: 男
A17: 明細部 | B17: 国 | C17: 53 | D17: 男
A18: 明細部 | B18: 国 | C18: 54 | D18: 男
A19: 明細部 | B19: 国 | C19: 55 | D19: 男
A20: 明細部 | B20: 国 | C20: 56 | D20: 男
A21: 明細部 | B21: 国 | C21: 57 | D21: 男
A22: 明細部 | B22: 国 | C22: 58 | D22: 男
A23: 明細部 | B23: 国 | C23: 59 | D23: 男
A24: 明細部 | B24: 国 | C24: 60 | D24: 男
A25: 明細部 | B25: 国 | C25: 61 | D25: 男
A26: 明細部 | B26: 国 | C26: 62 | D26: 男
A27: 明細部 | B27: 国 | C27: 63 | D27: 男
A28: 明細部 | B28: 国 | C28: 64 | D28: 男
A29: 明細部 | B29: 国 | C29: 65 | D29: 男
A30: 明細部 | B30: 国 | C30: 66 | D30: 男
A31: 明細部 | B31: 国 | C31: 67 | D31: 男
A32: 明細部 | B32: 国 | C32: 68 | D32: 男
A33: 明細部 | B33: 国 | C33: 69 | D33: 男
A34: 明細部 | B34: 国 | C34: 70 | D34: 男
A35: 明細部 | B35: 国 | C35: 71 | D35: 男
A36: 明細部 | B36: 国 | C36: 72 | D36: 男
A37: 明細部 | B37: 国 | C37: 73 | D37: 男
A38: 明細部 | B38: 国 | C38: 74 | D38: 男
A39: 明細部 | B39: 国 | C39: 40 | D39: 女
A40: 明細部 | B40: 国 | C40: 41 | D40: 女
A41: 明細部 | B41: 国 | C41: 42 | D41: 女
A42: 明細部 | B42: 国 | C42: 43 | D42: 女
A43: 明細部 | B43: 国 | C43: 44 | D43: 女
A44: 明細部 | B44: 国 | C44: 45 | D44: 女
A45: 明細部 | B45: 国 | C45: 46 | D45: 女
A46: 明細部 | B46: 国 | C46: 47 | D46: 女
A47: 明細部 | B47: 国 | C47: 48 | D47: 女
A48: 明細部 | B48: 国 | C48: 49 | D48: 女
A49: 明細部 | B49: 国 | C49: 50 | D49: 女
A50: 明細部 | B50: 国 | C50: 51 | D50: 女
A51: 明細部 | B51: 国 | C51: 52 | D51: 女
A52: 明細部 | B52: 国 | C52: 53 | D52: 女
A53: 明細部 | B53: 国 | C53: 54 | D53: 女
A54: 明細部 | B54: 国 | C54: 55 | D54: 女
A55: 明細部 | B55: 国 | C55: 56 | D55: 女
A56: 明細部 | B56: 国 | C56: 57 | D56: 女
A57: 明細部 | B57: 国 | C57: 58 | D57: 女
A58: 明細部 | B58: 国 | C58: 59 | D58: 女
A59: 明細部 | B59: 国 | C59: 60 | D59: 女
A60: 明細部 | B60: 国 | C60: 61 | D60: 女
A61: 明細部 | B61: 国 | C61: 62 | D61: 女
A62: 明細部 | B62: 国 | C62: 63 | D62: 女
A63: 明細部 | B63: 国 | C63: 64 | D63: 女
A64: 明細部 | B64: 国 | C64: 65 | D64: 女
A65: 明細部 | B65: 国 | C65: 66 | D65: 女
A66: 明細部 | B66: 国 | C66: 67 | D66: 女
A67: 明細部 | B67: 国 | C67: 68 | D67: 女
A68: 明細部 | B68: 国 | C68: 69 | D68: 女
A69: 明細部 | B69: 国 | C69: 70 | D69: 女
A70: 明細部 | B70: 国 | C70: 71 | D70: 女
A71: 明細部 | B71: 国 | C71: 72 | D71: 女
A72: 明細部 | B72: 国 | C72: 73 | D72: 女
A73: 明細部 | B73: 国 | C73: 74 | D73: 女
A74: 明細部 | B74: 県 | C74: 40 | D74: 男
A75: 明細部 | B75: 県 | C75: 41 | D75: 男
A76: 明細部 | B76: 県 | C76: 42 | D76: 男
A77: 明細部 | B77: 県 | C77: 43 | D77: 男
A78: 明細部 | B78: 県 | C78: 44 | D78: 男
A79: 明細部 | B79: 県 | C79: 45 | D79: 男
A80: 明細部 | B80: 県 | C80: 46 | D80: 男
A81: 明細部 | B81: 県 | C81: 47 | D81: 男
A82: 明細部 | B82: 県 | C82: 48 | D82: 男
A83: 明細部 | B83: 県 | C83: 49 | D83: 男
A84: 明細部 | B84: 県 | C84: 50 | D84: 男
A85: 明細部 | B85: 県 | C85: 51 | D85: 男
A86: 明細部 | B86: 県 | C86: 52 | D86: 男
A87: 明細部 | B87: 県 | C87: 53 | D87: 男
A88: 明細部 | B88: 県 | C88: 54 | D88: 男
A89: 明細部 | B89: 県 | C89: 55 | D89: 男
A90: 明細部 | B90: 県 | C90: 56 | D90: 男
A91: 明細部 | B91: 県 | C91: 57 | D91: 男
A92: 明細部 | B92: 県 | C92: 58 | D92: 男
A93: 明細部 | B93: 県 | C93: 59 | D93: 男
A94: 明細部 | B94: 県 | C94: 60 | D94: 男
A95: 明細部 | B95: 県 | C95: 61 | D95: 男
A96: 明細部 | B96: 県 | C96: 62 | D96: 男
A97: 明細部 | B97: 県 | C97: 63 | D97: 男
A98: 明細部 | B98: 県 | C98: 64 | D98: 男
A99: 明細部 | B99: 県 | C99: 65 | D99: 男
A100: 明細部 | B100: 県 | C100: 66 | D100: 男
A101: 明細部 | B101: 県 | C101: 67 | D101: 男
A102: 明細部 | B102: 県 | C102: 68 | D102: 男
A103: 明細部 | B103: 県 | C103: 69 | D103: 男
A104: 明細部 | B104: 県 | C104: 70 | D104: 男
A105: 明細部 | B105: 県 | C105: 71 | D105: 男
A106: 明細部 | B106: 県 | C106: 72 | D106: 男
A107: 明細部 | B107: 県 | C107: 73 | D107: 男
A108: 明細部 | B108: 県 | C108: 74 | D108: 男
A109: 明細部 | B109: 県 | C109: 40 | D109: 女
A110: 明細部 | B110: 県 | C110: 41 | D110: 女
A111: 明細部 | B111: 県 | C111: 42 | D111: 女
A112: 明細部 | B112: 県 | C112: 43 | D112: 女
A113: 明細部 | B113: 県 | C113: 44 | D113: 女
A114: 明細部 | B114: 県 | C114: 45 | D114: 女
A115: 明細部 | B115: 県 | C115: 46 | D115: 女
A116: 明細部 | B116: 県 | C116: 47 | D116: 女
A117: 明細部 | B117: 県 | C117: 48 | D117: 女
A118: 明細部 | B118: 県 | C118: 49 | D118: 女
A119: 明細部 | B119: 県 | C119: 50 | D119: 女
A120: 明細部 | B120: 県 | C120: 51 | D120: 女
A121: 明細部 | B121: 県 | C121: 52 | D121: 女
A122: 明細部 | B122: 県 | C122: 53 | D122: 女
A123: 明細部 | B123: 県 | C123: 54 | D123: 女
A124: 明細部 | B124: 県 | C124: 55 | D124: 女
A125: 明細部 | B125: 県 | C125: 56 | D125: 女
A126: 明細部 | B126: 県 | C126: 57 | D126: 女
A127: 明細部 | B127: 県 | C127: 58 | D127: 女
A128: 明細部 | B128: 県 | C128: 59 | D128: 女
A129: 明細部 | B129: 県 | C129: 60 | D129: 女
A130: 明細部 | B130: 県 | C130: 61 | D130: 女
A131: 明細部 | B131: 県 | C131: 62 | D131: 女
A132: 明細部 | B132: 県 | C132: 63 | D132: 女
A133: 明細部 | B133: 県 | C133: 64 | D133: 女
A134: 明細部 | B134: 県 | C134: 65 | D134: 女
A135: 明細部 | B135: 県 | C135: 66 | D135: 女
A136: 明細部 | B136: 県 | C136: 67 | D136: 女
A137: 明細部 | B137: 県 | C137: 68 | D137: 女
A138: 明細部 | B138: 県 | C138: 69 | D138: 女
A139: 明細部 | B139: 県 | C139: 70 | D139: 女
A140: 明細部 | B140: 県 | C140: 71 | D140: 女
A141: 明細部 | B141: 県 | C141: 72 | D141: 女
A142: 明細部 | B142: 県 | C142: 73 | D142: 女
A143: 明細部 | B143: 県 | C143: 74 | D143: 女
A144: 明細部 | B144: 保険者（地区） | C144: 40 | D144: 男
A145: 明細部 | B145: 保険者（地区） | C145: 41 | D145: 男
A146: 明細部 | B146: 保険者（地区） | C146: 42 | D146: 男
A147: 明細部 | B147: 保険者（地区） | C147: 43 | D147: 男
A148: 明細部 | B148: 保険者（地区） | C148: 44 | D148: 男
A149: 明細部 | B149: 保険者（地区） | C149: 45 | D149: 男
A150: 明細部 | B150: 保険者（地区） | C150: 46 | D150: 男
A151: 明細部 | B151: 保険者（地区） | C151: 47 | D151: 男
A152: 明細部 | B152: 保険者（地区） | C152: 48 | D152: 男
A153: 明細部 | B153: 保険者（地区） | C153: 49 | D153: 男
A154: 明細部 | B154: 保険者（地区） | C154: 50 | D154: 男
A155: 明細部 | B155: 保険者（地区） | C155: 51 | D155: 男
A156: 明細部 | B156: 保険者（地区） | C156: 52 | D156: 男
A157: 明細部 | B157: 保険者（地区） | C157: 53 | D157: 男
A158: 明細部 | B158: 保険者（地区） | C158: 54 | D158: 男
A159: 明細部 | B159: 保険者（地区） | C159: 55 | D159: 男
A160: 明細部 | B160: 保険者（地区） | C160: 56 | D160: 男
A161: 明細部 | B161: 保険者（地区） | C161: 57 | D161: 男
A162: 明細部 | B162: 保険者（地区） | C162: 58 | D162: 男
A163: 明細部 | B163: 保険者（地区） | C163: 59 | D163: 男
A164: 明細部 | B164: 保険者（地区） | C164: 60 | D164: 男
A165: 明細部 | B165: 保険者（地区） | C165: 61 | D165: 男
A166: 明細部 | B166: 保険者（地区） | C166: 62 | D166: 男
A167: 明細部 | B167: 保険者（地区） | C167: 63 | D167: 男
A168: 明細部 | B168: 保険者（地区） | C168: 64 | D168: 男
A169: 明細部 | B169: 保険者（地区） | C169: 65 | D169: 男
A170: 明細部 | B170: 保険者（地区） | C170: 66 | D170: 男
A171: 明細部 | B171: 保険者（地区） | C171: 67 | D171: 男
A172: 明細部 | B172: 保険者（地区） | C172: 68 | D172: 男
A173: 明細部 | B173: 保険者（地区） | C173: 69 | D173: 男
A174: 明細部 | B174: 保険者（地区） | C174: 70 | D174: 男
A175: 明細部 | B175: 保険者（地区） | C175: 71 | D175: 男
A176: 明細部 | B176: 保険者（地区） | C176: 72 | D176: 男
A177: 明細部 | B177: 保険者（地区） | C177: 73 | D177: 男
A178: 明細部 | B178: 保険者（地区） | C178: 74 | D178: 男
A179: 明細部 | B179: 保険者（地区） | C179: 40 | D179: 女
A180: 明細部 | B180: 保険者（地区） | C180: 41 | D180: 女
A181: 明細部 | B181: 保険者（地区） | C181: 42 | D181: 女
A182: 明細部 | B182: 保険者（地区） | C182: 43 | D182: 女
A183: 明細部 | B183: 保険者（地区） | C183: 44 | D183: 女
A184: 明細部 | B184: 保険者（地区） | C184: 45 | D184: 女
A185: 明細部 | B185: 保険者（地区） | C185: 46 | D185: 女
A186: 明細部 | B186: 保険者（地区） | C186: 47 | D186: 女
A187: 明細部 | B187: 保険者（地区） | C187: 48 | D187: 女
A188: 明細部 | B188: 保険者（地区） | C188: 49 | D188: 女
A189: 明細部 | B189: 保険者（地区） | C189: 50 | D189: 女
A190: 明細部 | B190: 保険者（地区） | C190: 51 | D190: 女
A191: 明細部 | B191: 保険者（地区） | C191: 52 | D191: 女
A192: 明細部 | B192: 保険者（地区） | C192: 53 | D192: 女
A193: 明細部 | B193: 保険者（地区） | C193: 54 | D193: 女
A194: 明細部 | B194: 保険者（地区） | C194: 55 | D194: 女
A195: 明細部 | B195: 保険者（地区） | C195: 56 | D195: 女
A196: 明細部 | B196: 保険者（地区） | C196: 57 | D196: 女
A197: 明細部 | B197: 保険者（地区） | C197: 58 | D197: 女
A198: 明細部 | B198: 保険者（地区） | C198: 59 | D198: 女
A199: 明細部 | B199: 保険者（地区） | C199: 60 | D199: 女
A200: 明細部 | B200: 保険者（地区） | C200: 61 | D200: 女
... 13 more rows

Sheet CSVデータ (hidden)
A1: =CSVデータ1!A1 -> レコード種別 | B1: =CSVデータ1!B1 -> 保険者番号 | C1: =CSVデータ1!C1 -> 保険者名 | D1: =CSVデータ1!D1 -> 地区名 | E1: =CSVデータ1!E1 -> 作成年月
A2: =CSVデータ1!A2 -> 共通部 | B2: =CSVデータ1!B2 -> 999999 | C2: =CSVデータ1!C2 -> 見本データ | D2: =CSVデータ1!D2 -> 0 | E2: =CSVデータ1!E2&CSVデータ2!E2&CSVデータ3!E2&CSVデータ4!E2 -> H30年度
A3: =CSVデータ1!A3 -> レコード種別 | B3: =CSVデータ1!B3 -> 集計単位 | C3: =CSVデータ1!C3 -> 年齢 | D3: =CSVデータ1!D3 -> 性別 | E3: =CSVデータ1!E3 -> 受診者 | F3: =CSVデータ1!F3 -> ＢＭＩ人数 | G3: =CSVデータ1!G3 -> ＢＭＩ割合 | H3: =CSVデータ1!H3 -> 腹囲人数 | I3: =CSVデータ1!I3 -> 腹囲割合 | J3: =CSVデータ1!J3 -> 中性脂肪人数 | K3: =CSVデータ1!K3 -> 中性脂肪割合 | L3: =CSVデータ1!L3 -> ＡＬＴ（ＧＰＴ）人数 | M3: =CSVデータ1!M3 -> ＡＬＴ（ＧＰＴ）割合 | N3: =CSVデータ1!N3 -> ＨＤＬコレステロール人数 | O3: =CSVデータ1!O3 -> ＨＤＬコレステロール割合 | P3: =CSVデータ1!P3 -> 空腹時血糖人数 | Q3: =CSVデータ1!Q3 -> 空腹時血糖割合 | R3: =CSVデータ1!R3 -> ＨｂＡ１ｃ人数 | S3: =CSVデータ1!S3 -> ＨｂＡ１ｃ割合 | T3: =CSVデータ1!T3 -> 尿酸人数 | U3: =CSVデータ1!U3 -> 尿酸割合 | V3: =CSVデータ1!V3 -> 収縮期血圧人数 | W3: =CSVデータ1!W3 -> 収縮期血圧割合 | X3: =CSVデータ1!X3 -> 拡張期血圧人数 | Y3: =CSVデータ1!Y3 -> 拡張期血圧割合 | Z3: =CSVデータ1!Z3 -> ＬＤＬコレステロール人数 | AA3: =CSVデータ1!AA3 -> ＬＤＬコレステロール割合 | AB3: =CSVデータ1!AB3 -> 血清クレアチニン人数 | AC3: =CSVデータ1!AC3 -> 血清クレアチニン割合 | AD3: =CSVデータ1!AD3 -> 心電図人数 | AE3: =CSVデータ1!AE3 -> 心電図割合 | AF3: =CSVデータ1!AF3 -> 眼底検査人数 | AG3: =CSVデータ1!AG3 -> 眼底検査割合
A4: =CSVデータ1!A4 -> 明細部 | B4: =CSVデータ1!B4 -> 国 | C4: =CSVデータ1!C4 -> 40 | D4: =CSVデータ1!D4 -> 男 | E4: =CSVデータ1!E4+CSVデータ2!E4+CSVデータ3!E4+CSVデータ4!E4 -> 45492 | F4: =CSVデータ1!F4+CSVデータ2!F4+CSVデータ3!F4+CSVデータ4!F4 -> 15808 | H4: =CSVデータ1!H4+CSVデータ2!H4+CSVデータ3!H4+CSVデータ4!H4 -> 20459 | J4: =CSVデータ1!J4+CSVデータ2!J4+CSVデータ3!J4+CSVデータ4!J4 -> 13469 | L4: =CSVデータ1!L4+CSVデータ2!L4+CSVデータ3!L4+CSVデータ4!L4 -> 16176 | N4: =CSVデータ1!N4+CSVデータ2!N4+CSVデータ3!N4+CSVデータ4!N4 -> 3960 | P4: =CSVデータ1!P4+CSVデータ2!P4+CSVデータ3!P4+CSVデータ4!P4 -> 6530 | R4: =CSVデータ1!R4+CSVデータ2!R4+CSVデータ3!R4+CSVデータ4!R4 -> 12267 | T4: =CSVデータ1!T4+CSVデータ2!T4+CSVデータ3!T4+CSVデータ4!T4 -> 7110 | V4: =CSVデータ1!V4+CSVデータ2!V4+CSVデータ3!V4+CSVデータ4!V4 -> 10564 | X4: =CSVデータ1!X4+CSVデータ2!X4+CSVデータ3!X4+CSVデータ4!X4 -> 8349 | Z4: =CSVデータ1!Z4+CSVデータ2!Z4+CSVデータ3!Z4+CSVデータ4!Z4 -> 24796 | AB4: =CSVデータ1!AB4+CSVデータ2!AB4+CSVデータ3!AB4+CSVデータ4!AB4 -> 99 | AD4: =CSVデータ1!AD4+CSVデータ2!AD4+CSVデータ3!AD4+CSVデータ4!AD4 -> 5885 | AF4: =CSVデータ1!AF4+CSVデータ2!AF4+CSVデータ3!AF4+CSVデータ4!AF4 -> 7884
A5: =CSVデータ1!A5 -> 明細部 | B5: =CSVデータ1!B5 -> 国 | C5: =CSVデータ1!C5 -> 41 | D5: =CSVデータ1!D5 -> 男 | E5: =CSVデータ1!E5+CSVデータ2!E5+CSVデータ3!E5+CSVデータ4!E5 -> 44516 | F5: =CSVデータ1!F5+CSVデータ2!F5+CSVデータ3!F5+CSVデータ4!F5 -> 16111 | H5: =CSVデータ1!H5+CSVデータ2!H5+CSVデータ3!H5+CSVデータ4!H5 -> 20624 | J5: =CSVデータ1!J5+CSVデータ2!J5+CSVデータ3!J5+CSVデータ4!J5 -> 13538 | L5: =CSVデータ1!L5+CSVデータ2!L5+CSVデータ3!L5+CSVデータ4!L5 -> 15477 | N5: =CSVデータ1!N5+CSVデータ2!N5+CSVデータ3!N5+CSVデータ4!N5 -> 3880 | P5: =CSVデータ1!P5+CSVデータ2!P5+CSVデータ3!P5+CSVデータ4!P5 -> 6231 | R5: =CSVデータ1!R5+CSVデータ2!R5+CSVデータ3!R5+CSVデータ4!R5 -> 12596 | T5: =CSVデータ1!T5+CSVデータ2!T5+CSVデータ3!T5+CSVデータ4!T5 -> 6672 | V5: =CSVデータ1!V5+CSVデータ2!V5+CSVデータ3!V5+CSVデータ4!V5 -> 10597 | X5: =CSVデータ1!X5+CSVデータ2!X5+CSVデータ3!X5+CSVデータ4!X5 -> 7969 | Z5: =CSVデータ1!Z5+CSVデータ2!Z5+CSVデータ3!Z5+CSVデータ4!Z5 -> 23842 | AB5: =CSVデータ1!AB5+CSVデータ2!AB5+CSVデータ3!AB5+CSVデータ4!AB5 -> 103 | AD5: =CSVデータ1!AD5+CSVデータ2!AD5+CSVデータ3!AD5+CSVデータ4!AD5 -> 5711 | AF5: =CSVデータ1!AF5+CSVデータ2!AF5+CSVデータ3!AF5+CSVデータ4!AF5 -> 7200
A6: =CSVデータ1!A6 -> 明細部 | B6: =CSVデータ1!B6 -> 国 | C6: =CSVデータ1!C6 -> 42 | D6: =CSVデータ1!D6 -> 男 | E6: =CSVデータ1!E6+CSVデータ2!E6+CSVデータ3!E6+CSVデータ4!E6 -> 44259 | F6: =CSVデータ1!F6+CSVデータ2!F6+CSVデータ3!F6+CSVデータ4!F6 -> 16032 | H6: =CSVデータ1!H6+CSVデータ2!H6+CSVデータ3!H6+CSVデータ4!H6 -> 20311 | J6: =CSVデータ1!J6+CSVデータ2!J6+CSVデータ3!J6+CSVデータ4!J6 -> 13473 | L6: =CSVデータ1!L6+CSVデータ2!L6+CSVデータ3!L6+CSVデータ4!L6 -> 16563 | N6: =CSVデータ1!N6+CSVデータ2!N6+CSVデータ3!N6+CSVデータ4!N6 -> 3977 | P6: =CSVデータ1!P6+CSVデータ2!P6+CSVデータ3!P6+CSVデータ4!P6 -> 6980 | R6: =CSVデータ1!R6+CSVデータ2!R6+CSVデータ3!R6+CSVデータ4!R6 -> 13589 | T6: =CSVデータ1!T6+CSVデータ2!T6+CSVデータ3!T6+CSVデータ4!T6 -> 6995 | V6: =CSVデータ1!V6+CSVデータ2!V6+CSVデータ3!V6+CSVデータ4!V6 -> 11784 | X6: =CSVデータ1!X6+CSVデータ2!X6+CSVデータ3!X6+CSVデータ4!X6 -> 9382 | Z6: =CSVデータ1!Z6+CSVデータ2!Z6+CSVデータ3!Z6+CSVデータ4!Z6 -> 24288 | AB6: =CSVデータ1!AB6+CSVデータ2!AB6+CSVデータ3!AB6+CSVデータ4!AB6 -> 110 | AD6: =CSVデータ1!AD6+CSVデータ2!AD6+CSVデータ3!AD6+CSVデータ4!AD6 -> 6097 | AF6: =CSVデータ1!AF6+CSVデータ2!AF6+CSVデータ3!AF6+CSVデータ4!AF6 -> 7516
A7: =CSVデータ1!A7 -> 明細部 | B7: =CSVデータ1!B7 -> 国 | C7: =CSVデータ1!C7 -> 43 | D7: =CSVデータ1!D7 -> 男 | E7: =CSVデータ1!E7+CSVデータ2!E7+CSVデータ3!E7+CSVデータ4!E7 -> 46754 | F7: =CSVデータ1!F7+CSVデータ2!F7+CSVデータ3!F7+CSVデータ4!F7 -> 17762 | H7: =CSVデータ1!H7+CSVデータ2!H7+CSVデータ3!H7+CSVデータ4!H7 -> 23273 | J7: =CSVデータ1!J7+CSVデータ2!J7+CSVデータ3!J7+CSVデータ4!J7 -> 14956 | L7: =CSVデータ1!L7+CSVデータ2!L7+CSVデータ3!L7+CSVデータ4!L7 -> 17336 | N7: =CSVデータ1!N7+CSVデータ2!N7+CSVデータ3!N7+CSVデータ4!N7 -> 4356 | P7: =CSVデータ1!P7+CSVデータ2!P7+CSVデータ3!P7+CSVデータ4!P7 -> 7843 | R7: =CSVデータ1!R7+CSVデータ2!R7+CSVデータ3!R7+CSVデータ4!R7 -> 14830 | T7: =CSVデータ1!T7+CSVデータ2!T7+CSVデータ3!T7+CSVデータ4!T7 -> 7647 | V7: =CSVデータ1!V7+CSVデータ2!V7+CSVデータ3!V7+CSVデータ4!V7 -> 13140 | X7: =CSVデータ1!X7+CSVデータ2!X7+CSVデータ3!X7+CSVデータ4!X7 -> 10612 | Z7: =CSVデータ1!Z7+CSVデータ2!Z7+CSVデータ3!Z7+CSVデータ4!Z7 -> 26143 | AB7: =CSVデータ1!AB7+CSVデータ2!AB7+CSVデータ3!AB7+CSVデータ4!AB7 -> 146 | AD7: =CSVデータ1!AD7+CSVデータ2!AD7+CSVデータ3!AD7+CSVデータ4!AD7 -> 6626 | AF7: =CSVデータ1!AF7+CSVデータ2!AF7+CSVデータ3!AF7+CSVデータ4!AF7 -> 8054
A8: =CSVデータ1!A8 -> 明細部 | B8: =CSVデータ1!B8 -> 国 | C8: =CSVデータ1!C8 -> 44 | D8: =CSVデータ1!D8 -> 男 | E8: =CSVデータ1!E8+CSVデータ2!E8+CSVデータ3!E8+CSVデータ4!E8 -> 52391 | F8: =CSVデータ1!F8+CSVデータ2!F8+CSVデータ3!F8+CSVデータ4!F8 -> 19809 | H8: =CSVデータ1!H8+CSVデータ2!H8+CSVデータ3!H8+CSVデータ4!H8 -> 24822 | J8: =CSVデータ1!J8+CSVデータ2!J8+CSVデータ3!J8+CSVデータ4!J8 -> 16678 | L8: =CSVデータ1!L8+CSVデータ2!L8+CSVデータ3!L8+CSVデータ4!L8 -> 18780 | N8: =CSVデータ1!N8+CSVデータ2!N8+CSVデータ3!N8+CSVデータ4!N8 -> 4524 | P8: =CSVデータ1!P8+CSVデータ2!P8+CSVデータ3!P8+CSVデータ4!P8 -> 9165 | R8: =CSVデータ1!R8+CSVデータ2!R8+CSVデータ3!R8+CSVデータ4!R8 -> 16509 | T8: =CSVデータ1!T8+CSVデータ2!T8+CSVデータ3!T8+CSVデータ4!T8 -> 8138 | V8: =CSVデータ1!V8+CSVデータ2!V8+CSVデータ3!V8+CSVデータ4!V8 -> 14364 | X8: =CSVデータ1!X8+CSVデータ2!X8+CSVデータ3!X8+CSVデータ4!X8 -> 11886 | Z8: =CSVデータ1!Z8+CSVデータ2!Z8+CSVデータ3!Z8+CSVデータ4!Z8 -> 28204 | AB8: =CSVデータ1!AB8+CSVデータ2!AB8+CSVデータ3!AB8+CSVデータ4!AB8 -> 143 | AD8: =CSVデータ1!AD8+CSVデータ2!AD8+CSVデータ3!AD8+CSVデータ4!AD8 -> 6994 | AF8: =CSVデータ1!AF8+CSVデータ2!AF8+CSVデータ3!AF8+CSVデータ4!AF8 -> 8772
A9: =CSVデータ1!A9 -> 明細部 | B9: =CSVデータ1!B9 -> 国 | C9: =CSVデータ1!C9 -> 45 | D9: =CSVデータ1!D9 -> 男 | E9: =CSVデータ1!E9+CSVデータ2!E9+CSVデータ3!E9+CSVデータ4!E9 -> 56024 | F9: =CSVデータ1!F9+CSVデータ2!F9+CSVデータ3!F9+CSVデータ4!F9 -> 21055 | H9: =CSVデータ1!H9+CSVデータ2!H9+CSVデータ3!H9+CSVデータ4!H9 -> 26767 | J9: =CSVデータ1!J9+CSVデータ2!J9+CSVデータ3!J9+CSVデータ4!J9 -> 17777 | L9: =CSVデータ1!L9+CSVデータ2!L9+CSVデータ3!L9+CSVデータ4!L9 -> 18878 | N9: =CSVデータ1!N9+CSVデータ2!N9+CSVデータ3!N9+CSVデータ4!N9 -> 5054 | P9: =CSVデータ1!P9+CSVデータ2!P9+CSVデータ3!P9+CSVデータ4!P9 -> 10412 | R9: =CSVデータ1!R9+CSVデータ2!R9+CSVデータ3!R9+CSVデータ4!R9 -> 18622 | T9: =CSVデータ1!T9+CSVデータ2!T9+CSVデータ3!T9+CSVデータ4!T9 -> 8636 | V9: =CSVデータ1!V9+CSVデータ2!V9+CSVデータ3!V9+CSVデータ4!V9 -> 16278 | X9: =CSVデータ1!X9+CSVデータ2!X9+CSVデータ3!X9+CSVデータ4!X9 -> 13518 | Z9: =CSVデータ1!Z9+CSVデータ2!Z9+CSVデータ3!Z9+CSVデータ4!Z9 -> 31564 | AB9: =CSVデータ1!AB9+CSVデータ2!AB9+CSVデータ3!AB9+CSVデータ4!AB9 -> 189 | AD9: =CSVデータ1!AD9+CSVデータ2!AD9+CSVデータ3!AD9+CSVデータ4!AD9 -> 7906 | AF9: =CSVデータ1!AF9+CSVデータ2!AF9+CSVデータ3!AF9+CSVデータ4!AF9 -> 9942
A10: =CSVデータ1!A10 -> 明細部 | B10: =CSVデータ1!B10 -> 国 | C10: =CSVデータ1!C10 -> 46 | D10: =CSVデータ1!D10 -> 男 | E10: =CSVデータ1!E10+CSVデータ2!E10+CSVデータ3!E10+CSVデータ4!E10 -> 55132 | F10: =CSVデータ1!F10+CSVデータ2!F10+CSVデータ3!F10+CSVデータ4!F10 -> 22384 | H10: =CSVデータ1!H10+CSVデータ2!H10+CSVデータ3!H10+CSVデータ4!H10 -> 26816 | J10: =CSVデータ1!J10+CSVデータ2!J10+CSVデータ3!J10+CSVデータ4!J10 -> 19033 | L10: =CSVデータ1!L10+CSVデータ2!L10+CSVデータ3!L10+CSVデータ4!L10 -> 19563 | N10: =CSVデータ1!N10+CSVデータ2!N10+CSVデータ3!N10+CSVデータ4!N10 -> 5050 | P10: =CSVデータ1!P10+CSVデータ2!P10+CSVデータ3!P10+CSVデータ4!P10 -> 10300 | R10: =CSVデータ1!R10+CSVデータ2!R10+CSVデータ3!R10+CSVデータ4!R10 -> 19809 | T10: =CSVデータ1!T10+CSVデータ2!T10+CSVデータ3!T10+CSVデータ4!T10 -> 8549 | V10: =CSVデータ1!V10+CSVデータ2!V10+CSVデータ3!V10+CSVデータ4!V10 -> 16514 | X10: =CSVデータ1!X10+CSVデータ2!X10+CSVデータ3!X10+CSVデータ4!X10 -> 14241 | Z10: =CSVデータ1!Z10+CSVデータ2!Z10+CSVデータ3!Z10+CSVデータ4!Z10 -> 31359 | AB10: =CSVデータ1!AB10+CSVデータ2!AB10+CSVデータ3!AB10+CSVデータ4!AB10 -> 246 | AD10: =CSVデータ1!AD10+CSVデータ2!AD10+CSVデータ3!AD10+CSVデータ4!AD10 -> 7969 | AF10: =CSVデータ1!AF10+CSVデータ2!AF10+CSVデータ3!AF10+CSVデータ4!AF10 -> 9847
A11: =CSVデータ1!A11 -> 明細部 | B11: =CSVデータ1!B11 -> 国 | C11: =CSVデータ1!C11 -> 47 | D11: =CSVデータ1!D11 -> 男 | E11: =CSVデータ1!E11+CSVデータ2!E11+CSVデータ3!E11+CSVデータ4!E11 -> 57250 | F11: =CSVデータ1!F11+CSVデータ2!F11+CSVデータ3!F11+CSVデータ4!F11 -> 22213 | H11: =CSVデータ1!H11+CSVデータ2!H11+CSVデータ3!H11+CSVデータ4!H11 -> 28356 | J11: =CSVデータ1!J11+CSVデータ2!J11+CSVデータ3!J11+CSVデータ4!J11 -> 19300 | L11: =CSVデータ1!L11+CSVデータ2!L11+CSVデータ3!L11+CSVデータ4!L11 -> 19577 | N11: =CSVデータ1!N11+CSVデータ2!N11+CSVデータ3!N11+CSVデータ4!N11 -> 5093 | P11: =CSVデータ1!P11+CSVデータ2!P11+CSVデータ3!P11+CSVデータ4!P11 -> 10799 | R11: =CSVデータ1!R11+CSVデータ2!R11+CSVデータ3!R11+CSVデータ4!R11 -> 21549 | T11: =CSVデータ1!T11+CSVデータ2!T11+CSVデータ3!T11+CSVデータ4!T11 -> 8498 | V11: =CSVデータ1!V11+CSVデータ2!V11+CSVデータ3!V11+CSVデータ4!V11 -> 17323 | X11: =CSVデータ1!X11+CSVデータ2!X11+CSVデータ3!X11+CSVデータ4!X11 -> 15204 | Z11: =CSVデータ1!Z11+CSVデータ2!Z11+CSVデータ3!Z11+CSVデータ4!Z11 -> 32643 | AB11: =CSVデータ1!AB11+CSVデータ2!AB11+CSVデータ3!AB11+CSVデータ4!AB11 -> 253 | AD11: =CSVデータ1!AD11+CSVデータ2!AD11+CSVデータ3!AD11+CSVデータ4!AD11 -> 7938 | AF11: =CSVデータ1!AF11+CSVデータ2!AF11+CSVデータ3!AF11+CSVデータ4!AF11 -> 9283
A12: =CSVデータ1!A12 -> 明細部 | B12: =CSVデータ1!B12 -> 国 | C12: =CSVデータ1!C12 -> 48 | D12: =CSVデータ1!D12 -> 男 | E12: =CSVデータ1!E12+CSVデータ2!E12+CSVデータ3!E12+CSVデータ4!E12 -> 53634 | F12: =CSVデータ1!F12+CSVデータ2!F12+CSVデータ3!F12+CSVデータ4!F12 -> 22228 | H12: =CSVデータ1!H12+CSVデータ2!H12+CSVデータ3!H12+CSVデータ4!H12 -> 27182 | J12: =CSVデータ1!J12+CSVデータ2!J12+CSVデータ3!J12+CSVデータ4!J12 -> 18262 | L12: =CSVデータ1!L12+CSVデータ2!L12+CSVデータ3!L12+CSVデータ4!L12 -> 19128 | N12: =CSVデータ1!N12+CSVデータ2!N12+CSVデータ3!N12+CSVデータ4!N12 -> 4872 | P12: =CSVデータ1!P12+CSVデータ2!P12+CSVデータ3!P12+CSVデータ4!P12 -> 11124 | R12: =CSVデータ1!R12+CSVデータ2!R12+CSVデータ3!R12+CSVデータ4!R12 -> 22024 | T12: =CSVデータ1!T12+CSVデータ2!T12+CSVデータ3!T12+CSVデータ4!T12 -> 8420 | V12: =CSVデータ1!V12+CSVデータ2!V12+CSVデータ3!V12+CSVデータ4!V12 -> 17907 | X12: =CSVデータ1!X12+CSVデータ2!X12+CSVデータ3!X12+CSVデータ4!X12 -> 15285 | Z12: =CSVデータ1!Z12+CSVデータ2!Z12+CSVデータ3!Z12+CSVデータ4!Z12 -> 30124 | AB12: =CSVデータ1!AB12+CSVデータ2!AB12+CSVデータ3!AB12+CSVデータ4!AB12 -> 297 | AD12: =CSVデータ1!AD12+CSVデータ2!AD12+CSVデータ3!AD12+CSVデータ4!AD12 -> 7989 | AF12: =CSVデータ1!AF12+CSVデータ2!AF12+CSVデータ3!AF12+CSVデータ4!AF12 -> 9865
A13: =CSVデータ1!A13 -> 明細部 | B13: =CSVデータ1!B13 -> 国 | C13: =CSVデータ1!C13 -> 49 | D13: =CSVデータ1!D13 -> 男 | E13: =CSVデータ1!E13+CSVデータ2!E13+CSVデータ3!E13+CSVデータ4!E13 -> 56840 | F13: =CSVデータ1!F13+CSVデータ2!F13+CSVデータ3!F13+CSVデータ4!F13 -> 21851 | H13: =CSVデータ1!H13+CSVデータ2!H13+CSVデータ3!H13+CSVデータ4!H13 -> 27768 | J13: =CSVデータ1!J13+CSVデータ2!J13+CSVデータ3!J13+CSVデータ4!J13 -> 18828 | L13: =CSVデータ1!L13+CSVデータ2!L13+CSVデータ3!L13+CSVデータ4!L13 -> 18571 | N13: =CSVデータ1!N13+CSVデータ2!N13+CSVデータ3!N13+CSVデータ4!N13 -> 4897 | P13: =CSVデータ1!P13+CSVデータ2!P13+CSVデータ3!P13+CSVデータ4!P13 -> 11990 | R13: =CSVデータ1!R13+CSVデータ2!R13+CSVデータ3!R13+CSVデータ4!R13 -> 21924 | T13: =CSVデータ1!T13+CSVデータ2!T13+CSVデータ3!T13+CSVデータ4!T13 -> 8504 | V13: =CSVデータ1!V13+CSVデータ2!V13+CSVデータ3!V13+CSVデータ4!V13 -> 18432 | X13: =CSVデータ1!X13+CSVデータ2!X13+CSVデータ3!X13+CSVデータ4!X13 -> 15659 | Z13: =CSVデータ1!Z13+CSVデータ2!Z13+CSVデータ3!Z13+CSVデータ4!Z13 -> 32082 | AB13: =CSVデータ1!AB13+CSVデータ2!AB13+CSVデータ3!AB13+CSVデータ4!AB13 -> 320 | AD13: =CSVデータ1!AD13+CSVデータ2!AD13+CSVデータ3!AD13+CSVデータ4!AD13 -> 8088 | AF13: =CSVデータ1!AF13+CSVデータ2!AF13+CSVデータ3!AF13+CSVデータ4!AF13 -> 9745
A14: =CSVデータ1!A14 -> 明細部 | B14: =CSVデータ1!B14 -> 国 | C14: =CSVデータ1!C14 -> 50 | D14: =CSVデータ1!D14 -> 男 | E14: =CSVデータ1!E14+CSVデータ2!E14+CSVデータ3!E14+CSVデータ4!E14 -> 57165 | F14: =CSVデータ1!F14+CSVデータ2!F14+CSVデータ3!F14+CSVデータ4!F14 -> 22537 | H14: =CSVデータ1!H14+CSVデータ2!H14+CSVデータ3!H14+CSVデータ4!H14 -> 28757 | J14: =CSVデータ1!J14+CSVデータ2!J14+CSVデータ3!J14+CSVデータ4!J14 -> 18611 | L14: =CSVデータ1!L14+CSVデータ2!L14+CSVデータ3!L14+CSVデータ4!L14 -> 18685 | N14: =CSVデータ1!N14+CSVデータ2!N14+CSVデータ3!N14+CSVデータ4!N14 -> 4742 | P14: =CSVデータ1!P14+CSVデータ2!P14+CSVデータ3!P14+CSVデータ4!P14 -> 12818 | R14: =CSVデータ1!R14+CSVデータ2!R14+CSVデータ3!R14+CSVデータ4!R14 -> 23496 | T14: =CSVデータ1!T14+CSVデータ2!T14+CSVデータ3!T14+CSVデータ4!T14 -> 8539 | V14: =CSVデータ1!V14+CSVデータ2!V14+CSVデータ3!V14+CSVデータ4!V14 -> 20018 | X14: =CSVデータ1!X14+CSVデータ2!X14+CSVデータ3!X14+CSVデータ4!X14 -> 16661 | Z14: =CSVデータ1!Z14+CSVデータ2!Z14+CSVデータ3!Z14+CSVデータ4!Z14 -> 31104 | AB14: =CSVデータ1!AB14+CSVデータ2!AB14+CSVデータ3!AB14+CSVデータ4!AB14 -> 337 | AD14: =CSVデータ1!AD14+CSVデータ2!AD14+CSVデータ3!AD14+CSVデータ4!AD14 -> 8504 | AF14: =CSVデータ1!AF14+CSVデータ2!AF14+CSVデータ3!AF14+CSVデータ4!AF14 -> 11146
A15: =CSVデータ1!A15 -> 明細部 | B15: =CSVデータ1!B15 -> 国 | C15: =CSVデータ1!C15 -> 51 | D15: =CSVデータ1!D15 -> 男 | E15: =CSVデータ1!E15+CSVデータ2!E15+CSVデータ3!E15+CSVデータ4!E15 -> 54407 | F15: =CSVデータ1!F15+CSVデータ2!F15+CSVデータ3!F15+CSVデータ4!F15 -> 20988 | H15: =CSVデータ1!H15+CSVデータ2!H15+CSVデータ3!H15+CSVデータ4!H15 -> 29186 | J15: =CSVデータ1!J15+CSVデータ2!J15+CSVデータ3!J15+CSVデータ4!J15 -> 19162 | L15: =CSVデータ1!L15+CSVデータ2!L15+CSVデータ3!L15+CSVデータ4!L15 -> 18170 | N15: =CSVデータ1!N15+CSVデータ2!N15+CSVデータ3!N15+CSVデータ4!N15 -> 4984 | P15: =CSVデータ1!P15+CSVデータ2!P15+CSVデータ3!P15+CSVデータ4!P15 -> 13137 | R15: =CSVデータ1!R15+CSVデータ2!R15+CSVデータ3!R15+CSVデータ4!R15 -> 23792 | T15: =CSVデータ1!T15+CSVデータ2!T15+CSVデータ3!T15+CSVデータ4!T15 -> 8556 | V15: =CSVデータ1!V15+CSVデータ2!V15+CSVデータ3!V15+CSVデータ4!V15 -> 20506 | X15: =CSVデータ1!X15+CSVデータ2!X15+CSVデータ3!X15+CSVデータ4!X15 -> 17852 | Z15: =CSVデータ1!Z15+CSVデータ2!Z15+CSVデータ3!Z15+CSVデータ4!Z15 -> 30810 | AB15: =CSVデータ1!AB15+CSVデータ2!AB15+CSVデータ3!AB15+CSVデータ4!AB15 -> 369 | AD15: =CSVデータ1!AD15+CSVデータ2!AD15+CSVデータ3!AD15+CSVデータ4!AD15 -> 8448 | AF15: =CSVデータ1!AF15+CSVデータ2!AF15+CSVデータ3!AF15+CSVデータ4!AF15 -> 9657
A16: =CSVデータ1!A16 -> 明細部 | B16: =CSVデータ1!B16 -> 国 | C16: =CSVデータ1!C16 -> 52 | D16: =CSVデータ1!D16 -> 男 | E16: =CSVデータ1!E16+CSVデータ2!E16+CSVデータ3!E16+CSVデータ4!E16 -> 47021 | F16: =CSVデータ1!F16+CSVデータ2!F16+CSVデータ3!F16+CSVデータ4!F16 -> 18268 | H16: =CSVデータ1!H16+CSVデータ2!H16+CSVデータ3!H16+CSVデータ4!H16 -> 25542 | J16: =CSVデータ1!J16+CSVデータ2!J16+CSVデータ3!J16+CSVデータ4!J16 -> 16149 | L16: =CSVデータ1!L16+CSVデータ2!L16+CSVデータ3!L16+CSVデータ4!L16 -> 15278 | N16: =CSVデータ1!N16+CSVデータ2!N16+CSVデータ3!N16+CSVデータ4!N16 -> 4186 | P16: =CSVデータ1!P16+CSVデータ2!P16+CSVデータ3!P16+CSVデータ4!P16 -> 11601 | R16: =CSVデータ1!R16+CSVデータ2!R16+CSVデータ3!R16+CSVデータ4!R16 -> 21419 | T16: =CSVデータ1!T16+CSVデータ2!T16+CSVデータ3!T16+CSVデータ4!T16 -> 7278 | V16: =CSVデータ1!V16+CSVデータ2!V16+CSVデータ3!V16+CSVデータ4!V16 -> 17692 | X16: =CSVデータ1!X16+CSVデータ2!X16+CSVデータ3!X16+CSVデータ4!X16 -> 14682 | Z16: =CSVデータ1!Z16+CSVデータ2!Z16+CSVデータ3!Z16+CSVデータ4!Z16 -> 25520 | AB16: =CSVデータ1!AB16+CSVデータ2!AB16+CSVデータ3!AB16+CSVデータ4!AB16 -> 372 | AD16: =CSVデータ1!AD16+CSVデータ2!AD16+CSVデータ3!AD16+CSVデータ4!AD16 -> 7483 | AF16: =CSVデータ1!AF16+CSVデータ2!AF16+CSVデータ3!AF16+CSVデータ4!AF16 -> 8687
A17: =CSVデータ1!A17 -> 明細部 | B17: =CSVデータ1!B17 -> 国 | C17: =CSVデータ1!C17 -> 53 | D17: =CSVデータ1!D17 -> 男 | E17: =CSVデータ1!E17+CSVデータ2!E17+CSVデータ3!E17+CSVデータ4!E17 -> 52653 | F17: =CSVデータ1!F17+CSVデータ2!F17+CSVデータ3!F17+CSVデータ4!F17 -> 20446 | H17: =CSVデータ1!H17+CSVデータ2!H17+CSVデータ3!H17+CSVデータ4!H17 -> 27884 | J17: =CSVデータ1!J17+CSVデータ2!J17+CSVデータ3!J17+CSVデータ4!J17 -> 16986 | L17: =CSVデータ1!L17+CSVデータ2!L17+CSVデータ3!L17+CSVデータ4!L17 -> 15315 | N17: =CSVデータ1!N17+CSVデータ2!N17+CSVデータ3!N17+CSVデータ4!N17 -> 4131 | P17: =CSVデータ1!P17+CSVデータ2!P17+CSVデータ3!P17+CSVデータ4!P17 -> 13110 | R17: =CSVデータ1!R17+CSVデータ2!R17+CSVデータ3!R17+CSVデータ4!R17 -> 23782 | T17: =CSVデータ1!T17+CSVデータ2!T17+CSVデータ3!T17+CSVデータ4!T17 -> 8108 | V17: =CSVデータ1!V17+CSVデータ2!V17+CSVデータ3!V17+CSVデータ4!V17 -> 20989 | X17: =CSVデータ1!X17+CSVデータ2!X17+CSVデータ3!X17+CSVデータ4!X17 -> 17203 | Z17: =CSVデータ1!Z17+CSVデータ2!Z17+CSVデータ3!Z17+CSVデータ4!Z17 -> 28395 | AB17: =CSVデータ1!AB17+CSVデータ2!AB17+CSVデータ3!AB17+CSVデータ4!AB17 -> 483 | AD17: =CSVデータ1!AD17+CSVデータ2!AD17+CSVデータ3!AD17+CSVデータ4!AD17 -> 8312 | AF17: =CSVデータ1!AF17+CSVデータ2!AF17+CSVデータ3!AF17+CSVデータ4!AF17 -> 9775
A18: =CSVデータ1!A18 -> 明細部 | B18: =CSVデータ1!B18 -> 国 | C18: =CSVデータ1!C18 -> 54 | D18: =CSVデータ1!D18 -> 男 | E18: =CSVデータ1!E18+CSVデータ2!E18+CSVデータ3!E18+CSVデータ4!E18 -> 56778 | F18: =CSVデータ1!F18+CSVデータ2!F18+CSVデータ3!F18+CSVデータ4!F18 -> 21780 | H18: =CSVデータ1!H18+CSVデータ2!H18+CSVデータ3!H18+CSVデータ4!H18 -> 30113 | J18: =CSVデータ1!J18+CSVデータ2!J18+CSVデータ3!J18+CSVデータ4!J18 -> 18188 | L18: =CSVデータ1!L18+CSVデータ2!L18+CSVデータ3!L18+CSVデータ4!L18 -> 15770 | N18: =CSVデータ1!N18+CSVデータ2!N18+CSVデータ3!N18+CSVデータ4!N18 -> 4431 | P18: =CSVデータ1!P18+CSVデータ2!P18+CSVデータ3!P18+CSVデータ4!P18 -> 13864 | R18: =CSVデータ1!R18+CSVデータ2!R18+CSVデータ3!R18+CSVデータ4!R18 -> 25661 | T18: =CSVデータ1!T18+CSVデータ2!T18+CSVデータ3!T18+CSVデータ4!T18 -> 8092 | V18: =CSVデータ1!V18+CSVデータ2!V18+CSVデータ3!V18+CSVデータ4!V18 -> 22878 | X18: =CSVデータ1!X18+CSVデータ2!X18+CSVデータ3!X18+CSVデータ4!X18 -> 18112 | Z18: =CSVデータ1!Z18+CSVデータ2!Z18+CSVデータ3!Z18+CSVデータ4!Z18 -> 29094 | AB18: =CSVデータ1!AB18+CSVデータ2!AB18+CSVデータ3!AB18+CSVデータ4!AB18 -> 521 | AD18: =CSVデータ1!AD18+CSVデータ2!AD18+CSVデータ3!AD18+CSVデータ4!AD18 -> 9003 | AF18: =CSVデータ1!AF18+CSVデータ2!AF18+CSVデータ3!AF18+CSVデータ4!AF18 -> 9909
A19: =CSVデータ1!A19 -> 明細部 | B19: =CSVデータ1!B19 -> 国 | C19: =CSVデータ1!C19 -> 55 | D19: =CSVデータ1!D19 -> 男 | E19: =CSVデータ1!E19+CSVデータ2!E19+CSVデータ3!E19+CSVデータ4!E19 -> 55615 | F19: =CSVデータ1!F19+CSVデータ2!F19+CSVデータ3!F19+CSVデータ4!F19 -> 20529 | H19: =CSVデータ1!H19+CSVデータ2!H19+CSVデータ3!H19+CSVデータ4!H19 -> 28442 | J19: =CSVデータ1!J19+CSVデータ2!J19+CSVデータ3!J19+CSVデータ4!J19 -> 18246 | L19: =CSVデータ1!L19+CSVデータ2!L19+CSVデータ3!L19+CSVデータ4!L19 -> 15307 | N19: =CSVデータ1!N19+CSVデータ2!N19+CSVデータ3!N19+CSVデータ4!N19 -> 4488 | P19: =CSVデータ1!P19+CSVデータ2!P19+CSVデータ3!P19+CSVデータ4!P19 -> 14292 | R19: =CSVデータ1!R19+CSVデータ2!R19+CSVデータ3!R19+CSVデータ4!R19 -> 25396 | T19: =CSVデータ1!T19+CSVデータ2!T19+CSVデータ3!T19+CSVデータ4!T19 -> 8013 | V19: =CSVデータ1!V19+CSVデータ2!V19+CSVデータ3!V19+CSVデータ4!V19 -> 22766 | X19: =CSVデータ1!X19+CSVデータ2!X19+CSVデータ3!X19+CSVデータ4!X19 -> 17231 | Z19: =CSVデータ1!Z19+CSVデータ2!Z19+CSVデータ3!Z19+CSVデータ4!Z19 -> 29093 | AB19: =CSVデータ1!AB19+CSVデータ2!AB19+CSVデータ3!AB19+CSVデータ4!AB19 -> 502 | AD19: =CSVデータ1!AD19+CSVデータ2!AD19+CSVデータ3!AD19+CSVデータ4!AD19 -> 8805 | AF19: =CSVデータ1!AF19+CSVデータ2!AF19+CSVデータ3!AF19+CSVデータ4!AF19 -> 10867
A20: =CSVデータ1!A20 -> 明細部 | B20: =CSVデータ1!B20 -> 国 | C20: =CSVデータ1!C20 -> 56 | D20: =CSVデータ1!D20 -> 男 | E20: =CSVデータ1!E20+CSVデータ2!E20+CSVデータ3!E20+CSVデータ4!E20 -> 56139 | F20: =CSVデータ1!F20+CSVデータ2!F20+CSVデータ3!F20+CSVデータ4!F20 -> 20333 | H20: =CSVデータ1!H20+CSVデータ2!H20+CSVデータ3!H20+CSVデータ4!H20 -> 29367 | J20: =CSVデータ1!J20+CSVデータ2!J20+CSVデータ3!J20+CSVデータ4!J20 -> 18857 | L20: =CSVデータ1!L20+CSVデータ2!L20+CSVデータ3!L20+CSVデータ4!L20 -> 15776 | N20: =CSVデータ1!N20+CSVデータ2!N20+CSVデータ3!N20+CSVデータ4!N20 -> 4464 | P20: =CSVデータ1!P20+CSVデータ2!P20+CSVデータ3!P20+CSVデータ4!P20 -> 15138 | R20: =CSVデータ1!R20+CSVデータ2!R20+CSVデータ3!R20+CSVデータ4!R20 -> 26476 | T20: =CSVデータ1!T20+CSVデータ2!T20+CSVデータ3!T20+CSVデータ4!T20 -> 8168 | V20: =CSVデータ1!V20+CSVデータ2!V20+CSVデータ3!V20+CSVデータ4!V20 -> 22544 | X20: =CSVデータ1!X20+CSVデータ2!X20+CSVデータ3!X20+CSVデータ4!X20 -> 18870 | Z20: =CSVデータ1!Z20+CSVデータ2!Z20+CSVデータ3!Z20+CSVデータ4!Z20 -> 28734 | AB20: =CSVデータ1!AB20+CSVデータ2!AB20+CSVデータ3!AB20+CSVデータ4!AB20 -> 546 | AD20: =CSVデータ1!AD20+CSVデータ2!AD20+CSVデータ3!AD20+CSVデータ4!AD20 -> 9502 | AF20: =CSVデータ1!AF20+CSVデータ2!AF20+CSVデータ3!AF20+CSVデータ4!AF20 -> 10245
A21: =CSVデータ1!A21 -> 明細部 | B21: =CSVデータ1!B21 -> 国 | C21: =CSVデータ1!C21 -> 57 | D21: =CSVデータ1!D21 -> 男 | E21: =CSVデータ1!E21+CSVデータ2!E21+CSVデータ3!E21+CSVデータ4!E21 -> 57707 | F21: =CSVデータ1!F21+CSVデータ2!F21+CSVデータ3!F21+CSVデータ4!F21 -> 21081 | H21: =CSVデータ1!H21+CSVデータ2!H21+CSVデータ3!H21+CSVデータ4!H21 -> 29638 | J21: =CSVデータ1!J21+CSVデータ2!J21+CSVデータ3!J21+CSVデータ4!J21 -> 18338 | L21: =CSVデータ1!L21+CSVデータ2!L21+CSVデータ3!L21+CSVデータ4!L21 -> 15403 | N21: =CSVデータ1!N21+CSVデータ2!N21+CSVデータ3!N21+CSVデータ4!N21 -> 4619 | P21: =CSVデータ1!P21+CSVデータ2!P21+CSVデータ3!P21+CSVデータ4!P21 -> 16266 | R21: =CSVデータ1!R21+CSVデータ2!R21+CSVデータ3!R21+CSVデータ4!R21 -> 28025 | T21: =CSVデータ1!T21+CSVデータ2!T21+CSVデータ3!T21+CSVデータ4!T21 -> 8117 | V21: =CSVデータ1!V21+CSVデータ2!V21+CSVデータ3!V21+CSVデータ4!V21 -> 23907 | X21: =CSVデータ1!X21+CSVデータ2!X21+CSVデータ3!X21+CSVデータ4!X21 -> 19240 | Z21: =CSVデータ1!Z21+CSVデータ2!Z21+CSVデータ3!Z21+CSVデータ4!Z21 -> 30652 | AB21: =CSVデータ1!AB21+CSVデータ2!AB21+CSVデータ3!AB21+CSVデータ4!AB21 -> 593 | AD21: =CSVデータ1!AD21+CSVデータ2!AD21+CSVデータ3!AD21+CSVデータ4!AD21 -> 9524 | AF21: =CSVデータ1!AF21+CSVデータ2!AF21+CSVデータ3!AF21+CSVデータ4!AF21 -> 11276
A22: =CSVデータ1!A22 -> 明細部 | B22: =CSVデータ1!B22 -> 国 | C22: =CSVデータ1!C22 -> 58 | D22: =CSVデータ1!D22 -> 男 | E22: =CSVデータ1!E22+CSVデータ2!E22+CSVデータ3!E22+CSVデータ4!E22 -> 58658 | F22: =CSVデータ1!F22+CSVデータ2!F22+CSVデータ3!F22+CSVデータ4!F22 -> 21256 | H22: =CSVデータ1!H22+CSVデータ2!H22+CSVデータ3!H22+CSVデータ4!H22 -> 29903 | J22: =CSVデータ1!J22+CSVデータ2!J22+CSVデータ3!J22+CSVデータ4!J22 -> 18721 | L22: =CSVデータ1!L22+CSVデータ2!L22+CSVデータ3!L22+CSVデータ4!L22 -> 16002 | N22: =CSVデータ1!N22+CSVデータ2!N22+CSVデータ3!N22+CSVデータ4!N22 -> 4593 | P22: =CSVデータ1!P22+CSVデータ2!P22+CSVデータ3!P22+CSVデータ4!P22 -> 17307 | R22: =CSVデータ1!R22+CSVデータ2!R22+CSVデータ3!R22+CSVデータ4!R22 -> 30340 | T22: =CSVデータ1!T22+CSVデータ2!T22+CSVデータ3!T22+CSVデータ4!T22 -> 8089 | V22: =CSVデータ1!V22+CSVデータ2!V22+CSVデータ3!V22+CSVデータ4!V22 -> 25627 | X22: =CSVデータ1!X22+CSVデータ2!X22+CSVデータ3!X22+CSVデータ4!X22 -> 19964 | Z22: =CSVデータ1!Z22+CSVデータ2!Z22+CSVデータ3!Z22+CSVデータ4!Z22 -> 31254 | AB22: =CSVデータ1!AB22+CSVデータ2!AB22+CSVデータ3!AB22+CSVデータ4!AB22 -> 614 | AD22: =CSVデータ1!AD22+CSVデータ2!AD22+CSVデータ3!AD22+CSVデータ4!AD22 -> 10372 | AF22: =CSVデータ1!AF22+CSVデータ2!AF22+CSVデータ3!AF22+CSVデータ4!AF22 -> 11935
A23: =CSVデータ1!A23 -> 明細部 | B23: =CSVデータ1!B23 -> 国 | C23: =CSVデータ1!C23 -> 59 | D23: =CSVデータ1!D23 -> 男 | E23: =CSVデータ1!E23+CSVデータ2!E23+CSVデータ3!E23+CSVデータ4!E23 -> 59626 | F23: =CSVデータ1!F23+CSVデータ2!F23+CSVデータ3!F23+CSVデータ4!F23 -> 22425 | H23: =CSVデータ1!H23+CSVデータ2!H23+CSVデータ3!H23+CSVデータ4!H23 -> 31827 | J23: =CSVデータ1!J23+CSVデータ2!J23+CSVデータ3!J23+CSVデータ4!J23 -> 19091 | L23: =CSVデータ1!L23+CSVデータ2!L23+CSVデータ3!L23+CSVデータ4!L23 -> 15397 | N23: =CSVデータ1!N23+CSVデータ2!N23+CSVデータ3!N23+CSVデータ4!N23 -> 4988 | P23: =CSVデータ1!P23+CSVデータ2!P23+CSVデータ3!P23+CSVデータ4!P23 -> 18370 | R23: =CSVデータ1!R23+CSVデータ2!R23+CSVデータ3!R23+CSVデータ4!R23 -> 31602 | T23: =CSVデータ1!T23+CSVデータ2!T23+CSVデータ3!T23+CSVデータ4!T23 -> 8591 | V23: =CSVデータ1!V23+CSVデータ2!V23+CSVデータ3!V23+CSVデータ4!V23 -> 27484 | X23: =CSVデータ1!X23+CSVデータ2!X23+CSVデータ3!X23+CSVデータ4!X23 -> 19842 | Z23: =CSVデータ1!Z23+CSVデータ2!Z23+CSVデータ3!Z23+CSVデータ4!Z23 -> 31605 | AB23: =CSVデータ1!AB23+CSVデータ2!AB23+CSVデータ3!AB23+CSVデータ4!AB23 -> 737 | AD23: =CSVデータ1!AD23+CSVデータ2!AD23+CSVデータ3!AD23+CSVデータ4!AD23 -> 11215 | AF23: =CSVデータ1!AF23+CSVデータ2!AF23+CSVデータ3!AF23+CSVデータ4!AF23 -> 12537
A24: =CSVデータ1!A24 -> 明細部 | B24: =CSVデータ1!B24 -> 国 | C24: =CSVデータ1!C24 -> 60 | D24: =CSVデータ1!D24 -> 男 | E24: =CSVデータ1!E24+CSVデータ2!E24+CSVデータ3!E24+CSVデータ4!E24 -> 67062 | F24: =CSVデータ1!F24+CSVデータ2!F24+CSVデータ3!F24+CSVデータ4!F24 -> 25346 | H24: =CSVデータ1!H24+CSVデータ2!H24+CSVデータ3!H24+CSVデータ4!H24 -> 37448 | J24: =CSVデータ1!J24+CSVデータ2!J24+CSVデータ3!J24+CSVデータ4!J24 -> 22072 | L24: =CSVデータ1!L24+CSVデータ2!L24+CSVデータ3!L24+CSVデータ4!L24 -> 16991 | N24: =CSVデータ1!N24+CSVデータ2!N24+CSVデータ3!N24+CSVデータ4!N24 -> 5224 | P24: =CSVデータ1!P24+CSVデータ2!P24+CSVデータ3!P24+CSVデータ4!P24 -> 20971 | R24: =CSVデータ1!R24+CSVデータ2!R24+CSVデータ3!R24+CSVデータ4!R24 -> 36404 | T24: =CSVデータ1!T24+CSVデータ2!T24+CSVデータ3!T24+CSVデータ4!T24 -> 9305 | V24: =CSVデータ1!V24+CSVデータ2!V24+CSVデータ3!V24+CSVデータ4!V24 -> 32369 | X24: =CSVデータ1!X24+CSVデータ2!X24+CSVデータ3!X24+CSVデータ4!X24 -> 22108 | Z24: =CSVデータ1!Z24+CSVデータ2!Z24+CSVデータ3!Z24+CSVデータ4!Z24 -> 34095 | AB24: =CSVデータ1!AB24+CSVデータ2!AB24+CSVデータ3!AB24+CSVデータ4!AB24 -> 827 | AD24: =CSVデータ1!AD24+CSVデータ2!AD24+CSVデータ3!AD24+CSVデータ4!AD24 -> 12643 | AF24: =CSVデータ1!AF24+CSVデータ2!AF24+CSVデータ3!AF24+CSVデータ4!AF24 -> 15075
A25: =CSVデータ1!A25 -> 明細部 | B25: =CSVデータ1!B25 -> 国 | C25: =CSVデータ1!C25 -> 61 | D25: =CSVデータ1!D25 -> 男 | E25: =CSVデータ1!E25+CSVデータ2!E25+CSVデータ3!E25+CSVデータ4!E25 -> 70403 | F25: =CSVデータ1!F25+CSVデータ2!F25+CSVデータ3!F25+CSVデータ4!F25 -> 26814 | H25: =CSVデータ1!H25+CSVデータ2!H25+CSVデータ3!H25+CSVデータ4!H25 -> 38734 | J25: =CSVデータ1!J25+CSVデータ2!J25+CSVデータ3!J25+CSVデータ4!J25 -> 22258 | L25: =CSVデータ1!L25+CSVデータ2!L25+CSVデータ3!L25+CSVデータ4!L25 -> 18102 | N25: =CSVデータ1!N25+CSVデータ2!N25+CSVデータ3!N25+CSVデータ4!N25 -> 5814 | P25: =CSVデータ1!P25+CSVデータ2!P25+CSVデータ3!P25+CSVデータ4!P25 -> 22019 | R25: =CSVデータ1!R25+CSVデータ2!R25+CSVデータ3!R25+CSVデータ4!R25 -> 39904 | T25: =CSVデータ1!T25+CSVデータ2!T25+CSVデータ3!T25+CSVデータ4!T25 -> 10033 | V25: =CSVデータ1!V25+CSVデータ2!V25+CSVデータ3!V25+CSVデータ4!V25 -> 34988 | X25: =CSVデータ1!X25+CSVデータ2!X25+CSVデータ3!X25+CSVデータ4!X25 -> 23807 | Z25: =CSVデータ1!Z25+CSVデータ2!Z25+CSVデータ3!Z25+CSVデータ4!Z25 -> 36737 | AB25: =CSVデータ1!AB25+CSVデータ2!AB25+CSVデータ3!AB25+CSVデータ4!AB25 -> 1055 | AD25: =CSVデータ1!AD25+CSVデータ2!AD25+CSVデータ3!AD25+CSVデータ4!AD25 -> 14368 | AF25: =CSVデータ1!AF25+CSVデータ2!AF25+CSVデータ3!AF25+CSVデータ4!AF25 -> 15497
A26: =CSVデータ1!A26 -> 明細部 | B26: =CSVデータ1!B26 -> 国 | C26: =CSVデータ1!C26 -> 62 | D26: =CSVデータ1!D26 -> 男 | E26: =CSVデータ1!E26+CSVデータ2!E26+CSVデータ3!E26+CSVデータ4!E26 -> 88129 | F26: =CSVデータ1!F26+CSVデータ2!F26+CSVデータ3!F26+CSVデータ4!F26 -> 29547 | H26: =CSVデータ1!H26+CSVデータ2!H26+CSVデータ3!H26+CSVデータ4!H26 -> 46341 | J26: =CSVデータ1!J26+CSVデータ2!J26+CSVデータ3!J26+CSVデータ4!J26 -> 26805 | L26: =CSVデータ1!L26+CSVデータ2!L26+CSVデータ3!L26+CSVデータ4!L26 -> 20020 | N26: =CSVデータ1!N26+CSVデータ2!N26+CSVデータ3!N26+CSVデータ4!N26 -> 6668 | P26: =CSVデータ1!P26+CSVデータ2!P26+CSVデータ3!P26+CSVデータ4!P26 -> 27115 | R26: =CSVデータ1!R26+CSVデータ2!R26+CSVデータ3!R26+CSVデータ4!R26 -> 47790 | T26: =CSVデータ1!T26+CSVデータ2!T26+CSVデータ3!T26+CSVデータ4!T26 -> 11921 | V26: =CSVデータ1!V26+CSVデータ2!V26+CSVデータ3!V26+CSVデータ4!V26 -> 41345 | X26: =CSVデータ1!X26+CSVデータ2!X26+CSVデータ3!X26+CSVデータ4!X26 -> 25386 | Z26: =CSVデータ1!Z26+CSVデータ2!Z26+CSVデータ3!Z26+CSVデータ4!Z26 -> 41971 | AB26: =CSVデータ1!AB26+CSVデータ2!AB26+CSVデータ3!AB26+CSVデータ4!AB26 -> 1340 | AD26: =CSVデータ1!AD26+CSVデータ2!AD26+CSVデータ3!AD26+CSVデータ4!AD26 -> 16183 | AF26: =CSVデータ1!AF26+CSVデータ2!AF26+CSVデータ3!AF26+CSVデータ4!AF26 -> 17287
A27: =CSVデータ1!A27 -> 明細部 | B27: =CSVデータ1!B27 -> 国 | C27: =CSVデータ1!C27 -> 63 | D27: =CSVデータ1!D27 -> 男 | E27: =CSVデータ1!E27+CSVデータ2!E27+CSVデータ3!E27+CSVデータ4!E27 -> 115427 | F27: =CSVデータ1!F27+CSVデータ2!F27+CSVデータ3!F27+CSVデータ4!F27 -> 40061 | H27: =CSVデータ1!H27+CSVデータ2!H27+CSVデータ3!H27+CSVデータ4!H27 -> 63174 | J27: =CSVデータ1!J27+CSVデータ2!J27+CSVデータ3!J27+CSVデータ4!J27 -> 34913 | L27: =CSVデータ1!L27+CSVデータ2!L27+CSVデータ3!L27+CSVデータ4!L27 -> 25752 | N27: =CSVデータ1!N27+CSVデータ2!N27+CSVデータ3!N27+CSVデータ4!N27 -> 8988 | P27: =CSVデータ1!P27+CSVデータ2!P27+CSVデータ3!P27+CSVデータ4!P27 -> 36009 | R27: =CSVデータ1!R27+CSVデータ2!R27+CSVデータ3!R27+CSVデータ4!R27 -> 65982 | T27: =CSVデータ1!T27+CSVデータ2!T27+CSVデータ3!T27+CSVデータ4!T27 -> 14812 | V27: =CSVデータ1!V27+CSVデータ2!V27+CSVデータ3!V27+CSVデータ4!V27 -> 55064 | X27: =CSVデータ1!X27+CSVデータ2!X27+CSVデータ3!X27+CSVデータ4!X27 -> 34906 | Z27: =CSVデータ1!Z27+CSVデータ2!Z27+CSVデータ3!Z27+CSVデータ4!Z27 -> 56717 | AB27: =CSVデータ1!AB27+CSVデータ2!AB27+CSVデータ3!AB27+CSVデータ4!AB27 -> 1942 | AD27: =CSVデータ1!AD27+CSVデータ2!AD27+CSVデータ3!AD27+CSVデータ4!AD27 -> 23124 | AF27: =CSVデータ1!AF27+CSVデータ2!AF27+CSVデータ3!AF27+CSVデータ4!AF27 -> 24706
A28: =CSVデータ1!A28 -> 明細部 | B28: =CSVデータ1!B28 -> 国 | C28: =CSVデータ1!C28 -> 64 | D28: =CSVデータ1!D28 -> 男 | E28: =CSVデータ1!E28+CSVデータ2!E28+CSVデータ3!E28+CSVデータ4!E28 -> 139170 | F28: =CSVデータ1!F28+CSVデータ2!F28+CSVデータ3!F28+CSVデータ4!F28 -> 45156 | H28: =CSVデータ1!H28+CSVデータ2!H28+CSVデータ3!H28+CSVデータ4!H28 -> 75155 | J28: =CSVデータ1!J28+CSVデータ2!J28+CSVデータ3!J28+CSVデータ4!J28 -> 41480 | L28: =CSVデータ1!L28+CSVデータ2!L28+CSVデータ3!L28+CSVデータ4!L28 -> 30967 | N28: =CSVデータ1!N28+CSVデータ2!N28+CSVデータ3!N28+CSVデータ4!N28 -> 10775 | P28: =CSVデータ1!P28+CSVデータ2!P28+CSVデータ3!P28+CSVデータ4!P28 -> 43641 | R28: =CSVデータ1!R28+CSVデータ2!R28+CSVデータ3!R28+CSVデータ4!R28 -> 81039 | T28: =CSVデータ1!T28+CSVデータ2!T28+CSVデータ3!T28+CSVデータ4!T28 -> 17387 | V28: =CSVデータ1!V28+CSVデータ2!V28+CSVデータ3!V28+CSVデータ4!V28 -> 68130 | X28: =CSVデータ1!X28+CSVデータ2!X28+CSVデータ3!X28+CSVデータ4!X28 -> 40016 | Z28: =CSVデータ1!Z28+CSVデータ2!Z28+CSVデータ3!Z28+CSVデータ4!Z28 -> 68576 | AB28: =CSVデータ1!AB28+CSVデータ2!AB28+CSVデータ3!AB28+CSVデータ4!AB28 -> 2393 | AD28: =CSVデータ1!AD28+CSVデータ2!AD28+CSVデータ3!AD28+CSVデータ4!AD28 -> 28871 | AF28: =CSVデータ1!AF28+CSVデータ2!AF28+CSVデータ3!AF28+CSVデータ4!AF28 -> 29320
A29: =CSVデータ1!A29 -> 明細部 | B29: =CSVデータ1!B29 -> 国 | C29: =CSVデータ1!C29 -> 65 | D29: =CSVデータ1!D29 -> 男 | E29: =CSVデータ1!E29+CSVデータ2!E29+CSVデータ3!E29+CSVデータ4!E29 -> 168728 | F29: =CSVデータ1!F29+CSVデータ2!F29+CSVデータ3!F29+CSVデータ4!F29 -> 57787 | H29: =CSVデータ1!H29+CSVデータ2!H29+CSVデータ3!H29+CSVデータ4!H29 -> 88465 | J29: =CSVデータ1!J29+CSVデータ2!J29+CSVデータ3!J29+CSVデータ4!J29 -> 48938 | L29: =CSVデータ1!L29+CSVデータ2!L29+CSVデータ3!L29+CSVデータ4!L29 -> 34796 | N29: =CSVデータ1!N29+CSVデータ2!N29+CSVデータ3!N29+CSVデータ4!N29 -> 13307 | P29: =CSVデータ1!P29+CSVデータ2!P29+CSVデータ3!P29+CSVデータ4!P29 -> 54972 | R29: =CSVデータ1!R29+CSVデータ2!R29+CSVデータ3!R29+CSVデータ4!R29 -> 101819 | T29: =CSVデータ1!T29+CSVデータ2!T29+CSVデータ3!T29+CSVデータ4!T29 -> 21220 | V29: =CSVデータ1!V29+CSVデータ2!V29+CSVデータ3!V29+CSVデータ4!V29 -> 83504 | X29: =CSVデータ1!X29+CSVデータ2!X29+CSVデータ3!X29+CSVデータ4!X29 -> 48981 | Z29: =CSVデータ1!Z29+CSVデータ2!Z29+CSVデータ3!Z29+CSVデータ4!Z29 -> 80627 | AB29: =CSVデータ1!AB29+CSVデータ2!AB29+CSVデータ3!AB29+CSVデータ4!AB29 -> 3007 | AD29: =CSVデータ1!AD29+CSVデータ2!AD29+CSVデータ3!AD29+CSVデータ4!AD29 -> 37515 | AF29: =CSVデータ1!AF29+CSVデータ2!AF29+CSVデータ3!AF29+CSVデータ4!AF29 -> 35216
A30: =CSVデータ1!A30 -> 明細部 | B30: =CSVデータ1!B30 -> 国 | C30: =CSVデータ1!C30 -> 66 | D30: =CSVデータ1!D30 -> 男 | E30: =CSVデータ1!E30+CSVデータ2!E30+CSVデータ3!E30+CSVデータ4!E30 -> 221319 | F30: =CSVデータ1!F30+CSVデータ2!F30+CSVデータ3!F30+CSVデータ4!F30 -> 72286 | H30: =CSVデータ1!H30+CSVデータ2!H30+CSVデータ3!H30+CSVデータ4!H30 -> 121469 | J30: =CSVデータ1!J30+CSVデータ2!J30+CSVデータ3!J30+CSVデータ4!J30 -> 65122 | L30: =CSVデータ1!L30+CSVデータ2!L30+CSVデータ3!L30+CSVデータ4!L30 -> 44109 | N30: =CSVデータ1!N30+CSVデータ2!N30+CSVデータ3!N30+CSVデータ4!N30 -> 16740 | P30: =CSVデータ1!P30+CSVデータ2!P30+CSVデータ3!P30+CSVデータ4!P30 -> 69555 | R30: =CSVデータ1!R30+CSVデータ2!R30+CSVデータ3!R30+CSVデータ4!R30 -> 126844 | T30: =CSVデータ1!T30+CSVデータ2!T30+CSVデータ3!T30+CSVデータ4!T30 -> 27372 | V30: =CSVデータ1!V30+CSVデータ2!V30+CSVデータ3!V30+CSVデータ4!V30 -> 111622 | X30: =CSVデータ1!X30+CSVデータ2!X30+CSVデータ3!X30+CSVデータ4!X30 -> 58679 | Z30: =CSVデータ1!Z30+CSVデータ2!Z30+CSVデータ3!Z30+CSVデータ4!Z30 -> 108440 | AB30: =CSVデータ1!AB30+CSVデータ2!AB30+CSVデータ3!AB30+CSVデータ4!AB30 -> 4181 | AD30: =CSVデータ1!AD30+CSVデータ2!AD30+CSVデータ3!AD30+CSVデータ4!AD30 -> 49267 | AF30: =CSVデータ1!AF30+CSVデータ2!AF30+CSVデータ3!AF30+CSVデータ4!AF30 -> 46531
A31: =CSVデータ1!A31 -> 明細部 | B31: =CSVデータ1!B31 -> 国 | C31: =CSVデータ1!C31 -> 67 | D31: =CSVデータ1!D31 -> 男 | E31: =CSVデータ1!E31+CSVデータ2!E31+CSVデータ3!E31+CSVデータ4!E31 -> 253431 | F31: =CSVデータ1!F31+CSVデータ2!F31+CSVデータ3!F31+CSVデータ4!F31 -> 84535 | H31: =CSVデータ1!H31+CSVデータ2!H31+CSVデータ3!H31+CSVデータ4!H31 -> 137895 | J31: =CSVデータ1!J31+CSVデータ2!J31+CSVデータ3!J31+CSVデータ4!J31 -> 74275 | L31: =CSVデータ1!L31+CSVデータ2!L31+CSVデータ3!L31+CSVデータ4!L31 -> 50830 | N31: =CSVデータ1!N31+CSVデータ2!N31+CSVデータ3!N31+CSVデータ4!N31 -> 19580 | P31: =CSVデータ1!P31+CSVデータ2!P31+CSVデータ3!P31+CSVデータ4!P31 -> 87933 | R31: =CSVデータ1!R31+CSVデータ2!R31+CSVデータ3!R31+CSVデータ4!R31 -> 151991 | T31: =CSVデータ1!T31+CSVデータ2!T31+CSVデータ3!T31+CSVデータ4!T31 -> 32597 | V31: =CSVデータ1!V31+CSVデータ2!V31+CSVデータ3!V31+CSVデータ4!V31 -> 135519 | X31: =CSVデータ1!X31+CSVデータ2!X31+CSVデータ3!X31+CSVデータ4!X31 -> 65411 | Z31: =CSVデータ1!Z31+CSVデータ2!Z31+CSVデータ3!Z31+CSVデータ4!Z31 -> 126275 | AB31: =CSVデータ1!AB31+CSVデータ2!AB31+CSVデータ3!AB31+CSVデータ4!AB31 -> 5247 | AD31: =CSVデータ1!AD31+CSVデータ2!AD31+CSVデータ3!AD31+CSVデータ4!AD31 -> 58066 | AF31: =CSVデータ1!AF31+CSVデータ2!AF31+CSVデータ3!AF31+CSVデータ4!AF31 -> 50590
A32: =CSVデータ1!A32 -> 明細部 | B32: =CSVデータ1!B32 -> 国 | C32: =CSVデータ1!C32 -> 68 | D32: =CSVデータ1!D32 -> 男 | E32: =CSVデータ1!E32+CSVデータ2!E32+CSVデータ3!E32+CSVデータ4!E32 -> 316266 | F32: =CSVデータ1!F32+CSVデータ2!F32+CSVデータ3!F32+CSVデータ4!F32 -> 96064 | H32: =CSVデータ1!H32+CSVデータ2!H32+CSVデータ3!H32+CSVデータ4!H32 -> 172760 | J32: =CSVデータ1!J32+CSVデータ2!J32+CSVデータ3!J32+CSVデータ4!J32 -> 89190 | L32: =CSVデータ1!L32+CSVデータ2!L32+CSVデータ3!L32+CSVデータ4!L32 -> 57990 | N32: =CSVデータ1!N32+CSVデータ2!N32+CSVデータ3!N32+CSVデータ4!N32 -> 23691 | P32: =CSVデータ1!P32+CSVデータ2!P32+CSVデータ3!P32+CSVデータ4!P32 -> 105174 | R32: =CSVデータ1!R32+CSVデータ2!R32+CSVデータ3!R32+CSVデータ4!R32 -> 195439 | T32: =CSVデータ1!T32+CSVデータ2!T32+CSVデータ3!T32+CSVデータ4!T32 -> 40883 | V32: =CSVデータ1!V32+CSVデータ2!V32+CSVデータ3!V32+CSVデータ4!V32 -> 173250 | X32: =CSVデータ1!X32+CSVデータ2!X32+CSVデータ3!X32+CSVデータ4!X32 -> 78401 | Z32: =CSVデータ1!Z32+CSVデータ2!Z32+CSVデータ3!Z32+CSVデータ4!Z32 -> 154437 | AB32: =CSVデータ1!AB32+CSVデータ2!AB32+CSVデータ3!AB32+CSVデータ4!AB32 -> 6960 | AD32: =CSVデータ1!AD32+CSVデータ2!AD32+CSVデータ3!AD32+CSVデータ4!AD32 -> 72904 | AF32: =CSVデータ1!AF32+CSVデータ2!AF32+CSVデータ3!AF32+CSVデータ4!AF32 -> 64615
A33: =CSVデータ1!A33 -> 明細部 | B33: =CSVデータ1!B33 -> 国 | C33: =CSVデータ1!C33 -> 69 | D33: =CSVデータ1!D33 -> 男 | E33: =CSVデータ1!E33+CSVデータ2!E33+CSVデータ3!E33+CSVデータ4!E33 -> 381377 | F33: =CSVデータ1!F33+CSVデータ2!F33+CSVデータ3!F33+CSVデータ4!F33 -> 112519 | H33: =CSVデータ1!H33+CSVデータ2!H33+CSVデータ3!H33+CSVデータ4!H33 -> 201751 | J33: =CSVデータ1!J33+CSVデータ2!J33+CSVデータ3!J33+CSVデータ4!J33 -> 101899 | L33: =CSVデータ1!L33+CSVデータ2!L33+CSVデータ3!L33+CSVデータ4!L33 -> 65588 | N33: =CSVデータ1!N33+CSVデータ2!N33+CSVデータ3!N33+CSVデータ4!N33 -> 28152 | P33: =CSVデータ1!P33+CSVデータ2!P33+CSVデータ3!P33+CSVデータ4!P33 -> 126357 | R33: =CSVデータ1!R33+CSVデータ2!R33+CSVデータ3!R33+CSVデータ4!R33 -> 227014 | T33: =CSVデータ1!T33+CSVデータ2!T33+CSVデータ3!T33+CSVデータ4!T33 -> 44416 | V33: =CSVデータ1!V33+CSVデータ2!V33+CSVデータ3!V33+CSVデータ4!V33 -> 195568 | X33: =CSVデータ1!X33+CSVデータ2!X33+CSVデータ3!X33+CSVデータ4!X33 -> 89683 | Z33: =CSVデータ1!Z33+CSVデータ2!Z33+CSVデータ3!Z33+CSVデータ4!Z33 -> 172012 | AB33: =CSVデータ1!AB33+CSVデータ2!AB33+CSVデータ3!AB33+CSVデータ4!AB33 -> 8787 | AD33: =CSVデータ1!AD33+CSVデータ2!AD33+CSVデータ3!AD33+CSVデータ4!AD33 -> 89423 | AF33: =CSVデータ1!AF33+CSVデータ2!AF33+CSVデータ3!AF33+CSVデータ4!AF33 -> 70787
A34: =CSVデータ1!A34 -> 明細部 | B34: =CSVデータ1!B34 -> 国 | C34: =CSVデータ1!C34 -> 70 | D34: =CSVデータ1!D34 -> 男 | E34: =CSVデータ1!E34+CSVデータ2!E34+CSVデータ3!E34+CSVデータ4!E34 -> 397948 | F34: =CSVデータ1!F34+CSVデータ2!F34+CSVデータ3!F34+CSVデータ4!F34 -> 120675 | H34: =CSVデータ1!H34+CSVデータ2!H34+CSVデータ3!H34+CSVデータ4!H34 -> 216162 | J34: =CSVデータ1!J34+CSVデータ2!J34+CSVデータ3!J34+CSVデータ4!J34 -> 109185 | L34: =CSVデータ1!L34+CSVデータ2!L34+CSVデータ3!L34+CSVデータ4!L34 -> 68792 | N34: =CSVデータ1!N34+CSVデータ2!N34+CSVデータ3!N34+CSVデータ4!N34 -> 32270 | P34: =CSVデータ1!P34+CSVデータ2!P34+CSVデータ3!P34+CSVデータ4!P34 -> 133409 | R34: =CSVデータ1!R34+CSVデータ2!R34+CSVデータ3!R34+CSVデータ4!R34 -> 252233 | T34: =CSVデータ1!T34+CSVデータ2!T34+CSVデータ3!T34+CSVデータ4!T34 -> 48474 | V34: =CSVデータ1!V34+CSVデータ2!V34+CSVデータ3!V34+CSVデータ4!V34 -> 222641 | X34: =CSVデータ1!X34+CSVデータ2!X34+CSVデータ3!X34+CSVデータ4!X34 -> 93738 | Z34: =CSVデータ1!Z34+CSVデータ2!Z34+CSVデータ3!Z34+CSVデータ4!Z34 -> 182264 | AB34: =CSVデータ1!AB34+CSVデータ2!AB34+CSVデータ3!AB34+CSVデータ4!AB34 -> 10135 | AD34: =CSVデータ1!AD34+CSVデータ2!AD34+CSVデータ3!AD34+CSVデータ4!AD34 -> 102808 | AF34: =CSVデータ1!AF34+CSVデータ2!AF34+CSVデータ3!AF34+CSVデータ4!AF34 -> 76470
A35: =CSVデータ1!A35 -> 明細部 | B35: =CSVデータ1!B35 -> 国 | C35: =CSVデータ1!C35 -> 71 | D35: =CSVデータ1!D35 -> 男 | E35: =CSVデータ1!E35+CSVデータ2!E35+CSVデータ3!E35+CSVデータ4!E35 -> 434892 | F35: =CSVデータ1!F35+CSVデータ2!F35+CSVデータ3!F35+CSVデータ4!F35 -> 127051 | H35: =CSVデータ1!H35+CSVデータ2!H35+CSVデータ3!H35+CSVデータ4!H35 -> 219979 | J35: =CSVデータ1!J35+CSVデータ2!J35+CSVデータ3!J35+CSVデータ4!J35 -> 105250 | L35: =CSVデータ1!L35+CSVデータ2!L35+CSVデータ3!L35+CSVデータ4!L35 -> 71080 | N35: =CSVデータ1!N35+CSVデータ2!N35+CSVデータ3!N35+CSVデータ4!N35 -> 34369 | P35: =CSVデータ1!P35+CSVデータ2!P35+CSVデータ3!P35+CSVデータ4!P35 -> 142239 | R35: =CSVデータ1!R35+CSVデータ2!R35+CSVデータ3!R35+CSVデータ4!R35 -> 276837 | T35: =CSVデータ1!T35+CSVデータ2!T35+CSVデータ3!T35+CSVデータ4!T35 -> 48794 | V35: =CSVデータ1!V35+CSVデータ2!V35+CSVデータ3!V35+CSVデータ4!V35 -> 239700 | X35: =CSVデータ1!X35+CSVデータ2!X35+CSVデータ3!X35+CSVデータ4!X35 -> 93218 | Z35: =CSVデータ1!Z35+CSVデータ2!Z35+CSVデータ3!Z35+CSVデータ4!Z35 -> 189487 | AB35: =CSVデータ1!AB35+CSVデータ2!AB35+CSVデータ3!AB35+CSVデータ4!AB35 -> 12259 | AD35: =CSVデータ1!AD35+CSVデータ2!AD35+CSVデータ3!AD35+CSVデータ4!AD35 -> 112777 | AF35: =CSVデータ1!AF35+CSVデータ2!AF35+CSVデータ3!AF35+CSVデータ4!AF35 -> 78634
A36: =CSVデータ1!A36 -> 明細部 | B36: =CSVデータ1!B36 -> 国 | C36: =CSVデータ1!C36 -> 72 | D36: =CSVデータ1!D36 -> 男 | E36: =CSVデータ1!E36+CSVデータ2!E36+CSVデータ3!E36+CSVデータ4!E36 -> 343143 | F36: =CSVデータ1!F36+CSVデータ2!F36+CSVデータ3!F36+CSVデータ4!F36 -> 96148 | H36: =CSVデータ1!H36+CSVデータ2!H36+CSVデータ3!H36+CSVデータ4!H36 -> 172116 | J36: =CSVデータ1!J36+CSVデータ2!J36+CSVデータ3!J36+CSVデータ4!J36 -> 84219 | L36: =CSVデータ1!L36+CSVデータ2!L36+CSVデータ3!L36+CSVデータ4!L36 -> 51352 | N36: =CSVデータ1!N36+CSVデータ2!N36+CSVデータ3!N36+CSVデータ4!N36 -> 25775 | P36: =CSVデータ1!P36+CSVデータ2!P36+CSVデータ3!P36+CSVデータ4!P36 -> 109263 | R36: =CSVデータ1!R36+CSVデータ2!R36+CSVデータ3!R36+CSVデータ4!R36 -> 213426 | T36: =CSVデータ1!T36+CSVデータ2!T36+CSVデータ3!T36+CSVデータ4!T36 -> 38795 | V36: =CSVデータ1!V36+CSVデータ2!V36+CSVデータ3!V36+CSVデータ4!V36 -> 183035 | X36: =CSVデータ1!X36+CSVデータ2!X36+CSVデータ3!X36+CSVデータ4!X36 -> 66379 | Z36: =CSVデータ1!Z36+CSVデータ2!Z36+CSVデータ3!Z36+CSVデータ4!Z36 -> 150633 | AB36: =CSVデータ1!AB36+CSVデータ2!AB36+CSVデータ3!AB36+CSVデータ4!AB36 -> 10587 | AD36: =CSVデータ1!AD36+CSVデータ2!AD36+CSVデータ3!AD36+CSVデータ4!AD36 -> 84447 | AF36: =CSVデータ1!AF36+CSVデータ2!AF36+CSVデータ3!AF36+CSVデータ4!AF36 -> 61209
A37: =CSVデータ1!A37 -> 明細部 | B37: =CSVデータ1!B37 -> 国 | C37: =CSVデータ1!C37 -> 73 | D37: =CSVデータ1!D37 -> 男 | E37: =CSVデータ1!E37+CSVデータ2!E37+CSVデータ3!E37+CSVデータ4!E37 -> 233987 | F37: =CSVデータ1!F37+CSVデータ2!F37+CSVデータ3!F37+CSVデータ4!F37 -> 64157 | H37: =CSVデータ1!H37+CSVデータ2!H37+CSVデータ3!H37+CSVデータ4!H37 -> 123119 | J37: =CSVデータ1!J37+CSVデータ2!J37+CSVデータ3!J37+CSVデータ4!J37 -> 56557 | L37: =CSVデータ1!L37+CSVデータ2!L37+CSVデータ3!L37+CSVデータ4!L37 -> 34558 | N37: =CSVデータ1!N37+CSVデータ2!N37+CSVデータ3!N37+CSVデータ4!N37 -> 18533 | P37: =CSVデータ1!P37+CSVデータ2!P37+CSVデータ3!P37+CSVデータ4!P37 -> 78527 | R37: =CSVデータ1!R37+CSVデータ2!R37+CSVデータ3!R37+CSVデータ4!R37 -> 157561 | T37: =CSVデータ1!T37+CSVデータ2!T37+CSVデータ3!T37+CSVデータ4!T37 -> 26288 | V37: =CSVデータ1!V37+CSVデータ2!V37+CSVデータ3!V37+CSVデータ4!V37 -> 130521 | X37: =CSVデータ1!X37+CSVデータ2!X37+CSVデータ3!X37+CSVデータ4!X37 -> 44755 | Z37: =CSVデータ1!Z37+CSVデータ2!Z37+CSVデータ3!Z37+CSVデータ4!Z37 -> 101569 | AB37: =CSVデータ1!AB37+CSVデータ2!AB37+CSVデータ3!AB37+CSVデータ4!AB37 -> 7935 | AD37: =CSVデータ1!AD37+CSVデータ2!AD37+CSVデータ3!AD37+CSVデータ4!AD37 -> 64202 | AF37: =CSVデータ1!AF37+CSVデータ2!AF37+CSVデータ3!AF37+CSVデータ4!AF37 -> 39103
A38: =CSVデータ1!A38 -> 明細部 | B38: =CSVデータ1!B38 -> 国 | C38: =CSVデータ1!C38 -> 74 | D38: =CSVデータ1!D38 -> 男 | E38: =CSVデータ1!E38+CSVデータ2!E38+CSVデータ3!E38+CSVデータ4!E38 -> 304524 | F38: =CSVデータ1!F38+CSVデータ2!F38+CSVデータ3!F38+CSVデータ4!F38 -> 83268 | H38: =CSVデータ1!H38+CSVデータ2!H38+CSVデータ3!H38+CSVデータ4!H38 -> 155363 | J38: =CSVデータ1!J38+CSVデータ2!J38+CSVデータ3!J38+CSVデータ4!J38 -> 69432 | L38: =CSVデータ1!L38+CSVデータ2!L38+CSVデータ3!L38+CSVデータ4!L38 -> 41688 | N38: =CSVデータ1!N38+CSVデータ2!N38+CSVデータ3!N38+CSVデータ4!N38 -> 24390 | P38: =CSVデータ1!P38+CSVデータ2!P38+CSVデータ3!P38+CSVデータ4!P38 -> 94275 | R38: =CSVデータ1!R38+CSVデータ2!R38+CSVデータ3!R38+CSVデータ4!R38 -> 203727 | T38: =CSVデータ1!T38+CSVデータ2!T38+CSVデータ3!T38+CSVデータ4!T38 -> 33139 | V38: =CSVデータ1!V38+CSVデータ2!V38+CSVデータ3!V38+CSVデータ4!V38 -> 166763 | X38: =CSVデータ1!X38+CSVデータ2!X38+CSVデータ3!X38+CSVデータ4!X38 -> 53013 | Z38: =CSVデータ1!Z38+CSVデータ2!Z38+CSVデータ3!Z38+CSVデータ4!Z38 -> 127100 | AB38: =CSVデータ1!AB38+CSVデータ2!AB38+CSVデータ3!AB38+CSVデータ4!AB38 -> 11123 | AD38: =CSVデータ1!AD38+CSVデータ2!AD38+CSVデータ3!AD38+CSVデータ4!AD38 -> 81087 | AF38: =CSVデータ1!AF38+CSVデータ2!AF38+CSVデータ3!AF38+CSVデータ4!AF38 -> 53394
A39: =CSVデータ1!A39 -> 明細部 | B39: =CSVデータ1!B39 -> 国 | C39: =CSVデータ1!C39 -> 40 | D39: =CSVデータ1!D39 -> 女 | E39: =CSVデータ1!E39+CSVデータ2!E39+CSVデータ3!E39+CSVデータ4!E39 -> 41797 | F39: =CSVデータ1!F39+CSVデータ2!F39+CSVデータ3!F39+CSVデータ4!F39 -> 6945 | H39: =CSVデータ1!H39+CSVデータ2!H39+CSVデータ3!H39+CSVデータ4!H39 -> 4600 | J39: =CSVデータ1!J39+CSVデータ2!J39+CSVデータ3!J39+CSVデータ4!J39 -> 3463 | L39: =CSVデータ1!L39+CSVデータ2!L39+CSVデータ3!L39+CSVデータ4!L39 -> 2659 | N39: =CSVデータ1!N39+CSVデータ2!N39+CSVデータ3!N39+CSVデータ4!N39 -> 691 | P39: =CSVデータ1!P39+CSVデータ2!P39+CSVデータ3!P39+CSVデータ4!P39 -> 2409 | R39: =CSVデータ1!R39+CSVデータ2!R39+CSVデータ3!R39+CSVデータ4!R39 -> 7968 | T39: =CSVデータ1!T39+CSVデータ2!T39+CSVデータ3!T39+CSVデータ4!T39 -> 340 | V39: =CSVデータ1!V39+CSVデータ2!V39+CSVデータ3!V39+CSVデータ4!V39 -> 3810 | X39: =CSVデータ1!X39+CSVデータ2!X39+CSVデータ3!X39+CSVデータ4!X39 -> 2990 | Z39: =CSVデータ1!Z39+CSVデータ2!Z39+CSVデータ3!Z39+CSVデータ4!Z39 -> 13837 | AB39: =CSVデータ1!AB39+CSVデータ2!AB39+CSVデータ3!AB39+CSVデータ4!AB39 -> 17 | AD39: =CSVデータ1!AD39+CSVデータ2!AD39+CSVデータ3!AD39+CSVデータ4!AD39 -> 4600 | AF39: =CSVデータ1!AF39+CSVデータ2!AF39+CSVデータ3!AF39+CSVデータ4!AF39 -> 6330
A40: =CSVデータ1!A40 -> 明細部 | B40: =CSVデータ1!B40 -> 国 | C40: =CSVデータ1!C40 -> 41 | D40: =CSVデータ1!D40 -> 女 | E40: =CSVデータ1!E40+CSVデータ2!E40+CSVデータ3!E40+CSVデータ4!E40 -> 40766 | F40: =CSVデータ1!F40+CSVデータ2!F40+CSVデータ3!F40+CSVデータ4!F40 -> 6903 | H40: =CSVデータ1!H40+CSVデータ2!H40+CSVデータ3!H40+CSVデータ4!H40 -> 4351 | J40: =CSVデータ1!J40+CSVデータ2!J40+CSVデータ3!J40+CSVデータ4!J40 -> 3179 | L40: =CSVデータ1!L40+CSVデータ2!L40+CSVデータ3!L40+CSVデータ4!L40 -> 2307 | N40: =CSVデータ1!N40+CSVデータ2!N40+CSVデータ3!N40+CSVデータ4!N40 -> 651 | P40: =CSVデータ1!P40+CSVデータ2!P40+CSVデータ3!P40+CSVデータ4!P40 -> 2254 | R40: =CSVデータ1!R40+CSVデータ2!R40+CSVデータ3!R40+CSVデータ4!R40 -> 8076 | T40: =CSVデータ1!T40+CSVデータ2!T40+CSVデータ3!T40+CSVデータ4!T40 -> 304 | V40: =CSVデータ1!V40+CSVデータ2!V40+CSVデータ3!V40+CSVデータ4!V40 -> 4166 | X40: =CSVデータ1!X40+CSVデータ2!X40+CSVデータ3!X40+CSVデータ4!X40 -> 3080 | Z40: =CSVデータ1!Z40+CSVデータ2!Z40+CSVデータ3!Z40+CSVデータ4!Z40 -> 13418 | AB40: =CSVデータ1!AB40+CSVデータ2!AB40+CSVデータ3!AB40+CSVデータ4!AB40 -> 11 | AD40: =CSVデータ1!AD40+CSVデータ2!AD40+CSVデータ3!AD40+CSVデータ4!AD40 -> 4311 | AF40: =CSVデータ1!AF40+CSVデータ2!AF40+CSVデータ3!AF40+CSVデータ4!AF40 -> 5432
A41: =CSVデータ1!A41 -> 明細部 | B41: =CSVデータ1!B41 -> 国 | C41: =CSVデータ1!C41 -> 42 | D41: =CSVデータ1!D41 -> 女 | E41: =CSVデータ1!E41+CSVデータ2!E41+CSVデータ3!E41+CSVデータ4!E41 -> 40097 | F41: =CSVデータ1!F41+CSVデータ2!F41+CSVデータ3!F41+CSVデータ4!F41 -> 7313 | H41: =CSVデータ1!H41+CSVデータ2!H41+CSVデータ3!H41+CSVデータ4!H41 -> 4531 | J41: =CSVデータ1!J41+CSVデータ2!J41+CSVデータ3!J41+CSVデータ4!J41 -> 3361 | L41: =CSVデータ1!L41+CSVデータ2!L41+CSVデータ3!L41+CSVデータ4!L41 -> 2426 | N41: =CSVデータ1!N41+CSVデータ2!N41+CSVデータ3!N41+CSVデータ4!N41 -> 599 | P41: =CSVデータ1!P41+CSVデータ2!P41+CSVデータ3!P41+CSVデータ4!P41 -> 2377 | R41: =CSVデータ1!R41+CSVデータ2!R41+CSVデータ3!R41+CSVデータ4!R41 -> 8523 | T41: =CSVデータ1!T41+CSVデータ2!T41+CSVデータ3!T41+CSVデータ4!T41 -> 304 | V41: =CSVデータ1!V41+CSVデータ2!V41+CSVデータ3!V41+CSVデータ4!V41 -> 4394 | X41: =CSVデータ1!X41+CSVデータ2!X41+CSVデータ3!X41+CSVデータ4!X41 -> 3041 | Z41: =CSVデータ1!Z41+CSVデータ2!Z41+CSVデータ3!Z41+CSVデータ4!Z41 -> 14219 | AB41: =CSVデータ1!AB41+CSVデータ2!AB41+CSVデータ3!AB41+CSVデータ4!AB41 -> 19 | AD41: =CSVデータ1!AD41+CSVデータ2!AD41+CSVデータ3!AD41+CSVデータ4!AD41 -> 4252 | AF41: =CSVデータ1!AF41+CSVデータ2!AF41+CSVデータ3!AF41+CSVデータ4!AF41 -> 5709
A42: =CSVデータ1!A42 -> 明細部 | B42: =CSVデータ1!B42 -> 国 | C42: =CSVデータ1!C42 -> 43 | D42: =CSVデータ1!D42 -> 女 | E42: =CSVデータ1!E42+CSVデータ2!E42+CSVデータ3!E42+CSVデータ4!E42 -> 43434 | F42: =CSVデータ1!F42+CSVデータ2!F42+CSVデータ3!F42+CSVデータ4!F42 -> 7707 | H42: =CSVデータ1!H42+CSVデータ2!H42+CSVデータ3!H42+CSVデータ4!H42 -> 5050 | J42: =CSVデータ1!J42+CSVデータ2!J42+CSVデータ3!J42+CSVデータ4!J42 -> 4038 | L42: =CSVデータ1!L42+CSVデータ2!L42+CSVデータ3!L42+CSVデータ4!L42 -> 2869 | N42: =CSVデータ1!N42+CSVデータ2!N42+CSVデータ3!N42+CSVデータ4!N42 -> 776 | P42: =CSVデータ1!P42+CSVデータ2!P42+CSVデータ3!P42+CSVデータ4!P42 -> 2648 | R42: =CSVデータ1!R42+CSVデータ2!R42+CSVデータ3!R42+CSVデータ4!R42 -> 9475 | T42: =CSVデータ1!T42+CSVデータ2!T42+CSVデータ3!T42+CSVデータ4!T42 -> 366 | V42: =CSVデータ1!V42+CSVデータ2!V42+CSVデータ3!V42+CSVデータ4!V42 -> 5121 | X42: =CSVデータ1!X42+CSVデータ2!X42+CSVデータ3!X42+CSVデータ4!X42 -> 3720 | Z42: =CSVデータ1!Z42+CSVデータ2!Z42+CSVデータ3!Z42+CSVデータ4!Z42 -> 16252 | AB42: =CSVデータ1!AB42+CSVデータ2!AB42+CSVデータ3!AB42+CSVデータ4!AB42 -> 26 | AD42: =CSVデータ1!AD42+CSVデータ2!AD42+CSVデータ3!AD42+CSVデータ4!AD42 -> 4572 | AF42: =CSVデータ1!AF42+CSVデータ2!AF42+CSVデータ3!AF42+CSVデータ4!AF42 -> 6197
A43: =CSVデータ1!A43 -> 明細部 | B43: =CSVデータ1!B43 -> 国 | C43: =CSVデータ1!C43 -> 44 | D43: =CSVデータ1!D43 -> 女 | E43: =CSVデータ1!E43+CSVデータ2!E43+CSVデータ3!E43+CSVデータ4!E43 -> 47752 | F43: =CSVデータ1!F43+CSVデータ2!F43+CSVデータ3!F43+CSVデータ4!F43 -> 9360 | H43: =CSVデータ1!H43+CSVデータ2!H43+CSVデータ3!H43+CSVデータ4!H43 -> 5803 | J43: =CSVデータ1!J43+CSVデータ2!J43+CSVデータ3!J43+CSVデータ4!J43 -> 4179 | L43: =CSVデータ1!L43+CSVデータ2!L43+CSVデータ3!L43+CSVデータ4!L43 -> 3162 | N43: =CSVデータ1!N43+CSVデータ2!N43+CSVデータ3!N43+CSVデータ4!N43 -> 726 | P43: =CSVデータ1!P43+CSVデータ2!P43+CSVデータ3!P43+CSVデータ4!P43 -> 3043 | R43: =CSVデータ1!R43+CSVデータ2!R43+CSVデータ3!R43+CSVデータ4!R43 -> 11224 | T43: =CSVデータ1!T43+CSVデータ2!T43+CSVデータ3!T43+CSVデータ4!T43 -> 375 | V43: =CSVデータ1!V43+CSVデータ2!V43+CSVデータ3!V43+CSVデータ4!V43 -> 6580 | X43: =CSVデータ1!X43+CSVデータ2!X43+CSVデータ3!X43+CSVデータ4!X43 -> 4527 | Z43: =CSVデータ1!Z43+CSVデータ2!Z43+CSVデータ3!Z43+CSVデータ4!Z43 -> 17757 | AB43: =CSVデータ1!AB43+CSVデータ2!AB43+CSVデータ3!AB43+CSVデータ4!AB43 -> 42 | AD43: =CSVデータ1!AD43+CSVデータ2!AD43+CSVデータ3!AD43+CSVデータ4!AD43 -> 5008 | AF43: =CSVデータ1!AF43+CSVデータ2!AF43+CSVデータ3!AF43+CSVデータ4!AF43 -> 6754
A44: =CSVデータ1!A44 -> 明細部 | B44: =CSVデータ1!B44 -> 国 | C44: =CSVデータ1!C44 -> 45 | D44: =CSVデータ1!D44 -> 女 | E44: =CSVデータ1!E44+CSVデータ2!E44+CSVデータ3!E44+CSVデータ4!E44 -> 50394 | F44: =CSVデータ1!F44+CSVデータ2!F44+CSVデータ3!F44+CSVデータ4!F44 -> 9707 | H44: =CSVデータ1!H44+CSVデータ2!H44+CSVデータ3!H44+CSVデータ4!H44 -> 6092 | J44: =CSVデータ1!J44+CSVデータ2!J44+CSVデータ3!J44+CSVデータ4!J44 -> 4776 | L44: =CSVデータ1!L44+CSVデータ2!L44+CSVデータ3!L44+CSVデータ4!L44 -> 3217 | N44: =CSVデータ1!N44+CSVデータ2!N44+CSVデータ3!N44+CSVデータ4!N44 -> 805 | P44: =CSVデータ1!P44+CSVデータ2!P44+CSVデータ3!P44+CSVデータ4!P44 -> 3578 | R44: =CSVデータ1!R44+CSVデータ2!R44+CSVデータ3!R44+CSVデータ4!R44 -> 12338 | T44: =CSVデータ1!T44+CSVデータ2!T44+CSVデータ3!T44+CSVデータ4!T44 -> 478 | V44: =CSVデータ1!V44+CSVデータ2!V44+CSVデータ3!V44+CSVデータ4!V44 -> 7006 | X44: =CSVデータ1!X44+CSVデータ2!X44+CSVデータ3!X44+CSVデータ4!X44 -> 4945 | Z44: =CSVデータ1!Z44+CSVデータ2!Z44+CSVデータ3!Z44+CSVデータ4!Z44 -> 19300 | AB44: =CSVデータ1!AB44+CSVデータ2!AB44+CSVデータ3!AB44+CSVデータ4!AB44 -> 34 | AD44: =CSVデータ1!AD44+CSVデータ2!AD44+CSVデータ3!AD44+CSVデータ4!AD44 -> 5587 | AF44: =CSVデータ1!AF44+CSVデータ2!AF44+CSVデータ3!AF44+CSVデータ4!AF44 -> 8107
A45: =CSVデータ1!A45 -> 明細部 | B45: =CSVデータ1!B45 -> 国 | C45: =CSVデータ1!C45 -> 46 | D45: =CSVデータ1!D45 -> 女 | E45: =CSVデータ1!E45+CSVデータ2!E45+CSVデータ3!E45+CSVデータ4!E45 -> 53716 | F45: =CSVデータ1!F45+CSVデータ2!F45+CSVデータ3!F45+CSVデータ4!F45 -> 10390 | H45: =CSVデータ1!H45+CSVデータ2!H45+CSVデータ3!H45+CSVデータ4!H45 -> 6886 | J45: =CSVデータ1!J45+CSVデータ2!J45+CSVデータ3!J45+CSVデータ4!J45 -> 5073 | L45: =CSVデータ1!L45+CSVデータ2!L45+CSVデータ3!L45+CSVデータ4!L45 -> 3538 | N45: =CSVデータ1!N45+CSVデータ2!N45+CSVデータ3!N45+CSVデータ4!N45 -> 858 | P45: =CSVデータ1!P45+CSVデータ2!P45+CSVデータ3!P45+CSVデータ4!P45 -> 3818 | R45: =CSVデータ1!R45+CSVデータ2!R45+CSVデータ3!R45+CSVデータ4!R45 -> 12695 | T45: =CSVデータ1!T45+CSVデータ2!T45+CSVデータ3!T45+CSVデータ4!T45 -> 484 | V45: =CSVデータ1!V45+CSVデータ2!V45+CSVデータ3!V45+CSVデータ4!V45 -> 8399 | X45: =CSVデータ1!X45+CSVデータ2!X45+CSVデータ3!X45+CSVデータ4!X45 -> 5604 | Z45: =CSVデータ1!Z45+CSVデータ2!Z45+CSVデータ3!Z45+CSVデータ4!Z45 -> 21525 | AB45: =CSVデータ1!AB45+CSVデータ2!AB45+CSVデータ3!AB45+CSVデータ4!AB45 -> 55 | AD45: =CSVデータ1!AD45+CSVデータ2!AD45+CSVデータ3!AD45+CSVデータ4!AD45 -> 6244 | AF45: =CSVデータ1!AF45+CSVデータ2!AF45+CSVデータ3!AF45+CSVデータ4!AF45 -> 7557
A46: =CSVデータ1!A46 -> 明細部 | B46: =CSVデータ1!B46 -> 国 | C46: =CSVデータ1!C46 -> 47 | D46: =CSVデータ1!D46 -> 女 | E46: =CSVデータ1!E46+CSVデータ2!E46+CSVデータ3!E46+CSVデータ4!E46 -> 49720 | F46: =CSVデータ1!F46+CSVデータ2!F46+CSVデータ3!F46+CSVデータ4!F46 -> 9829 | H46: =CSVデータ1!H46+CSVデータ2!H46+CSVデータ3!H46+CSVデータ4!H46 -> 6849 | J46: =CSVデータ1!J46+CSVデータ2!J46+CSVデータ3!J46+CSVデータ4!J46 -> 5546 | L46: =CSVデータ1!L46+CSVデータ2!L46+CSVデータ3!L46+CSVデータ4!L46 -> 3740 | N46: =CSVデータ1!N46+CSVデータ2!N46+CSVデータ3!N46+CSVデータ4!N46 -> 876 | P46: =CSVデータ1!P46+CSVデータ2!P46+CSVデータ3!P46+CSVデータ4!P46 -> 3939 | R46: =CSVデータ1!R46+CSVデータ2!R46+CSVデータ3!R46+CSVデータ4!R46 -> 14106 | T46: =CSVデータ1!T46+CSVデータ2!T46+CSVデータ3!T46+CSVデータ4!T46 -> 482 | V46: =CSVデータ1!V46+CSVデータ2!V46+CSVデータ3!V46+CSVデータ4!V46 -> 8812 | X46: =CSVデータ1!X46+CSVデータ2!X46+CSVデータ3!X46+CSVデータ4!X46 -> 5969 | Z46: =CSVデータ1!Z46+CSVデータ2!Z46+CSVデータ3!Z46+CSVデータ4!Z46 -> 21862 | AB46: =CSVデータ1!AB46+CSVデータ2!AB46+CSVデータ3!AB46+CSVデータ4!AB46 -> 49 | AD46: =CSVデータ1!AD46+CSVデータ2!AD46+CSVデータ3!AD46+CSVデータ4!AD46 -> 5998 | AF46: =CSVデータ1!AF46+CSVデータ2!AF46+CSVデータ3!AF46+CSVデータ4!AF46 -> 7358
A47: =CSVデータ1!A47 -> 明細部 | B47: =CSVデータ1!B47 -> 国 | C47: =CSVデータ1!C47 -> 48 | D47: =CSVデータ1!D47 -> 女 | E47: =CSVデータ1!E47+CSVデータ2!E47+CSVデータ3!E47+CSVデータ4!E47 -> 53733 | F47: =CSVデータ1!F47+CSVデータ2!F47+CSVデータ3!F47+CSVデータ4!F47 -> 10697 | H47: =CSVデータ1!H47+CSVデータ2!H47+CSVデータ3!H47+CSVデータ4!H47 -> 6948 | J47: =CSVデータ1!J47+CSVデータ2!J47+CSVデータ3!J47+CSVデータ4!J47 -> 5498 | L47: =CSVデータ1!L47+CSVデータ2!L47+CSVデータ3!L47+CSVデータ4!L47 -> 4107 | N47: =CSVデータ1!N47+CSVデータ2!N47+CSVデータ3!N47+CSVデータ4!N47 -> 688 | P47: =CSVデータ1!P47+CSVデータ2!P47+CSVデータ3!P47+CSVデータ4!P47 -> 4604 | R47: =CSVデータ1!R47+CSVデータ2!R47+CSVデータ3!R47+CSVデータ4!R47 -> 14399 | T47: =CSVデータ1!T47+CSVデータ2!T47+CSVデータ3!T47+CSVデータ4!T47 -> 563 | V47: =CSVデータ1!V47+CSVデータ2!V47+CSVデータ3!V47+CSVデータ4!V47 -> 9656 | X47: =CSVデータ1!X47+CSVデータ2!X47+CSVデータ3!X47+CSVデータ4!X47 -> 6294 | Z47: =CSVデータ1!Z47+CSVデータ2!Z47+CSVデータ3!Z47+CSVデータ4!Z47 -> 23405 | AB47: =CSVデータ1!AB47+CSVデータ2!AB47+CSVデータ3!AB47+CSVデータ4!AB47 -> 48 | AD47: =CSVデータ1!AD47+CSVデータ2!AD47+CSVデータ3!AD47+CSVデータ4!AD47 -> 6194 | AF47: =CSVデータ1!AF47+CSVデータ2!AF47+CSVデータ3!AF47+CSVデータ4!AF47 -> 7972
A48: =CSVデータ1!A48 -> 明細部 | B48: =CSVデータ1!B48 -> 国 | C48: =CSVデータ1!C48 -> 49 | D48: =CSVデータ1!D48 -> 女 | E48: =CSVデータ1!E48+CSVデータ2!E48+CSVデータ3!E48+CSVデータ4!E48 -> 52739 | F48: =CSVデータ1!F48+CSVデータ2!F48+CSVデータ3!F48+CSVデータ4!F48 -> 10560 | H48: =CSVデータ1!H48+CSVデータ2!H48+CSVデータ3!H48+CSVデータ4!H48 -> 7365 | J48: =CSVデータ1!J48+CSVデータ2!J48+CSVデータ3!J48+CSVデータ4!J48 -> 6041 | L48: =CSVデータ1!L48+CSVデータ2!L48+CSVデータ3!L48+CSVデータ4!L48 -> 4109 | N48: =CSVデータ1!N48+CSVデータ2!N48+CSVデータ3!N48+CSVデータ4!N48 -> 781 | P48: =CSVデータ1!P48+CSVデータ2!P48+CSVデータ3!P48+CSVデータ4!P48 -> 4556 | R48: =CSVデータ1!R48+CSVデータ2!R48+CSVデータ3!R48+CSVデータ4!R48 -> 16142 | T48: =CSVデータ1!T48+CSVデータ2!T48+CSVデータ3!T48+CSVデータ4!T48 -> 624 | V48: =CSVデータ1!V48+CSVデータ2!V48+CSVデータ3!V48+CSVデータ4!V48 -> 10202 | X48: =CSVデータ1!X48+CSVデータ2!X48+CSVデータ3!X48+CSVデータ4!X48 -> 6600 | Z48: =CSVデータ1!Z48+CSVデータ2!Z48+CSVデータ3!Z48+CSVデータ4!Z48 -> 25204 | AB48: =CSVデータ1!AB48+CSVデータ2!AB48+CSVデータ3!AB48+CSVデータ4!AB48 -> 37 | AD48: =CSVデータ1!AD48+CSVデータ2!AD48+CSVデータ3!AD48+CSVデータ4!AD48 -> 6189 | AF48: =CSVデータ1!AF48+CSVデータ2!AF48+CSVデータ3!AF48+CSVデータ4!AF48 -> 8198
A49: =CSVデータ1!A49 -> 明細部 | B49: =CSVデータ1!B49 -> 国 | C49: =CSVデータ1!C49 -> 50 | D49: =CSVデータ1!D49 -> 女 | E49: =CSVデータ1!E49+CSVデータ2!E49+CSVデータ3!E49+CSVデータ4!E49 -> 56219 | F49: =CSVデータ1!F49+CSVデータ2!F49+CSVデータ3!F49+CSVデータ4!F49 -> 11658 | H49: =CSVデータ1!H49+CSVデータ2!H49+CSVデータ3!H49+CSVデータ4!H49 -> 7755 | J49: =CSVデータ1!J49+CSVデータ2!J49+CSVデータ3!J49+CSVデータ4!J49 -> 7015 | L49: =CSVデータ1!L49+CSVデータ2!L49+CSVデータ3!L49+CSVデータ4!L49 -> 4937 | N49: =CSVデータ1!N49+CSVデータ2!N49+CSVデータ3!N49+CSVデータ4!N49 -> 806 | P49: =CSVデータ1!P49+CSVデータ2!P49+CSVデータ3!P49+CSVデータ4!P49 -> 5477 | R49: =CSVデータ1!R49+CSVデータ2!R49+CSVデータ3!R49+CSVデータ4!R49 -> 18063 | T49: =CSVデータ1!T49+CSVデータ2!T49+CSVデータ3!T49+CSVデータ4!T49 -> 746 | V49: =CSVデータ1!V49+CSVデータ2!V49+CSVデータ3!V49+CSVデータ4!V49 -> 12019 | X49: =CSVデータ1!X49+CSVデータ2!X49+CSVデータ3!X49+CSVデータ4!X49 -> 7519 | Z49: =CSVデータ1!Z49+CSVデータ2!Z49+CSVデータ3!Z49+CSVデータ4!Z49 -> 28110 | AB49: =CSVデータ1!AB49+CSVデータ2!AB49+CSVデータ3!AB49+CSVデータ4!AB49 -> 60 | AD49: =CSVデータ1!AD49+CSVデータ2!AD49+CSVデータ3!AD49+CSVデータ4!AD49 -> 7300 | AF49: =CSVデータ1!AF49+CSVデータ2!AF49+CSVデータ3!AF49+CSVデータ4!AF49 -> 9740
A50: =CSVデータ1!A50 -> 明細部 | B50: =CSVデータ1!B50 -> 国 | C50: =CSVデータ1!C50 -> 51 | D50: =CSVデータ1!D50 -> 女 | E50: =CSVデータ1!E50+CSVデータ2!E50+CSVデータ3!E50+CSVデータ4!E50 -> 55067 | F50: =CSVデータ1!F50+CSVデータ2!F50+CSVデータ3!F50+CSVデータ4!F50 -> 11464 | H50: =CSVデータ1!H50+CSVデータ2!H50+CSVデータ3!H50+CSVデータ4!H50 -> 8379 | J50: =CSVデータ1!J50+CSVデータ2!J50+CSVデータ3!J50+CSVデータ4!J50 -> 7161 | L50: =CSVデータ1!L50+CSVデータ2!L50+CSVデータ3!L50+CSVデータ4!L50 -> 5452 | N50: =CSVデータ1!N50+CSVデータ2!N50+CSVデータ3!N50+CSVデータ4!N50 -> 748 | P50: =CSVデータ1!P50+CSVデータ2!P50+CSVデータ3!P50+CSVデータ4!P50 -> 5893 | R50: =CSVデータ1!R50+CSVデータ2!R50+CSVデータ3!R50+CSVデータ4!R50 -> 20004 | T50: =CSVデータ1!T50+CSVデータ2!T50+CSVデータ3!T50+CSVデータ4!T50 -> 850 | V50: =CSVデータ1!V50+CSVデータ2!V50+CSVデータ3!V50+CSVデータ4!V50 -> 13694 | X50: =CSVデータ1!X50+CSVデータ2!X50+CSVデータ3!X50+CSVデータ4!X50 -> 8122 | Z50: =CSVデータ1!Z50+CSVデータ2!Z50+CSVデータ3!Z50+CSVデータ4!Z50 -> 29768 | AB50: =CSVデータ1!AB50+CSVデータ2!AB50+CSVデータ3!AB50+CSVデータ4!AB50 -> 67 | AD50: =CSVデータ1!AD50+CSVデータ2!AD50+CSVデータ3!AD50+CSVデータ4!AD50 -> 6973 | AF50: =CSVデータ1!AF50+CSVデータ2!AF50+CSVデータ3!AF50+CSVデータ4!AF50 -> 8560
A51: =CSVデータ1!A51 -> 明細部 | B51: =CSVデータ1!B51 -> 国 | C51: =CSVデータ1!C51 -> 52 | D51: =CSVデータ1!D51 -> 女 | E51: =CSVデータ1!E51+CSVデータ2!E51+CSVデータ3!E51+CSVデータ4!E51 -> 48620 | F51: =CSVデータ1!F51+CSVデータ2!F51+CSVデータ3!F51+CSVデータ4!F51 -> 9931 | H51: =CSVデータ1!H51+CSVデータ2!H51+CSVデータ3!H51+CSVデータ4!H51 -> 7732 | J51: =CSVデータ1!J51+CSVデータ2!J51+CSVデータ3!J51+CSVデータ4!J51 -> 6828 | L51: =CSVデータ1!L51+CSVデータ2!L51+CSVデータ3!L51+CSVデータ4!L51 -> 5511 | N51: =CSVデータ1!N51+CSVデータ2!N51+CSVデータ3!N51+CSVデータ4!N51 -> 617 | P51: =CSVデータ1!P51+CSVデータ2!P51+CSVデータ3!P51+CSVデータ4!P51 -> 5147 | R51: =CSVデータ1!R51+CSVデータ2!R51+CSVデータ3!R51+CSVデータ4!R51 -> 18475 | T51: =CSVデータ1!T51+CSVデータ2!T51+CSVデータ3!T51+CSVデータ4!T51 -> 785 | V51: =CSVデータ1!V51+CSVデータ2!V51+CSVデータ3!V51+CSVデータ4!V51 -> 11426 | X51: =CSVデータ1!X51+CSVデータ2!X51+CSVデータ3!X51+CSVデータ4!X51 -> 7657 | Z51: =CSVデータ1!Z51+CSVデータ2!Z51+CSVデータ3!Z51+CSVデータ4!Z51 -> 28222 | AB51: =CSVデータ1!AB51+CSVデータ2!AB51+CSVデータ3!AB51+CSVデータ4!AB51 -> 52 | AD51: =CSVデータ1!AD51+CSVデータ2!AD51+CSVデータ3!AD51+CSVデータ4!AD51 -> 6015 | AF51: =CSVデータ1!AF51+CSVデータ2!AF51+CSVデータ3!AF51+CSVデータ4!AF51 -> 7780
A52: =CSVデータ1!A52 -> 明細部 | B52: =CSVデータ1!B52 -> 国 | C52: =CSVデータ1!C52 -> 53 | D52: =CSVデータ1!D52 -> 女 | E52: =CSVデータ1!E52+CSVデータ2!E52+CSVデータ3!E52+CSVデータ4!E52 -> 54317 | F52: =CSVデータ1!F52+CSVデータ2!F52+CSVデータ3!F52+CSVデータ4!F52 -> 10956 | H52: =CSVデータ1!H52+CSVデータ2!H52+CSVデータ3!H52+CSVデータ4!H52 -> 8797 | J52: =CSVデータ1!J52+CSVデータ2!J52+CSVデータ3!J52+CSVデータ4!J52 -> 7728 | L52: =CSVデータ1!L52+CSVデータ2!L52+CSVデータ3!L52+CSVデータ4!L52 -> 6228 | N52: =CSVデータ1!N52+CSVデータ2!N52+CSVデータ3!N52+CSVデータ4!N52 -> 697 | P52: =CSVデータ1!P52+CSVデータ2!P52+CSVデータ3!P52+CSVデータ4!P52 -> 6261 | R52: =CSVデータ1!R52+CSVデータ2!R52+CSVデータ3!R52+CSVデータ4!R52 -> 23029 | T52: =CSVデータ1!T52+CSVデータ2!T52+CSVデータ3!T52+CSVデータ4!T52 -> 924 | V52: =CSVデータ1!V52+CSVデータ2!V52+CSVデータ3!V52+CSVデータ4!V52 -> 13680 | X52: =CSVデータ1!X52+CSVデータ2!X52+CSVデータ3!X52+CSVデータ4!X52 -> 8884 | Z52: =CSVデータ1!Z52+CSVデータ2!Z52+CSVデータ3!Z52+CSVデータ4!Z52 -> 34035 | AB52: =CSVデータ1!AB52+CSVデータ2!AB52+CSVデータ3!AB52+CSVデータ4!AB52 -> 73 | AD52: =CSVデータ1!AD52+CSVデータ2!AD52+CSVデータ3!AD52+CSVデータ4!AD52 -> 6988 | AF52: =CSVデータ1!AF52+CSVデータ2!AF52+CSVデータ3!AF52+CSVデータ4!AF52 -> 8599
A53: =CSVデータ1!A53 -> 明細部 | B53: =CSVデータ1!B53 -> 国 | C53: =CSVデータ1!C53 -> 54 | D53: =CSVデータ1!D53 -> 女 | E53: =CSVデータ1!E53+CSVデータ2!E53+CSVデータ3!E53+CSVデータ4!E53 -> 59398 | F53: =CSVデータ1!F53+CSVデータ2!F53+CSVデータ3!F53+CSVデータ4!F53 -> 12254 | H53: =CSVデータ1!H53+CSVデータ2!H53+CSVデータ3!H53+CSVデータ4!H53 -> 9560 | J53: =CSVデータ1!J53+CSVデータ2!J53+CSVデータ3!J53+CSVデータ4!J53 -> 8693 | L53: =CSVデータ1!L53+CSVデータ2!L53+CSVデータ3!L53+CSVデータ4!L53 -> 7190 | N53: =CSVデータ1!N53+CSVデータ2!N53+CSVデータ3!N53+CSVデータ4!N53 -> 736 | P53: =CSVデータ1!P53+CSVデータ2!P53+CSVデータ3!P53+CSVデータ4!P53 -> 7655 | R53: =CSVデータ1!R53+CSVデータ2!R53+CSVデータ3!R53+CSVデータ4!R53 -> 25985 | T53: =CSVデータ1!T53+CSVデータ2!T53+CSVデータ3!T53+CSVデータ4!T53 -> 1063 | V53: =CSVデータ1!V53+CSVデータ2!V53+CSVデータ3!V53+CSVデータ4!V53 -> 16543 | X53: =CSVデータ1!X53+CSVデータ2!X53+CSVデータ3!X53+CSVデータ4!X53 -> 9472 | Z53: =CSVデータ1!Z53+CSVデータ2!Z53+CSVデータ3!Z53+CSVデータ4!Z53 -> 36672 | AB53: =CSVデータ1!AB53+CSVデータ2!AB53+CSVデータ3!AB53+CSVデータ4!AB53 -> 78 | AD53: =CSVデータ1!AD53+CSVデータ2!AD53+CSVデータ3!AD53+CSVデータ4!AD53 -> 7897 | AF53: =CSVデータ1!AF53+CSVデータ2!AF53+CSVデータ3!AF53+CSVデータ4!AF53 -> 9629
A54: =CSVデータ1!A54 -> 明細部 | B54: =CSVデータ1!B54 -> 国 | C54: =CSVデータ1!C54 -> 55 | D54: =CSVデータ1!D54 -> 女 | E54: =CSVデータ1!E54+CSVデータ2!E54+CSVデータ3!E54+CSVデータ4!E54 -> 65044 | F54: =CSVデータ1!F54+CSVデータ2!F54+CSVデータ3!F54+CSVデータ4!F54 -> 12738 | H54: =CSVデータ1!H54+CSVデータ2!H54+CSVデータ3!H54+CSVデータ4!H54 -> 10326 | J54: =CSVデータ1!J54+CSVデータ2!J54+CSVデータ3!J54+CSVデータ4!J54 -> 9081 | L54: =CSVデータ1!L54+CSVデータ2!L54+CSVデータ3!L54+CSVデータ4!L54 -> 7692 | N54: =CSVデータ1!N54+CSVデータ2!N54+CSVデータ3!N54+CSVデータ4!N54 -> 721 | P54: =CSVデータ1!P54+CSVデータ2!P54+CSVデータ3!P54+CSVデータ4!P54 -> 8280 | R54: =CSVデータ1!R54+CSVデータ2!R54+CSVデータ3!R54+CSVデータ4!R54 -> 28692 | T54: =CSVデータ1!T54+CSVデータ2!T54+CSVデータ3!T54+CSVデータ4!T54 -> 1137 | V54: =CSVデータ1!V54+CSVデータ2!V54+CSVデータ3!V54+CSVデータ4!V54 -> 17157 | X54: =CSVデータ1!X54+CSVデータ2!X54+CSVデータ3!X54+CSVデータ4!X54 -> 10073 | Z54: =CSVデータ1!Z54+CSVデータ2!Z54+CSVデータ3!Z54+CSVデータ4!Z54 -> 38544 | AB54: =CSVデータ1!AB54+CSVデータ2!AB54+CSVデータ3!AB54+CSVデータ4!AB54 -> 75 | AD54: =CSVデータ1!AD54+CSVデータ2!AD54+CSVデータ3!AD54+CSVデータ4!AD54 -> 8492 | AF54: =CSVデータ1!AF54+CSVデータ2!AF54+CSVデータ3!AF54+CSVデータ4!AF54 -> 11250
A55: =CSVデータ1!A55 -> 明細部 | B55: =CSVデータ1!B55 -> 国 | C55: =CSVデータ1!C55 -> 56 | D55: =CSVデータ1!D55 -> 女 | E55: =CSVデータ1!E55+CSVデータ2!E55+CSVデータ3!E55+CSVデータ4!E55 -> 65653 | F55: =CSVデータ1!F55+CSVデータ2!F55+CSVデータ3!F55+CSVデータ4!F55 -> 13388 | H55: =CSVデータ1!H55+CSVデータ2!H55+CSVデータ3!H55+CSVデータ4!H55 -> 10203 | J55: =CSVデータ1!J55+CSVデータ2!J55+CSVデータ3!J55+CSVデータ4!J55 -> 9913 | L55: =CSVデータ1!L55+CSVデータ2!L55+CSVデータ3!L55+CSVデータ4!L55 -> 8017 | N55: =CSVデータ1!N55+CSVデータ2!N55+CSVデータ3!N55+CSVデータ4!N55 -> 782 | P55: =CSVデータ1!P55+CSVデータ2!P55+CSVデータ3!P55+CSVデータ4!P55 -> 9013 | R55: =CSVデータ1!R55+CSVデータ2!R55+CSVデータ3!R55+CSVデータ4!R55 -> 30019 | T55: =CSVデータ1!T55+CSVデータ2!T55+CSVデータ3!T55+CSVデータ4!T55 -> 1163 | V55: =CSVデータ1!V55+CSVデータ2!V55+CSVデータ3!V55+CSVデータ4!V55 -> 18663 | X55: =CSVデータ1!X55+CSVデータ2!X55+CSVデータ3!X55+CSVデータ4!X55 -> 10301 | Z55: =CSVデータ1!Z55+CSVデータ2!Z55+CSVデータ3!Z55+CSVデータ4!Z55 -> 41188 | AB55: =CSVデータ1!AB55+CSVデータ2!AB55+CSVデータ3!AB55+CSVデータ4!AB55 -> 84 | AD55: =CSVデータ1!AD55+CSVデータ2!AD55+CSVデータ3!AD55+CSVデータ4!AD55 -> 9398 | AF55: =CSVデータ1!AF55+CSVデータ2!AF55+CSVデータ3!AF55+CSVデータ4!AF55 -> 10768
A56: =CSVデータ1!A56 -> 明細部 | B56: =CSVデータ1!B56 -> 国 | C56: =CSVデータ1!C56 -> 57 | D56: =CSVデータ1!D56 -> 女 | E56: =CSVデータ1!E56+CSVデータ2!E56+CSVデータ3!E56+CSVデータ4!E56 -> 69844 | F56: =CSVデータ1!F56+CSVデータ2!F56+CSVデータ3!F56+CSVデータ4!F56 -> 13720 | H56: =CSVデータ1!H56+CSVデータ2!H56+CSVデータ3!H56+CSVデータ4!H56 -> 11175 | J56: =CSVデータ1!J56+CSVデータ2!J56+CSVデータ3!J56+CSVデータ4!J56 -> 10609 | L56: =CSVデータ1!L56+CSVデータ2!L56+CSVデータ3!L56+CSVデータ4!L56 -> 8492 | N56: =CSVデータ1!N56+CSVデータ2!N56+CSVデータ3!N56+CSVデータ4!N56 -> 807 | P56: =CSVデータ1!P56+CSVデータ2!P56+CSVデータ3!P56+CSVデータ4!P56 -> 10492 | R56: =CSVデータ1!R56+CSVデータ2!R56+CSVデータ3!R56+CSVデータ4!R56 -> 34939 | T56: =CSVデータ1!T56+CSVデータ2!T56+CSVデータ3!T56+CSVデータ4!T56 -> 1222 | V56: =CSVデータ1!V56+CSVデータ2!V56+CSVデータ3!V56+CSVデータ4!V56 -> 21001 | X56: =CSVデータ1!X56+CSVデータ2!X56+CSVデータ3!X56+CSVデータ4!X56 -> 11058 | Z56: =CSVデータ1!Z56+CSVデータ2!Z56+CSVデータ3!Z56+CSVデータ4!Z56 -> 45702 | AB56: =CSVデータ1!AB56+CSVデータ2!AB56+CSVデータ3!AB56+CSVデータ4!AB56 -> 100 | AD56: =CSVデータ1!AD56+CSVデータ2!AD56+CSVデータ3!AD56+CSVデータ4!AD56 -> 9563 | AF56: =CSVデータ1!AF56+CSVデータ2!AF56+CSVデータ3!AF56+CSVデータ4!AF56 -> 11332
A57: =CSVデータ1!A57 -> 明細部 | B57: =CSVデータ1!B57 -> 国 | C57: =CSVデータ1!C57 -> 58 | D57: =CSVデータ1!D57 -> 女 | E57: =CSVデータ1!E57+CSVデータ2!E57+CSVデータ3!E57+CSVデータ4!E57 -> 75963 | F57: =CSVデータ1!F57+CSVデータ2!F57+CSVデータ3!F57+CSVデータ4!F57 -> 15463 | H57: =CSVデータ1!H57+CSVデータ2!H57+CSVデータ3!H57+CSVデータ4!H57 -> 12914 | J57: =CSVデータ1!J57+CSVデータ2!J57+CSVデータ3!J57+CSVデータ4!J57 -> 11613 | L57: =CSVデータ1!L57+CSVデータ2!L57+CSVデータ3!L57+CSVデータ4!L57 -> 8996 | N57: =CSVデータ1!N57+CSVデータ2!N57+CSVデータ3!N57+CSVデータ4!N57 -> 814 | P57: =CSVデータ1!P57+CSVデータ2!P57+CSVデータ3!P57+CSVデータ4!P57 -> 11328 | R57: =CSVデータ1!R57+CSVデータ2!R57+CSVデータ3!R57+CSVデータ4!R57 -> 39427 | T57: =CSVデータ1!T57+CSVデータ2!T57+CSVデータ3!T57+CSVデータ4!T57 -> 1320 | V57: =CSVデータ1!V57+CSVデータ2!V57+CSVデータ3!V57+CSVデータ4!V57 -> 24798 | X57: =CSVデータ1!X57+CSVデータ2!X57+CSVデータ3!X57+CSVデータ4!X57 -> 13061 | Z57: =CSVデータ1!Z57+CSVデータ2!Z57+CSVデータ3!Z57+CSVデータ4!Z57 -> 51079 | AB57: =CSVデータ1!AB57+CSVデータ2!AB57+CSVデータ3!AB57+CSVデータ4!AB57 -> 135 | AD57: =CSVデータ1!AD57+CSVデータ2!AD57+CSVデータ3!AD57+CSVデータ4!AD57 -> 10491 | AF57: =CSVデータ1!AF57+CSVデータ2!AF57+CSVデータ3!AF57+CSVデータ4!AF57 -> 13161
A58: =CSVデータ1!A58 -> 明細部 | B58: =CSVデータ1!B58 -> 国 | C58: =CSVデータ1!C58 -> 59 | D58: =CSVデータ1!D58 -> 女 | E58: =CSVデータ1!E58+CSVデータ2!E58+CSVデータ3!E58+CSVデータ4!E58 -> 85191 | F58: =CSVデータ1!F58+CSVデータ2!F58+CSVデータ3!F58+CSVデータ4!F58 -> 18390 | H58: =CSVデータ1!H58+CSVデータ2!H58+CSVデータ3!H58+CSVデータ4!H58 -> 14709 | J58: =CSVデータ1!J58+CSVデータ2!J58+CSVデータ3!J58+CSVデータ4!J58 -> 13342 | L58: =CSVデータ1!L58+CSVデータ2!L58+CSVデータ3!L58+CSVデータ4!L58 -> 9907 | N58: =CSVデータ1!N58+CSVデータ2!N58+CSVデータ3!N58+CSVデータ4!N58 -> 1032 | P58: =CSVデータ1!P58+CSVデータ2!P58+CSVデータ3!P58+CSVデータ4!P58 -> 13669 | R58: =CSVデータ1!R58+CSVデータ2!R58+CSVデータ3!R58+CSVデータ4!R58 -> 43448 | T58: =CSVデータ1!T58+CSVデータ2!T58+CSVデータ3!T58+CSVデータ4!T58 -> 1421 | V58: =CSVデータ1!V58+CSVデータ2!V58+CSVデータ3!V58+CSVデータ4!V58 -> 28596 | X58: =CSVデータ1!X58+CSVデータ2!X58+CSVデータ3!X58+CSVデータ4!X58 -> 15001 | Z58: =CSVデータ1!Z58+CSVデータ2!Z58+CSVデータ3!Z58+CSVデータ4!Z58 -> 56716 | AB58: =CSVデータ1!AB58+CSVデータ2!AB58+CSVデータ3!AB58+CSVデータ4!AB58 -> 138 | AD58: =CSVデータ1!AD58+CSVデータ2!AD58+CSVデータ3!AD58+CSVデータ4!AD58 -> 12617 | AF58: =CSVデータ1!AF58+CSVデータ2!AF58+CSVデータ3!AF58+CSVデータ4!AF58 -> 14849
A59: =CSVデータ1!A59 -> 明細部 | B59: =CSVデータ1!B59 -> 国 | C59: =CSVデータ1!C59 -> 60 | D59: =CSVデータ1!D59 -> 女 | E59: =CSVデータ1!E59+CSVデータ2!E59+CSVデータ3!E59+CSVデータ4!E59 -> 107677 | F59: =CSVデータ1!F59+CSVデータ2!F59+CSVデータ3!F59+CSVデータ4!F59 -> 21660 | H59: =CSVデータ1!H59+CSVデータ2!H59+CSVデータ3!H59+CSVデータ4!H59 -> 17662 | J59: =CSVデータ1!J59+CSVデータ2!J59+CSVデータ3!J59+CSVデータ4!J59 -> 16569 | L59: =CSVデータ1!L59+CSVデータ2!L59+CSVデータ3!L59+CSVデータ4!L59 -> 11460 | N59: =CSVデータ1!N59+CSVデータ2!N59+CSVデータ3!N59+CSVデータ4!N59 -> 1324 | P59: =CSVデータ1!P59+CSVデータ2!P59+CSVデータ3!P59+CSVデータ4!P59 -> 17926 | R59: =CSVデータ1!R59+CSVデータ2!R59+CSVデータ3!R59+CSVデータ4!R59 -> 58440 | T59: =CSVデータ1!T59+CSVデータ2!T59+CSVデータ3!T59+CSVデータ4!T59 -> 1787 | V59: =CSVデータ1!V59+CSVデータ2!V59+CSVデータ3!V59+CSVデータ4!V59 -> 35467 | X59: =CSVデータ1!X59+CSVデータ2!X59+CSVデータ3!X59+CSVデータ4!X59 -> 17963 | Z59: =CSVデータ1!Z59+CSVデータ2!Z59+CSVデータ3!Z59+CSVデータ4!Z59 -> 68734 | AB59: =CSVデータ1!AB59+CSVデータ2!AB59+CSVデータ3!AB59+CSVデータ4!AB59 -> 178 | AD59: =CSVデータ1!AD59+CSVデータ2!AD59+CSVデータ3!AD59+CSVデータ4!AD59 -> 16031 | AF59: =CSVデータ1!AF59+CSVデータ2!AF59+CSVデータ3!AF59+CSVデータ4!AF59 -> 19185
A60: =CSVデータ1!A60 -> 明細部 | B60: =CSVデータ1!B60 -> 国 | C60: =CSVデータ1!C60 -> 61 | D60: =CSVデータ1!D60 -> 女 | E60: =CSVデータ1!E60+CSVデータ2!E60+CSVデータ3!E60+CSVデータ4!E60 -> 123052 | F60: =CSVデータ1!F60+CSVデータ2!F60+CSVデータ3!F60+CSVデータ4!F60 -> 25427 | H60: =CSVデータ1!H60+CSVデータ2!H60+CSVデータ3!H60+CSVデータ4!H60 -> 20821 | J60: =CSVデータ1!J60+CSVデータ2!J60+CSVデータ3!J60+CSVデータ4!J60 -> 19590 | L60: =CSVデータ1!L60+CSVデータ2!L60+CSVデータ3!L60+CSVデータ4!L60 -> 13274 | N60: =CSVデータ1!N60+CSVデータ2!N60+CSVデータ3!N60+CSVデータ4!N60 -> 1382 | P60: =CSVデータ1!P60+CSVデータ2!P60+CSVデータ3!P60+CSVデータ4!P60 -> 20330 | R60: =CSVデータ1!R60+CSVデータ2!R60+CSVデータ3!R60+CSVデータ4!R60 -> 67871 | T60: =CSVデータ1!T60+CSVデータ2!T60+CSVデータ3!T60+CSVデータ4!T60 -> 2108 | V60: =CSVデータ1!V60+CSVデータ2!V60+CSVデータ3!V60+CSVデータ4!V60 -> 42735 | X60: =CSVデータ1!X60+CSVデータ2!X60+CSVデータ3!X60+CSVデータ4!X60 -> 19696 | Z60: =CSVデータ1!Z60+CSVデータ2!Z60+CSVデータ3!Z60+CSVデータ4!Z60 -> 75364 | AB60: =CSVデータ1!AB60+CSVデータ2!AB60+CSVデータ3!AB60+CSVデータ4!AB60 -> 197 | AD60: =CSVデータ1!AD60+CSVデータ2!AD60+CSVデータ3!AD60+CSVデータ4!AD60 -> 18302 | AF60: =CSVデータ1!AF60+CSVデータ2!AF60+CSVデータ3!AF60+CSVデータ4!AF60 -> 21060
A61: =CSVデータ1!A61 -> 明細部 | B61: =CSVデータ1!B61 -> 国 | C61: =CSVデータ1!C61 -> 62 | D61: =CSVデータ1!D61 -> 女 | E61: =CSVデータ1!E61+CSVデータ2!E61+CSVデータ3!E61+CSVデータ4!E61 -> 154605 | F61: =CSVデータ1!F61+CSVデータ2!F61+CSVデータ3!F61+CSVデータ4!F61 -> 30946 | H61: =CSVデータ1!H61+CSVデータ2!H61+CSVデータ3!H61+CSVデータ4!H61 -> 26285 | J61: =CSVデータ1!J61+CSVデータ2!J61+CSVデータ3!J61+CSVデータ4!J61 -> 24053 | L61: =CSVデータ1!L61+CSVデータ2!L61+CSVデータ3!L61+CSVデータ4!L61 -> 15722 | N61: =CSVデータ1!N61+CSVデータ2!N61+CSVデータ3!N61+CSVデータ4!N61 -> 1866 | P61: =CSVデータ1!P61+CSVデータ2!P61+CSVデータ3!P61+CSVデータ4!P61 -> 25952 | R61: =CSVデータ1!R61+CSVデータ2!R61+CSVデータ3!R61+CSVデータ4!R61 -> 85529 | T61: =CSVデータ1!T61+CSVデータ2!T61+CSVデータ3!T61+CSVデータ4!T61 -> 2455 | V61: =CSVデータ1!V61+CSVデータ2!V61+CSVデータ3!V61+CSVデータ4!V61 -> 53738 | X61: =CSVデータ1!X61+CSVデータ2!X61+CSVデータ3!X61+CSVデータ4!X61 -> 25311 | Z61: =CSVデータ1!Z61+CSVデータ2!Z61+CSVデータ3!Z61+CSVデータ4!Z61 -> 94447 | AB61: =CSVデータ1!AB61+CSVデータ2!AB61+CSVデータ3!AB61+CSVデータ4!AB61 -> 254 | AD61: =CSVデータ1!AD61+CSVデータ2!AD61+CSVデータ3!AD61+CSVデータ4!AD61 -> 22835 | AF61: =CSVデータ1!AF61+CSVデータ2!AF61+CSVデータ3!AF61+CSVデータ4!AF61 -> 27511
A62: =CSVデータ1!A62 -> 明細部 | B62: =CSVデータ1!B62 -> 国 | C62: =CSVデータ1!C62 -> 63 | D62: =CSVデータ1!D62 -> 女 | E62: =CSVデータ1!E62+CSVデータ2!E62+CSVデータ3!E62+CSVデータ4!E62 -> 189583 | F62: =CSVデータ1!F62+CSVデータ2!F62+CSVデータ3!F62+CSVデータ4!F62 -> 38271 | H62: =CSVデータ1!H62+CSVデータ2!H62+CSVデータ3!H62+CSVデータ4!H62 -> 33042 | J62: =CSVデータ1!J62+CSVデータ2!J62+CSVデータ3!J62+CSVデータ4!J62 -> 28656 | L62: =CSVデータ1!L62+CSVデータ2!L62+CSVデータ3!L62+CSVデータ4!L62 -> 19556 | N62: =CSVデータ1!N62+CSVデータ2!N62+CSVデータ3!N62+CSVデータ4!N62 -> 2265 | P62: =CSVデータ1!P62+CSVデータ2!P62+CSVデータ3!P62+CSVデータ4!P62 -> 32394 | R62: =CSVデータ1!R62+CSVデータ2!R62+CSVデータ3!R62+CSVデータ4!R62 -> 107208 | T62: =CSVデータ1!T62+CSVデータ2!T62+CSVデータ3!T62+CSVデータ4!T62 -> 2848 | V62: =CSVデータ1!V62+CSVデータ2!V62+CSVデータ3!V62+CSVデータ4!V62 -> 71158 | X62: =CSVデータ1!X62+CSVデータ2!X62+CSVデータ3!X62+CSVデータ4!X62 -> 31304 | Z62: =CSVデータ1!Z62+CSVデータ2!Z62+CSVデータ3!Z62+CSVデータ4!Z62 -> 117854 | AB62: =CSVデータ1!AB62+CSVデータ2!AB62+CSVデータ3!AB62+CSVデータ4!AB62 -> 328 | AD62: =CSVデータ1!AD62+CSVデータ2!AD62+CSVデータ3!AD62+CSVデータ4!AD62 -> 28698 | AF62: =CSVデータ1!AF62+CSVデータ2!AF62+CSVデータ3!AF62+CSVデータ4!AF62 -> 34097
A63: =CSVデータ1!A63 -> 明細部 | B63: =CSVデータ1!B63 -> 国 | C63: =CSVデータ1!C63 -> 64 | D63: =CSVデータ1!D63 -> 女 | E63: =CSVデータ1!E63+CSVデータ2!E63+CSVデータ3!E63+CSVデータ4!E63 -> 214791 | F63: =CSVデータ1!F63+CSVデータ2!F63+CSVデータ3!F63+CSVデータ4!F63 -> 47096 | H63: =CSVデータ1!H63+CSVデータ2!H63+CSVデータ3!H63+CSVデータ4!H63 -> 38154 | J63: =CSVデータ1!J63+CSVデータ2!J63+CSVデータ3!J63+CSVデータ4!J63 -> 36493 | L63: =CSVデータ1!L63+CSVデータ2!L63+CSVデータ3!L63+CSVデータ4!L63 -> 22121 | N63: =CSVデータ1!N63+CSVデータ2!N63+CSVデータ3!N63+CSVデータ4!N63 -> 2876 | P63: =CSVデータ1!P63+CSVデータ2!P63+CSVデータ3!P63+CSVデータ4!P63 -> 40698 | R63: =CSVデータ1!R63+CSVデータ2!R63+CSVデータ3!R63+CSVデータ4!R63 -> 130551 | T63: =CSVデータ1!T63+CSVデータ2!T63+CSVデータ3!T63+CSVデータ4!T63 -> 3312 | V63: =CSVデータ1!V63+CSVデータ2!V63+CSVデータ3!V63+CSVデータ4!V63 -> 90463 | X63: =CSVデータ1!X63+CSVデータ2!X63+CSVデータ3!X63+CSVデータ4!X63 -> 36790 | Z63: =CSVデータ1!Z63+CSVデータ2!Z63+CSVデータ3!Z63+CSVデータ4!Z63 -> 135667 | AB63: =CSVデータ1!AB63+CSVデータ2!AB63+CSVデータ3!AB63+CSVデータ4!AB63 -> 406 | AD63: =CSVデータ1!AD63+CSVデータ2!AD63+CSVデータ3!AD63+CSVデータ4!AD63 -> 35915 | AF63: =CSVデータ1!AF63+CSVデータ2!AF63+CSVデータ3!AF63+CSVデータ4!AF63 -> 41386
A64: =CSVデータ1!A64 -> 明細部 | B64: =CSVデータ1!B64 -> 国 | C64: =CSVデータ1!C64 -> 65 | D64: =CSVデータ1!D64 -> 女 | E64: =CSVデータ1!E64+CSVデータ2!E64+CSVデータ3!E64+CSVデータ4!E64 -> 260095 | F64: =CSVデータ1!F64+CSVデータ2!F64+CSVデータ3!F64+CSVデータ4!F64 -> 57080 | H64: =CSVデータ1!H64+CSVデータ2!H64+CSVデータ3!H64+CSVデータ4!H64 -> 47134 | J64: =CSVデータ1!J64+CSVデータ2!J64+CSVデータ3!J64+CSVデータ4!J64 -> 43424 | L64: =CSVデータ1!L64+CSVデータ2!L64+CSVデータ3!L64+CSVデータ4!L64 -> 26868 | N64: =CSVデータ1!N64+CSVデータ2!N64+CSVデータ3!N64+CSVデータ4!N64 -> 3817 | P64: =CSVデータ1!P64+CSVデータ2!P64+CSVデータ3!P64+CSVデータ4!P64 -> 49954 | R64: =CSVデータ1!R64+CSVデータ2!R64+CSVデータ3!R64+CSVデータ4!R64 -> 152948 | T64: =CSVデータ1!T64+CSVデータ2!T64+CSVデータ3!T64+CSVデータ4!T64 -> 4291 | V64: =CSVデータ1!V64+CSVデータ2!V64+CSVデータ3!V64+CSVデータ4!V64 -> 113041 | X64: =CSVデータ1!X64+CSVデータ2!X64+CSVデータ3!X64+CSVデータ4!X64 -> 45211 | Z64: =CSVデータ1!Z64+CSVデータ2!Z64+CSVデータ3!Z64+CSVデータ4!Z64 -> 170377 | AB64: =CSVデータ1!AB64+CSVデータ2!AB64+CSVデータ3!AB64+CSVデータ4!AB64 -> 497 | AD64: =CSVデータ1!AD64+CSVデータ2!AD64+CSVデータ3!AD64+CSVデータ4!AD64 -> 44377 | AF64: =CSVデータ1!AF64+CSVデータ2!AF64+CSVデータ3!AF64+CSVデータ4!AF64 -> 48398
A65: =CSVデータ1!A65 -> 明細部 | B65: =CSVデータ1!B65 -> 国 | C65: =CSVデータ1!C65 -> 66 | D65: =CSVデータ1!D65 -> 女 | E65: =CSVデータ1!E65+CSVデータ2!E65+CSVデータ3!E65+CSVデータ4!E65 -> 318720 | F65: =CSVデータ1!F65+CSVデータ2!F65+CSVデータ3!F65+CSVデータ4!F65 -> 70496 | H65: =CSVデータ1!H65+CSVデータ2!H65+CSVデータ3!H65+CSVデータ4!H65 -> 58211 | J65: =CSVデータ1!J65+CSVデータ2!J65+CSVデータ3!J65+CSVデータ4!J65 -> 54688 | L65: =CSVデータ1!L65+CSVデータ2!L65+CSVデータ3!L65+CSVデータ4!L65 -> 30463 | N65: =CSVデータ1!N65+CSVデータ2!N65+CSVデータ3!N65+CSVデータ4!N65 -> 4620 | P65: =CSVデータ1!P65+CSVデータ2!P65+CSVデータ3!P65+CSVデータ4!P65 -> 63833 | R65: =CSVデータ1!R65+CSVデータ2!R65+CSVデータ3!R65+CSVデータ4!R65 -> 194159 | T65: =CSVデータ1!T65+CSVデータ2!T65+CSVデータ3!T65+CSVデータ4!T65 -> 5171 | V65: =CSVデータ1!V65+CSVデータ2!V65+CSVデータ3!V65+CSVデータ4!V65 -> 137115 | X65: =CSVデータ1!X65+CSVデータ2!X65+CSVデータ3!X65+CSVデータ4!X65 -> 50123 | Z65: =CSVデータ1!Z65+CSVデータ2!Z65+CSVデータ3!Z65+CSVデータ4!Z65 -> 187189 | AB65: =CSVデータ1!AB65+CSVデータ2!AB65+CSVデータ3!AB65+CSVデータ4!AB65 -> 622 | AD65: =CSVデータ1!AD65+CSVデータ2!AD65+CSVデータ3!AD65+CSVデータ4!AD65 -> 52194 | AF65: =CSVデータ1!AF65+CSVデータ2!AF65+CSVデータ3!AF65+CSVデータ4!AF65 -> 55053
A66: =CSVデータ1!A66 -> 明細部 | B66: =CSVデータ1!B66 -> 国 | C66: =CSVデータ1!C66 -> 67 | D66: =CSVデータ1!D66 -> 女 | E66: =CSVデータ1!E66+CSVデータ2!E66+CSVデータ3!E66+CSVデータ4!E66 -> 365456 | F66: =CSVデータ1!F66+CSVデータ2!F66+CSVデータ3!F66+CSVデータ4!F66 -> 75858 | H66: =CSVデータ1!H66+CSVデータ2!H66+CSVデータ3!H66+CSVデータ4!H66 -> 68551 | J66: =CSVデータ1!J66+CSVデータ2!J66+CSVデータ3!J66+CSVデータ4!J66 -> 58674 | L66: =CSVデータ1!L66+CSVデータ2!L66+CSVデータ3!L66+CSVデータ4!L66 -> 32495 | N66: =CSVデータ1!N66+CSVデータ2!N66+CSVデータ3!N66+CSVデータ4!N66 -> 5519 | P66: =CSVデータ1!P66+CSVデータ2!P66+CSVデータ3!P66+CSVデータ4!P66 -> 74137 | R66: =CSVデータ1!R66+CSVデータ2!R66+CSVデータ3!R66+CSVデータ4!R66 -> 221866 | T66: =CSVデータ1!T66+CSVデータ2!T66+CSVデータ3!T66+CSVデータ4!T66 -> 5696 | V66: =CSVデータ1!V66+CSVデータ2!V66+CSVデータ3!V66+CSVデータ4!V66 -> 159925 | X66: =CSVデータ1!X66+CSVデータ2!X66+CSVデータ3!X66+CSVデータ4!X66 -> 58182 | Z66: =CSVデータ1!Z66+CSVデータ2!Z66+CSVデータ3!Z66+CSVデータ4!Z66 -> 224239 | AB66: =CSVデータ1!AB66+CSVデータ2!AB66+CSVデータ3!AB66+CSVデータ4!AB66 -> 697 | AD66: =CSVデータ1!AD66+CSVデータ2!AD66+CSVデータ3!AD66+CSVデータ4!AD66 -> 62593 | AF66: =CSVデータ1!AF66+CSVデータ2!AF66+CSVデータ3!AF66+CSVデータ4!AF66 -> 62687
A67: =CSVデータ1!A67 -> 明細部 | B67: =CSVデータ1!B67 -> 国 | C67: =CSVデータ1!C67 -> 68 | D67: =CSVデータ1!D67 -> 女 | E67: =CSVデータ1!E67+CSVデータ2!E67+CSVデータ3!E67+CSVデータ4!E67 -> 403431 | F67: =CSVデータ1!F67+CSVデータ2!F67+CSVデータ3!F67+CSVデータ4!F67 -> 92211 | H67: =CSVデータ1!H67+CSVデータ2!H67+CSVデータ3!H67+CSVデータ4!H67 -> 80856 | J67: =CSVデータ1!J67+CSVデータ2!J67+CSVデータ3!J67+CSVデータ4!J67 -> 70975 | L67: =CSVデータ1!L67+CSVデータ2!L67+CSVデータ3!L67+CSVデータ4!L67 -> 38637 | N67: =CSVデータ1!N67+CSVデータ2!N67+CSVデータ3!N67+CSVデータ4!N67 -> 6286 | P67: =CSVデータ1!P67+CSVデータ2!P67+CSVデータ3!P67+CSVデータ4!P67 -> 86186 | R67: =CSVデータ1!R67+CSVデータ2!R67+CSVデータ3!R67+CSVデータ4!R67 -> 254074 | T67: =CSVデータ1!T67+CSVデータ2!T67+CSVデータ3!T67+CSVデータ4!T67 -> 6959 | V67: =CSVデータ1!V67+CSVデータ2!V67+CSVデータ3!V67+CSVデータ4!V67 -> 191694 | X67: =CSVデータ1!X67+CSVデータ2!X67+CSVデータ3!X67+CSVデータ4!X67 -> 67184 | Z67: =CSVデータ1!Z67+CSVデータ2!Z67+CSVデータ3!Z67+CSVデータ4!Z67 -> 244530 | AB67: =CSVデータ1!AB67+CSVデータ2!AB67+CSVデータ3!AB67+CSVデータ4!AB67 -> 945 | AD67: =CSVデータ1!AD67+CSVデータ2!AD67+CSVデータ3!AD67+CSVデータ4!AD67 -> 71955 | AF67: =CSVデータ1!AF67+CSVデータ2!AF67+CSVデータ3!AF67+CSVデータ4!AF67 -> 71808
A68: =CSVデータ1!A68 -> 明細部 | B68: =CSVデータ1!B68 -> 国 | C68: =CSVデータ1!C68 -> 69 | D68: =CSVデータ1!D68 -> 女 | E68: =CSVデータ1!E68+CSVデータ2!E68+CSVデータ3!E68+CSVデータ4!E68 -> 469628 | F68: =CSVデータ1!F68+CSVデータ2!F68+CSVデータ3!F68+CSVデータ4!F68 -> 103812 | H68: =CSVデータ1!H68+CSVデータ2!H68+CSVデータ3!H68+CSVデータ4!H68 -> 87450 | J68: =CSVデータ1!J68+CSVデータ2!J68+CSVデータ3!J68+CSVデータ4!J68 -> 79218 | L68: =CSVデータ1!L68+CSVデータ2!L68+CSVデータ3!L68+CSVデータ4!L68 -> 41100 | N68: =CSVデータ1!N68+CSVデータ2!N68+CSVデータ3!N68+CSVデータ4!N68 -> 7744 | P68: =CSVデータ1!P68+CSVデータ2!P68+CSVデータ3!P68+CSVデータ4!P68 -> 100451 | R68: =CSVデータ1!R68+CSVデータ2!R68+CSVデータ3!R68+CSVデータ4!R68 -> 293898 | T68: =CSVデータ1!T68+CSVデータ2!T68+CSVデータ3!T68+CSVデータ4!T68 -> 8005 | V68: =CSVデータ1!V68+CSVデータ2!V68+CSVデータ3!V68+CSVデータ4!V68 -> 234597 | X68: =CSVデータ1!X68+CSVデータ2!X68+CSVデータ3!X68+CSVデータ4!X68 -> 75083 | Z68: =CSVデータ1!Z68+CSVデータ2!Z68+CSVデータ3!Z68+CSVデータ4!Z68 -> 287409 | AB68: =CSVデータ1!AB68+CSVデータ2!AB68+CSVデータ3!AB68+CSVデータ4!AB68 -> 1160 | AD68: =CSVデータ1!AD68+CSVデータ2!AD68+CSVデータ3!AD68+CSVデータ4!AD68 -> 83133 | AF68: =CSVデータ1!AF68+CSVデータ2!AF68+CSVデータ3!AF68+CSVデータ4!AF68 -> 77109
A69: =CSVデータ1!A69 -> 明細部 | B69: =CSVデータ1!B69 -> 国 | C69: =CSVデータ1!C69 -> 70 | D69: =CSVデータ1!D69 -> 女 | E69: =CSVデータ1!E69+CSVデータ2!E69+CSVデータ3!E69+CSVデータ4!E69 -> 501982 | F69: =CSVデータ1!F69+CSVデータ2!F69+CSVデータ3!F69+CSVデータ4!F69 -> 110018 | H69: =CSVデータ1!H69+CSVデータ2!H69+CSVデータ3!H69+CSVデータ4!H69 -> 101654 | J69: =CSVデータ1!J69+CSVデータ2!J69+CSVデータ3!J69+CSVデータ4!J69 -> 91472 | L69: =CSVデータ1!L69+CSVデータ2!L69+CSVデータ3!L69+CSVデータ4!L69 -> 44426 | N69: =CSVデータ1!N69+CSVデータ2!N69+CSVデータ3!N69+CSVデータ4!N69 -> 8373 | P69: =CSVデータ1!P69+CSVデータ2!P69+CSVデータ3!P69+CSVデータ4!P69 -> 108702 | R69: =CSVデータ1!R69+CSVデータ2!R69+CSVデータ3!R69+CSVデータ4!R69 -> 324344 | T69: =CSVデータ1!T69+CSVデータ2!T69+CSVデータ3!T69+CSVデータ4!T69 -> 9139 | V69: =CSVデータ1!V69+CSVデータ2!V69+CSVデータ3!V69+CSVデータ4!V69 -> 258882 | X69: =CSVデータ1!X69+CSVデータ2!X69+CSVデータ3!X69+CSVデータ4!X69 -> 79924 | Z69: =CSVデータ1!Z69+CSVデータ2!Z69+CSVデータ3!Z69+CSVデータ4!Z69 -> 299998 | AB69: =CSVデータ1!AB69+CSVデータ2!AB69+CSVデータ3!AB69+CSVデータ4!AB69 -> 1456 | AD69: =CSVデータ1!AD69+CSVデータ2!AD69+CSVデータ3!AD69+CSVデータ4!AD69 -> 93486 | AF69: =CSVデータ1!AF69+CSVデータ2!AF69+CSVデータ3!AF69+CSVデータ4!AF69 -> 78975
A70: =CSVデータ1!A70 -> 明細部 | B70: =CSVデータ1!B70 -> 国 | C70: =CSVデータ1!C70 -> 71 | D70: =CSVデータ1!D70 -> 女 | E70: =CSVデータ1!E70+CSVデータ2!E70+CSVデータ3!E70+CSVデータ4!E70 -> 535880 | F70: =CSVデータ1!F70+CSVデータ2!F70+CSVデータ3!F70+CSVデータ4!F70 -> 117171 | H70: =CSVデータ1!H70+CSVデータ2!H70+CSVデータ3!H70+CSVデータ4!H70 -> 103208 | J70: =CSVデータ1!J70+CSVデータ2!J70+CSVデータ3!J70+CSVデータ4!J70 -> 90466 | L70: =CSVデータ1!L70+CSVデータ2!L70+CSVデータ3!L70+CSVデータ4!L70 -> 44733 | N70: =CSVデータ1!N70+CSVデータ2!N70+CSVデータ3!N70+CSVデータ4!N70 -> 9459 | P70: =CSVデータ1!P70+CSVデータ2!P70+CSVデータ3!P70+CSVデータ4!P70 -> 109648 | R70: =CSVデータ1!R70+CSVデータ2!R70+CSVデータ3!R70+CSVデータ4!R70 -> 354798 | T70: =CSVデータ1!T70+CSVデータ2!T70+CSVデータ3!T70+CSVデータ4!T70 -> 9584 | V70: =CSVデータ1!V70+CSVデータ2!V70+CSVデータ3!V70+CSVデータ4!V70 -> 272680 | X70: =CSVデータ1!X70+CSVデータ2!X70+CSVデータ3!X70+CSVデータ4!X70 -> 81445 | Z70: =CSVデータ1!Z70+CSVデータ2!Z70+CSVデータ3!Z70+CSVデータ4!Z70 -> 314319 | AB70: =CSVデータ1!AB70+CSVデータ2!AB70+CSVデータ3!AB70+CSVデータ4!AB70 -> 1600 | AD70: =CSVデータ1!AD70+CSVデータ2!AD70+CSVデータ3!AD70+CSVデータ4!AD70 -> 101420 | AF70: =CSVデータ1!AF70+CSVデータ2!AF70+CSVデータ3!AF70+CSVデータ4!AF70 -> 83638
A71: =CSVデータ1!A71 -> 明細部 | B71: =CSVデータ1!B71 -> 国 | C71: =CSVデータ1!C71 -> 72 | D71: =CSVデータ1!D71 -> 女 | E71: =CSVデータ1!E71+CSVデータ2!E71+CSVデータ3!E71+CSVデータ4!E71 -> 409801 | F71: =CSVデータ1!F71+CSVデータ2!F71+CSVデータ3!F71+CSVデータ4!F71 -> 90084 | H71: =CSVデータ1!H71+CSVデータ2!H71+CSVデータ3!H71+CSVデータ4!H71 -> 82045 | J71: =CSVデータ1!J71+CSVデータ2!J71+CSVデータ3!J71+CSVデータ4!J71 -> 74183 | L71: =CSVデータ1!L71+CSVデータ2!L71+CSVデータ3!L71+CSVデータ4!L71 -> 35129 | N71: =CSVデータ1!N71+CSVデータ2!N71+CSVデータ3!N71+CSVデータ4!N71 -> 7924 | P71: =CSVデータ1!P71+CSVデータ2!P71+CSVデータ3!P71+CSVデータ4!P71 -> 91260 | R71: =CSVデータ1!R71+CSVデータ2!R71+CSVデータ3!R71+CSVデータ4!R71 -> 264353 | T71: =CSVデータ1!T71+CSVデータ2!T71+CSVデータ3!T71+CSVデータ4!T71 -> 7841 | V71: =CSVデータ1!V71+CSVデータ2!V71+CSVデータ3!V71+CSVデータ4!V71 -> 230835 | X71: =CSVデータ1!X71+CSVデータ2!X71+CSVデータ3!X71+CSVデータ4!X71 -> 62381 | Z71: =CSVデータ1!Z71+CSVデータ2!Z71+CSVデータ3!Z71+CSVデータ4!Z71 -> 236429 | AB71: =CSVデータ1!AB71+CSVデータ2!AB71+CSVデータ3!AB71+CSVデータ4!AB71 -> 1400 | AD71: =CSVデータ1!AD71+CSVデータ2!AD71+CSVデータ3!AD71+CSVデータ4!AD71 -> 81496 | AF71: =CSVデータ1!AF71+CSVデータ2!AF71+CSVデータ3!AF71+CSVデータ4!AF71 -> 61779
A72: =CSVデータ1!A72 -> 明細部 | B72: =CSVデータ1!B72 -> 国 | C72: =CSVデータ1!C72 -> 73 | D72: =CSVデータ1!D72 -> 女 | E72: =CSVデータ1!E72+CSVデータ2!E72+CSVデータ3!E72+CSVデータ4!E72 -> 300459 | F72: =CSVデータ1!F72+CSVデータ2!F72+CSVデータ3!F72+CSVデータ4!F72 -> 68651 | H72: =CSVデータ1!H72+CSVデータ2!H72+CSVデータ3!H72+CSVデータ4!H72 -> 60566 | J72: =CSVデータ1!J72+CSVデータ2!J72+CSVデータ3!J72+CSVデータ4!J72 -> 50082 | L72: =CSVデータ1!L72+CSVデータ2!L72+CSVデータ3!L72+CSVデータ4!L72 -> 23862 | N72: =CSVデータ1!N72+CSVデータ2!N72+CSVデータ3!N72+CSVデータ4!N72 -> 5417 | P72: =CSVデータ1!P72+CSVデータ2!P72+CSVデータ3!P72+CSVデータ4!P72 -> 64454 | R72: =CSVデータ1!R72+CSVデータ2!R72+CSVデータ3!R72+CSVデータ4!R72 -> 192508 | T72: =CSVデータ1!T72+CSVデータ2!T72+CSVデータ3!T72+CSVデータ4!T72 -> 5870 | V72: =CSVデータ1!V72+CSVデータ2!V72+CSVデータ3!V72+CSVデータ4!V72 -> 167930 | X72: =CSVデータ1!X72+CSVデータ2!X72+CSVデータ3!X72+CSVデータ4!X72 -> 40379 | Z72: =CSVデータ1!Z72+CSVデータ2!Z72+CSVデータ3!Z72+CSVデータ4!Z72 -> 167508 | AB72: =CSVデータ1!AB72+CSVデータ2!AB72+CSVデータ3!AB72+CSVデータ4!AB72 -> 1092 | AD72: =CSVデータ1!AD72+CSVデータ2!AD72+CSVデータ3!AD72+CSVデータ4!AD72 -> 62123 | AF72: =CSVデータ1!AF72+CSVデータ2!AF72+CSVデータ3!AF72+CSVデータ4!AF72 -> 42875
A73: =CSVデータ1!A73 -> 明細部 | B73: =CSVデータ1!B73 -> 国 | C73: =CSVデータ1!C73 -> 74 | D73: =CSVデータ1!D73 -> 女 | E73: =CSVデータ1!E73+CSVデータ2!E73+CSVデータ3!E73+CSVデータ4!E73 -> 386305 | F73: =CSVデータ1!F73+CSVデータ2!F73+CSVデータ3!F73+CSVデータ4!F73 -> 86598 | H73: =CSVデータ1!H73+CSVデータ2!H73+CSVデータ3!H73+CSVデータ4!H73 -> 81526 | J73: =CSVデータ1!J73+CSVデータ2!J73+CSVデータ3!J73+CSVデータ4!J73 -> 65299 | L73: =CSVデータ1!L73+CSVデータ2!L73+CSVデータ3!L73+CSVデータ4!L73 -> 28273 | N73: =CSVデータ1!N73+CSVデータ2!N73+CSVデータ3!N73+CSVデータ4!N73 -> 7718 | P73: =CSVデータ1!P73+CSVデータ2!P73+CSVデータ3!P73+CSVデータ4!P73 -> 82577 | R73: =CSVデータ1!R73+CSVデータ2!R73+CSVデータ3!R73+CSVデータ4!R73 -> 261955 | T73: =CSVデータ1!T73+CSVデータ2!T73+CSVデータ3!T73+CSVデータ4!T73 -> 8069 | V73: =CSVデータ1!V73+CSVデータ2!V73+CSVデータ3!V73+CSVデータ4!V73 -> 206917 | X73: =CSVデータ1!X73+CSVデータ2!X73+CSVデータ3!X73+CSVデータ4!X73 -> 51366 | Z73: =CSVデータ1!Z73+CSVデータ2!Z73+CSVデータ3!Z73+CSVデータ4!Z73 -> 214579 | AB73: =CSVデータ1!AB73+CSVデータ2!AB73+CSVデータ3!AB73+CSVデータ4!AB73 -> 1564 | AD73: =CSVデータ1!AD73+CSVデータ2!AD73+CSVデータ3!AD73+CSVデータ4!AD73 -> 78815 | AF73: =CSVデータ1!AF73+CSVデータ2!AF73+CSVデータ3!AF73+CSVデータ4!AF73 -> 52912
A74: =CSVデータ1!A74 -> 明細部 | B74: =CSVデータ1!B74 -> 県 | C74: =CSVデータ1!C74 -> 40 | D74: =CSVデータ1!D74 -> 男 | E74: =CSVデータ1!E74+CSVデータ2!E74+CSVデータ3!E74+CSVデータ4!E74 -> 270 | F74: =CSVデータ1!F74+CSVデータ2!F74+CSVデータ3!F74+CSVデータ4!F74 -> 84 | H74: =CSVデータ1!H74+CSVデータ2!H74+CSVデータ3!H74+CSVデータ4!H74 -> 117 | J74: =CSVデータ1!J74+CSVデータ2!J74+CSVデータ3!J74+CSVデータ4!J74 -> 66 | L74: =CSVデータ1!L74+CSVデータ2!L74+CSVデータ3!L74+CSVデータ4!L74 -> 97 | N74: =CSVデータ1!N74+CSVデータ2!N74+CSVデータ3!N74+CSVデータ4!N74 -> 27 | P74: =CSVデータ1!P74+CSVデータ2!P74+CSVデータ3!P74+CSVデータ4!P74 -> 31 | R74: =CSVデータ1!R74+CSVデータ2!R74+CSVデータ3!R74+CSVデータ4!R74 -> 58 | T74: =CSVデータ1!T74+CSVデータ2!T74+CSVデータ3!T74+CSVデータ4!T74 -> 44 | V74: =CSVデータ1!V74+CSVデータ2!V74+CSVデータ3!V74+CSVデータ4!V74 -> 70 | X74: =CSVデータ1!X74+CSVデータ2!X74+CSVデータ3!X74+CSVデータ4!X74 -> 53 | Z74: =CSVデータ1!Z74+CSVデータ2!Z74+CSVデータ3!Z74+CSVデータ4!Z74 -> 145 | AB74: =CSVデータ1!AB74+CSVデータ2!AB74+CSVデータ3!AB74+CSVデータ4!AB74 -> 1 | AD74: =CSVデータ1!AD74+CSVデータ2!AD74+CSVデータ3!AD74+CSVデータ4!AD74 -> 121 | AF74: =CSVデータ1!AF74+CSVデータ2!AF74+CSVデータ3!AF74+CSVデータ4!AF74 -> 34
A75: =CSVデータ1!A75 -> 明細部 | B75: =CSVデータ1!B75 -> 県 | C75: =CSVデータ1!C75 -> 41 | D75: =CSVデータ1!D75 -> 男 | E75: =CSVデータ1!E75+CSVデータ2!E75+CSVデータ3!E75+CSVデータ4!E75 -> 255 | F75: =CSVデータ1!F75+CSVデータ2!F75+CSVデータ3!F75+CSVデータ4!F75 -> 93 | H75: =CSVデータ1!H75+CSVデータ2!H75+CSVデータ3!H75+CSVデータ4!H75 -> 124 | J75: =CSVデータ1!J75+CSVデータ2!J75+CSVデータ3!J75+CSVデータ4!J75 -> 83 | L75: =CSVデータ1!L75+CSVデータ2!L75+CSVデータ3!L75+CSVデータ4!L75 -> 116 | N75: =CSVデータ1!N75+CSVデータ2!N75+CSVデータ3!N75+CSVデータ4!N75 -> 20 | P75: =CSVデータ1!P75+CSVデータ2!P75+CSVデータ3!P75+CSVデータ4!P75 -> 30 | R75: =CSVデータ1!R75+CSVデータ2!R75+CSVデータ3!R75+CSVデータ4!R75 -> 66 | T75: =CSVデータ1!T75+CSVデータ2!T75+CSVデータ3!T75+CSVデータ4!T75 -> 61 | V75: =CSVデータ1!V75+CSVデータ2!V75+CSVデータ3!V75+CSVデータ4!V75 -> 70 | X75: =CSVデータ1!X75+CSVデータ2!X75+CSVデータ3!X75+CSVデータ4!X75 -> 54 | Z75: =CSVデータ1!Z75+CSVデータ2!Z75+CSVデータ3!Z75+CSVデータ4!Z75 -> 154 | AB75: =CSVデータ1!AB75+CSVデータ2!AB75+CSVデータ3!AB75+CSVデータ4!AB75 -> 1 | AD75: =CSVデータ1!AD75+CSVデータ2!AD75+CSVデータ3!AD75+CSVデータ4!AD75 -> 144 | AF75: =CSVデータ1!AF75+CSVデータ2!AF75+CSVデータ3!AF75+CSVデータ4!AF75 -> 30
A76: =CSVデータ1!A76 -> 明細部 | B76: =CSVデータ1!B76 -> 県 | C76: =CSVデータ1!C76 -> 42 | D76: =CSVデータ1!D76 -> 男 | E76: =CSVデータ1!E76+CSVデータ2!E76+CSVデータ3!E76+CSVデータ4!E76 -> 285 | F76: =CSVデータ1!F76+CSVデータ2!F76+CSVデータ3!F76+CSVデータ4!F76 -> 96 | H76: =CSVデータ1!H76+CSVデータ2!H76+CSVデータ3!H76+CSVデータ4!H76 -> 149 | J76: =CSVデータ1!J76+CSVデータ2!J76+CSVデータ3!J76+CSVデータ4!J76 -> 96 | L76: =CSVデータ1!L76+CSVデータ2!L76+CSVデータ3!L76+CSVデータ4!L76 -> 98 | N76: =CSVデータ1!N76+CSVデータ2!N76+CSVデータ3!N76+CSVデータ4!N76 -> 18 | P76: =CSVデータ1!P76+CSVデータ2!P76+CSVデータ3!P76+CSVデータ4!P76 -> 37 | R76: =CSVデータ1!R76+CSVデータ2!R76+CSVデータ3!R76+CSVデータ4!R76 -> 70 | T76: =CSVデータ1!T76+CSVデータ2!T76+CSVデータ3!T76+CSVデータ4!T76 -> 70 | V76: =CSVデータ1!V76+CSVデータ2!V76+CSVデータ3!V76+CSVデータ4!V76 -> 76 | X76: =CSVデータ1!X76+CSVデータ2!X76+CSVデータ3!X76+CSVデータ4!X76 -> 58 | Z76: =CSVデータ1!Z76+CSVデータ2!Z76+CSVデータ3!Z76+CSVデータ4!Z76 -> 154 | AB76: =CSVデータ1!AB76+CSVデータ2!AB76+CSVデータ3!AB76+CSVデータ4!AB76 -> 1 | AD76: =CSVデータ1!AD76+CSVデータ2!AD76+CSVデータ3!AD76+CSVデータ4!AD76 -> 121 | AF76: =CSVデータ1!AF76+CSVデータ2!AF76+CSVデータ3!AF76+CSVデータ4!AF76 -> 37
A77: =CSVデータ1!A77 -> 明細部 | B77: =CSVデータ1!B77 -> 県 | C77: =CSVデータ1!C77 -> 43 | D77: =CSVデータ1!D77 -> 男 | E77: =CSVデータ1!E77+CSVデータ2!E77+CSVデータ3!E77+CSVデータ4!E77 -> 320 | F77: =CSVデータ1!F77+CSVデータ2!F77+CSVデータ3!F77+CSVデータ4!F77 -> 109 | H77: =CSVデータ1!H77+CSVデータ2!H77+CSVデータ3!H77+CSVデータ4!H77 -> 144 | J77: =CSVデータ1!J77+CSVデータ2!J77+CSVデータ3!J77+CSVデータ4!J77 -> 81 | L77: =CSVデータ1!L77+CSVデータ2!L77+CSVデータ3!L77+CSVデータ4!L77 -> 107 | N77: =CSVデータ1!N77+CSVデータ2!N77+CSVデータ3!N77+CSVデータ4!N77 -> 32 | P77: =CSVデータ1!P77+CSVデータ2!P77+CSVデータ3!P77+CSVデータ4!P77 -> 41 | R77: =CSVデータ1!R77+CSVデータ2!R77+CSVデータ3!R77+CSVデータ4!R77 -> 79 | T77: =CSVデータ1!T77+CSVデータ2!T77+CSVデータ3!T77+CSVデータ4!T77 -> 61 | V77: =CSVデータ1!V77+CSVデータ2!V77+CSVデータ3!V77+CSVデータ4!V77 -> 88 | X77: =CSVデータ1!X77+CSVデータ2!X77+CSVデータ3!X77+CSVデータ4!X77 -> 65 | Z77: =CSVデータ1!Z77+CSVデータ2!Z77+CSVデータ3!Z77+CSVデータ4!Z77 -> 181 | AB77: =CSVデータ1!AB77+CSVデータ2!AB77+CSVデータ3!AB77+CSVデータ4!AB77 -> 0 | AD77: =CSVデータ1!AD77+CSVデータ2!AD77+CSVデータ3!AD77+CSVデータ4!AD77 -> 157 | AF77: =CSVデータ1!AF77+CSVデータ2!AF77+CSVデータ3!AF77+CSVデータ4!AF77 -> 23
A78: =CSVデータ1!A78 -> 明細部 | B78: =CSVデータ1!B78 -> 県 | C78: =CSVデータ1!C78 -> 44 | D78: =CSVデータ1!D78 -> 男 | E78: =CSVデータ1!E78+CSVデータ2!E78+CSVデータ3!E78+CSVデータ4!E78 -> 311 | F78: =CSVデータ1!F78+CSVデータ2!F78+CSVデータ3!F78+CSVデータ4!F78 -> 117 | H78: =CSVデータ1!H78+CSVデータ2!H78+CSVデータ3!H78+CSVデータ4!H78 -> 163 | J78: =CSVデータ1!J78+CSVデータ2!J78+CSVデータ3!J78+CSVデータ4!J78 -> 115 | L78: =CSVデータ1!L78+CSVデータ2!L78+CSVデータ3!L78+CSVデータ4!L78 -> 127 | N78: =CSVデータ1!N78+CSVデータ2!N78+CSVデータ3!N78+CSVデータ4!N78 -> 33 | P78: =CSVデータ1!P78+CSVデータ2!P78+CSVデータ3!P78+CSVデータ4!P78 -> 34 | R78: =CSVデータ1!R78+CSVデータ2!R78+CSVデータ3!R78+CSVデータ4!R78 -> 88 | T78: =CSVデータ1!T78+CSVデータ2!T78+CSVデータ3!T78+CSVデータ4!T78 -> 62 | V78: =CSVデータ1!V78+CSVデータ2!V78+CSVデータ3!V78+CSVデータ4!V78 -> 98 | X78: =CSVデータ1!X78+CSVデータ2!X78+CSVデータ3!X78+CSVデータ4!X78 -> 83 | Z78: =CSVデータ1!Z78+CSVデータ2!Z78+CSVデータ3!Z78+CSVデータ4!Z78 -> 176 | AB78: =CSVデータ1!AB78+CSVデータ2!AB78+CSVデータ3!AB78+CSVデータ4!AB78 -> 2 | AD78: =CSVデータ1!AD78+CSVデータ2!AD78+CSVデータ3!AD78+CSVデータ4!AD78 -> 143 | AF78: =CSVデータ1!AF78+CSVデータ2!AF78+CSVデータ3!AF78+CSVデータ4!AF78 -> 37
A79: =CSVデータ1!A79 -> 明細部 | B79: =CSVデータ1!B79 -> 県 | C79: =CSVデータ1!C79 -> 45 | D79: =CSVデータ1!D79 -> 男 | E79: =CSVデータ1!E79+CSVデータ2!E79+CSVデータ3!E79+CSVデータ4!E79 -> 339 | F79: =CSVデータ1!F79+CSVデータ2!F79+CSVデータ3!F79+CSVデータ4!F79 -> 127 | H79: =CSVデータ1!H79+CSVデータ2!H79+CSVデータ3!H79+CSVデータ4!H79 -> 159 | J79: =CSVデータ1!J79+CSVデータ2!J79+CSVデータ3!J79+CSVデータ4!J79 -> 102 | L79: =CSVデータ1!L79+CSVデータ2!L79+CSVデータ3!L79+CSVデータ4!L79 -> 99 | N79: =CSVデータ1!N79+CSVデータ2!N79+CSVデータ3!N79+CSVデータ4!N79 -> 29 | P79: =CSVデータ1!P79+CSVデータ2!P79+CSVデータ3!P79+CSVデータ4!P79 -> 50 | R79: =CSVデータ1!R79+CSVデータ2!R79+CSVデータ3!R79+CSVデータ4!R79 -> 88 | T79: =CSVデータ1!T79+CSVデータ2!T79+CSVデータ3!T79+CSVデータ4!T79 -> 67 | V79: =CSVデータ1!V79+CSVデータ2!V79+CSVデータ3!V79+CSVデータ4!V79 -> 98 | X79: =CSVデータ1!X79+CSVデータ2!X79+CSVデータ3!X79+CSVデータ4!X79 -> 75 | Z79: =CSVデータ1!Z79+CSVデータ2!Z79+CSVデータ3!Z79+CSVデータ4!Z79 -> 189 | AB79: =CSVデータ1!AB79+CSVデータ2!AB79+CSVデータ3!AB79+CSVデータ4!AB79 -> 0 | AD79: =CSVデータ1!AD79+CSVデータ2!AD79+CSVデータ3!AD79+CSVデータ4!AD79 -> 187 | AF79: =CSVデータ1!AF79+CSVデータ2!AF79+CSVデータ3!AF79+CSVデータ4!AF79 -> 26
A80: =CSVデータ1!A80 -> 明細部 | B80: =CSVデータ1!B80 -> 県 | C80: =CSVデータ1!C80 -> 46 | D80: =CSVデータ1!D80 -> 男 | E80: =CSVデータ1!E80+CSVデータ2!E80+CSVデータ3!E80+CSVデータ4!E80 -> 412 | F80: =CSVデータ1!F80+CSVデータ2!F80+CSVデータ3!F80+CSVデータ4!F80 -> 148 | H80: =CSVデータ1!H80+CSVデータ2!H80+CSVデータ3!H80+CSVデータ4!H80 -> 207 | J80: =CSVデータ1!J80+CSVデータ2!J80+CSVデータ3!J80+CSVデータ4!J80 -> 152 | L80: =CSVデータ1!L80+CSVデータ2!L80+CSVデータ3!L80+CSVデータ4!L80 -> 161 | N80: =CSVデータ1!N80+CSVデータ2!N80+CSVデータ3!N80+CSVデータ4!N80 -> 52 | P80: =CSVデータ1!P80+CSVデータ2!P80+CSVデータ3!P80+CSVデータ4!P80 -> 71 | R80: =CSVデータ1!R80+CSVデータ2!R80+CSVデータ3!R80+CSVデータ4!R80 -> 133 | T80: =CSVデータ1!T80+CSVデータ2!T80+CSVデータ3!T80+CSVデータ4!T80 -> 98 | V80: =CSVデータ1!V80+CSVデータ2!V80+CSVデータ3!V80+CSVデータ4!V80 -> 133 | X80: =CSVデータ1!X80+CSVデータ2!X80+CSVデータ3!X80+CSVデータ4!X80 -> 107 | Z80: =CSVデータ1!Z80+CSVデータ2!Z80+CSVデータ3!Z80+CSVデータ4!Z80 -> 231 | AB80: =CSVデータ1!AB80+CSVデータ2!AB80+CSVデータ3!AB80+CSVデータ4!AB80 -> 4 | AD80: =CSVデータ1!AD80+CSVデータ2!AD80+CSVデータ3!AD80+CSVデータ4!AD80 -> 208 | AF80: =CSVデータ1!AF80+CSVデータ2!AF80+CSVデータ3!AF80+CSVデータ4!AF80 -> 36
A81: =CSVデータ1!A81 -> 明細部 | B81: =CSVデータ1!B81 -> 県 | C81: =CSVデータ1!C81 -> 47 | D81: =CSVデータ1!D81 -> 男 | E81: =CSVデータ1!E81+CSVデータ2!E81+CSVデータ3!E81+CSVデータ4!E81 -> 353 | F81: =CSVデータ1!F81+CSVデータ2!F81+CSVデータ3!F81+CSVデータ4!F81 -> 138 | H81: =CSVデータ1!H81+CSVデータ2!H81+CSVデータ3!H81+CSVデータ4!H81 -> 199 | J81: =CSVデータ1!J81+CSVデータ2!J81+CSVデータ3!J81+CSVデータ4!J81 -> 125 | L81: =CSVデータ1!L81+CSVデータ2!L81+CSVデータ3!L81+CSVデータ4!L81 -> 126 | N81: =CSVデータ1!N81+CSVデータ2!N81+CSVデータ3!N81+CSVデータ4!N81 -> 24 | P81: =CSVデータ1!P81+CSVデータ2!P81+CSVデータ3!P81+CSVデータ4!P81 -> 55 | R81: =CSVデータ1!R81+CSVデータ2!R81+CSVデータ3!R81+CSVデータ4!R81 -> 121 | T81: =CSVデータ1!T81+CSVデータ2!T81+CSVデータ3!T81+CSVデータ4!T81 -> 87 | V81: =CSVデータ1!V81+CSVデータ2!V81+CSVデータ3!V81+CSVデータ4!V81 -> 112 | X81: =CSVデータ1!X81+CSVデータ2!X81+CSVデータ3!X81+CSVデータ4!X81 -> 92 | Z81: =CSVデータ1!Z81+CSVデータ2!Z81+CSVデータ3!Z81+CSVデータ4!Z81 -> 223 | AB81: =CSVデータ1!AB81+CSVデータ2!AB81+CSVデータ3!AB81+CSVデータ4!AB81 -> 0 | AD81: =CSVデータ1!AD81+CSVデータ2!AD81+CSVデータ3!AD81+CSVデータ4!AD81 -> 189 | AF81: =CSVデータ1!AF81+CSVデータ2!AF81+CSVデータ3!AF81+CSVデータ4!AF81 -> 42
A82: =CSVデータ1!A82 -> 明細部 | B82: =CSVデータ1!B82 -> 県 | C82: =CSVデータ1!C82 -> 48 | D82: =CSVデータ1!D82 -> 男 | E82: =CSVデータ1!E82+CSVデータ2!E82+CSVデータ3!E82+CSVデータ4!E82 -> 354 | F82: =CSVデータ1!F82+CSVデータ2!F82+CSVデータ3!F82+CSVデータ4!F82 -> 135 | H82: =CSVデータ1!H82+CSVデータ2!H82+CSVデータ3!H82+CSVデータ4!H82 -> 187 | J82: =CSVデータ1!J82+CSVデータ2!J82+CSVデータ3!J82+CSVデータ4!J82 -> 84 | L82: =CSVデータ1!L82+CSVデータ2!L82+CSVデータ3!L82+CSVデータ4!L82 -> 115 | N82: =CSVデータ1!N82+CSVデータ2!N82+CSVデータ3!N82+CSVデータ4!N82 -> 21 | P82: =CSVデータ1!P82+CSVデータ2!P82+CSVデータ3!P82+CSVデータ4!P82 -> 53 | R82: =CSVデータ1!R82+CSVデータ2!R82+CSVデータ3!R82+CSVデータ4!R82 -> 102 | T82: =CSVデータ1!T82+CSVデータ2!T82+CSVデータ3!T82+CSVデータ4!T82 -> 68 | V82: =CSVデータ1!V82+CSVデータ2!V82+CSVデータ3!V82+CSVデータ4!V82 -> 111 | X82: =CSVデータ1!X82+CSVデータ2!X82+CSVデータ3!X82+CSVデータ4!X82 -> 92 | Z82: =CSVデータ1!Z82+CSVデータ2!Z82+CSVデータ3!Z82+CSVデータ4!Z82 -> 207 | AB82: =CSVデータ1!AB82+CSVデータ2!AB82+CSVデータ3!AB82+CSVデータ4!AB82 -> 0 | AD82: =CSVデータ1!AD82+CSVデータ2!AD82+CSVデータ3!AD82+CSVデータ4!AD82 -> 150 | AF82: =CSVデータ1!AF82+CSVデータ2!AF82+CSVデータ3!AF82+CSVデータ4!AF82 -> 46
A83: =CSVデータ1!A83 -> 明細部 | B83: =CSVデータ1!B83 -> 県 | C83: =CSVデータ1!C83 -> 49 | D83: =CSVデータ1!D83 -> 男 | E83: =CSVデータ1!E83+CSVデータ2!E83+CSVデータ3!E83+CSVデータ4!E83 -> 305 | F83: =CSVデータ1!F83+CSVデータ2!F83+CSVデータ3!F83+CSVデータ4!F83 -> 114 | H83: =CSVデータ1!H83+CSVデータ2!H83+CSVデータ3!H83+CSVデータ4!H83 -> 165 | J83: =CSVデータ1!J83+CSVデータ2!J83+CSVデータ3!J83+CSVデータ4!J83 -> 97 | L83: =CSVデータ1!L83+CSVデータ2!L83+CSVデータ3!L83+CSVデータ4!L83 -> 107 | N83: =CSVデータ1!N83+CSVデータ2!N83+CSVデータ3!N83+CSVデータ4!N83 -> 24 | P83: =CSVデータ1!P83+CSVデータ2!P83+CSVデータ3!P83+CSVデータ4!P83 -> 47 | R83: =CSVデータ1!R83+CSVデータ2!R83+CSVデータ3!R83+CSVデータ4!R83 -> 111 | T83: =CSVデータ1!T83+CSVデータ2!T83+CSVデータ3!T83+CSVデータ4!T83 -> 58 | V83: =CSVデータ1!V83+CSVデータ2!V83+CSVデータ3!V83+CSVデータ4!V83 -> 107 | X83: =CSVデータ1!X83+CSVデータ2!X83+CSVデータ3!X83+CSVデータ4!X83 -> 87 | Z83: =CSVデータ1!Z83+CSVデータ2!Z83+CSVデータ3!Z83+CSVデータ4!Z83 -> 162 | AB83: =CSVデータ1!AB83+CSVデータ2!AB83+CSVデータ3!AB83+CSVデータ4!AB83 -> 1 | AD83: =CSVデータ1!AD83+CSVデータ2!AD83+CSVデータ3!AD83+CSVデータ4!AD83 -> 141 | AF83: =CSVデータ1!AF83+CSVデータ2!AF83+CSVデータ3!AF83+CSVデータ4!AF83 -> 26
A84: =CSVデータ1!A84 -> 明細部 | B84: =CSVデータ1!B84 -> 県 | C84: =CSVデータ1!C84 -> 50 | D84: =CSVデータ1!D84 -> 男 | E84: =CSVデータ1!E84+CSVデータ2!E84+CSVデータ3!E84+CSVデータ4!E84 -> 369 | F84: =CSVデータ1!F84+CSVデータ2!F84+CSVデータ3!F84+CSVデータ4!F84 -> 153 | H84: =CSVデータ1!H84+CSVデータ2!H84+CSVデータ3!H84+CSVデータ4!H84 -> 198 | J84: =CSVデータ1!J84+CSVデータ2!J84+CSVデータ3!J84+CSVデータ4!J84 -> 121 | L84: =CSVデータ1!L84+CSVデータ2!L84+CSVデータ3!L84+CSVデータ4!L84 -> 129 | N84: =CSVデータ1!N84+CSVデータ2!N84+CSVデータ3!N84+CSVデータ4!N84 -> 27 | P84: =CSVデータ1!P84+CSVデータ2!P84+CSVデータ3!P84+CSVデータ4!P84 -> 67 | R84: =CSVデータ1!R84+CSVデータ2!R84+CSVデータ3!R84+CSVデータ4!R84 -> 132 | T84: =CSVデータ1!T84+CSVデータ2!T84+CSVデータ3!T84+CSVデータ4!T84 -> 56 | V84: =CSVデータ1!V84+CSVデータ2!V84+CSVデータ3!V84+CSVデータ4!V84 -> 132 | X84: =CSVデータ1!X84+CSVデータ2!X84+CSVデータ3!X84+CSVデータ4!X84 -> 113 | Z84: =CSVデータ1!Z84+CSVデータ2!Z84+CSVデータ3!Z84+CSVデータ4!Z84 -> 190 | AB84: =CSVデータ1!AB84+CSVデータ2!AB84+CSVデータ3!AB84+CSVデータ4!AB84 -> 0 | AD84: =CSVデータ1!AD84+CSVデータ2!AD84+CSVデータ3!AD84+CSVデータ4!AD84 -> 153 | AF84: =CSVデータ1!AF84+CSVデータ2!AF84+CSVデータ3!AF84+CSVデータ4!AF84 -> 41
A85: =CSVデータ1!A85 -> 明細部 | B85: =CSVデータ1!B85 -> 県 | C85: =CSVデータ1!C85 -> 51 | D85: =CSVデータ1!D85 -> 男 | E85: =CSVデータ1!E85+CSVデータ2!E85+CSVデータ3!E85+CSVデータ4!E85 -> 362 | F85: =CSVデータ1!F85+CSVデータ2!F85+CSVデータ3!F85+CSVデータ4!F85 -> 145 | H85: =CSVデータ1!H85+CSVデータ2!H85+CSVデータ3!H85+CSVデータ4!H85 -> 203 | J85: =CSVデータ1!J85+CSVデータ2!J85+CSVデータ3!J85+CSVデータ4!J85 -> 127 | L85: =CSVデータ1!L85+CSVデータ2!L85+CSVデータ3!L85+CSVデータ4!L85 -> 116 | N85: =CSVデータ1!N85+CSVデータ2!N85+CSVデータ3!N85+CSVデータ4!N85 -> 26 | P85: =CSVデータ1!P85+CSVデータ2!P85+CSVデータ3!P85+CSVデータ4!P85 -> 57 | R85: =CSVデータ1!R85+CSVデータ2!R85+CSVデータ3!R85+CSVデータ4!R85 -> 125 | T85: =CSVデータ1!T85+CSVデータ2!T85+CSVデータ3!T85+CSVデータ4!T85 -> 78 | V85: =CSVデータ1!V85+CSVデータ2!V85+CSVデータ3!V85+CSVデータ4!V85 -> 146 | X85: =CSVデータ1!X85+CSVデータ2!X85+CSVデータ3!X85+CSVデータ4!X85 -> 109 | Z85: =CSVデータ1!Z85+CSVデータ2!Z85+CSVデータ3!Z85+CSVデータ4!Z85 -> 241 | AB85: =CSVデータ1!AB85+CSVデータ2!AB85+CSVデータ3!AB85+CSVデータ4!AB85 -> 0 | AD85: =CSVデータ1!AD85+CSVデータ2!AD85+CSVデータ3!AD85+CSVデータ4!AD85 -> 191 | AF85: =CSVデータ1!AF85+CSVデータ2!AF85+CSVデータ3!AF85+CSVデータ4!AF85 -> 39
A86: =CSVデータ1!A86 -> 明細部 | B86: =CSVデータ1!B86 -> 県 | C86: =CSVデータ1!C86 -> 52 | D86: =CSVデータ1!D86 -> 男 | E86: =CSVデータ1!E86+CSVデータ2!E86+CSVデータ3!E86+CSVデータ4!E86 -> 275 | F86: =CSVデータ1!F86+CSVデータ2!F86+CSVデータ3!F86+CSVデータ4!F86 -> 122 | H86: =CSVデータ1!H86+CSVデータ2!H86+CSVデータ3!H86+CSVデータ4!H86 -> 165 | J86: =CSVデータ1!J86+CSVデータ2!J86+CSVデータ3!J86+CSVデータ4!J86 -> 76 | L86: =CSVデータ1!L86+CSVデータ2!L86+CSVデータ3!L86+CSVデータ4!L86 -> 84 | N86: =CSVデータ1!N86+CSVデータ2!N86+CSVデータ3!N86+CSVデータ4!N86 -> 23 | P86: =CSVデータ1!P86+CSVデータ2!P86+CSVデータ3!P86+CSVデータ4!P86 -> 44 | R86: =CSVデータ1!R86+CSVデータ2!R86+CSVデータ3!R86+CSVデータ4!R86 -> 97 | T86: =CSVデータ1!T86+CSVデータ2!T86+CSVデータ3!T86+CSVデータ4!T86 -> 44 | V86: =CSVデータ1!V86+CSVデータ2!V86+CSVデータ3!V86+CSVデータ4!V86 -> 108 | X86: =CSVデータ1!X86+CSVデータ2!X86+CSVデータ3!X86+CSVデータ4!X86 -> 77 | Z86: =CSVデータ1!Z86+CSVデータ2!Z86+CSVデータ3!Z86+CSVデータ4!Z86 -> 154 | AB86: =CSVデータ1!AB86+CSVデータ2!AB86+CSVデータ3!AB86+CSVデータ4!AB86 -> 1 | AD86: =CSVデータ1!AD86+CSVデータ2!AD86+CSVデータ3!AD86+CSVデータ4!AD86 -> 129 | AF86: =CSVデータ1!AF86+CSVデータ2!AF86+CSVデータ3!AF86+CSVデータ4!AF86 -> 22
A87: =CSVデータ1!A87 -> 明細部 | B87: =CSVデータ1!B87 -> 県 | C87: =CSVデータ1!C87 -> 53 | D87: =CSVデータ1!D87 -> 男 | E87: =CSVデータ1!E87+CSVデータ2!E87+CSVデータ3!E87+CSVデータ4!E87 -> 366 | F87: =CSVデータ1!F87+CSVデータ2!F87+CSVデータ3!F87+CSVデータ4!F87 -> 145 | H87: =CSVデータ1!H87+CSVデータ2!H87+CSVデータ3!H87+CSVデータ4!H87 -> 212 | J87: =CSVデータ1!J87+CSVデータ2!J87+CSVデータ3!J87+CSVデータ4!J87 -> 112 | L87: =CSVデータ1!L87+CSVデータ2!L87+CSVデータ3!L87+CSVデータ4!L87 -> 122 | N87: =CSVデータ1!N87+CSVデータ2!N87+CSVデータ3!N87+CSVデータ4!N87 -> 19 | P87: =CSVデータ1!P87+CSVデータ2!P87+CSVデータ3!P87+CSVデータ4!P87 -> 64 | R87: =CSVデータ1!R87+CSVデータ2!R87+CSVデータ3!R87+CSVデータ4!R87 -> 147 | T87: =CSVデータ1!T87+CSVデータ2!T87+CSVデータ3!T87+CSVデータ4!T87 -> 59 | V87: =CSVデータ1!V87+CSVデータ2!V87+CSVデータ3!V87+CSVデータ4!V87 -> 141 | X87: =CSVデータ1!X87+CSVデータ2!X87+CSVデータ3!X87+CSVデータ4!X87 -> 115 | Z87: =CSVデータ1!Z87+CSVデータ2!Z87+CSVデータ3!Z87+CSVデータ4!Z87 -> 206 | AB87: =CSVデータ1!AB87+CSVデータ2!AB87+CSVデータ3!AB87+CSVデータ4!AB87 -> 1 | AD87: =CSVデータ1!AD87+CSVデータ2!AD87+CSVデータ3!AD87+CSVデータ4!AD87 -> 194 | AF87: =CSVデータ1!AF87+CSVデータ2!AF87+CSVデータ3!AF87+CSVデータ4!AF87 -> 37
A88: =CSVデータ1!A88 -> 明細部 | B88: =CSVデータ1!B88 -> 県 | C88: =CSVデータ1!C88 -> 54 | D88: =CSVデータ1!D88 -> 男 | E88: =CSVデータ1!E88+CSVデータ2!E88+CSVデータ3!E88+CSVデータ4!E88 -> 376 | F88: =CSVデータ1!F88+CSVデータ2!F88+CSVデータ3!F88+CSVデータ4!F88 -> 135 | H88: =CSVデータ1!H88+CSVデータ2!H88+CSVデータ3!H88+CSVデータ4!H88 -> 216 | J88: =CSVデータ1!J88+CSVデータ2!J88+CSVデータ3!J88+CSVデータ4!J88 -> 131 | L88: =CSVデータ1!L88+CSVデータ2!L88+CSVデータ3!L88+CSVデータ4!L88 -> 111 | N88: =CSVデータ1!N88+CSVデータ2!N88+CSVデータ3!N88+CSVデータ4!N88 -> 30 | P88: =CSVデータ1!P88+CSVデータ2!P88+CSVデータ3!P88+CSVデータ4!P88 -> 69 | R88: =CSVデータ1!R88+CSVデータ2!R88+CSVデータ3!R88+CSVデータ4!R88 -> 151 | T88: =CSVデータ1!T88+CSVデータ2!T88+CSVデータ3!T88+CSVデータ4!T88 -> 57 | V88: =CSVデータ1!V88+CSVデータ2!V88+CSVデータ3!V88+CSVデータ4!V88 -> 159 | X88: =CSVデータ1!X88+CSVデータ2!X88+CSVデータ3!X88+CSVデータ4!X88 -> 120 | Z88: =CSVデータ1!Z88+CSVデータ2!Z88+CSVデータ3!Z88+CSVデータ4!Z88 -> 208 | AB88: =CSVデータ1!AB88+CSVデータ2!AB88+CSVデータ3!AB88+CSVデータ4!AB88 -> 5 | AD88: =CSVデータ1!AD88+CSVデータ2!AD88+CSVデータ3!AD88+CSVデータ4!AD88 -> 184 | AF88: =CSVデータ1!AF88+CSVデータ2!AF88+CSVデータ3!AF88+CSVデータ4!AF88 -> 39
A89: =CSVデータ1!A89 -> 明細部 | B89: =CSVデータ1!B89 -> 県 | C89: =CSVデータ1!C89 -> 55 | D89: =CSVデータ1!D89 -> 男 | E89: =CSVデータ1!E89+CSVデータ2!E89+CSVデータ3!E89+CSVデータ4!E89 -> 398 | F89: =CSVデータ1!F89+CSVデータ2!F89+CSVデータ3!F89+CSVデータ4!F89 -> 130 | H89: =CSVデータ1!H89+CSVデータ2!H89+CSVデータ3!H89+CSVデータ4!H89 -> 187 | J89: =CSVデータ1!J89+CSVデータ2!J89+CSVデータ3!J89+CSVデータ4!J89 -> 123 | L89: =CSVデータ1!L89+CSVデータ2!L89+CSVデータ3!L89+CSVデータ4!L89 -> 113 | N89: =CSVデータ1!N89+CSVデータ2!N89+CSVデータ3!N89+CSVデータ4!N89 -> 25 | P89: =CSVデータ1!P89+CSVデータ2!P89+CSVデータ3!P89+CSVデータ4!P89 -> 99 | R89: =CSVデータ1!R89+CSVデータ2!R89+CSVデータ3!R89+CSVデータ4!R89 -> 140 | T89: =CSVデータ1!T89+CSVデータ2!T89+CSVデータ3!T89+CSVデータ4!T89 -> 84 | V89: =CSVデータ1!V89+CSVデータ2!V89+CSVデータ3!V89+CSVデータ4!V89 -> 152 | X89: =CSVデータ1!X89+CSVデータ2!X89+CSVデータ3!X89+CSVデータ4!X89 -> 125 | Z89: =CSVデータ1!Z89+CSVデータ2!Z89+CSVデータ3!Z89+CSVデータ4!Z89 -> 226 | AB89: =CSVデータ1!AB89+CSVデータ2!AB89+CSVデータ3!AB89+CSVデータ4!AB89 -> 6 | AD89: =CSVデータ1!AD89+CSVデータ2!AD89+CSVデータ3!AD89+CSVデータ4!AD89 -> 187 | AF89: =CSVデータ1!AF89+CSVデータ2!AF89+CSVデータ3!AF89+CSVデータ4!AF89 -> 50
A90: =CSVデータ1!A90 -> 明細部 | B90: =CSVデータ1!B90 -> 県 | C90: =CSVデータ1!C90 -> 56 | D90: =CSVデータ1!D90 -> 男 | E90: =CSVデータ1!E90+CSVデータ2!E90+CSVデータ3!E90+CSVデータ4!E90 -> 353 | F90: =CSVデータ1!F90+CSVデータ2!F90+CSVデータ3!F90+CSVデータ4!F90 -> 147 | H90: =CSVデータ1!H90+CSVデータ2!H90+CSVデータ3!H90+CSVデータ4!H90 -> 209 | J90: =CSVデータ1!J90+CSVデータ2!J90+CSVデータ3!J90+CSVデータ4!J90 -> 131 | L90: =CSVデータ1!L90+CSVデータ2!L90+CSVデータ3!L90+CSVデータ4!L90 -> 120 | N90: =CSVデータ1!N90+CSVデータ2!N90+CSVデータ3!N90+CSVデータ4!N90 -> 38 | P90: =CSVデータ1!P90+CSVデータ2!P90+CSVデータ3!P90+CSVデータ4!P90 -> 79 | R90: =CSVデータ1!R90+CSVデータ2!R90+CSVデータ3!R90+CSVデータ4!R90 -> 171 | T90: =CSVデータ1!T90+CSVデータ2!T90+CSVデータ3!T90+CSVデータ4!T90 -> 72 | V90: =CSVデータ1!V90+CSVデータ2!V90+CSVデータ3!V90+CSVデータ4!V90 -> 166 | X90: =CSVデータ1!X90+CSVデータ2!X90+CSVデータ3!X90+CSVデータ4!X90 -> 123 | Z90: =CSVデータ1!Z90+CSVデータ2!Z90+CSVデータ3!Z90+CSVデータ4!Z90 -> 190 | AB90: =CSVデータ1!AB90+CSVデータ2!AB90+CSVデータ3!AB90+CSVデータ4!AB90 -> 2 | AD90: =CSVデータ1!AD90+CSVデータ2!AD90+CSVデータ3!AD90+CSVデータ4!AD90 -> 184 | AF90: =CSVデータ1!AF90+CSVデータ2!AF90+CSVデータ3!AF90+CSVデータ4!AF90 -> 40
A91: =CSVデータ1!A91 -> 明細部 | B91: =CSVデータ1!B91 -> 県 | C91: =CSVデータ1!C91 -> 57 | D91: =CSVデータ1!D91 -> 男 | E91: =CSVデータ1!E91+CSVデータ2!E91+CSVデータ3!E91+CSVデータ4!E91 -> 374 | F91: =CSVデータ1!F91+CSVデータ2!F91+CSVデータ3!F91+CSVデータ4!F91 -> 147 | H91: =CSVデータ1!H91+CSVデータ2!H91+CSVデータ3!H91+CSVデータ4!H91 -> 213 | J91: =CSVデータ1!J91+CSVデータ2!J91+CSVデータ3!J91+CSVデータ4!J91 -> 123 | L91: =CSVデータ1!L91+CSVデータ2!L91+CSVデータ3!L91+CSVデータ4!L91 -> 105 | N91: =CSVデータ1!N91+CSVデータ2!N91+CSVデータ3!N91+CSVデータ4!N91 -> 20 | P91: =CSVデータ1!P91+CSVデータ2!P91+CSVデータ3!P91+CSVデータ4!P91 -> 76 | R91: =CSVデータ1!R91+CSVデータ2!R91+CSVデータ3!R91+CSVデータ4!R91 -> 163 | T91: =CSVデータ1!T91+CSVデータ2!T91+CSVデータ3!T91+CSVデータ4!T91 -> 56 | V91: =CSVデータ1!V91+CSVデータ2!V91+CSVデータ3!V91+CSVデータ4!V91 -> 184 | X91: =CSVデータ1!X91+CSVデータ2!X91+CSVデータ3!X91+CSVデータ4!X91 -> 124 | Z91: =CSVデータ1!Z91+CSVデータ2!Z91+CSVデータ3!Z91+CSVデータ4!Z91 -> 209 | AB91: =CSVデータ1!AB91+CSVデータ2!AB91+CSVデータ3!AB91+CSVデータ4!AB91 -> 8 | AD91: =CSVデータ1!AD91+CSVデータ2!AD91+CSVデータ3!AD91+CSVデータ4!AD91 -> 158 | AF91: =CSVデータ1!AF91+CSVデータ2!AF91+CSVデータ3!AF91+CSVデータ4!AF91 -> 43
A92: =CSVデータ1!A92 -> 明細部 | B92: =CSVデータ1!B92 -> 県 | C92: =CSVデータ1!C92 -> 58 | D92: =CSVデータ1!D92 -> 男 | E92: =CSVデータ1!E92+CSVデータ2!E92+CSVデータ3!E92+CSVデータ4!E92 -> 352 | F92: =CSVデータ1!F92+CSVデータ2!F92+CSVデータ3!F92+CSVデータ4!F92 -> 124 | H92: =CSVデータ1!H92+CSVデータ2!H92+CSVデータ3!H92+CSVデータ4!H92 -> 206 | J92: =CSVデータ1!J92+CSVデータ2!J92+CSVデータ3!J92+CSVデータ4!J92 -> 124 | L92: =CSVデータ1!L92+CSVデータ2!L92+CSVデータ3!L92+CSVデータ4!L92 -> 94 | N92: =CSVデータ1!N92+CSVデータ2!N92+CSVデータ3!N92+CSVデータ4!N92 -> 19 | P92: =CSVデータ1!P92+CSVデータ2!P92+CSVデータ3!P92+CSVデータ4!P92 -> 82 | R92: =CSVデータ1!R92+CSVデータ2!R92+CSVデータ3!R92+CSVデータ4!R92 -> 138 | T92: =CSVデータ1!T92+CSVデータ2!T92+CSVデータ3!T92+CSVデータ4!T92 -> 64 | V92: =CSVデータ1!V92+CSVデータ2!V92+CSVデータ3!V92+CSVデータ4!V92 -> 132 | X92: =CSVデータ1!X92+CSVデータ2!X92+CSVデータ3!X92+CSVデータ4!X92 -> 95 | Z92: =CSVデータ1!Z92+CSVデータ2!Z92+CSVデータ3!Z92+CSVデータ4!Z92 -> 205 | AB92: =CSVデータ1!AB92+CSVデータ2!AB92+CSVデータ3!AB92+CSVデータ4!AB92 -> 2 | AD92: =CSVデータ1!AD92+CSVデータ2!AD92+CSVデータ3!AD92+CSVデータ4!AD92 -> 210 | AF92: =CSVデータ1!AF92+CSVデータ2!AF92+CSVデータ3!AF92+CSVデータ4!AF92 -> 26
A93: =CSVデータ1!A93 -> 明細部 | B93: =CSVデータ1!B93 -> 県 | C93: =CSVデータ1!C93 -> 59 | D93: =CSVデータ1!D93 -> 男 | E93: =CSVデータ1!E93+CSVデータ2!E93+CSVデータ3!E93+CSVデータ4!E93 -> 470 | F93: =CSVデータ1!F93+CSVデータ2!F93+CSVデータ3!F93+CSVデータ4!F93 -> 156 | H93: =CSVデータ1!H93+CSVデータ2!H93+CSVデータ3!H93+CSVデータ4!H93 -> 254 | J93: =CSVデータ1!J93+CSVデータ2!J93+CSVデータ3!J93+CSVデータ4!J93 -> 144 | L93: =CSVデータ1!L93+CSVデータ2!L93+CSVデータ3!L93+CSVデータ4!L93 -> 104 | N93: =CSVデータ1!N93+CSVデータ2!N93+CSVデータ3!N93+CSVデータ4!N93 -> 26 | P93: =CSVデータ1!P93+CSVデータ2!P93+CSVデータ3!P93+CSVデータ4!P93 -> 124 | R93: =CSVデータ1!R93+CSVデータ2!R93+CSVデータ3!R93+CSVデータ4!R93 -> 207 | T93: =CSVデータ1!T93+CSVデータ2!T93+CSVデータ3!T93+CSVデータ4!T93 -> 89 | V93: =CSVデータ1!V93+CSVデータ2!V93+CSVデータ3!V93+CSVデータ4!V93 -> 208 | X93: =CSVデータ1!X93+CSVデータ2!X93+CSVデータ3!X93+CSVデータ4!X93 -> 143 | Z93: =CSVデータ1!Z93+CSVデータ2!Z93+CSVデータ3!Z93+CSVデータ4!Z93 -> 228 | AB93: =CSVデータ1!AB93+CSVデータ2!AB93+CSVデータ3!AB93+CSVデータ4!AB93 -> 1 | AD93: =CSVデータ1!AD93+CSVデータ2!AD93+CSVデータ3!AD93+CSVデータ4!AD93 -> 224 | AF93: =CSVデータ1!AF93+CSVデータ2!AF93+CSVデータ3!AF93+CSVデータ4!AF93 -> 44
A94: =CSVデータ1!A94 -> 明細部 | B94: =CSVデータ1!B94 -> 県 | C94: =CSVデータ1!C94 -> 60 | D94: =CSVデータ1!D94 -> 男 | E94: =CSVデータ1!E94+CSVデータ2!E94+CSVデータ3!E94+CSVデータ4!E94 -> 440 | F94: =CSVデータ1!F94+CSVデータ2!F94+CSVデータ3!F94+CSVデータ4!F94 -> 147 | H94: =CSVデータ1!H94+CSVデータ2!H94+CSVデータ3!H94+CSVデータ4!H94 -> 255 | J94: =CSVデータ1!J94+CSVデータ2!J94+CSVデータ3!J94+CSVデータ4!J94 -> 154 | L94: =CSVデータ1!L94+CSVデータ2!L94+CSVデータ3!L94+CSVデータ4!L94 -> 118 | N94: =CSVデータ1!N94+CSVデータ2!N94+CSVデータ3!N94+CSVデータ4!N94 -> 33 | P94: =CSVデータ1!P94+CSVデータ2!P94+CSVデータ3!P94+CSVデータ4!P94 -> 118 | R94: =CSVデータ1!R94+CSVデータ2!R94+CSVデータ3!R94+CSVデータ4!R94 -> 233 | T94: =CSVデータ1!T94+CSVデータ2!T94+CSVデータ3!T94+CSVデータ4!T94 -> 75 | V94: =CSVデータ1!V94+CSVデータ2!V94+CSVデータ3!V94+CSVデータ4!V94 -> 202 | X94: =CSVデータ1!X94+CSVデータ2!X94+CSVデータ3!X94+CSVデータ4!X94 -> 141 | Z94: =CSVデータ1!Z94+CSVデータ2!Z94+CSVデータ3!Z94+CSVデータ4!Z94 -> 257 | AB94: =CSVデータ1!AB94+CSVデータ2!AB94+CSVデータ3!AB94+CSVデータ4!AB94 -> 6 | AD94: =CSVデータ1!AD94+CSVデータ2!AD94+CSVデータ3!AD94+CSVデータ4!AD94 -> 231 | AF94: =CSVデータ1!AF94+CSVデータ2!AF94+CSVデータ3!AF94+CSVデータ4!AF94 -> 34
A95: =CSVデータ1!A95 -> 明細部 | B95: =CSVデータ1!B95 -> 県 | C95: =CSVデータ1!C95 -> 61 | D95: =CSVデータ1!D95 -> 男 | E95: =CSVデータ1!E95+CSVデータ2!E95+CSVデータ3!E95+CSVデータ4!E95 -> 501 | F95: =CSVデータ1!F95+CSVデータ2!F95+CSVデータ3!F95+CSVデータ4!F95 -> 189 | H95: =CSVデータ1!H95+CSVデータ2!H95+CSVデータ3!H95+CSVデータ4!H95 -> 273 | J95: =CSVデータ1!J95+CSVデータ2!J95+CSVデータ3!J95+CSVデータ4!J95 -> 166 | L95: =CSVデータ1!L95+CSVデータ2!L95+CSVデータ3!L95+CSVデータ4!L95 -> 130 | N95: =CSVデータ1!N95+CSVデータ2!N95+CSVデータ3!N95+CSVデータ4!N95 -> 45 | P95: =CSVデータ1!P95+CSVデータ2!P95+CSVデータ3!P95+CSVデータ4!P95 -> 148 | R95: =CSVデータ1!R95+CSVデータ2!R95+CSVデータ3!R95+CSVデータ4!R95 -> 281 | T95: =CSVデータ1!T95+CSVデータ2!T95+CSVデータ3!T95+CSVデータ4!T95 -> 84 | V95: =CSVデータ1!V95+CSVデータ2!V95+CSVデータ3!V95+CSVデータ4!V95 -> 233 | X95: =CSVデータ1!X95+CSVデータ2!X95+CSVデータ3!X95+CSVデータ4!X95 -> 129 | Z95: =CSVデータ1!Z95+CSVデータ2!Z95+CSVデータ3!Z95+CSVデータ4!Z95 -> 236 | AB95: =CSVデータ1!AB95+CSVデータ2!AB95+CSVデータ3!AB95+CSVデータ4!AB95 -> 4 | AD95: =CSVデータ1!AD95+CSVデータ2!AD95+CSVデータ3!AD95+CSVデータ4!AD95 -> 274 | AF95: =CSVデータ1!AF95+CSVデータ2!AF95+CSVデータ3!AF95+CSVデータ4!AF95 -> 53
A96: =CSVデータ1!A96 -> 明細部 | B96: =CSVデータ1!B96 -> 県 | C96: =CSVデータ1!C96 -> 62 | D96: =CSVデータ1!D96 -> 男 | E96: =CSVデータ1!E96+CSVデータ2!E96+CSVデータ3!E96+CSVデータ4!E96 -> 674 | F96: =CSVデータ1!F96+CSVデータ2!F96+CSVデータ3!F96+CSVデータ4!F96 -> 235 | H96: =CSVデータ1!H96+CSVデータ2!H96+CSVデータ3!H96+CSVデータ4!H96 -> 360 | J96: =CSVデータ1!J96+CSVデータ2!J96+CSVデータ3!J96+CSVデータ4!J96 -> 212 | L96: =CSVデータ1!L96+CSVデータ2!L96+CSVデータ3!L96+CSVデータ4!L96 -> 149 | N96: =CSVデータ1!N96+CSVデータ2!N96+CSVデータ3!N96+CSVデータ4!N96 -> 54 | P96: =CSVデータ1!P96+CSVデータ2!P96+CSVデータ3!P96+CSVデータ4!P96 -> 187 | R96: =CSVデータ1!R96+CSVデータ2!R96+CSVデータ3!R96+CSVデータ4!R96 -> 361 | T96: =CSVデータ1!T96+CSVデータ2!T96+CSVデータ3!T96+CSVデータ4!T96 -> 100 | V96: =CSVデータ1!V96+CSVデータ2!V96+CSVデータ3!V96+CSVデータ4!V96 -> 330 | X96: =CSVデータ1!X96+CSVデータ2!X96+CSVデータ3!X96+CSVデータ4!X96 -> 205 | Z96: =CSVデータ1!Z96+CSVデータ2!Z96+CSVデータ3!Z96+CSVデータ4!Z96 -> 361 | AB96: =CSVデータ1!AB96+CSVデータ2!AB96+CSVデータ3!AB96+CSVデータ4!AB96 -> 9 | AD96: =CSVデータ1!AD96+CSVデータ2!AD96+CSVデータ3!AD96+CSVデータ4!AD96 -> 381 | AF96: =CSVデータ1!AF96+CSVデータ2!AF96+CSVデータ3!AF96+CSVデータ4!AF96 -> 80
A97: =CSVデータ1!A97 -> 明細部 | B97: =CSVデータ1!B97 -> 県 | C97: =CSVデータ1!C97 -> 63 | D97: =CSVデータ1!D97 -> 男 | E97: =CSVデータ1!E97+CSVデータ2!E97+CSVデータ3!E97+CSVデータ4!E97 -> 851 | F97: =CSVデータ1!F97+CSVデータ2!F97+CSVデータ3!F97+CSVデータ4!F97 -> 313 | H97: =CSVデータ1!H97+CSVデータ2!H97+CSVデータ3!H97+CSVデータ4!H97 -> 480 | J97: =CSVデータ1!J97+CSVデータ2!J97+CSVデータ3!J97+CSVデータ4!J97 -> 260 | L97: =CSVデータ1!L97+CSVデータ2!L97+CSVデータ3!L97+CSVデータ4!L97 -> 227 | N97: =CSVデータ1!N97+CSVデータ2!N97+CSVデータ3!N97+CSVデータ4!N97 -> 57 | P97: =CSVデータ1!P97+CSVデータ2!P97+CSVデータ3!P97+CSVデータ4!P97 -> 261 | R97: =CSVデータ1!R97+CSVデータ2!R97+CSVデータ3!R97+CSVデータ4!R97 -> 445 | T97: =CSVデータ1!T97+CSVデータ2!T97+CSVデータ3!T97+CSVデータ4!T97 -> 143 | V97: =CSVデータ1!V97+CSVデータ2!V97+CSVデータ3!V97+CSVデータ4!V97 -> 426 | X97: =CSVデータ1!X97+CSVデータ2!X97+CSVデータ3!X97+CSVデータ4!X97 -> 237 | Z97: =CSVデータ1!Z97+CSVデータ2!Z97+CSVデータ3!Z97+CSVデータ4!Z97 -> 439 | AB97: =CSVデータ1!AB97+CSVデータ2!AB97+CSVデータ3!AB97+CSVデータ4!AB97 -> 5 | AD97: =CSVデータ1!AD97+CSVデータ2!AD97+CSVデータ3!AD97+CSVデータ4!AD97 -> 461 | AF97: =CSVデータ1!AF97+CSVデータ2!AF97+CSVデータ3!AF97+CSVデータ4!AF97 -> 82
A98: =CSVデータ1!A98 -> 明細部 | B98: =CSVデータ1!B98 -> 県 | C98: =CSVデータ1!C98 -> 64 | D98: =CSVデータ1!D98 -> 男 | E98: =CSVデータ1!E98+CSVデータ2!E98+CSVデータ3!E98+CSVデータ4!E98 -> 1212 | F98: =CSVデータ1!F98+CSVデータ2!F98+CSVデータ3!F98+CSVデータ4!F98 -> 402 | H98: =CSVデータ1!H98+CSVデータ2!H98+CSVデータ3!H98+CSVデータ4!H98 -> 663 | J98: =CSVデータ1!J98+CSVデータ2!J98+CSVデータ3!J98+CSVデータ4!J98 -> 344 | L98: =CSVデータ1!L98+CSVデータ2!L98+CSVデータ3!L98+CSVデータ4!L98 -> 252 | N98: =CSVデータ1!N98+CSVデータ2!N98+CSVデータ3!N98+CSVデータ4!N98 -> 81 | P98: =CSVデータ1!P98+CSVデータ2!P98+CSVデータ3!P98+CSVデータ4!P98 -> 364 | R98: =CSVデータ1!R98+CSVデータ2!R98+CSVデータ3!R98+CSVデータ4!R98 -> 652 | T98: =CSVデータ1!T98+CSVデータ2!T98+CSVデータ3!T98+CSVデータ4!T98 -> 192 | V98: =CSVデータ1!V98+CSVデータ2!V98+CSVデータ3!V98+CSVデータ4!V98 -> 550 | X98: =CSVデータ1!X98+CSVデータ2!X98+CSVデータ3!X98+CSVデータ4!X98 -> 311 | Z98: =CSVデータ1!Z98+CSVデータ2!Z98+CSVデータ3!Z98+CSVデータ4!Z98 -> 615 | AB98: =CSVデータ1!AB98+CSVデータ2!AB98+CSVデータ3!AB98+CSVデータ4!AB98 -> 17 | AD98: =CSVデータ1!AD98+CSVデータ2!AD98+CSVデータ3!AD98+CSVデータ4!AD98 -> 613 | AF98: =CSVデータ1!AF98+CSVデータ2!AF98+CSVデータ3!AF98+CSVデータ4!AF98 -> 125
A99: =CSVデータ1!A99 -> 明細部 | B99: =CSVデータ1!B99 -> 県 | C99: =CSVデータ1!C99 -> 65 | D99: =CSVデータ1!D99 -> 男 | E99: =CSVデータ1!E99+CSVデータ2!E99+CSVデータ3!E99+CSVデータ4!E99 -> 1458 | F99: =CSVデータ1!F99+CSVデータ2!F99+CSVデータ3!F99+CSVデータ4!F99 -> 471 | H99: =CSVデータ1!H99+CSVデータ2!H99+CSVデータ3!H99+CSVデータ4!H99 -> 828 | J99: =CSVデータ1!J99+CSVデータ2!J99+CSVデータ3!J99+CSVデータ4!J99 -> 447 | L99: =CSVデータ1!L99+CSVデータ2!L99+CSVデータ3!L99+CSVデータ4!L99 -> 344 | N99: =CSVデータ1!N99+CSVデータ2!N99+CSVデータ3!N99+CSVデータ4!N99 -> 112 | P99: =CSVデータ1!P99+CSVデータ2!P99+CSVデータ3!P99+CSVデータ4!P99 -> 437 | R99: =CSVデータ1!R99+CSVデータ2!R99+CSVデータ3!R99+CSVデータ4!R99 -> 871 | T99: =CSVデータ1!T99+CSVデータ2!T99+CSVデータ3!T99+CSVデータ4!T99 -> 236 | V99: =CSVデータ1!V99+CSVデータ2!V99+CSVデータ3!V99+CSVデータ4!V99 -> 768 | X99: =CSVデータ1!X99+CSVデータ2!X99+CSVデータ3!X99+CSVデータ4!X99 -> 423 | Z99: =CSVデータ1!Z99+CSVデータ2!Z99+CSVデータ3!Z99+CSVデータ4!Z99 -> 736 | AB99: =CSVデータ1!AB99+CSVデータ2!AB99+CSVデータ3!AB99+CSVデータ4!AB99 -> 20 | AD99: =CSVデータ1!AD99+CSVデータ2!AD99+CSVデータ3!AD99+CSVデータ4!AD99 -> 847 | AF99: =CSVデータ1!AF99+CSVデータ2!AF99+CSVデータ3!AF99+CSVデータ4!AF99 -> 184
A100: =CSVデータ1!A100 -> 明細部 | B100: =CSVデータ1!B100 -> 県 | C100: =CSVデータ1!C100 -> 66 | D100: =CSVデータ1!D100 -> 男 | E100: =CSVデータ1!E100+CSVデータ2!E100+CSVデータ3!E100+CSVデータ4!E100 -> 1869 | F100: =CSVデータ1!F100+CSVデータ2!F100+CSVデータ3!F100+CSVデータ4!F100 -> 606 | H100: =CSVデータ1!H100+CSVデータ2!H100+CSVデータ3!H100+CSVデータ4!H100 -> 1011 | J100: =CSVデータ1!J100+CSVデータ2!J100+CSVデータ3!J100+CSVデータ4!J100 -> 510 | L100: =CSVデータ1!L100+CSVデータ2!L100+CSVデータ3!L100+CSVデータ4!L100 -> 412 | N100: =CSVデータ1!N100+CSVデータ2!N100+CSVデータ3!N100+CSVデータ4!N100 -> 136 | P100: =CSVデータ1!P100+CSVデータ2!P100+CSVデータ3!P100+CSVデータ4!P100 -> 578 | R100: =CSVデータ1!R100+CSVデータ2!R100+CSVデータ3!R100+CSVデータ4!R100 -> 1136 | T100: =CSVデータ1!T100+CSVデータ2!T100+CSVデータ3!T100+CSVデータ4!T100 -> 333 | V100: =CSVデータ1!V100+CSVデータ2!V100+CSVデータ3!V100+CSVデータ4!V100 -> 1042 | X100: =CSVデータ1!X100+CSVデータ2!X100+CSVデータ3!X100+CSVデータ4!X100 -> 544 | Z100: =CSVデータ1!Z100+CSVデータ2!Z100+CSVデータ3!Z100+CSVデータ4!Z100 -> 936 | AB100: =CSVデータ1!AB100+CSVデータ2!AB100+CSVデータ3!AB100+CSVデータ4!AB100 -> 29 | AD100: =CSVデータ1!AD100+CSVデータ2!AD100+CSVデータ3!AD100+CSVデータ4!AD100 -> 1139 | AF100: =CSVデータ1!AF100+CSVデータ2!AF100+CSVデータ3!AF100+CSVデータ4!AF100 -> 227
A101: =CSVデータ1!A101 -> 明細部 | B101: =CSVデータ1!B101 -> 県 | C101: =CSVデータ1!C101 -> 67 | D101: =CSVデータ1!D101 -> 男 | E101: =CSVデータ1!E101+CSVデータ2!E101+CSVデータ3!E101+CSVデータ4!E101 -> 2367 | F101: =CSVデータ1!F101+CSVデータ2!F101+CSVデータ3!F101+CSVデータ4!F101 -> 730 | H101: =CSVデータ1!H101+CSVデータ2!H101+CSVデータ3!H101+CSVデータ4!H101 -> 1292 | J101: =CSVデータ1!J101+CSVデータ2!J101+CSVデータ3!J101+CSVデータ4!J101 -> 604 | L101: =CSVデータ1!L101+CSVデータ2!L101+CSVデータ3!L101+CSVデータ4!L101 -> 466 | N101: =CSVデータ1!N101+CSVデータ2!N101+CSVデータ3!N101+CSVデータ4!N101 -> 169 | P101: =CSVデータ1!P101+CSVデータ2!P101+CSVデータ3!P101+CSVデータ4!P101 -> 742 | R101: =CSVデータ1!R101+CSVデータ2!R101+CSVデータ3!R101+CSVデータ4!R101 -> 1379 | T101: =CSVデータ1!T101+CSVデータ2!T101+CSVデータ3!T101+CSVデータ4!T101 -> 370 | V101: =CSVデータ1!V101+CSVデータ2!V101+CSVデータ3!V101+CSVデータ4!V101 -> 1198 | X101: =CSVデータ1!X101+CSVデータ2!X101+CSVデータ3!X101+CSVデータ4!X101 -> 564 | Z101: =CSVデータ1!Z101+CSVデータ2!Z101+CSVデータ3!Z101+CSVデータ4!Z101 -> 1161 | AB101: =CSVデータ1!AB101+CSVデータ2!AB101+CSVデータ3!AB101+CSVデータ4!AB101 -> 50 | AD101: =CSVデータ1!AD101+CSVデータ2!AD101+CSVデータ3!AD101+CSVデータ4!AD101 -> 1402 | AF101: =CSVデータ1!AF101+CSVデータ2!AF101+CSVデータ3!AF101+CSVデータ4!AF101 -> 256
A102: =CSVデータ1!A102 -> 明細部 | B102: =CSVデータ1!B102 -> 県 | C102: =CSVデータ1!C102 -> 68 | D102: =CSVデータ1!D102 -> 男 | E102: =CSVデータ1!E102+CSVデータ2!E102+CSVデータ3!E102+CSVデータ4!E102 -> 2980 | F102: =CSVデータ1!F102+CSVデータ2!F102+CSVデータ3!F102+CSVデータ4!F102 -> 888 | H102: =CSVデータ1!H102+CSVデータ2!H102+CSVデータ3!H102+CSVデータ4!H102 -> 1637 | J102: =CSVデータ1!J102+CSVデータ2!J102+CSVデータ3!J102+CSVデータ4!J102 -> 818 | L102: =CSVデータ1!L102+CSVデータ2!L102+CSVデータ3!L102+CSVデータ4!L102 -> 572 | N102: =CSVデータ1!N102+CSVデータ2!N102+CSVデータ3!N102+CSVデータ4!N102 -> 220 | P102: =CSVデータ1!P102+CSVデータ2!P102+CSVデータ3!P102+CSVデータ4!P102 -> 1031 | R102: =CSVデータ1!R102+CSVデータ2!R102+CSVデータ3!R102+CSVデータ4!R102 -> 1842 | T102: =CSVデータ1!T102+CSVデータ2!T102+CSVデータ3!T102+CSVデータ4!T102 -> 453 | V102: =CSVデータ1!V102+CSVデータ2!V102+CSVデータ3!V102+CSVデータ4!V102 -> 1632 | X102: =CSVデータ1!X102+CSVデータ2!X102+CSVデータ3!X102+CSVデータ4!X102 -> 706 | Z102: =CSVデータ1!Z102+CSVデータ2!Z102+CSVデータ3!Z102+CSVデータ4!Z102 -> 1547 | AB102: =CSVデータ1!AB102+CSVデータ2!AB102+CSVデータ3!AB102+CSVデータ4!AB102 -> 70 | AD102: =CSVデータ1!AD102+CSVデータ2!AD102+CSVデータ3!AD102+CSVデータ4!AD102 -> 1820 | AF102: =CSVデータ1!AF102+CSVデータ2!AF102+CSVデータ3!AF102+CSVデータ4!AF102 -> 301
A103: =CSVデータ1!A103 -> 明細部 | B103: =CSVデータ1!B103 -> 県 | C103: =CSVデータ1!C103 -> 69 | D103: =CSVデータ1!D103 -> 男 | E103: =CSVデータ1!E103+CSVデータ2!E103+CSVデータ3!E103+CSVデータ4!E103 -> 3649 | F103: =CSVデータ1!F103+CSVデータ2!F103+CSVデータ3!F103+CSVデータ4!F103 -> 1038 | H103: =CSVデータ1!H103+CSVデータ2!H103+CSVデータ3!H103+CSVデータ4!H103 -> 2007 | J103: =CSVデータ1!J103+CSVデータ2!J103+CSVデータ3!J103+CSVデータ4!J103 -> 888 | L103: =CSVデータ1!L103+CSVデータ2!L103+CSVデータ3!L103+CSVデータ4!L103 -> 602 | N103: =CSVデータ1!N103+CSVデータ2!N103+CSVデータ3!N103+CSVデータ4!N103 -> 210 | P103: =CSVデータ1!P103+CSVデータ2!P103+CSVデータ3!P103+CSVデータ4!P103 -> 1103 | R103: =CSVデータ1!R103+CSVデータ2!R103+CSVデータ3!R103+CSVデータ4!R103 -> 2157 | T103: =CSVデータ1!T103+CSVデータ2!T103+CSVデータ3!T103+CSVデータ4!T103 -> 585 | V103: =CSVデータ1!V103+CSVデータ2!V103+CSVデータ3!V103+CSVデータ4!V103 -> 1877 | X103: =CSVデータ1!X103+CSVデータ2!X103+CSVデータ3!X103+CSVデータ4!X103 -> 820 | Z103: =CSVデータ1!Z103+CSVデータ2!Z103+CSVデータ3!Z103+CSVデータ4!Z103 -> 1786 | AB103: =CSVデータ1!AB103+CSVデータ2!AB103+CSVデータ3!AB103+CSVデータ4!AB103 -> 72 | AD103: =CSVデータ1!AD103+CSVデータ2!AD103+CSVデータ3!AD103+CSVデータ4!AD103 -> 2037 | AF103: =CSVデータ1!AF103+CSVデータ2!AF103+CSVデータ3!AF103+CSVデータ4!AF103 -> 296
A104: =CSVデータ1!A104 -> 明細部 | B104: =CSVデータ1!B104 -> 県 | C104: =CSVデータ1!C104 -> 70 | D104: =CSVデータ1!D104 -> 男 | E104: =CSVデータ1!E104+CSVデータ2!E104+CSVデータ3!E104+CSVデータ4!E104 -> 4057 | F104: =CSVデータ1!F104+CSVデータ2!F104+CSVデータ3!F104+CSVデータ4!F104 -> 1173 | H104: =CSVデータ1!H104+CSVデータ2!H104+CSVデータ3!H104+CSVデータ4!H104 -> 2191 | J104: =CSVデータ1!J104+CSVデータ2!J104+CSVデータ3!J104+CSVデータ4!J104 -> 1040 | L104: =CSVデータ1!L104+CSVデータ2!L104+CSVデータ3!L104+CSVデータ4!L104 -> 685 | N104: =CSVデータ1!N104+CSVデータ2!N104+CSVデータ3!N104+CSVデータ4!N104 -> 283 | P104: =CSVデータ1!P104+CSVデータ2!P104+CSVデータ3!P104+CSVデータ4!P104 -> 1418 | R104: =CSVデータ1!R104+CSVデータ2!R104+CSVデータ3!R104+CSVデータ4!R104 -> 2518 | T104: =CSVデータ1!T104+CSVデータ2!T104+CSVデータ3!T104+CSVデータ4!T104 -> 602 | V104: =CSVデータ1!V104+CSVデータ2!V104+CSVデータ3!V104+CSVデータ4!V104 -> 2289 | X104: =CSVデータ1!X104+CSVデータ2!X104+CSVデータ3!X104+CSVデータ4!X104 -> 855 | Z104: =CSVデータ1!Z104+CSVデータ2!Z104+CSVデータ3!Z104+CSVデータ4!Z104 -> 2080 | AB104: =CSVデータ1!AB104+CSVデータ2!AB104+CSVデータ3!AB104+CSVデータ4!AB104 -> 99 | AD104: =CSVデータ1!AD104+CSVデータ2!AD104+CSVデータ3!AD104+CSVデータ4!AD104 -> 2578 | AF104: =CSVデータ1!AF104+CSVデータ2!AF104+CSVデータ3!AF104+CSVデータ4!AF104 -> 380
A105: =CSVデータ1!A105 -> 明細部 | B105: =CSVデータ1!B105 -> 県 | C105: =CSVデータ1!C105 -> 71 | D105: =CSVデータ1!D105 -> 男 | E105: =CSVデータ1!E105+CSVデータ2!E105+CSVデータ3!E105+CSVデータ4!E105 -> 4211 | F105: =CSVデータ1!F105+CSVデータ2!F105+CSVデータ3!F105+CSVデータ4!F105 -> 1140 | H105: =CSVデータ1!H105+CSVデータ2!H105+CSVデータ3!H105+CSVデータ4!H105 -> 2224 | J105: =CSVデータ1!J105+CSVデータ2!J105+CSVデータ3!J105+CSVデータ4!J105 -> 1092 | L105: =CSVデータ1!L105+CSVデータ2!L105+CSVデータ3!L105+CSVデータ4!L105 -> 694 | N105: =CSVデータ1!N105+CSVデータ2!N105+CSVデータ3!N105+CSVデータ4!N105 -> 265 | P105: =CSVデータ1!P105+CSVデータ2!P105+CSVデータ3!P105+CSVデータ4!P105 -> 1366 | R105: =CSVデータ1!R105+CSVデータ2!R105+CSVデータ3!R105+CSVデータ4!R105 -> 2623 | T105: =CSVデータ1!T105+CSVデータ2!T105+CSVデータ3!T105+CSVデータ4!T105 -> 631 | V105: =CSVデータ1!V105+CSVデータ2!V105+CSVデータ3!V105+CSVデータ4!V105 -> 2267 | X105: =CSVデータ1!X105+CSVデータ2!X105+CSVデータ3!X105+CSVデータ4!X105 -> 885 | Z105: =CSVデータ1!Z105+CSVデータ2!Z105+CSVデータ3!Z105+CSVデータ4!Z105 -> 1939 | AB105: =CSVデータ1!AB105+CSVデータ2!AB105+CSVデータ3!AB105+CSVデータ4!AB105 -> 106 | AD105: =CSVデータ1!AD105+CSVデータ2!AD105+CSVデータ3!AD105+CSVデータ4!AD105 -> 2484 | AF105: =CSVデータ1!AF105+CSVデータ2!AF105+CSVデータ3!AF105+CSVデータ4!AF105 -> 395
A106: =CSVデータ1!A106 -> 明細部 | B106: =CSVデータ1!B106 -> 県 | C106: =CSVデータ1!C106 -> 72 | D106: =CSVデータ1!D106 -> 男 | E106: =CSVデータ1!E106+CSVデータ2!E106+CSVデータ3!E106+CSVデータ4!E106 -> 3223 | F106: =CSVデータ1!F106+CSVデータ2!F106+CSVデータ3!F106+CSVデータ4!F106 -> 857 | H106: =CSVデータ1!H106+CSVデータ2!H106+CSVデータ3!H106+CSVデータ4!H106 -> 1704 | J106: =CSVデータ1!J106+CSVデータ2!J106+CSVデータ3!J106+CSVデータ4!J106 -> 772 | L106: =CSVデータ1!L106+CSVデータ2!L106+CSVデータ3!L106+CSVデータ4!L106 -> 514 | N106: =CSVデータ1!N106+CSVデータ2!N106+CSVデータ3!N106+CSVデータ4!N106 -> 216 | P106: =CSVデータ1!P106+CSVデータ2!P106+CSVデータ3!P106+CSVデータ4!P106 -> 1081 | R106: =CSVデータ1!R106+CSVデータ2!R106+CSVデータ3!R106+CSVデータ4!R106 -> 2079 | T106: =CSVデータ1!T106+CSVデータ2!T106+CSVデータ3!T106+CSVデータ4!T106 -> 496 | V106: =CSVデータ1!V106+CSVデータ2!V106+CSVデータ3!V106+CSVデータ4!V106 -> 1749 | X106: =CSVデータ1!X106+CSVデータ2!X106+CSVデータ3!X106+CSVデータ4!X106 -> 598 | Z106: =CSVデータ1!Z106+CSVデータ2!Z106+CSVデータ3!Z106+CSVデータ4!Z106 -> 1447 | AB106: =CSVデータ1!AB106+CSVデータ2!AB106+CSVデータ3!AB106+CSVデータ4!AB106 -> 90 | AD106: =CSVデータ1!AD106+CSVデータ2!AD106+CSVデータ3!AD106+CSVデータ4!AD106 -> 1972 | AF106: =CSVデータ1!AF106+CSVデータ2!AF106+CSVデータ3!AF106+CSVデータ4!AF106 -> 281
A107: =CSVデータ1!A107 -> 明細部 | B107: =CSVデータ1!B107 -> 県 | C107: =CSVデータ1!C107 -> 73 | D107: =CSVデータ1!D107 -> 男 | E107: =CSVデータ1!E107+CSVデータ2!E107+CSVデータ3!E107+CSVデータ4!E107 -> 2336 | F107: =CSVデータ1!F107+CSVデータ2!F107+CSVデータ3!F107+CSVデータ4!F107 -> 565 | H107: =CSVデータ1!H107+CSVデータ2!H107+CSVデータ3!H107+CSVデータ4!H107 -> 1133 | J107: =CSVデータ1!J107+CSVデータ2!J107+CSVデータ3!J107+CSVデータ4!J107 -> 482 | L107: =CSVデータ1!L107+CSVデータ2!L107+CSVデータ3!L107+CSVデータ4!L107 -> 354 | N107: =CSVデータ1!N107+CSVデータ2!N107+CSVデータ3!N107+CSVデータ4!N107 -> 157 | P107: =CSVデータ1!P107+CSVデータ2!P107+CSVデータ3!P107+CSVデータ4!P107 -> 735 | R107: =CSVデータ1!R107+CSVデータ2!R107+CSVデータ3!R107+CSVデータ4!R107 -> 1438 | T107: =CSVデータ1!T107+CSVデータ2!T107+CSVデータ3!T107+CSVデータ4!T107 -> 336 | V107: =CSVデータ1!V107+CSVデータ2!V107+CSVデータ3!V107+CSVデータ4!V107 -> 1245 | X107: =CSVデータ1!X107+CSVデータ2!X107+CSVデータ3!X107+CSVデータ4!X107 -> 379 | Z107: =CSVデータ1!Z107+CSVデータ2!Z107+CSVデータ3!Z107+CSVデータ4!Z107 -> 1012 | AB107: =CSVデータ1!AB107+CSVデータ2!AB107+CSVデータ3!AB107+CSVデータ4!AB107 -> 64 | AD107: =CSVデータ1!AD107+CSVデータ2!AD107+CSVデータ3!AD107+CSVデータ4!AD107 -> 1386 | AF107: =CSVデータ1!AF107+CSVデータ2!AF107+CSVデータ3!AF107+CSVデータ4!AF107 -> 179
A108: =CSVデータ1!A108 -> 明細部 | B108: =CSVデータ1!B108 -> 県 | C108: =CSVデータ1!C108 -> 74 | D108: =CSVデータ1!D108 -> 男 | E108: =CSVデータ1!E108+CSVデータ2!E108+CSVデータ3!E108+CSVデータ4!E108 -> 3064 | F108: =CSVデータ1!F108+CSVデータ2!F108+CSVデータ3!F108+CSVデータ4!F108 -> 727 | H108: =CSVデータ1!H108+CSVデータ2!H108+CSVデータ3!H108+CSVデータ4!H108 -> 1531 | J108: =CSVデータ1!J108+CSVデータ2!J108+CSVデータ3!J108+CSVデータ4!J108 -> 676 | L108: =CSVデータ1!L108+CSVデータ2!L108+CSVデータ3!L108+CSVデータ4!L108 -> 395 | N108: =CSVデータ1!N108+CSVデータ2!N108+CSVデータ3!N108+CSVデータ4!N108 -> 169 | P108: =CSVデータ1!P108+CSVデータ2!P108+CSVデータ3!P108+CSVデータ4!P108 -> 1029 | R108: =CSVデータ1!R108+CSVデータ2!R108+CSVデータ3!R108+CSVデータ4!R108 -> 1953 | T108: =CSVデータ1!T108+CSVデータ2!T108+CSVデータ3!T108+CSVデータ4!T108 -> 422 | V108: =CSVデータ1!V108+CSVデータ2!V108+CSVデータ3!V108+CSVデータ4!V108 -> 1660 | X108: =CSVデータ1!X108+CSVデータ2!X108+CSVデータ3!X108+CSVデータ4!X108 -> 499 | Z108: =CSVデータ1!Z108+CSVデータ2!Z108+CSVデータ3!Z108+CSVデータ4!Z108 -> 1331 | AB108: =CSVデータ1!AB108+CSVデータ2!AB108+CSVデータ3!AB108+CSVデータ4!AB108 -> 83 | AD108: =CSVデータ1!AD108+CSVデータ2!AD108+CSVデータ3!AD108+CSVデータ4!AD108 -> 1855 | AF108: =CSVデータ1!AF108+CSVデータ2!AF108+CSVデータ3!AF108+CSVデータ4!AF108 -> 210
A109: =CSVデータ1!A109 -> 明細部 | B109: =CSVデータ1!B109 -> 県 | C109: =CSVデータ1!C109 -> 40 | D109: =CSVデータ1!D109 -> 女 | E109: =CSVデータ1!E109+CSVデータ2!E109+CSVデータ3!E109+CSVデータ4!E109 -> 336 | F109: =CSVデータ1!F109+CSVデータ2!F109+CSVデータ3!F109+CSVデータ4!F109 -> 60 | H109: =CSVデータ1!H109+CSVデータ2!H109+CSVデータ3!H109+CSVデータ4!H109 -> 38 | J109: =CSVデータ1!J109+CSVデータ2!J109+CSVデータ3!J109+CSVデータ4!J109 -> 22 | L109: =CSVデータ1!L109+CSVデータ2!L109+CSVデータ3!L109+CSVデータ4!L109 -> 15 | N109: =CSVデータ1!N109+CSVデータ2!N109+CSVデータ3!N109+CSVデータ4!N109 -> 9 | P109: =CSVデータ1!P109+CSVデータ2!P109+CSVデータ3!P109+CSVデータ4!P109 -> 8 | R109: =CSVデータ1!R109+CSVデータ2!R109+CSVデータ3!R109+CSVデータ4!R109 -> 61 | T109: =CSVデータ1!T109+CSVデータ2!T109+CSVデータ3!T109+CSVデータ4!T109 -> 3 | V109: =CSVデータ1!V109+CSVデータ2!V109+CSVデータ3!V109+CSVデータ4!V109 -> 34 | X109: =CSVデータ1!X109+CSVデータ2!X109+CSVデータ3!X109+CSVデータ4!X109 -> 21 | Z109: =CSVデータ1!Z109+CSVデータ2!Z109+CSVデータ3!Z109+CSVデータ4!Z109 -> 142 | AB109: =CSVデータ1!AB109+CSVデータ2!AB109+CSVデータ3!AB109+CSVデータ4!AB109 -> 1 | AD109: =CSVデータ1!AD109+CSVデータ2!AD109+CSVデータ3!AD109+CSVデータ4!AD109 -> 147 | AF109: =CSVデータ1!AF109+CSVデータ2!AF109+CSVデータ3!AF109+CSVデータ4!AF109 -> 19
A110: =CSVデータ1!A110 -> 明細部 | B110: =CSVデータ1!B110 -> 県 | C110: =CSVデータ1!C110 -> 41 | D110: =CSVデータ1!D110 -> 女 | E110: =CSVデータ1!E110+CSVデータ2!E110+CSVデータ3!E110+CSVデータ4!E110 -> 308 | F110: =CSVデータ1!F110+CSVデータ2!F110+CSVデータ3!F110+CSVデータ4!F110 -> 50 | H110: =CSVデータ1!H110+CSVデータ2!H110+CSVデータ3!H110+CSVデータ4!H110 -> 27 | J110: =CSVデータ1!J110+CSVデータ2!J110+CSVデータ3!J110+CSVデータ4!J110 -> 26 | L110: =CSVデータ1!L110+CSVデータ2!L110+CSVデータ3!L110+CSVデータ4!L110 -> 7 | N110: =CSVデータ1!N110+CSVデータ2!N110+CSVデータ3!N110+CSVデータ4!N110 -> 3 | P110: =CSVデータ1!P110+CSVデータ2!P110+CSVデータ3!P110+CSVデータ4!P110 -> 8 | R110: =CSVデータ1!R110+CSVデータ2!R110+CSVデータ3!R110+CSVデータ4!R110 -> 42 | T110: =CSVデータ1!T110+CSVデータ2!T110+CSVデータ3!T110+CSVデータ4!T110 -> 4 | V110: =CSVデータ1!V110+CSVデータ2!V110+CSVデータ3!V110+CSVデータ4!V110 -> 29 | X110: =CSVデータ1!X110+CSVデータ2!X110+CSVデータ3!X110+CSVデータ4!X110 -> 13 | Z110: =CSVデータ1!Z110+CSVデータ2!Z110+CSVデータ3!Z110+CSVデータ4!Z110 -> 85 | AB110: =CSVデータ1!AB110+CSVデータ2!AB110+CSVデータ3!AB110+CSVデータ4!AB110 -> 0 | AD110: =CSVデータ1!AD110+CSVデータ2!AD110+CSVデータ3!AD110+CSVデータ4!AD110 -> 132 | AF110: =CSVデータ1!AF110+CSVデータ2!AF110+CSVデータ3!AF110+CSVデータ4!AF110 -> 22
A111: =CSVデータ1!A111 -> 明細部 | B111: =CSVデータ1!B111 -> 県 | C111: =CSVデータ1!C111 -> 42 | D111: =CSVデータ1!D111 -> 女 | E111: =CSVデータ1!E111+CSVデータ2!E111+CSVデータ3!E111+CSVデータ4!E111 -> 313 | F111: =CSVデータ1!F111+CSVデータ2!F111+CSVデータ3!F111+CSVデータ4!F111 -> 47 | H111: =CSVデータ1!H111+CSVデータ2!H111+CSVデータ3!H111+CSVデータ4!H111 -> 38 | J111: =CSVデータ1!J111+CSVデータ2!J111+CSVデータ3!J111+CSVデータ4!J111 -> 24 | L111: =CSVデータ1!L111+CSVデータ2!L111+CSVデータ3!L111+CSVデータ4!L111 -> 13 | N111: =CSVデータ1!N111+CSVデータ2!N111+CSVデータ3!N111+CSVデータ4!N111 -> 2 | P111: =CSVデータ1!P111+CSVデータ2!P111+CSVデータ3!P111+CSVデータ4!P111 -> 15 | R111: =CSVデータ1!R111+CSVデータ2!R111+CSVデータ3!R111+CSVデータ4!R111 -> 69 | T111: =CSVデータ1!T111+CSVデータ2!T111+CSVデータ3!T111+CSVデータ4!T111 -> 0 | V111: =CSVデータ1!V111+CSVデータ2!V111+CSVデータ3!V111+CSVデータ4!V111 -> 41 | X111: =CSVデータ1!X111+CSVデータ2!X111+CSVデータ3!X111+CSVデータ4!X111 -> 32 | Z111: =CSVデータ1!Z111+CSVデータ2!Z111+CSVデータ3!Z111+CSVデータ4!Z111 -> 97 | AB111: =CSVデータ1!AB111+CSVデータ2!AB111+CSVデータ3!AB111+CSVデータ4!AB111 -> 0 | AD111: =CSVデータ1!AD111+CSVデータ2!AD111+CSVデータ3!AD111+CSVデータ4!AD111 -> 138 | AF111: =CSVデータ1!AF111+CSVデータ2!AF111+CSVデータ3!AF111+CSVデータ4!AF111 -> 20
A112: =CSVデータ1!A112 -> 明細部 | B112: =CSVデータ1!B112 -> 県 | C112: =CSVデータ1!C112 -> 43 | D112: =CSVデータ1!D112 -> 女 | E112: =CSVデータ1!E112+CSVデータ2!E112+CSVデータ3!E112+CSVデータ4!E112 -> 345 | F112: =CSVデータ1!F112+CSVデータ2!F112+CSVデータ3!F112+CSVデータ4!F112 -> 56 | H112: =CSVデータ1!H112+CSVデータ2!H112+CSVデータ3!H112+CSVデータ4!H112 -> 30 | J112: =CSVデータ1!J112+CSVデータ2!J112+CSVデータ3!J112+CSVデータ4!J112 -> 19 | L112: =CSVデータ1!L112+CSVデータ2!L112+CSVデータ3!L112+CSVデータ4!L112 -> 16 | N112: =CSVデータ1!N112+CSVデータ2!N112+CSVデータ3!N112+CSVデータ4!N112 -> 5 | P112: =CSVデータ1!P112+CSVデータ2!P112+CSVデータ3!P112+CSVデータ4!P112 -> 20 | R112: =CSVデータ1!R112+CSVデータ2!R112+CSVデータ3!R112+CSVデータ4!R112 -> 67 | T112: =CSVデータ1!T112+CSVデータ2!T112+CSVデータ3!T112+CSVデータ4!T112 -> 2 | V112: =CSVデータ1!V112+CSVデータ2!V112+CSVデータ3!V112+CSVデータ4!V112 -> 33 | X112: =CSVデータ1!X112+CSVデータ2!X112+CSVデータ3!X112+CSVデータ4!X112 -> 26 | Z112: =CSVデータ1!Z112+CSVデータ2!Z112+CSVデータ3!Z112+CSVデータ4!Z112 -> 123 | AB112: =CSVデータ1!AB112+CSVデータ2!AB112+CSVデータ3!AB112+CSVデータ4!AB112 -> 0 | AD112: =CSVデータ1!AD112+CSVデータ2!AD112+CSVデータ3!AD112+CSVデータ4!AD112 -> 148 | AF112: =CSVデータ1!AF112+CSVデータ2!AF112+CSVデータ3!AF112+CSVデータ4!AF112 -> 18
A113: =CSVデータ1!A113 -> 明細部 | B113: =CSVデータ1!B113 -> 県 | C113: =CSVデータ1!C113 -> 44 | D113: =CSVデータ1!D113 -> 女 | E113: =CSVデータ1!E113+CSVデータ2!E113+CSVデータ3!E113+CSVデータ4!E113 -> 340 | F113: =CSVデータ1!F113+CSVデータ2!F113+CSVデータ3!F113+CSVデータ4!F113 -> 48 | H113: =CSVデータ1!H113+CSVデータ2!H113+CSVデータ3!H113+CSVデータ4!H113 -> 35 | J113: =CSVデータ1!J113+CSVデータ2!J113+CSVデータ3!J113+CSVデータ4!J113 -> 15 | L113: =CSVデータ1!L113+CSVデータ2!L113+CSVデータ3!L113+CSVデータ4!L113 -> 23 | N113: =CSVデータ1!N113+CSVデータ2!N113+CSVデータ3!N113+CSVデータ4!N113 -> 1 | P113: =CSVデータ1!P113+CSVデータ2!P113+CSVデータ3!P113+CSVデータ4!P113 -> 13 | R113: =CSVデータ1!R113+CSVデータ2!R113+CSVデータ3!R113+CSVデータ4!R113 -> 66 | T113: =CSVデータ1!T113+CSVデータ2!T113+CSVデータ3!T113+CSVデータ4!T113 -> 2 | V113: =CSVデータ1!V113+CSVデータ2!V113+CSVデータ3!V113+CSVデータ4!V113 -> 40 | X113: =CSVデータ1!X113+CSVデータ2!X113+CSVデータ3!X113+CSVデータ4!X113 -> 25 | Z113: =CSVデータ1!Z113+CSVデータ2!Z113+CSVデータ3!Z113+CSVデータ4!Z113 -> 136 | AB113: =CSVデータ1!AB113+CSVデータ2!AB113+CSVデータ3!AB113+CSVデータ4!AB113 -> 0 | AD113: =CSVデータ1!AD113+CSVデータ2!AD113+CSVデータ3!AD113+CSVデータ4!AD113 -> 154 | AF113: =CSVデータ1!AF113+CSVデータ2!AF113+CSVデータ3!AF113+CSVデータ4!AF113 -> 13
A114: =CSVデータ1!A114 -> 明細部 | B114: =CSVデータ1!B114 -> 県 | C114: =CSVデータ1!C114 -> 45 | D114: =CSVデータ1!D114 -> 女 | E114: =CSVデータ1!E114+CSVデータ2!E114+CSVデータ3!E114+CSVデータ4!E114 -> 423 | F114: =CSVデータ1!F114+CSVデータ2!F114+CSVデータ3!F114+CSVデータ4!F114 -> 54 | H114: =CSVデータ1!H114+CSVデータ2!H114+CSVデータ3!H114+CSVデータ4!H114 -> 41 | J114: =CSVデータ1!J114+CSVデータ2!J114+CSVデータ3!J114+CSVデータ4!J114 -> 28 | L114: =CSVデータ1!L114+CSVデータ2!L114+CSVデータ3!L114+CSVデータ4!L114 -> 25 | N114: =CSVデータ1!N114+CSVデータ2!N114+CSVデータ3!N114+CSVデータ4!N114 -> 6 | P114: =CSVデータ1!P114+CSVデータ2!P114+CSVデータ3!P114+CSVデータ4!P114 -> 20 | R114: =CSVデータ1!R114+CSVデータ2!R114+CSVデータ3!R114+CSVデータ4!R114 -> 81 | T114: =CSVデータ1!T114+CSVデータ2!T114+CSVデータ3!T114+CSVデータ4!T114 -> 5 | V114: =CSVデータ1!V114+CSVデータ2!V114+CSVデータ3!V114+CSVデータ4!V114 -> 61 | X114: =CSVデータ1!X114+CSVデータ2!X114+CSVデータ3!X114+CSVデータ4!X114 -> 33 | Z114: =CSVデータ1!Z114+CSVデータ2!Z114+CSVデータ3!Z114+CSVデータ4!Z114 -> 193 | AB114: =CSVデータ1!AB114+CSVデータ2!AB114+CSVデータ3!AB114+CSVデータ4!AB114 -> 1 | AD114: =CSVデータ1!AD114+CSVデータ2!AD114+CSVデータ3!AD114+CSVデータ4!AD114 -> 196 | AF114: =CSVデータ1!AF114+CSVデータ2!AF114+CSVデータ3!AF114+CSVデータ4!AF114 -> 23
A115: =CSVデータ1!A115 -> 明細部 | B115: =CSVデータ1!B115 -> 県 | C115: =CSVデータ1!C115 -> 46 | D115: =CSVデータ1!D115 -> 女 | E115: =CSVデータ1!E115+CSVデータ2!E115+CSVデータ3!E115+CSVデータ4!E115 -> 428 | F115: =CSVデータ1!F115+CSVデータ2!F115+CSVデータ3!F115+CSVデータ4!F115 -> 82 | H115: =CSVデータ1!H115+CSVデータ2!H115+CSVデータ3!H115+CSVデータ4!H115 -> 55 | J115: =CSVデータ1!J115+CSVデータ2!J115+CSVデータ3!J115+CSVデータ4!J115 -> 47 | L115: =CSVデータ1!L115+CSVデータ2!L115+CSVデータ3!L115+CSVデータ4!L115 -> 32 | N115: =CSVデータ1!N115+CSVデータ2!N115+CSVデータ3!N115+CSVデータ4!N115 -> 10 | P115: =CSVデータ1!P115+CSVデータ2!P115+CSVデータ3!P115+CSVデータ4!P115 -> 29 | R115: =CSVデータ1!R115+CSVデータ2!R115+CSVデータ3!R115+CSVデータ4!R115 -> 102 | T115: =CSVデータ1!T115+CSVデータ2!T115+CSVデータ3!T115+CSVデータ4!T115 -> 4 | V115: =CSVデータ1!V115+CSVデータ2!V115+CSVデータ3!V115+CSVデータ4!V115 -> 75 | X115: =CSVデータ1!X115+CSVデータ2!X115+CSVデータ3!X115+CSVデータ4!X115 -> 55 | Z115: =CSVデータ1!Z115+CSVデータ2!Z115+CSVデータ3!Z115+CSVデータ4!Z115 -> 189 | AB115: =CSVデータ1!AB115+CSVデータ2!AB115+CSVデータ3!AB115+CSVデータ4!AB115 -> 0 | AD115: =CSVデータ1!AD115+CSVデータ2!AD115+CSVデータ3!AD115+CSVデータ4!AD115 -> 208 | AF115: =CSVデータ1!AF115+CSVデータ2!AF115+CSVデータ3!AF115+CSVデータ4!AF115 -> 27
A116: =CSVデータ1!A116 -> 明細部 | B116: =CSVデータ1!B116 -> 県 | C116: =CSVデータ1!C116 -> 47 | D116: =CSVデータ1!D116 -> 女 | E116: =CSVデータ1!E116+CSVデータ2!E116+CSVデータ3!E116+CSVデータ4!E116 -> 408 | F116: =CSVデータ1!F116+CSVデータ2!F116+CSVデータ3!F116+CSVデータ4!F116 -> 65 | H116: =CSVデータ1!H116+CSVデータ2!H116+CSVデータ3!H116+CSVデータ4!H116 -> 44 | J116: =CSVデータ1!J116+CSVデータ2!J116+CSVデータ3!J116+CSVデータ4!J116 -> 41 | L116: =CSVデータ1!L116+CSVデータ2!L116+CSVデータ3!L116+CSVデータ4!L116 -> 42 | N116: =CSVデータ1!N116+CSVデータ2!N116+CSVデータ3!N116+CSVデータ4!N116 -> 2 | P116: =CSVデータ1!P116+CSVデータ2!P116+CSVデータ3!P116+CSVデータ4!P116 -> 24 | R116: =CSVデータ1!R116+CSVデータ2!R116+CSVデータ3!R116+CSVデータ4!R116 -> 106 | T116: =CSVデータ1!T116+CSVデータ2!T116+CSVデータ3!T116+CSVデータ4!T116 -> 1 | V116: =CSVデータ1!V116+CSVデータ2!V116+CSVデータ3!V116+CSVデータ4!V116 -> 66 | X116: =CSVデータ1!X116+CSVデータ2!X116+CSVデータ3!X116+CSVデータ4!X116 -> 47 | Z116: =CSVデータ1!Z116+CSVデータ2!Z116+CSVデータ3!Z116+CSVデータ4!Z116 -> 181 | AB116: =CSVデータ1!AB116+CSVデータ2!AB116+CSVデータ3!AB116+CSVデータ4!AB116 -> 0 | AD116: =CSVデータ1!AD116+CSVデータ2!AD116+CSVデータ3!AD116+CSVデータ4!AD116 -> 210 | AF116: =CSVデータ1!AF116+CSVデータ2!AF116+CSVデータ3!AF116+CSVデータ4!AF116 -> 30
A117: =CSVデータ1!A117 -> 明細部 | B117: =CSVデータ1!B117 -> 県 | C117: =CSVデータ1!C117 -> 48 | D117: =CSVデータ1!D117 -> 女 | E117: =CSVデータ1!E117+CSVデータ2!E117+CSVデータ3!E117+CSVデータ4!E117 -> 418 | F117: =CSVデータ1!F117+CSVデータ2!F117+CSVデータ3!F117+CSVデータ4!F117 -> 72 | H117: =CSVデータ1!H117+CSVデータ2!H117+CSVデータ3!H117+CSVデータ4!H117 -> 49 | J117: =CSVデータ1!J117+CSVデータ2!J117+CSVデータ3!J117+CSVデータ4!J117 -> 25 | L117: =CSVデータ1!L117+CSVデータ2!L117+CSVデータ3!L117+CSVデータ4!L117 -> 25 | N117: =CSVデータ1!N117+CSVデータ2!N117+CSVデータ3!N117+CSVデータ4!N117 -> 1 | P117: =CSVデータ1!P117+CSVデータ2!P117+CSVデータ3!P117+CSVデータ4!P117 -> 25 | R117: =CSVデータ1!R117+CSVデータ2!R117+CSVデータ3!R117+CSVデータ4!R117 -> 100 | T117: =CSVデータ1!T117+CSVデータ2!T117+CSVデータ3!T117+CSVデータ4!T117 -> 1 | V117: =CSVデータ1!V117+CSVデータ2!V117+CSVデータ3!V117+CSVデータ4!V117 -> 63 | X117: =CSVデータ1!X117+CSVデータ2!X117+CSVデータ3!X117+CSVデータ4!X117 -> 31 | Z117: =CSVデータ1!Z117+CSVデータ2!Z117+CSVデータ3!Z117+CSVデータ4!Z117 -> 195 | AB117: =CSVデータ1!AB117+CSVデータ2!AB117+CSVデータ3!AB117+CSVデータ4!AB117 -> 0 | AD117: =CSVデータ1!AD117+CSVデータ2!AD117+CSVデータ3!AD117+CSVデータ4!AD117 -> 206 | AF117: =CSVデータ1!AF117+CSVデータ2!AF117+CSVデータ3!AF117+CSVデータ4!AF117 -> 25
A118: =CSVデータ1!A118 -> 明細部 | B118: =CSVデータ1!B118 -> 県 | C118: =CSVデータ1!C118 -> 49 | D118: =CSVデータ1!D118 -> 女 | E118: =CSVデータ1!E118+CSVデータ2!E118+CSVデータ3!E118+CSVデータ4!E118 -> 368 | F118: =CSVデータ1!F118+CSVデータ2!F118+CSVデータ3!F118+CSVデータ4!F118 -> 67 | H118: =CSVデータ1!H118+CSVデータ2!H118+CSVデータ3!H118+CSVデータ4!H118 -> 46 | J118: =CSVデータ1!J118+CSVデータ2!J118+CSVデータ3!J118+CSVデータ4!J118 -> 24 | L118: =CSVデータ1!L118+CSVデータ2!L118+CSVデータ3!L118+CSVデータ4!L118 -> 20 | N118: =CSVデータ1!N118+CSVデータ2!N118+CSVデータ3!N118+CSVデータ4!N118 -> 4 | P118: =CSVデータ1!P118+CSVデータ2!P118+CSVデータ3!P118+CSVデータ4!P118 -> 20 | R118: =CSVデータ1!R118+CSVデータ2!R118+CSVデータ3!R118+CSVデータ4!R118 -> 102 | T118: =CSVデータ1!T118+CSVデータ2!T118+CSVデータ3!T118+CSVデータ4!T118 -> 2 | V118: =CSVデータ1!V118+CSVデータ2!V118+CSVデータ3!V118+CSVデータ4!V118 -> 74 | X118: =CSVデータ1!X118+CSVデータ2!X118+CSVデータ3!X118+CSVデータ4!X118 -> 43 | Z118: =CSVデータ1!Z118+CSVデータ2!Z118+CSVデータ3!Z118+CSVデータ4!Z118 -> 198 | AB118: =CSVデータ1!AB118+CSVデータ2!AB118+CSVデータ3!AB118+CSVデータ4!AB118 -> 1 | AD118: =CSVデータ1!AD118+CSVデータ2!AD118+CSVデータ3!AD118+CSVデータ4!AD118 -> 185 | AF118: =CSVデータ1!AF118+CSVデータ2!AF118+CSVデータ3!AF118+CSVデータ4!AF118 -> 23
A119: =CSVデータ1!A119 -> 明細部 | B119: =CSVデータ1!B119 -> 県 | C119: =CSVデータ1!C119 -> 50 | D119: =CSVデータ1!D119 -> 女 | E119: =CSVデータ1!E119+CSVデータ2!E119+CSVデータ3!E119+CSVデータ4!E119 -> 474 | F119: =CSVデータ1!F119+CSVデータ2!F119+CSVデータ3!F119+CSVデータ4!F119 -> 69 | H119: =CSVデータ1!H119+CSVデータ2!H119+CSVデータ3!H119+CSVデータ4!H119 -> 61 | J119: =CSVデータ1!J119+CSVデータ2!J119+CSVデータ3!J119+CSVデータ4!J119 -> 40 | L119: =CSVデータ1!L119+CSVデータ2!L119+CSVデータ3!L119+CSVデータ4!L119 -> 37 | N119: =CSVデータ1!N119+CSVデータ2!N119+CSVデータ3!N119+CSVデータ4!N119 -> 8 | P119: =CSVデータ1!P119+CSVデータ2!P119+CSVデータ3!P119+CSVデータ4!P119 -> 37 | R119: =CSVデータ1!R119+CSVデータ2!R119+CSVデータ3!R119+CSVデータ4!R119 -> 120 | T119: =CSVデータ1!T119+CSVデータ2!T119+CSVデータ3!T119+CSVデータ4!T119 -> 7 | V119: =CSVデータ1!V119+CSVデータ2!V119+CSVデータ3!V119+CSVデータ4!V119 -> 93 | X119: =CSVデータ1!X119+CSVデータ2!X119+CSVデータ3!X119+CSVデータ4!X119 -> 55 | Z119: =CSVデータ1!Z119+CSVデータ2!Z119+CSVデータ3!Z119+CSVデータ4!Z119 -> 249 | AB119: =CSVデータ1!AB119+CSVデータ2!AB119+CSVデータ3!AB119+CSVデータ4!AB119 -> 2 | AD119: =CSVデータ1!AD119+CSVデータ2!AD119+CSVデータ3!AD119+CSVデータ4!AD119 -> 246 | AF119: =CSVデータ1!AF119+CSVデータ2!AF119+CSVデータ3!AF119+CSVデータ4!AF119 -> 32
A120: =CSVデータ1!A120 -> 明細部 | B120: =CSVデータ1!B120 -> 県 | C120: =CSVデータ1!C120 -> 51 | D120: =CSVデータ1!D120 -> 女 | E120: =CSVデータ1!E120+CSVデータ2!E120+CSVデータ3!E120+CSVデータ4!E120 -> 451 | F120: =CSVデータ1!F120+CSVデータ2!F120+CSVデータ3!F120+CSVデータ4!F120 -> 71 | H120: =CSVデータ1!H120+CSVデータ2!H120+CSVデータ3!H120+CSVデータ4!H120 -> 45 | J120: =CSVデータ1!J120+CSVデータ2!J120+CSVデータ3!J120+CSVデータ4!J120 -> 42 | L120: =CSVデータ1!L120+CSVデータ2!L120+CSVデータ3!L120+CSVデータ4!L120 -> 39 | N120: =CSVデータ1!N120+CSVデータ2!N120+CSVデータ3!N120+CSVデータ4!N120 -> 4 | P120: =CSVデータ1!P120+CSVデータ2!P120+CSVデータ3!P120+CSVデータ4!P120 -> 41 | R120: =CSVデータ1!R120+CSVデータ2!R120+CSVデータ3!R120+CSVデータ4!R120 -> 134 | T120: =CSVデータ1!T120+CSVデータ2!T120+CSVデータ3!T120+CSVデータ4!T120 -> 3 | V120: =CSVデータ1!V120+CSVデータ2!V120+CSVデータ3!V120+CSVデータ4!V120 -> 99 | X120: =CSVデータ1!X120+CSVデータ2!X120+CSVデータ3!X120+CSVデータ4!X120 -> 50 | Z120: =CSVデータ1!Z120+CSVデータ2!Z120+CSVデータ3!Z120+CSVデータ4!Z120 -> 241 | AB120: =CSVデータ1!AB120+CSVデータ2!AB120+CSVデータ3!AB120+CSVデータ4!AB120 -> 1 | AD120: =CSVデータ1!AD120+CSVデータ2!AD120+CSVデータ3!AD120+CSVデータ4!AD120 -> 230 | AF120: =CSVデータ1!AF120+CSVデータ2!AF120+CSVデータ3!AF120+CSVデータ4!AF120 -> 23
A121: =CSVデータ1!A121 -> 明細部 | B121: =CSVデータ1!B121 -> 県 | C121: =CSVデータ1!C121 -> 52 | D121: =CSVデータ1!D121 -> 女 | E121: =CSVデータ1!E121+CSVデータ2!E121+CSVデータ3!E121+CSVデータ4!E121 -> 392 | F121: =CSVデータ1!F121+CSVデータ2!F121+CSVデータ3!F121+CSVデータ4!F121 -> 61 | H121: =CSVデータ1!H121+CSVデータ2!H121+CSVデータ3!H121+CSVデータ4!H121 -> 42 | J121: =CSVデータ1!J121+CSVデータ2!J121+CSVデータ3!J121+CSVデータ4!J121 -> 35 | L121: =CSVデータ1!L121+CSVデータ2!L121+CSVデータ3!L121+CSVデータ4!L121 -> 50 | N121: =CSVデータ1!N121+CSVデータ2!N121+CSVデータ3!N121+CSVデータ4!N121 -> 4 | P121: =CSVデータ1!P121+CSVデータ2!P121+CSVデータ3!P121+CSVデータ4!P121 -> 41 | R121: =CSVデータ1!R121+CSVデータ2!R121+CSVデータ3!R121+CSVデータ4!R121 -> 111 | T121: =CSVデータ1!T121+CSVデータ2!T121+CSVデータ3!T121+CSVデータ4!T121 -> 8 | V121: =CSVデータ1!V121+CSVデータ2!V121+CSVデータ3!V121+CSVデータ4!V121 -> 92 | X121: =CSVデータ1!X121+CSVデータ2!X121+CSVデータ3!X121+CSVデータ4!X121 -> 51 | Z121: =CSVデータ1!Z121+CSVデータ2!Z121+CSVデータ3!Z121+CSVデータ4!Z121 -> 237 | AB121: =CSVデータ1!AB121+CSVデータ2!AB121+CSVデータ3!AB121+CSVデータ4!AB121 -> 0 | AD121: =CSVデータ1!AD121+CSVデータ2!AD121+CSVデータ3!AD121+CSVデータ4!AD121 -> 193 | AF121: =CSVデータ1!AF121+CSVデータ2!AF121+CSVデータ3!AF121+CSVデータ4!AF121 -> 20
A122: =CSVデータ1!A122 -> 明細部 | B122: =CSVデータ1!B122 -> 県 | C122: =CSVデータ1!C122 -> 53 | D122: =CSVデータ1!D122 -> 女 | E122: =CSVデータ1!E122+CSVデータ2!E122+CSVデータ3!E122+CSVデータ4!E122 -> 474 | F122: =CSVデータ1!F122+CSVデータ2!F122+CSVデータ3!F122+CSVデータ4!F122 -> 83 | H122: =CSVデータ1!H122+CSVデータ2!H122+CSVデータ3!H122+CSVデータ4!H122 -> 64 | J122: =CSVデータ1!J122+CSVデータ2!J122+CSVデータ3!J122+CSVデータ4!J122 -> 56 | L122: =CSVデータ1!L122+CSVデータ2!L122+CSVデータ3!L122+CSVデータ4!L122 -> 56 | N122: =CSVデータ1!N122+CSVデータ2!N122+CSVデータ3!N122+CSVデータ4!N122 -> 6 | P122: =CSVデータ1!P122+CSVデータ2!P122+CSVデータ3!P122+CSVデータ4!P122 -> 47 | R122: =CSVデータ1!R122+CSVデータ2!R122+CSVデータ3!R122+CSVデータ4!R122 -> 181 | T122: =CSVデータ1!T122+CSVデータ2!T122+CSVデータ3!T122+CSVデータ4!T122 -> 10 | V122: =CSVデータ1!V122+CSVデータ2!V122+CSVデータ3!V122+CSVデータ4!V122 -> 129 | X122: =CSVデータ1!X122+CSVデータ2!X122+CSVデータ3!X122+CSVデータ4!X122 -> 61 | Z122: =CSVデータ1!Z122+CSVデータ2!Z122+CSVデータ3!Z122+CSVデータ4!Z122 -> 302 | AB122: =CSVデータ1!AB122+CSVデータ2!AB122+CSVデータ3!AB122+CSVデータ4!AB122 -> 0 | AD122: =CSVデータ1!AD122+CSVデータ2!AD122+CSVデータ3!AD122+CSVデータ4!AD122 -> 254 | AF122: =CSVデータ1!AF122+CSVデータ2!AF122+CSVデータ3!AF122+CSVデータ4!AF122 -> 42
A123: =CSVデータ1!A123 -> 明細部 | B123: =CSVデータ1!B123 -> 県 | C123: =CSVデータ1!C123 -> 54 | D123: =CSVデータ1!D123 -> 女 | E123: =CSVデータ1!E123+CSVデータ2!E123+CSVデータ3!E123+CSVデータ4!E123 -> 508 | F123: =CSVデータ1!F123+CSVデータ2!F123+CSVデータ3!F123+CSVデータ4!F123 -> 78 | H123: =CSVデータ1!H123+CSVデータ2!H123+CSVデータ3!H123+CSVデータ4!H123 -> 70 | J123: =CSVデータ1!J123+CSVデータ2!J123+CSVデータ3!J123+CSVデータ4!J123 -> 75 | L123: =CSVデータ1!L123+CSVデータ2!L123+CSVデータ3!L123+CSVデータ4!L123 -> 53 | N123: =CSVデータ1!N123+CSVデータ2!N123+CSVデータ3!N123+CSVデータ4!N123 -> 3 | P123: =CSVデータ1!P123+CSVデータ2!P123+CSVデータ3!P123+CSVデータ4!P123 -> 41 | R123: =CSVデータ1!R123+CSVデータ2!R123+CSVデータ3!R123+CSVデータ4!R123 -> 181 | T123: =CSVデータ1!T123+CSVデータ2!T123+CSVデータ3!T123+CSVデータ4!T123 -> 8 | V123: =CSVデータ1!V123+CSVデータ2!V123+CSVデータ3!V123+CSVデータ4!V123 -> 129 | X123: =CSVデータ1!X123+CSVデータ2!X123+CSVデータ3!X123+CSVデータ4!X123 -> 68 | Z123: =CSVデータ1!Z123+CSVデータ2!Z123+CSVデータ3!Z123+CSVデータ4!Z123 -> 313 | AB123: =CSVデータ1!AB123+CSVデータ2!AB123+CSVデータ3!AB123+CSVデータ4!AB123 -> 0 | AD123: =CSVデータ1!AD123+CSVデータ2!AD123+CSVデータ3!AD123+CSVデータ4!AD123 -> 258 | AF123: =CSVデータ1!AF123+CSVデータ2!AF123+CSVデータ3!AF123+CSVデータ4!AF123 -> 26
A124: =CSVデータ1!A124 -> 明細部 | B124: =CSVデータ1!B124 -> 県 | C124: =CSVデータ1!C124 -> 55 | D124: =CSVデータ1!D124 -> 女 | E124: =CSVデータ1!E124+CSVデータ2!E124+CSVデータ3!E124+CSVデータ4!E124 -> 597 | F124: =CSVデータ1!F124+CSVデータ2!F124+CSVデータ3!F124+CSVデータ4!F124 -> 94 | H124: =CSVデータ1!H124+CSVデータ2!H124+CSVデータ3!H124+CSVデータ4!H124 -> 70 | J124: =CSVデータ1!J124+CSVデータ2!J124+CSVデータ3!J124+CSVデータ4!J124 -> 99 | L124: =CSVデータ1!L124+CSVデータ2!L124+CSVデータ3!L124+CSVデータ4!L124 -> 69 | N124: =CSVデータ1!N124+CSVデータ2!N124+CSVデータ3!N124+CSVデータ4!N124 -> 6 | P124: =CSVデータ1!P124+CSVデータ2!P124+CSVデータ3!P124+CSVデータ4!P124 -> 51 | R124: =CSVデータ1!R124+CSVデータ2!R124+CSVデータ3!R124+CSVデータ4!R124 -> 219 | T124: =CSVデータ1!T124+CSVデータ2!T124+CSVデータ3!T124+CSVデータ4!T124 -> 11 | V124: =CSVデータ1!V124+CSVデータ2!V124+CSVデータ3!V124+CSVデータ4!V124 -> 164 | X124: =CSVデータ1!X124+CSVデータ2!X124+CSVデータ3!X124+CSVデータ4!X124 -> 84 | Z124: =CSVデータ1!Z124+CSVデータ2!Z124+CSVデータ3!Z124+CSVデータ4!Z124 -> 387 | AB124: =CSVデータ1!AB124+CSVデータ2!AB124+CSVデータ3!AB124+CSVデータ4!AB124 -> 1 | AD124: =CSVデータ1!AD124+CSVデータ2!AD124+CSVデータ3!AD124+CSVデータ4!AD124 -> 280 | AF124: =CSVデータ1!AF124+CSVデータ2!AF124+CSVデータ3!AF124+CSVデータ4!AF124 -> 38
A125: =CSVデータ1!A125 -> 明細部 | B125: =CSVデータ1!B125 -> 県 | C125: =CSVデータ1!C125 -> 56 | D125: =CSVデータ1!D125 -> 女 | E125: =CSVデータ1!E125+CSVデータ2!E125+CSVデータ3!E125+CSVデータ4!E125 -> 582 | F125: =CSVデータ1!F125+CSVデータ2!F125+CSVデータ3!F125+CSVデータ4!F125 -> 92 | H125: =CSVデータ1!H125+CSVデータ2!H125+CSVデータ3!H125+CSVデータ4!H125 -> 68 | J125: =CSVデータ1!J125+CSVデータ2!J125+CSVデータ3!J125+CSVデータ4!J125 -> 86 | L125: =CSVデータ1!L125+CSVデータ2!L125+CSVデータ3!L125+CSVデータ4!L125 -> 68 | N125: =CSVデータ1!N125+CSVデータ2!N125+CSVデータ3!N125+CSVデータ4!N125 -> 1 | P125: =CSVデータ1!P125+CSVデータ2!P125+CSVデータ3!P125+CSVデータ4!P125 -> 55 | R125: =CSVデータ1!R125+CSVデータ2!R125+CSVデータ3!R125+CSVデータ4!R125 -> 221 | T125: =CSVデータ1!T125+CSVデータ2!T125+CSVデータ3!T125+CSVデータ4!T125 -> 5 | V125: =CSVデータ1!V125+CSVデータ2!V125+CSVデータ3!V125+CSVデータ4!V125 -> 174 | X125: =CSVデータ1!X125+CSVデータ2!X125+CSVデータ3!X125+CSVデータ4!X125 -> 69 | Z125: =CSVデータ1!Z125+CSVデータ2!Z125+CSVデータ3!Z125+CSVデータ4!Z125 -> 360 | AB125: =CSVデータ1!AB125+CSVデータ2!AB125+CSVデータ3!AB125+CSVデータ4!AB125 -> 0 | AD125: =CSVデータ1!AD125+CSVデータ2!AD125+CSVデータ3!AD125+CSVデータ4!AD125 -> 307 | AF125: =CSVデータ1!AF125+CSVデータ2!AF125+CSVデータ3!AF125+CSVデータ4!AF125 -> 30
A126: =CSVデータ1!A126 -> 明細部 | B126: =CSVデータ1!B126 -> 県 | C126: =CSVデータ1!C126 -> 57 | D126: =CSVデータ1!D126 -> 女 | E126: =CSVデータ1!E126+CSVデータ2!E126+CSVデータ3!E126+CSVデータ4!E126 -> 657 | F126: =CSVデータ1!F126+CSVデータ2!F126+CSVデータ3!F126+CSVデータ4!F126 -> 99 | H126: =CSVデータ1!H126+CSVデータ2!H126+CSVデータ3!H126+CSVデータ4!H126 -> 79 | J126: =CSVデータ1!J126+CSVデータ2!J126+CSVデータ3!J126+CSVデータ4!J126 -> 81 | L126: =CSVデータ1!L126+CSVデータ2!L126+CSVデータ3!L126+CSVデータ4!L126 -> 59 | N126: =CSVデータ1!N126+CSVデータ2!N126+CSVデータ3!N126+CSVデータ4!N126 -> 4 | P126: =CSVデータ1!P126+CSVデータ2!P126+CSVデータ3!P126+CSVデータ4!P126 -> 71 | R126: =CSVデータ1!R126+CSVデータ2!R126+CSVデータ3!R126+CSVデータ4!R126 -> 268 | T126: =CSVデータ1!T126+CSVデータ2!T126+CSVデータ3!T126+CSVデータ4!T126 -> 16 | V126: =CSVデータ1!V126+CSVデータ2!V126+CSVデータ3!V126+CSVデータ4!V126 -> 194 | X126: =CSVデータ1!X126+CSVデータ2!X126+CSVデータ3!X126+CSVデータ4!X126 -> 93 | Z126: =CSVデータ1!Z126+CSVデータ2!Z126+CSVデータ3!Z126+CSVデータ4!Z126 -> 403 | AB126: =CSVデータ1!AB126+CSVデータ2!AB126+CSVデータ3!AB126+CSVデータ4!AB126 -> 2 | AD126: =CSVデータ1!AD126+CSVデータ2!AD126+CSVデータ3!AD126+CSVデータ4!AD126 -> 332 | AF126: =CSVデータ1!AF126+CSVデータ2!AF126+CSVデータ3!AF126+CSVデータ4!AF126 -> 49
A127: =CSVデータ1!A127 -> 明細部 | B127: =CSVデータ1!B127 -> 県 | C127: =CSVデータ1!C127 -> 58 | D127: =CSVデータ1!D127 -> 女 | E127: =CSVデータ1!E127+CSVデータ2!E127+CSVデータ3!E127+CSVデータ4!E127 -> 690 | F127: =CSVデータ1!F127+CSVデータ2!F127+CSVデータ3!F127+CSVデータ4!F127 -> 116 | H127: =CSVデータ1!H127+CSVデータ2!H127+CSVデータ3!H127+CSVデータ4!H127 -> 93 | J127: =CSVデータ1!J127+CSVデータ2!J127+CSVデータ3!J127+CSVデータ4!J127 -> 92 | L127: =CSVデータ1!L127+CSVデータ2!L127+CSVデータ3!L127+CSVデータ4!L127 -> 68 | N127: =CSVデータ1!N127+CSVデータ2!N127+CSVデータ3!N127+CSVデータ4!N127 -> 9 | P127: =CSVデータ1!P127+CSVデータ2!P127+CSVデータ3!P127+CSVデータ4!P127 -> 69 | R127: =CSVデータ1!R127+CSVデータ2!R127+CSVデータ3!R127+CSVデータ4!R127 -> 303 | T127: =CSVデータ1!T127+CSVデータ2!T127+CSVデータ3!T127+CSVデータ4!T127 -> 13 | V127: =CSVデータ1!V127+CSVデータ2!V127+CSVデータ3!V127+CSVデータ4!V127 -> 206 | X127: =CSVデータ1!X127+CSVデータ2!X127+CSVデータ3!X127+CSVデータ4!X127 -> 117 | Z127: =CSVデータ1!Z127+CSVデータ2!Z127+CSVデータ3!Z127+CSVデータ4!Z127 -> 447 | AB127: =CSVデータ1!AB127+CSVデータ2!AB127+CSVデータ3!AB127+CSVデータ4!AB127 -> 1 | AD127: =CSVデータ1!AD127+CSVデータ2!AD127+CSVデータ3!AD127+CSVデータ4!AD127 -> 376 | AF127: =CSVデータ1!AF127+CSVデータ2!AF127+CSVデータ3!AF127+CSVデータ4!AF127 -> 46
A128: =CSVデータ1!A128 -> 明細部 | B128: =CSVデータ1!B128 -> 県 | C128: =CSVデータ1!C128 -> 59 | D128: =CSVデータ1!D128 -> 女 | E128: =CSVデータ1!E128+CSVデータ2!E128+CSVデータ3!E128+CSVデータ4!E128 -> 855 | F128: =CSVデータ1!F128+CSVデータ2!F128+CSVデータ3!F128+CSVデータ4!F128 -> 149 | H128: =CSVデータ1!H128+CSVデータ2!H128+CSVデータ3!H128+CSVデータ4!H128 -> 144 | J128: =CSVデータ1!J128+CSVデータ2!J128+CSVデータ3!J128+CSVデータ4!J128 -> 107 | L128: =CSVデータ1!L128+CSVデータ2!L128+CSVデータ3!L128+CSVデータ4!L128 -> 89 | N128: =CSVデータ1!N128+CSVデータ2!N128+CSVデータ3!N128+CSVデータ4!N128 -> 1 | P128: =CSVデータ1!P128+CSVデータ2!P128+CSVデータ3!P128+CSVデータ4!P128 -> 118 | R128: =CSVデータ1!R128+CSVデータ2!R128+CSVデータ3!R128+CSVデータ4!R128 -> 372 | T128: =CSVデータ1!T128+CSVデータ2!T128+CSVデータ3!T128+CSVデータ4!T128 -> 6 | V128: =CSVデータ1!V128+CSVデータ2!V128+CSVデータ3!V128+CSVデータ4!V128 -> 281 | X128: =CSVデータ1!X128+CSVデータ2!X128+CSVデータ3!X128+CSVデータ4!X128 -> 135 | Z128: =CSVデータ1!Z128+CSVデータ2!Z128+CSVデータ3!Z128+CSVデータ4!Z128 -> 544 | AB128: =CSVデータ1!AB128+CSVデータ2!AB128+CSVデータ3!AB128+CSVデータ4!AB128 -> 1 | AD128: =CSVデータ1!AD128+CSVデータ2!AD128+CSVデータ3!AD128+CSVデータ4!AD128 -> 405 | AF128: =CSVデータ1!AF128+CSVデータ2!AF128+CSVデータ3!AF128+CSVデータ4!AF128 -> 69
A129: =CSVデータ1!A129 -> 明細部 | B129: =CSVデータ1!B129 -> 県 | C129: =CSVデータ1!C129 -> 60 | D129: =CSVデータ1!D129 -> 女 | E129: =CSVデータ1!E129+CSVデータ2!E129+CSVデータ3!E129+CSVデータ4!E129 -> 1035 | F129: =CSVデータ1!F129+CSVデータ2!F129+CSVデータ3!F129+CSVデータ4!F129 -> 171 | H129: =CSVデータ1!H129+CSVデータ2!H129+CSVデータ3!H129+CSVデータ4!H129 -> 153 | J129: =CSVデータ1!J129+CSVデータ2!J129+CSVデータ3!J129+CSVデータ4!J129 -> 123 | L129: =CSVデータ1!L129+CSVデータ2!L129+CSVデータ3!L129+CSVデータ4!L129 -> 99 | N129: =CSVデータ1!N129+CSVデータ2!N129+CSVデータ3!N129+CSVデータ4!N129 -> 16 | P129: =CSVデータ1!P129+CSVデータ2!P129+CSVデータ3!P129+CSVデータ4!P129 -> 141 | R129: =CSVデータ1!R129+CSVデータ2!R129+CSVデータ3!R129+CSVデータ4!R129 -> 503 | T129: =CSVデータ1!T129+CSVデータ2!T129+CSVデータ3!T129+CSVデータ4!T129 -> 12 | V129: =CSVデータ1!V129+CSVデータ2!V129+CSVデータ3!V129+CSVデータ4!V129 -> 351 | X129: =CSVデータ1!X129+CSVデータ2!X129+CSVデータ3!X129+CSVデータ4!X129 -> 146 | Z129: =CSVデータ1!Z129+CSVデータ2!Z129+CSVデータ3!Z129+CSVデータ4!Z129 -> 692 | AB129: =CSVデータ1!AB129+CSVデータ2!AB129+CSVデータ3!AB129+CSVデータ4!AB129 -> 0 | AD129: =CSVデータ1!AD129+CSVデータ2!AD129+CSVデータ3!AD129+CSVデータ4!AD129 -> 584 | AF129: =CSVデータ1!AF129+CSVデータ2!AF129+CSVデータ3!AF129+CSVデータ4!AF129 -> 71
A130: =CSVデータ1!A130 -> 明細部 | B130: =CSVデータ1!B130 -> 県 | C130: =CSVデータ1!C130 -> 61 | D130: =CSVデータ1!D130 -> 女 | E130: =CSVデータ1!E130+CSVデータ2!E130+CSVデータ3!E130+CSVデータ4!E130 -> 1116 | F130: =CSVデータ1!F130+CSVデータ2!F130+CSVデータ3!F130+CSVデータ4!F130 -> 201 | H130: =CSVデータ1!H130+CSVデータ2!H130+CSVデータ3!H130+CSVデータ4!H130 -> 189 | J130: =CSVデータ1!J130+CSVデータ2!J130+CSVデータ3!J130+CSVデータ4!J130 -> 182 | L130: =CSVデータ1!L130+CSVデータ2!L130+CSVデータ3!L130+CSVデータ4!L130 -> 140 | N130: =CSVデータ1!N130+CSVデータ2!N130+CSVデータ3!N130+CSVデータ4!N130 -> 11 | P130: =CSVデータ1!P130+CSVデータ2!P130+CSVデータ3!P130+CSVデータ4!P130 -> 143 | R130: =CSVデータ1!R130+CSVデータ2!R130+CSVデータ3!R130+CSVデータ4!R130 -> 533 | T130: =CSVデータ1!T130+CSVデータ2!T130+CSVデータ3!T130+CSVデータ4!T130 -> 16 | V130: =CSVデータ1!V130+CSVデータ2!V130+CSVデータ3!V130+CSVデータ4!V130 -> 377 | X130: =CSVデータ1!X130+CSVデータ2!X130+CSVデータ3!X130+CSVデータ4!X130 -> 172 | Z130: =CSVデータ1!Z130+CSVデータ2!Z130+CSVデータ3!Z130+CSVデータ4!Z130 -> 799 | AB130: =CSVデータ1!AB130+CSVデータ2!AB130+CSVデータ3!AB130+CSVデータ4!AB130 -> 1 | AD130: =CSVデータ1!AD130+CSVデータ2!AD130+CSVデータ3!AD130+CSVデータ4!AD130 -> 598 | AF130: =CSVデータ1!AF130+CSVデータ2!AF130+CSVデータ3!AF130+CSVデータ4!AF130 -> 84
A131: =CSVデータ1!A131 -> 明細部 | B131: =CSVデータ1!B131 -> 県 | C131: =CSVデータ1!C131 -> 62 | D131: =CSVデータ1!D131 -> 女 | E131: =CSVデータ1!E131+CSVデータ2!E131+CSVデータ3!E131+CSVデータ4!E131 -> 1454 | F131: =CSVデータ1!F131+CSVデータ2!F131+CSVデータ3!F131+CSVデータ4!F131 -> 298 | H131: =CSVデータ1!H131+CSVデータ2!H131+CSVデータ3!H131+CSVデータ4!H131 -> 249 | J131: =CSVデータ1!J131+CSVデータ2!J131+CSVデータ3!J131+CSVデータ4!J131 -> 248 | L131: =CSVデータ1!L131+CSVデータ2!L131+CSVデータ3!L131+CSVデータ4!L131 -> 168 | N131: =CSVデータ1!N131+CSVデータ2!N131+CSVデータ3!N131+CSVデータ4!N131 -> 12 | P131: =CSVデータ1!P131+CSVデータ2!P131+CSVデータ3!P131+CSVデータ4!P131 -> 218 | R131: =CSVデータ1!R131+CSVデータ2!R131+CSVデータ3!R131+CSVデータ4!R131 -> 724 | T131: =CSVデータ1!T131+CSVデータ2!T131+CSVデータ3!T131+CSVデータ4!T131 -> 27 | V131: =CSVデータ1!V131+CSVデータ2!V131+CSVデータ3!V131+CSVデータ4!V131 -> 533 | X131: =CSVデータ1!X131+CSVデータ2!X131+CSVデータ3!X131+CSVデータ4!X131 -> 218 | Z131: =CSVデータ1!Z131+CSVデータ2!Z131+CSVデータ3!Z131+CSVデータ4!Z131 -> 992 | AB131: =CSVデータ1!AB131+CSVデータ2!AB131+CSVデータ3!AB131+CSVデータ4!AB131 -> 2 | AD131: =CSVデータ1!AD131+CSVデータ2!AD131+CSVデータ3!AD131+CSVデータ4!AD131 -> 809 | AF131: =CSVデータ1!AF131+CSVデータ2!AF131+CSVデータ3!AF131+CSVデータ4!AF131 -> 99
A132: =CSVデータ1!A132 -> 明細部 | B132: =CSVデータ1!B132 -> 県 | C132: =CSVデータ1!C132 -> 63 | D132: =CSVデータ1!D132 -> 女 | E132: =CSVデータ1!E132+CSVデータ2!E132+CSVデータ3!E132+CSVデータ4!E132 -> 1755 | F132: =CSVデータ1!F132+CSVデータ2!F132+CSVデータ3!F132+CSVデータ4!F132 -> 305 | H132: =CSVデータ1!H132+CSVデータ2!H132+CSVデータ3!H132+CSVデータ4!H132 -> 286 | J132: =CSVデータ1!J132+CSVデータ2!J132+CSVデータ3!J132+CSVデータ4!J132 -> 282 | L132: =CSVデータ1!L132+CSVデータ2!L132+CSVデータ3!L132+CSVデータ4!L132 -> 157 | N132: =CSVデータ1!N132+CSVデータ2!N132+CSVデータ3!N132+CSVデータ4!N132 -> 17 | P132: =CSVデータ1!P132+CSVデータ2!P132+CSVデータ3!P132+CSVデータ4!P132 -> 290 | R132: =CSVデータ1!R132+CSVデータ2!R132+CSVデータ3!R132+CSVデータ4!R132 -> 852 | T132: =CSVデータ1!T132+CSVデータ2!T132+CSVデータ3!T132+CSVデータ4!T132 -> 37 | V132: =CSVデータ1!V132+CSVデータ2!V132+CSVデータ3!V132+CSVデータ4!V132 -> 658 | X132: =CSVデータ1!X132+CSVデータ2!X132+CSVデータ3!X132+CSVデータ4!X132 -> 267 | Z132: =CSVデータ1!Z132+CSVデータ2!Z132+CSVデータ3!Z132+CSVデータ4!Z132 -> 1096 | AB132: =CSVデータ1!AB132+CSVデータ2!AB132+CSVデータ3!AB132+CSVデータ4!AB132 -> 2 | AD132: =CSVデータ1!AD132+CSVデータ2!AD132+CSVデータ3!AD132+CSVデータ4!AD132 -> 898 | AF132: =CSVデータ1!AF132+CSVデータ2!AF132+CSVデータ3!AF132+CSVデータ4!AF132 -> 143
A133: =CSVデータ1!A133 -> 明細部 | B133: =CSVデータ1!B133 -> 県 | C133: =CSVデータ1!C133 -> 64 | D133: =CSVデータ1!D133 -> 女 | E133: =CSVデータ1!E133+CSVデータ2!E133+CSVデータ3!E133+CSVデータ4!E133 -> 2265 | F133: =CSVデータ1!F133+CSVデータ2!F133+CSVデータ3!F133+CSVデータ4!F133 -> 445 | H133: =CSVデータ1!H133+CSVデータ2!H133+CSVデータ3!H133+CSVデータ4!H133 -> 374 | J133: =CSVデータ1!J133+CSVデータ2!J133+CSVデータ3!J133+CSVデータ4!J133 -> 360 | L133: =CSVデータ1!L133+CSVデータ2!L133+CSVデータ3!L133+CSVデータ4!L133 -> 222 | N133: =CSVデータ1!N133+CSVデータ2!N133+CSVデータ3!N133+CSVデータ4!N133 -> 22 | P133: =CSVデータ1!P133+CSVデータ2!P133+CSVデータ3!P133+CSVデータ4!P133 -> 365 | R133: =CSVデータ1!R133+CSVデータ2!R133+CSVデータ3!R133+CSVデータ4!R133 -> 1120 | T133: =CSVデータ1!T133+CSVデータ2!T133+CSVデータ3!T133+CSVデータ4!T133 -> 29 | V133: =CSVデータ1!V133+CSVデータ2!V133+CSVデータ3!V133+CSVデータ4!V133 -> 888 | X133: =CSVデータ1!X133+CSVデータ2!X133+CSVデータ3!X133+CSVデータ4!X133 -> 326 | Z133: =CSVデータ1!Z133+CSVデータ2!Z133+CSVデータ3!Z133+CSVデータ4!Z133 -> 1574 | AB133: =CSVデータ1!AB133+CSVデータ2!AB133+CSVデータ3!AB133+CSVデータ4!AB133 -> 3 | AD133: =CSVデータ1!AD133+CSVデータ2!AD133+CSVデータ3!AD133+CSVデータ4!AD133 -> 1257 | AF133: =CSVデータ1!AF133+CSVデータ2!AF133+CSVデータ3!AF133+CSVデータ4!AF133 -> 190
A134: =CSVデータ1!A134 -> 明細部 | B134: =CSVデータ1!B134 -> 県 | C134: =CSVデータ1!C134 -> 65 | D134: =CSVデータ1!D134 -> 女 | E134: =CSVデータ1!E134+CSVデータ2!E134+CSVデータ3!E134+CSVデータ4!E134 -> 2780 | F134: =CSVデータ1!F134+CSVデータ2!F134+CSVデータ3!F134+CSVデータ4!F134 -> 544 | H134: =CSVデータ1!H134+CSVデータ2!H134+CSVデータ3!H134+CSVデータ4!H134 -> 472 | J134: =CSVデータ1!J134+CSVデータ2!J134+CSVデータ3!J134+CSVデータ4!J134 -> 436 | L134: =CSVデータ1!L134+CSVデータ2!L134+CSVデータ3!L134+CSVデータ4!L134 -> 283 | N134: =CSVデータ1!N134+CSVデータ2!N134+CSVデータ3!N134+CSVデータ4!N134 -> 18 | P134: =CSVデータ1!P134+CSVデータ2!P134+CSVデータ3!P134+CSVデータ4!P134 -> 463 | R134: =CSVデータ1!R134+CSVデータ2!R134+CSVデータ3!R134+CSVデータ4!R134 -> 1462 | T134: =CSVデータ1!T134+CSVデータ2!T134+CSVデータ3!T134+CSVデータ4!T134 -> 38 | V134: =CSVデータ1!V134+CSVデータ2!V134+CSVデータ3!V134+CSVデータ4!V134 -> 1197 | X134: =CSVデータ1!X134+CSVデータ2!X134+CSVデータ3!X134+CSVデータ4!X134 -> 457 | Z134: =CSVデータ1!Z134+CSVデータ2!Z134+CSVデータ3!Z134+CSVデータ4!Z134 -> 1717 | AB134: =CSVデータ1!AB134+CSVデータ2!AB134+CSVデータ3!AB134+CSVデータ4!AB134 -> 2 | AD134: =CSVデータ1!AD134+CSVデータ2!AD134+CSVデータ3!AD134+CSVデータ4!AD134 -> 1450 | AF134: =CSVデータ1!AF134+CSVデータ2!AF134+CSVデータ3!AF134+CSVデータ4!AF134 -> 183
A135: =CSVデータ1!A135 -> 明細部 | B135: =CSVデータ1!B135 -> 県 | C135: =CSVデータ1!C135 -> 66 | D135: =CSVデータ1!D135 -> 女 | E135: =CSVデータ1!E135+CSVデータ2!E135+CSVデータ3!E135+CSVデータ4!E135 -> 3299 | F135: =CSVデータ1!F135+CSVデータ2!F135+CSVデータ3!F135+CSVデータ4!F135 -> 634 | H135: =CSVデータ1!H135+CSVデータ2!H135+CSVデータ3!H135+CSVデータ4!H135 -> 568 | J135: =CSVデータ1!J135+CSVデータ2!J135+CSVデータ3!J135+CSVデータ4!J135 -> 576 | L135: =CSVデータ1!L135+CSVデータ2!L135+CSVデータ3!L135+CSVデータ4!L135 -> 315 | N135: =CSVデータ1!N135+CSVデータ2!N135+CSVデータ3!N135+CSVデータ4!N135 -> 43 | P135: =CSVデータ1!P135+CSVデータ2!P135+CSVデータ3!P135+CSVデータ4!P135 -> 561 | R135: =CSVデータ1!R135+CSVデータ2!R135+CSVデータ3!R135+CSVデータ4!R135 -> 1697 | T135: =CSVデータ1!T135+CSVデータ2!T135+CSVデータ3!T135+CSVデータ4!T135 -> 47 | V135: =CSVデータ1!V135+CSVデータ2!V135+CSVデータ3!V135+CSVデータ4!V135 -> 1427 | X135: =CSVデータ1!X135+CSVデータ2!X135+CSVデータ3!X135+CSVデータ4!X135 -> 490 | Z135: =CSVデータ1!Z135+CSVデータ2!Z135+CSVデータ3!Z135+CSVデータ4!Z135 -> 2111 | AB135: =CSVデータ1!AB135+CSVデータ2!AB135+CSVデータ3!AB135+CSVデータ4!AB135 -> 3 | AD135: =CSVデータ1!AD135+CSVデータ2!AD135+CSVデータ3!AD135+CSVデータ4!AD135 -> 1825 | AF135: =CSVデータ1!AF135+CSVデータ2!AF135+CSVデータ3!AF135+CSVデータ4!AF135 -> 262
A136: =CSVデータ1!A136 -> 明細部 | B136: =CSVデータ1!B136 -> 県 | C136: =CSVデータ1!C136 -> 67 | D136: =CSVデータ1!D136 -> 女 | E136: =CSVデータ1!E136+CSVデータ2!E136+CSVデータ3!E136+CSVデータ4!E136 -> 3753 | F136: =CSVデータ1!F136+CSVデータ2!F136+CSVデータ3!F136+CSVデータ4!F136 -> 702 | H136: =CSVデータ1!H136+CSVデータ2!H136+CSVデータ3!H136+CSVデータ4!H136 -> 645 | J136: =CSVデータ1!J136+CSVデータ2!J136+CSVデータ3!J136+CSVデータ4!J136 -> 619 | L136: =CSVデータ1!L136+CSVデータ2!L136+CSVデータ3!L136+CSVデータ4!L136 -> 362 | N136: =CSVデータ1!N136+CSVデータ2!N136+CSVデータ3!N136+CSVデータ4!N136 -> 38 | P136: =CSVデータ1!P136+CSVデータ2!P136+CSVデータ3!P136+CSVデータ4!P136 -> 626 | R136: =CSVデータ1!R136+CSVデータ2!R136+CSVデータ3!R136+CSVデータ4!R136 -> 2039 | T136: =CSVデータ1!T136+CSVデータ2!T136+CSVデータ3!T136+CSVデータ4!T136 -> 62 | V136: =CSVデータ1!V136+CSVデータ2!V136+CSVデータ3!V136+CSVデータ4!V136 -> 1571 | X136: =CSVデータ1!X136+CSVデータ2!X136+CSVデータ3!X136+CSVデータ4!X136 -> 502 | Z136: =CSVデータ1!Z136+CSVデータ2!Z136+CSVデータ3!Z136+CSVデータ4!Z136 -> 2242 | AB136: =CSVデータ1!AB136+CSVデータ2!AB136+CSVデータ3!AB136+CSVデータ4!AB136 -> 2 | AD136: =CSVデータ1!AD136+CSVデータ2!AD136+CSVデータ3!AD136+CSVデータ4!AD136 -> 2071 | AF136: =CSVデータ1!AF136+CSVデータ2!AF136+CSVデータ3!AF136+CSVデータ4!AF136 -> 247
A137: =CSVデータ1!A137 -> 明細部 | B137: =CSVデータ1!B137 -> 県 | C137: =CSVデータ1!C137 -> 68 | D137: =CSVデータ1!D137 -> 女 | E137: =CSVデータ1!E137+CSVデータ2!E137+CSVデータ3!E137+CSVデータ4!E137 -> 4325 | F137: =CSVデータ1!F137+CSVデータ2!F137+CSVデータ3!F137+CSVデータ4!F137 -> 766 | H137: =CSVデータ1!H137+CSVデータ2!H137+CSVデータ3!H137+CSVデータ4!H137 -> 725 | J137: =CSVデータ1!J137+CSVデータ2!J137+CSVデータ3!J137+CSVデータ4!J137 -> 705 | L137: =CSVデータ1!L137+CSVデータ2!L137+CSVデータ3!L137+CSVデータ4!L137 -> 361 | N137: =CSVデータ1!N137+CSVデータ2!N137+CSVデータ3!N137+CSVデータ4!N137 -> 48 | P137: =CSVデータ1!P137+CSVデータ2!P137+CSVデータ3!P137+CSVデータ4!P137 -> 774 | R137: =CSVデータ1!R137+CSVデータ2!R137+CSVデータ3!R137+CSVデータ4!R137 -> 2408 | T137: =CSVデータ1!T137+CSVデータ2!T137+CSVデータ3!T137+CSVデータ4!T137 -> 73 | V137: =CSVデータ1!V137+CSVデータ2!V137+CSVデータ3!V137+CSVデータ4!V137 -> 2079 | X137: =CSVデータ1!X137+CSVデータ2!X137+CSVデータ3!X137+CSVデータ4!X137 -> 668 | Z137: =CSVデータ1!Z137+CSVデータ2!Z137+CSVデータ3!Z137+CSVデータ4!Z137 -> 2619 | AB137: =CSVデータ1!AB137+CSVデータ2!AB137+CSVデータ3!AB137+CSVデータ4!AB137 -> 8 | AD137: =CSVデータ1!AD137+CSVデータ2!AD137+CSVデータ3!AD137+CSVデータ4!AD137 -> 2422 | AF137: =CSVデータ1!AF137+CSVデータ2!AF137+CSVデータ3!AF137+CSVデータ4!AF137 -> 318
A138: =CSVデータ1!A138 -> 明細部 | B138: =CSVデータ1!B138 -> 県 | C138: =CSVデータ1!C138 -> 69 | D138: =CSVデータ1!D138 -> 女 | E138: =CSVデータ1!E138+CSVデータ2!E138+CSVデータ3!E138+CSVデータ4!E138 -> 4727 | F138: =CSVデータ1!F138+CSVデータ2!F138+CSVデータ3!F138+CSVデータ4!F138 -> 905 | H138: =CSVデータ1!H138+CSVデータ2!H138+CSVデータ3!H138+CSVデータ4!H138 -> 761 | J138: =CSVデータ1!J138+CSVデータ2!J138+CSVデータ3!J138+CSVデータ4!J138 -> 775 | L138: =CSVデータ1!L138+CSVデータ2!L138+CSVデータ3!L138+CSVデータ4!L138 -> 418 | N138: =CSVデータ1!N138+CSVデータ2!N138+CSVデータ3!N138+CSVデータ4!N138 -> 76 | P138: =CSVデータ1!P138+CSVデータ2!P138+CSVデータ3!P138+CSVデータ4!P138 -> 879 | R138: =CSVデータ1!R138+CSVデータ2!R138+CSVデータ3!R138+CSVデータ4!R138 -> 2788 | T138: =CSVデータ1!T138+CSVデータ2!T138+CSVデータ3!T138+CSVデータ4!T138 -> 77 | V138: =CSVデータ1!V138+CSVデータ2!V138+CSVデータ3!V138+CSVデータ4!V138 -> 2272 | X138: =CSVデータ1!X138+CSVデータ2!X138+CSVデータ3!X138+CSVデータ4!X138 -> 694 | Z138: =CSVデータ1!Z138+CSVデータ2!Z138+CSVデータ3!Z138+CSVデータ4!Z138 -> 2998 | AB138: =CSVデータ1!AB138+CSVデータ2!AB138+CSVデータ3!AB138+CSVデータ4!AB138 -> 16 | AD138: =CSVデータ1!AD138+CSVデータ2!AD138+CSVデータ3!AD138+CSVデータ4!AD138 -> 2723 | AF138: =CSVデータ1!AF138+CSVデータ2!AF138+CSVデータ3!AF138+CSVデータ4!AF138 -> 273
A139: =CSVデータ1!A139 -> 明細部 | B139: =CSVデータ1!B139 -> 県 | C139: =CSVデータ1!C139 -> 70 | D139: =CSVデータ1!D139 -> 女 | E139: =CSVデータ1!E139+CSVデータ2!E139+CSVデータ3!E139+CSVデータ4!E139 -> 5872 | F139: =CSVデータ1!F139+CSVデータ2!F139+CSVデータ3!F139+CSVデータ4!F139 -> 1079 | H139: =CSVデータ1!H139+CSVデータ2!H139+CSVデータ3!H139+CSVデータ4!H139 -> 1047 | J139: =CSVデータ1!J139+CSVデータ2!J139+CSVデータ3!J139+CSVデータ4!J139 -> 948 | L139: =CSVデータ1!L139+CSVデータ2!L139+CSVデータ3!L139+CSVデータ4!L139 -> 424 | N139: =CSVデータ1!N139+CSVデータ2!N139+CSVデータ3!N139+CSVデータ4!N139 -> 76 | P139: =CSVデータ1!P139+CSVデータ2!P139+CSVデータ3!P139+CSVデータ4!P139 -> 1050 | R139: =CSVデータ1!R139+CSVデータ2!R139+CSVデータ3!R139+CSVデータ4!R139 -> 3159 | T139: =CSVデータ1!T139+CSVデータ2!T139+CSVデータ3!T139+CSVデータ4!T139 -> 110 | V139: =CSVデータ1!V139+CSVデータ2!V139+CSVデータ3!V139+CSVデータ4!V139 -> 2862 | X139: =CSVデータ1!X139+CSVデータ2!X139+CSVデータ3!X139+CSVデータ4!X139 -> 868 | Z139: =CSVデータ1!Z139+CSVデータ2!Z139+CSVデータ3!Z139+CSVデータ4!Z139 -> 3631 | AB139: =CSVデータ1!AB139+CSVデータ2!AB139+CSVデータ3!AB139+CSVデータ4!AB139 -> 14 | AD139: =CSVデータ1!AD139+CSVデータ2!AD139+CSVデータ3!AD139+CSVデータ4!AD139 -> 3185 | AF139: =CSVデータ1!AF139+CSVデータ2!AF139+CSVデータ3!AF139+CSVデータ4!AF139 -> 332
A140: =CSVデータ1!A140 -> 明細部 | B140: =CSVデータ1!B140 -> 県 | C140: =CSVデータ1!C140 -> 71 | D140: =CSVデータ1!D140 -> 女 | E140: =CSVデータ1!E140+CSVデータ2!E140+CSVデータ3!E140+CSVデータ4!E140 -> 5901 | F140: =CSVデータ1!F140+CSVデータ2!F140+CSVデータ3!F140+CSVデータ4!F140 -> 1097 | H140: =CSVデータ1!H140+CSVデータ2!H140+CSVデータ3!H140+CSVデータ4!H140 -> 1102 | J140: =CSVデータ1!J140+CSVデータ2!J140+CSVデータ3!J140+CSVデータ4!J140 -> 964 | L140: =CSVデータ1!L140+CSVデータ2!L140+CSVデータ3!L140+CSVデータ4!L140 -> 452 | N140: =CSVデータ1!N140+CSVデータ2!N140+CSVデータ3!N140+CSVデータ4!N140 -> 73 | P140: =CSVデータ1!P140+CSVデータ2!P140+CSVデータ3!P140+CSVデータ4!P140 -> 1147 | R140: =CSVデータ1!R140+CSVデータ2!R140+CSVデータ3!R140+CSVデータ4!R140 -> 3474 | T140: =CSVデータ1!T140+CSVデータ2!T140+CSVデータ3!T140+CSVデータ4!T140 -> 116 | V140: =CSVデータ1!V140+CSVデータ2!V140+CSVデータ3!V140+CSVデータ4!V140 -> 2925 | X140: =CSVデータ1!X140+CSVデータ2!X140+CSVデータ3!X140+CSVデータ4!X140 -> 784 | Z140: =CSVデータ1!Z140+CSVデータ2!Z140+CSVデータ3!Z140+CSVデータ4!Z140 -> 3380 | AB140: =CSVデータ1!AB140+CSVデータ2!AB140+CSVデータ3!AB140+CSVデータ4!AB140 -> 12 | AD140: =CSVデータ1!AD140+CSVデータ2!AD140+CSVデータ3!AD140+CSVデータ4!AD140 -> 3203 | AF140: =CSVデータ1!AF140+CSVデータ2!AF140+CSVデータ3!AF140+CSVデータ4!AF140 -> 311
A141: =CSVデータ1!A141 -> 明細部 | B141: =CSVデータ1!B141 -> 県 | C141: =CSVデータ1!C141 -> 72 | D141: =CSVデータ1!D141 -> 女 | E141: =CSVデータ1!E141+CSVデータ2!E141+CSVデータ3!E141+CSVデータ4!E141 -> 4411 | F141: =CSVデータ1!F141+CSVデータ2!F141+CSVデータ3!F141+CSVデータ4!F141 -> 799 | H141: =CSVデータ1!H141+CSVデータ2!H141+CSVデータ3!H141+CSVデータ4!H141 -> 821 | J141: =CSVデータ1!J141+CSVデータ2!J141+CSVデータ3!J141+CSVデータ4!J141 -> 687 | L141: =CSVデータ1!L141+CSVデータ2!L141+CSVデータ3!L141+CSVデータ4!L141 -> 373 | N141: =CSVデータ1!N141+CSVデータ2!N141+CSVデータ3!N141+CSVデータ4!N141 -> 60 | P141: =CSVデータ1!P141+CSVデータ2!P141+CSVデータ3!P141+CSVデータ4!P141 -> 970 | R141: =CSVデータ1!R141+CSVデータ2!R141+CSVデータ3!R141+CSVデータ4!R141 -> 2655 | T141: =CSVデータ1!T141+CSVデータ2!T141+CSVデータ3!T141+CSVデータ4!T141 -> 97 | V141: =CSVデータ1!V141+CSVデータ2!V141+CSVデータ3!V141+CSVデータ4!V141 -> 2287 | X141: =CSVデータ1!X141+CSVデータ2!X141+CSVデータ3!X141+CSVデータ4!X141 -> 635 | Z141: =CSVデータ1!Z141+CSVデータ2!Z141+CSVデータ3!Z141+CSVデータ4!Z141 -> 2645 | AB141: =CSVデータ1!AB141+CSVデータ2!AB141+CSVデータ3!AB141+CSVデータ4!AB141 -> 10 | AD141: =CSVデータ1!AD141+CSVデータ2!AD141+CSVデータ3!AD141+CSVデータ4!AD141 -> 2607 | AF141: =CSVデータ1!AF141+CSVデータ2!AF141+CSVデータ3!AF141+CSVデータ4!AF141 -> 250
A142: =CSVデータ1!A142 -> 明細部 | B142: =CSVデータ1!B142 -> 県 | C142: =CSVデータ1!C142 -> 73 | D142: =CSVデータ1!D142 -> 女 | E142: =CSVデータ1!E142+CSVデータ2!E142+CSVデータ3!E142+CSVデータ4!E142 -> 3291 | F142: =CSVデータ1!F142+CSVデータ2!F142+CSVデータ3!F142+CSVデータ4!F142 -> 636 | H142: =CSVデータ1!H142+CSVデータ2!H142+CSVデータ3!H142+CSVデータ4!H142 -> 634 | J142: =CSVデータ1!J142+CSVデータ2!J142+CSVデータ3!J142+CSVデータ4!J142 -> 519 | L142: =CSVデータ1!L142+CSVデータ2!L142+CSVデータ3!L142+CSVデータ4!L142 -> 285 | N142: =CSVデータ1!N142+CSVデータ2!N142+CSVデータ3!N142+CSVデータ4!N142 -> 50 | P142: =CSVデータ1!P142+CSVデータ2!P142+CSVデータ3!P142+CSVデータ4!P142 -> 702 | R142: =CSVデータ1!R142+CSVデータ2!R142+CSVデータ3!R142+CSVデータ4!R142 -> 1906 | T142: =CSVデータ1!T142+CSVデータ2!T142+CSVデータ3!T142+CSVデータ4!T142 -> 71 | V142: =CSVデータ1!V142+CSVデータ2!V142+CSVデータ3!V142+CSVデータ4!V142 -> 1731 | X142: =CSVデータ1!X142+CSVデータ2!X142+CSVデータ3!X142+CSVデータ4!X142 -> 400 | Z142: =CSVデータ1!Z142+CSVデータ2!Z142+CSVデータ3!Z142+CSVデータ4!Z142 -> 1826 | AB142: =CSVデータ1!AB142+CSVデータ2!AB142+CSVデータ3!AB142+CSVデータ4!AB142 -> 3 | AD142: =CSVデータ1!AD142+CSVデータ2!AD142+CSVデータ3!AD142+CSVデータ4!AD142 -> 1813 | AF142: =CSVデータ1!AF142+CSVデータ2!AF142+CSVデータ3!AF142+CSVデータ4!AF142 -> 149
A143: =CSVデータ1!A143 -> 明細部 | B143: =CSVデータ1!B143 -> 県 | C143: =CSVデータ1!C143 -> 74 | D143: =CSVデータ1!D143 -> 女 | E143: =CSVデータ1!E143+CSVデータ2!E143+CSVデータ3!E143+CSVデータ4!E143 -> 3976 | F143: =CSVデータ1!F143+CSVデータ2!F143+CSVデータ3!F143+CSVデータ4!F143 -> 782 | H143: =CSVデータ1!H143+CSVデータ2!H143+CSVデータ3!H143+CSVデータ4!H143 -> 761 | J143: =CSVデータ1!J143+CSVデータ2!J143+CSVデータ3!J143+CSVデータ4!J143 -> 608 | L143: =CSVデータ1!L143+CSVデータ2!L143+CSVデータ3!L143+CSVデータ4!L143 -> 278 | N143: =CSVデータ1!N143+CSVデータ2!N143+CSVデータ3!N143+CSVデータ4!N143 -> 54 | P143: =CSVデータ1!P143+CSVデータ2!P143+CSVデータ3!P143+CSVデータ4!P143 -> 830 | R143: =CSVデータ1!R143+CSVデータ2!R143+CSVデータ3!R143+CSVデータ4!R143 -> 2350 | T143: =CSVデータ1!T143+CSVデータ2!T143+CSVデータ3!T143+CSVデータ4!T143 -> 85 | V143: =CSVデータ1!V143+CSVデータ2!V143+CSVデータ3!V143+CSVデータ4!V143 -> 2129 | X143: =CSVデータ1!X143+CSVデータ2!X143+CSVデータ3!X143+CSVデータ4!X143 -> 458 | Z143: =CSVデータ1!Z143+CSVデータ2!Z143+CSVデータ3!Z143+CSVデータ4!Z143 -> 2189 | AB143: =CSVデータ1!AB143+CSVデータ2!AB143+CSVデータ3!AB143+CSVデータ4!AB143 -> 9 | AD143: =CSVデータ1!AD143+CSVデータ2!AD143+CSVデータ3!AD143+CSVデータ4!AD143 -> 2184 | AF143: =CSVデータ1!AF143+CSVデータ2!AF143+CSVデータ3!AF143+CSVデータ4!AF143 -> 175
